{"text_format":"1","workbook":"xlsx","n_sheets":55,"sheets":["Macro List","Activity Information","Backend","Activity Accomplishments","LMC 1","Relocation and Displacement","LMC 2","LMC 3","LMC 4","LMC 6","LMC 7","LMC 8","LMC 9","LMC 10","LMC 11","Reset","LMC NA","LMH 1","LMH 2","LMH 3","LMH 4","LMH 5","LMH 6","LMH 7","LMH 8","LMH 9","LMH 10","SBURG 1","SBURG 2","SBURG 3","SBURG 4","SBURG 5","SBURG 6","SBURG 7","SBURG 8","SBURG 9","SBURG 10","LMJ 1","LMJ 2","LMJ 3","MC05","MC04-04A","MC15","LMA1","LMA2","LMA3","LMA4","LMA5","LMA6","LMA 7","LMC 5","LMC 12","SBURG 11","LMH 11","LMJ 4"],"not_rendered":{"charts":0,"images":0,"macros":1,"external_links":0,"defined_names":54,"comments":0,"pivot_tables":0},"unopened":[],"bounds":{"document_bytes":16777216,"sheet_cells":100000,"rows_first":2000,"rows_last":500,"rows_between":2000,"halvings":0,"cell_chars":16384,"cell_head_chars":4096},"cells_cut":0,"cells_raw":0,"read":"whole","date_system":"1900"}

{"sheet":"Macro List","index":0,"n_rows":52,"n_cols":16,"rows_kept":52,"cut":false,"hidden":true,"merged":[[0,12,0,14],[17,2,17,6],[0,3,0,4],[0,7,0,9],[17,7,17,11]]}
[null,null,null,"First Draft?",null,null,null,"Second Draft?",null,null,null,null,"Third Draft - Help TH"]
["Description","Macro Name","In Backend?","Formatted?","Recorded?","Assigned to Macro?","First Draft?","Formatted?","Recorded?","Assigned?","Retested?","Checked formula connection?","Need to Change?","Editted?","Recorded?","Assigned?"]
["Click Macro: LMA Basic","LMA 1","x","x","x","x","x","x","x","x","x","x","x","x","x"]
["Click Macro: LMAFI/LMASA\nJobs","LMA 2","x","x","x","x","x","x","x","x","x","x"]
["Click Macro: LMA\nBusiness","LMA 3","x","x","x","x","x","x","x","x","x","x"]
["LMA* with any 03* with JOBS","LMA 4",null,null,null,null,null,"x","x","x","x","x","x","x","x"]
["LMA* with any 03* without JOBS","LMA 5",null,null,null,null,null,"x","x","x","x","x","x","x","x"]
["LMA* public service","LMA 6",null,null,null,null,null,"x","x","x","x","x"]
["Click Macro: Matrix Code\n15","Matrix Code 15","x","x","x","x","x","x","x","x","x","x"]
["MC 04 & 04A - LMA","LMA 7","x","x","x","x","x","x","x","x",null,null,null,"x","x","x"]
["Click Macro: LMA\nMatrix Code 05*","Matrix Code 5","x","x","x","x","x","x","x","x","x","x","x","x","x"]
["RESET","RESET","N/A","x","x","x","x","x","x","x","x","x"]
["LMC* HH","LMC 1","x","x","x","x","x","x","x","x",null,"x","x","x","x"]
["LMCMC Job Creation/Retention","LMC 2","x","x","x","x","x","x","x","x",null,"x"]
["LMC* with any 03* Matrix Code except 03T","LMC 3","x","x","x","x","x","x","x","x",null,"x","x","x","x"]
["LMC* with any Matrix Code of 05* or 03T","LMC 4","x","x","x","x","x","x","x","x",null,"x","x","x","x"]
["05U Exception","LMC 5","x","x","x","x","x","x","x","x",null,"x","x","x","x"]
["LMCSV with Matrix Code 05R","LMC NA","Not applicable in other HUD guidance",null,null,null,null,"not applicable"]
["LMCSV with Matrix Code 05S","LMC 6","x","x","x","x","x","x","x","x",null,"x","x","x","x"]
["LMC/LMCSV with MC 05C, or 05Q","LMC 7","x","x","x","x","x","x","x","x",null,"x","x","x","x"]
["LMC/LMCSV with MC 05T","LMC 8","x","x","x","x","x","x","x","x",null,"x","x","x","x"]
["LMC/LMSV with MC 14E, 17*, 18B, or 18C","LMC 9","x","x","x","x","x","x","x","x",null,"x"]
["LMCMC activities","LMC 10","x","x","x","x","x","x","x","x",null,"x"]
["LMC/LMCMC job w/person","LMC 11","x","new","new","new","new","x","x","x",null,"x"]
["ALL LMH* Base","LMH 1","x","x","x","x","x","x","x","x",null,"x","x","x","x"]
["LMH* Housing Rehab MC 14G","LMH 2","x","x","x","x","x","x","x","x",null,"x","x","x","x"]
["LMH* Housing Rehab MC 16A","LMH 3","x","x","x","x","x","x","x","x",null,"x","x","x","x"]
["LMH Homeowner Rehab\nLMH* with 14A-14D and 14F-14i (except 14g)","LMH 4","x","x","x","x","x","x","x","x",null,"x","x","x","x"]
["LMH* MC 01","LMH 5","x","x","x","x","x","x","x","x",null,"x","x","x","x"]
["LMH* MC 12","LMH 6","x","x","x","x","x","x","x","x",null,"x","x","x","x"]
["LMH* with MC 03H-03L","LMH 7","x","x","x","x","x","x","x","x",null,"x","x","x","x"]
["LMH* with MC 05R, 05S, or 05T","LMH 8","x","x","x","x","x","x","x","x",null,"x","x","x","x"]
["LMH* with 13","LMH 9","x","x","x","x","x","x","x","x",null,"x","x","x","x"]
["LMH* Matrix 5S","LMH 10","x","x","x","x","x","x","x","x",null,"x","x","x","x"]
["LMJ* with Job Creation/Retention","LMJ 1","x","x","x","x","x","x","x","x","x","x"]
["LMJ* with MC 14E, 17*, or 18*","LMJ 2","x","x","x","x","x","x","x","x","x","x"]
["LMJ* job with public service","LMJ 3",null,null,null,null,null,"x","x","x","x","x"]
["SB*/URG Base","SB_URG 1","x","x","x","x","x","x","x","x",null,"x","x","x","x"]
["SB*/URG for all housing rehab except 05C, 05Q, or 05T","SB_URG 2","x","x","x","x","x","x","x","x",null,"x","x","x","x"]
["SB*/URG with MC 03* except 03T","SB_URG 3","x","x","x","x","x","x","x","x",null,"x"]
["SB*/URG with MC 05*","SB_URG 4","x","x","x","x","x","x","x","x",null,"x","x","x","x"]
["SBA/URG with MC 05R","SB_URG 5","x","x","x","x","x","x","x","x",null,"x","x","x","x"]
["SBA/URG with MC 05S","SB_URG 6","x","x","x","x","x","x","x","x",null,"x","x","x","x"]
["SBA/URG with MC 05C, 05Q, or 05T","SB_URG 7","x","x","x","x","x","x","x","x",null,"x","x","x","x"]
["SB*/URG with MC 14A-14D or 14F-I","SB_URG 8","x","x","x","x","x","x","x","x",null,"x","x","x","x"]
["SB*/URG with MC 01 or 12","SB_URG 9","x","x","x","x","x","x","x","x",null,"x","x","x","x"]
["SB*/URG with MC 14E, 17*, or 18*","SB_URG 10","x","x","x","x","x","x","x","x",null,"x"]
["MC 04 - LMAFI / LMASA","LMA 7",null,null,null,null,null,null,null,null,null,null,null,"x","x","x"]
["MC 04 & 04A - LMC","LMC 12",null,null,null,null,null,null,null,null,null,null,null,"x","x","x"]
["MC 04 & 04A - SBA/SBS/URG","SB_URG 11",null,null,null,null,null,null,null,null,null,null,null,"x","x","x"]
["MC 04 & 04A - LMH/LMHS","LMH 11",null,null,null,null,null,null,null,null,null,null,null,"x","x","x"]
["MC 04 - LMJ / LMJP","LMJ 4",null,null,null,null,null,null,null,null,null,null,null,"x","x","x"]

{"sheet":"Activity Information","index":1,"n_rows":635,"n_cols":31,"rows_kept":635,"cut":false,"hidden":false,"merged":[[60,5,60,14],[58,5,58,14],[58,17,58,26],[40,1,41,5],[40,7,41,26],[42,0,43,26],[3,0,3,26],[15,7,15,26],[17,7,17,11],[17,20,17,26],[4,0,13,26],[1,0,2,26],[19,7,19,11],[38,7,38,26],[36,0,36,26],[27,0,27,26],[29,7,29,26],[31,7,31,26],[33,7,33,18],[33,20,33,22],[33,24,33,26],[19,20,19,26]]}
[]
["\nHCD COMMUNITY DEVELOPMENT BLOCK GRANT PROGRAM\n12-2: Completion Report \n(Published October 2023)",null,null,null,null,null,null,null,null,null,null,null,null,null,null,null,null,null,null,null,null,null,null,null,null,null,null,null,null,"2018-2019","CDBG"]
[null,null,null,null,null,null,null,null,null,null,null,null,null,null,null,null,null,null,null,null,null,null,null,null,null,null,null,null,null,"2019-2020","CDBG-CV"]
[null,null,null,null,null,null,null,null,null,null,null,null,null,null,null,null,null,null,null,null,null,null,null,null,null,null,null,null,null,"2020-2021"]
["Instructions: The Completion Report must be submitted as part of the CDBG Combined Closeout Package. \n\nSelect the appropriate National Objective and Matrix Code from the dropdown menus below. Once selected, click the checkbox identified in the instructions in red text. Enter data in the relevant fields in the Activity Accomplishments Tab of the spreadsheet. This data should be an aggregate of all accomplishments realized through the activity. This data may be gathered from the activity's Annual Performance Report (APR) Form. \n\nIf the activity resulted in relocation or displacement, complete the Relocation and Displacement tab of the spreadsheet.",null,null,null,null,null,null,null,null,null,null,null,null,null,null,null,null,null,null,null,null,null,null,null,null,null,null,null,null,"2021-2022"]
[null,null,null,null,null,null,null,null,null,null,null,null,null,null,null,null,null,null,null,null,null,null,null,null,null,null,null,null,null,"2022-2023"]
[null,null,null,null,null,null,null,null,null,null,null,null,null,null,null,null,null,null,null,null,null,null,null,null,null,null,null,null,null,"2023-2024"]
[null,null,null,null,null,null,null,null,null,null,null,null,null,null,null,null,null,null,null,null,null,null,null,null,null,null,null,null,null,"2024-2025"]
[null,null,null,null,null,null,null,null,null,null,null,null,null,null,null,null,null,null,null,null,null,null,null,null,null,null,null,null,null,"2025-2026"]
[null,null,null,null,null,null,null,null,null,null,null,null,null,null,null,null,null,null,null,null,null,null,null,null,null,null,null,null,null,"2026-2027"]
[null,null,null,null,null,null,null,null,null,null,null,null,null,null,null,null,null,null,null,null,null,null,null,null,null,null,null,null,null,"2027-2028"]
[null,null,null,null,null,null,null,null,null,null,null,null,null,null,null,null,null,null,null,null,null,null,null,null,null,null,null,null,null,"2028-2029"]
[null,null,null,null,null,null,null,null,null,null,null,null,null,null,null,null,null,null,null,null,null,null,null,null,null,null,null,null,null,"2029-2030"]
[null,null,null,null,null,null,null,null,null,null,null,null,null,null,null,null,null,null,null,null,null,null,null,null,null,null,null,null,null,"2030-2031"]
[]
[null,null,null,null,null,"Activity Title:"]
[]
[null,null,null,null,null,"Program Year:",null,null,null,null,null,null,null,null,null,null,null,null,"Funding Source:"]
[]
[null,null,null,null,null,"Award/Contract #:",null,null,null,null,null,null,null,null,null,null,null,null,"Completion Date:"]
[]
[null,null,null,null,null,null,null,null,null,null,null,null,null,null,null,null,null,null,null,null,null,null,null,null,null,null,null,null,null,"2029-2030"]
[null,null,null,null,null,null,null,null,null,null,null,null,null,null,null,null,null,null,null,null,null,null,null,null,null,null,null,null,null,"2030-2031"]
[]
[]
[]
[]
["Grantee Information"]
[]
[null,null,null,null,null,"Grantee Name:"]
[]
[null,null,null,null,null,"Grantee Address:"]
[null,null,null,null,null,null,null,"(Number and Street)"]
[]
[null,null,null,null,null,null,null,"(City)",null,null,null,null,null,null,null,null,null,null,null,null,"(State)",null,null,null,"(Zip)"]
[]
["Activity Information"]
[null,null,null,null,null,null,null,null,null,null,null,null,null,null,null,null,null,null,null,null,null,null,null,null,null,null,null,null,null,"NO. Code"]
[null,null,null,null,null,"National Objective:",null,null,null,null,null,null,null,null,null,null,null,null,null,null,null,null,null,null,null,null,null,null,null,{"$f":"INDEX(Backend!G14:I29,MATCH(H39,Backend!H14:H29,0),MATCH(\"Code\",Backend!G14:I14,0))","v":{"$error":"#N/A"}}]
[]
[null,"Matrix Code:"]
[]
[{"$f":"IF('Activity Accomplishments'!A1=\"\",\"\",'Activity Accomplishments'!A1)","v":"Enter National Objective and Matrix Code"}]
[]
[]
[]
[]
[]
[]
[]
[]
[]
[]
[]
[]
[]
[]
[]
[null,null,null,"Name:",null,null,null,null,null,null,null,null,null,null,null,null,"Title:"]
[]
[null,null,null,"Date:"]
[]
[]
[]
[]
[]
[]
[]
[]
[]
[]
[]
[]
[]
[]
[]
[]
[]
[]
[]
[]
[]
[]
[]
[]
[]
[]
[]
[]
[]
[]
[]
[]
[]
[]
[]
[]
[]
[]
[]
[]
[]
[]
[]
[]
[]
[]
[]
[]
[]
[]
[]
[]
[]
[]
[]
[]
[]
[]
[]
[]
[]
[]
[]
[]
[]
[]
[]
[]
[]
[]
[]
[]
[]
[]
[]
[]
[]
[]
[]
[]
[]
[]
[]
[]
[]
[]
[]
[]
[]
[]
[]
[]
[]
[]
[]
[]
[]
[]
[]
[]
[]
[]
[]
[]
[]
[]
[]
[]
[]
[]
[]
[]
[]
[]
[]
[]
[]
[]
[]
[]
[]
[]
[]
[]
[]
[]
[]
[]
[]
[]
[]
[]
[]
[]
[]
[]
[]
[]
[]
[]
[]
[]
[]
[]
[]
[]
[]
[]
[]
[]
[]
[]
[]
[]
[]
[]
[]
[]
[]
[]
[]
[]
[]
[]
[]
[]
[]
[]
[]
[]
[]
[]
[]
[]
[]
[]
[]
[]
[]
[]
[]
[]
[]
[]
[]
[]
[]
[]
[]
[]
[]
[]
[]
[]
[]
[]
[]
[]
[]
[]
[]
[]
[]
[]
[]
[]
[]
[]
[]
[]
[]
[]
[]
[]
[]
[]
[]
[]
[]
[]
[]
[]
[]
[]
[]
[]
[]
[]
[]
[]
[]
[]
[]
[]
[]
[]
[]
[]
[]
[]
[]
[]
[]
[]
[]
[]
[]
[]
[]
[]
[]
[]
[]
[]
[]
[]
[]
[]
[]
[]
[]
[]
[]
[]
[]
[]
[]
[]
[]
[]
[]
[]
[]
[]
[]
[]
[]
[]
[]
[]
[]
[]
[]
[]
[]
[]
[]
[]
[]
[]
[]
[]
[]
[]
[]
[]
[]
[]
[]
[]
[]
[]
[]
[]
[]
[]
[]
[]
[]
[]
[]
[]
[]
[]
[]
[]
[]
[]
[]
[]
[]
[]
[]
[]
[]
[]
[]
[]
[]
[]
[]
[]
[]
[]
[]
[]
[]
[]
[]
[]
[]
[]
[]
[]
[]
[]
[]
[]
[]
[]
[]
[]
[]
[]
[]
[]
[]
[]
[]
[]
[]
[]
[]
[]
[]
[]
[]
[]
[]
[]
[]
[]
[]
[]
[]
[]
[]
[]
[]
[]
[]
[]
[]
[]
[]
[]
[]
[]
[]
[]
[]
[]
[]
[]
[]
[]
[]
[]
[]
[]
[]
[]
[]
[]
[]
[]
[]
[]
[]
[]
[]
[]
[]
[]
[]
[]
[]
[]
[]
[]
[]
[]
[]
[]
[]
[]
[]
[]
[]
[]
[]
[]
[]
[]
[]
[]
[]
[]
[]
[]
[]
[]
[]
[]
[]
[]
[]
[]
[]
[]
[]
[]
[]
[]
[]
[]
[]
[]
[]
[]
[]
[]
[]
[]
[]
[]
[]
[]
[]
[]
[]
[]
[]
[]
[]
[]
[]
[]
[]
[]
[]
[]
[]
[]
[]
[]
[]
[]
[]
[]
[]
[]
[]
[]
[]
[]
[]
[]
[]
[]
[]
[]
[]
[]
[]
[]
[]
[]
[]
[]
[]
[]
[]
[]
[]
[]
[]
[]
[]
[]
[]
[]
[]
[]
[]
[]
[]
[]
[]
[]
[]
[]
[]
[]
[]
[]
[]
[]
[]
[]
[]
[]
[]
[]
[]
[]
[]
[]
[]
[]
[]
[]
[]
[]
[]
[]
[]
[]
[]
[]
[]
[]
[]
[]
[]
[]
[]
[]
[]
[]
[]
[]
[]
[null,null,null,"Daniel Perez "]

{"sheet":"Backend","index":2,"n_rows":629,"n_cols":17,"rows_kept":629,"cut":false,"hidden":true,"merged":[[0,6,0,7],[118,0,118,8]]}
[]
["Matrix Code","Title","Full Title",null,null,null,null,null,null,null,null,null,null,null,null,null,"MC List"]
["01","Acquisition of Real Property",{"$f":"CONCATENATE(A3,\" - \",B3)","v":"01 - Acquisition of Real Property"},null,null,null,null,null,null,null,null,null,null,null,null,null,"01 - Acquisition of Real Property"]
["02","Disposition of Real Property",{"$f":"CONCATENATE(A4,\" - \",B4)","v":"02 - Disposition of Real Property"},null,null,null,null,null,null,null,null,null,null,null,null,null,"02 - Disposition of Real Property"]
["03A","Senior Center","03A - Senior Center",null,null,null,null,null,null,null,null,null,null,null,null,null,"03A - Senior Center"]
["03B","Facilities for Persons with Disabilities","03B - Facilities for Persons with Disabilities",null,null,null,null,null,null,null,null,null,null,null,null,null,"03B - Facilities for Persons with Disabilities"]
["03C","Homeless Facilities (not operating costs)","03C - Homeless Facilities (not operating costs)",null,null,null,null,null,null,null,null,null,null,null,null,null,"03C - Homeless Facilities (not operating costs)"]
["03D","Youth Centers","03D - Youth Centers",null,null,null,null,null,null,null,null,null,null,null,null,null,"03D - Youth Centers"]
["03E","Neighborhood Facilities","03E - Neighborhood Facilities",null,null,null,null,null,null,null,null,null,null,null,null,null,"03E - Neighborhood Facilities"]
["03F","Parks, Recreational Facilities","03F - Parks, Recreational Facilities",null,null,null,null,null,null,null,null,null,null,null,null,null,"03F - Parks, Recreational Facilities"]
["03G","Parking Facilities","03G - Parking Facilities",null,null,null,null,null,null,null,null,null,null,null,null,null,"03G - Parking Facilities"]
["03H","Solid Waste Disposal Improvements","03H - Solid Waste Disposal Improvements",null,null,null,null,null,null,null,null,null,null,null,null,null,"03H - Solid Waste Disposal Improvements"]
["03I","Flood Drainage Improvements","03I - Flood Drainage Improvements",null,null,null,null,null,null,null,null,null,null,null,null,null,"03I - Flood Drainage Improvements"]
["03J","Water/Sewer Improvements","03J - Water/Sewer Improvements",null,null,null,"NO Category","Subcategory","Code","Subcode",null,null,null,null,null,null,"03J - Water/Sewer Improvements"]
["03K","Street Improvements","03K - Street Improvements",null,null,null,"Activities benefiting L/M Income Persons","LMA - Low/mod area benefit","LMA",null,null,null,null,null,null,null,"03K - Street Improvements"]
["03L","Sidewalks","03L - Sidewalks",null,null,null,"Activities benefiting L/M Income Persons","LMAFI - Low/mod area benefit, community development financial institution (CDFI)","LMAFI",null,null,null,null,null,null,null,"03L - Sidewalks"]
["03M","Child Care Centers","03M - Child Care Centers",null,null,null,"Activities benefiting L/M Income Persons","LMASA - Low/mod area benefit, community revitalization strategy area (CSRA)","LMASA",null,null,null,null,null,null,null,"03M - Child Care Centers"]
["03N","Tree Planting","03N - Tree Planting",null,null,null,"Activities benefiting L/M Income Persons","LMC - Low/mod limited clientele benefit","LMC",null,null,null,null,null,null,null,"03N - Tree Planting"]
["03O","Fire Stations/Equipment","03O - Fire Stations/Equipment",null,null,null,"Activities benefiting L/M Income Persons","LMCMC - Low/mod limited clientele, micro-enterprises","LMCMC",null,null,null,null,null,null,null,"03O - Fire Stations/Equipment"]
["03P","Health Facilities","03P - Health Facilities",null,null,null,"Activities benefiting L/M Income Persons","LMCSV - Low/mod limited clientele, job service benefit","LMCSV",null,null,null,null,null,null,null,"03P - Health Facilities"]
["03Q","Abused and Neglected Children Facilities","03Q - Abused and Neglected Children Facilities",null,null,null,"Activities benefiting L/M Income Persons","LMH - Low/mod housing benefit","LMH","LMH*",null,null,null,null,null,null,"03Q - Abused and Neglected Children Facilities"]
["03R","Asbestos Removal","03R - Asbestos Removal",null,null,null,"Activities benefiting L/M Income Persons","LMHS - Low/mod housing benefit, CDFI or NRSA","LMHS","LMH*",null,null,null,null,null,null,"03R - Asbestos Removal"]
["03S","Facilities for AIDS Patients (not operating costs)","03S - Facilities for AIDS Patients (not operating costs)",null,null,null,"Activities benefiting L/M Income Persons","LMJ - Low/mod job creation and retention","LMJ","LMJ*",null,null,null,null,null,null,"03S - Facilities for AIDS Patients (not operating costs)"]
["03T","Homeless/AIDS Patients Programs (subject to 15% public service cap)","03T - Homeless/AIDS Patients Programs (subject to 15% public service cap)",null,null,null,"Activities benefiting L/M Income Persons","LMJFI - Low/mod job creation and retention, public facility/improvement benefit","LMJFI","LMJ*",null,null,null,null,null,null,"03T - Homeless/AIDS Patients Programs (subject to 15% public service cap)"]
["03Z","Other Public Improvements Not Listed in 03A-03S","03Z - Other Public Improvements Not Listed in 03A-03S",null,null,null,"Activities benefiting L/M Income Persons","LMJP - Low/mod job creation and retention, location-based","LMJP","LMJ*",null,null,null,null,null,null,"03Z - Other Public Improvements Not Listed in 03A-03S"]
["04","Clearance and Demolition","04 - Clearance and Demolition",null,null,null,"Slums or Blight","SBA - Slum/blight area benefit","SBA","SB*",null,null,null,null,null,null,"04 - Clearance and Demolition"]
["04A","Cleanup of Contaminated Sites","04A - Cleanup of Contaminated Sites",null,null,null,"Slums or Blight","SBS - Slum/blight, spot basis","SBS","SB*",null,null,null,null,null,null,"04A - Cleanup of Contaminated Sites"]
["05A","Senior Services","05A - Senior Services",null,null,null,"Slums or Blight","URG - Urgent Need","URG",null,null,null,null,null,null,null,"05A - Senior Services"]
["05B","Services for Persons with Disabilities","05B - Services for Persons with Disabilities",null,null,null,"None","None","None",null,null,null,null,null,null,null,"05B - Services for Persons with Disabilities"]
["05C","Legal Services","05C - Legal Services",null,null,null,null,null,null,null,null,null,null,null,null,null,"05C - Legal Services"]
["05D","Youth Services","05D - Youth Services",null,null,null,null,null,null,null,null,null,null,null,null,null,"05D - Youth Services"]
["05E","Transportation Services","05E - Transportation Services",null,null,null,null,null,null,null,null,null,null,null,null,null,"05E - Transportation Services"]
["05F","Substance Abuse Services","05F - Substance Abuse Services",null,null,null,null,null,"Accom. Types",null,null,null,null,null,null,null,"05F - Substance Abuse Services"]
["05G","Services for Battered and Abused Spouses","05G - Services for Battered and Abused Spouses",null,null,null,null,null,"People:",null,null,null,null,null,null,null,"05G - Services for Battered and Abused Spouses"]
["05H","Employment Training",{"$f":"CONCATENATE(A35,\" - \",B35)","v":"05H - Employment Training"},null,null,null,null,null,"Households:",null,null,null,null,null,null,null,"05H - Employment Training"]
["05I","Crime Awareness","05I - Crime Awareness",null,null,null,null,null,"Businesses:",null,null,null,null,null,null,null,"05I - Crime Awareness"]
["05J","Fair Housing Activities (subject to Public Services cap)","05J - Fair Housing Activities (subject to Public Services cap)",null,null,null,null,null,"Organizations:",null,null,null,null,null,null,null,"05J - Fair Housing Activities (subject to Public Services cap)"]
["05K","Tenant/Landlord Counseling","05K - Tenant/Landlord Counseling",null,null,null,null,null,"Housing Units:",null,null,null,null,null,null,null,"05K - Tenant/Landlord Counseling"]
["05L","Child Care Services","05L - Child Care Services",null,null,null,null,null,"Public Facilities:",null,null,null,null,null,null,null,"05L - Child Care Services"]
["05M","Health Services","05M - Health Services",null,null,null,null,null,"Jobs:",null,null,null,null,null,null,null,"05M - Health Services"]
["05N","Abused and Neglected Children Services","05N - Abused and Neglected Children Services",null,null,null,null,null,"Other:",null,null,null,null,null,null,null,"05N - Abused and Neglected Children Services"]
["05O","Mental Health Services","05O - Mental Health Services",null,null,null,null,null,"None",null,null,null,null,null,null,null,"05O - Mental Health Services"]
["05P","Screening for Lead-Based Paint/Lead Hazards","05P - Screening for Lead-Based Paint/Lead Hazards",null,null,null,null,null,null,null,null,null,null,null,null,null,"05P - Screening for Lead-Based Paint/Lead Hazards"]
["05Q","Subsistence Payments","05Q - Subsistence Payments",null,null,null,null,null,null,null,null,null,null,null,null,null,"05Q - Subsistence Payments"]
["05R","Homebuyer Downpayment Assistance - Excluding Housing Counseling, under 24 CFR 5.100","05R - Homebuyer Downpayment Assistance - Excluding Housing Counseling, under 24 CFR 5.100",null,null,null,null,null,null,null,null,null,null,null,null,null,"05R - Homebuyer Downpayment Assistance - Excluding Housing Counseling, under 24 CFR 5.100"]
["05S","Rental Housing Subsidies","05S - Rental Housing Subsidies",null,null,null,null,null,null,null,null,null,null,null,null,null,"05S - Rental Housing Subsidies"]
["05T","Security Deposits","05T - Security Deposits",null,null,null,null,null,null,null,null,null,null,null,null,null,"05T - Security Deposits"]
["05U","Housing Counseling Only, under 24 CFR 5.100","05U - Housing Counseling Only, under 24 CFR 5.100",null,null,null,null,null,null,null,null,null,null,null,null,null,"05U - Housing Counseling Only, under 24 CFR 5.100"]
["05V","Neighborhood Cleanups","05V - Neighborhood Cleanups",null,null,null,null,null,null,null,null,null,null,null,null,null,"05V - Neighborhood Cleanups"]
["05W","Food Banks","05W - Food Banks",null,null,null,null,null,null,null,null,null,null,null,null,null,"05W - Food Banks"]
["05X","Housing Information and Referral Services","05X - Housing Information and Referral Services",null,null,null,null,null,null,null,null,null,null,null,null,null,"05Z - Other Public Services Not Listed in 03T and 05A-05Y"]
["05Y","Housing Counseling , under 24 CFR 5.100 Supporting Homebuyer Downpayment Assistance (05R)","05Y - Housing Counseling , under 24 CFR 5.100 Supporting Homebuyer Downpayment Assistance (05R)",null,null,null,null,null,null,null,null,null,null,null,null,null,"06 - Interim Assistance"]
["05Z","Other Public Services Not Listed in 03T and 05A-05Y","05Z - Other Public Services Not Listed in 03T and 05A-05Y",null,null,null,null,null,null,null,null,null,null,null,null,null,"08 - Relocation"]
["06","Interim Assistance","06 - Interim Assistance",null,null,null,null,null,null,null,null,null,null,null,null,null,"09 - Loss of Rental Income"]
["07","Urban Renewal Completion",{"$f":"CONCATENATE(A55,\" - \",B55)","v":"07 - Urban Renewal Completion"},null,null,null,null,null,null,null,null,null,null,null,null,null,"11 - Privately Owned Utilities"]
["08","Relocation","08 - Relocation",null,null,null,null,null,null,null,null,null,null,null,null,null,"12 - Construction of Housing"]
["09","Loss of Rental Income","09 - Loss of Rental Income",null,null,null,null,null,null,null,null,null,null,null,null,null,"13 - Direct Homeownership Assistance"]
["11","Privately Owned Utilities","11 - Privately Owned Utilities",null,null,null,null,null,null,null,null,null,null,null,null,null,"14A - Rehabilitation: Single-Unit Residential"]
["12","Construction of Housing","12 - Construction of Housing",null,null,null,null,null,null,null,null,null,null,null,null,null,"14B - Rehabilitation: Multi-Unit Residential"]
[13,"Direct Homeownership Assistance","13 - Direct Homeownership Assistance",null,null,null,null,null,null,null,null,null,null,null,null,null,"14C - Public Housing Modernization"]
["13B","Homeownership Assistance - excluding Housing counseling under 24 CFR 5.100","13B - Homeownership Assistance - excluding Housing counseling under 24 CFR 5.100","VOID",null,null,null,null,null,null,null,null,null,null,null,null,"14D - Rehabilitation: Other Publicly Owned Residential Buildings"]
["14A","Rehabilitation: Single-Unit Residential","14A - Rehabilitation: Single-Unit Residential",null,null,null,null,null,null,null,null,null,null,null,null,null,"14E - Rehabilitation: Publicly or Privately Owned Commercial/Industrial"]
["14B","Rehabilitation: Multi-Unit Residential","14B - Rehabilitation: Multi-Unit Residential",null,null,null,null,null,null,null,null,null,null,null,null,null,"14F - Energy Efficiency Improvements"]
["14C","Public Housing Modernization","14C - Public Housing Modernization",null,null,null,null,null,null,null,null,null,null,null,null,null,"14G - Acquisition for Rehabilitation"]
["14D","Rehabilitation: Other Publicly Owned Residential Buildings","14D - Rehabilitation: Other Publicly Owned Residential Buildings",null,null,null,null,null,null,null,null,null,null,null,null,null,"14H - Rehabilitation Administration"]
["14E","Rehabilitation: Publicly or Privately Owned Commercial/Industrial","14E - Rehabilitation: Publicly or Privately Owned Commercial/Industrial",null,null,null,null,null,null,null,null,null,null,null,null,null,"14I - Lead-Based Paint Abatement"]
["14F","Energy Efficiency Improvements",{"$f":"CONCATENATE(A67,\" - \",B67)","v":"14F - Energy Efficiency Improvements"},null,null,null,null,null,null,null,null,null,null,null,null,null,"14J - Housing Services, excluding Housing Counseling, under 24 CFR 5.100"]
["14G","Acquisition for Rehabilitation","14G - Acquisition for Rehabilitation",null,null,null,null,null,null,null,null,null,null,null,null,null,"15 - Code Enforcement"]
["14H","Rehabilitation Administration","14H - Rehabilitation Administration",null,null,null,null,null,null,null,null,null,null,null,null,null,"16A - Residential Historic Preservation"]
["14I","Lead-Based Paint Abatement","14I - Lead-Based Paint Abatement",null,null,null,null,null,null,null,null,null,null,null,null,null,"16B - Non-Residential Historic Preservation"]
["14J","Housing Services, excluding Housing Counseling, under 24 CFR 5.100","14J - Housing Services, excluding Housing Counseling, under 24 CFR 5.100",null,null,null,null,null,null,null,null,null,null,null,null,null,"17A - Commercial/Industrial: Acquisition/Disposition"]
["14K","Housing Counseling, under 24 CFR 5.100, Supporting HOME Program Assistance Housing Activities","14K - Housing Counseling, under 24 CFR 5.100, Supporting HOME Program Assistance Housing Activities",null,null,null,null,null,null,null,null,null,null,null,null,null,"17B - Commercial/Industrial: Infrastructure Development"]
["14L","Housing Counseling, under 24 CFR 5.100, in Conjunction with CDBG Assisted Housing Rehab","14L - Housing Counseling, under 24 CFR 5.100, in Conjunction with CDBG Assisted Housing Rehab",null,null,null,null,null,null,null,null,null,null,null,null,null,"17C - Commercial/Industrial: Building Acquisition, Construction, & Rehabilitation"]
["15","Code Enforcement","15 - Code Enforcement",null,null,null,null,null,null,null,null,null,null,null,null,null,"17D - Commercial/Industrial: Other Improvements"]
["16A","Residential Historic Preservation","16A - Residential Historic Preservation",null,null,null,null,null,null,null,null,null,null,null,null,null,"18A - Economic Development: Direct Financial Assistance to For-Profit Business"]
["16B","Non-Residential Historic Preservation","16B - Non-Residential Historic Preservation",null,null,null,null,null,null,null,null,null,null,null,null,null,"18B - Economic Development: Technical Assistance"]
["17A","Commercial/Industrial: Acquisition/Disposition","17A - Commercial/Industrial: Acquisition/Disposition",null,null,null,null,null,null,null,null,null,null,null,null,null,"18C - Economic Development: Micro-Enterprise Assistance"]
["17B","Commercial/Industrial: Infrastructure Development","17B - Commercial/Industrial: Infrastructure Development",null,null,null,null,null,null,null,null,null,null,null,null,null,"19C - Nonprofit Capacity Building"]
["17C","Commercial/Industrial: Building Acquisition, Construction, & Rehabilitation","17C - Commercial/Industrial: Building Acquisition, Construction, & Rehabilitation",null,null,null,null,null,null,null,null,null,null,null,null,null,"19E - Operation and Repair of Foreclosed Property"]
["17D","Commercial/Industrial: Other Improvements","17D - Commercial/Industrial: Other Improvements",null,null,null,null,null,null,null,null,null,null,null,null,null,"19F - Planned Repayments of Section 108 Loans"]
["18A","Economic Development: Direct Financial Assistance to For-Profit Business","18A - Economic Development: Direct Financial Assistance to For-Profit Business",null,null,null,null,null,null,null,null,null,null,null,null,null,"19G - Unplanned Repayments of Section 108 Loans"]
["18B","Economic Development: Technical Assistance","18B - Economic Development: Technical Assistance",null,null,null,null,null,null,null,null,null,null,null,null,null,"19H - State CDBG Technical Assistance to Grantees"]
["18C","Economic Development: Micro-Enterprise Assistance","18C - Economic Development: Micro-Enterprise Assistance",null,null,null,null,null,null,null,null,null,null,null,null,null,"20 - Planning"]
["19C","Nonprofit Capacity Building","19C - Nonprofit Capacity Building",null,null,null,null,null,null,null,null,null,null,null,null,null,"20A - State Planning-Only Activities"]
["19E","Operation and Repair of Foreclosed Property","19E - Operation and Repair of Foreclosed Property",null,null,null,null,null,null,null,null,null,null,null,null,null,"21A - General Program Administration"]
["19F","Planned Repayments of Section 108 Loans","19F - Planned Repayments of Section 108 Loans",null,null,null,null,null,null,null,null,null,null,null,null,null,"21B - Indirect Costs"]
["19G","Unplanned Repayments of Section 108 Loans","19G - Unplanned Repayments of Section 108 Loans",null,null,null,null,null,null,null,null,null,null,null,null,null,"21C - Public Information"]
["19H","State CDBG Technical Assistance to Grantees","19H - State CDBG Technical Assistance to Grantees",null,null,null,null,null,null,null,null,null,null,null,null,null,"21D - Fair Housing Activities (subject to Admin cap)"]
["20","Planning","20 - Planning",null,null,null,null,null,null,null,null,null,null,null,null,null,"21E - Submission of Applications for Federal Programs"]
["20A","State Planning-Only Activities","20A - State Planning-Only Activities",null,null,null,null,null,null,null,null,null,null,null,null,null,"21H - CDBG Funding of HOME Admin"]
["21A","General Program Administration","21A - General Program Administration",null,null,null,null,null,null,null,null,null,null,null,null,null,"21I - CDBG Funding of HOME CHDO Operating Expenses"]
["21B","Indirect Costs","21B - Indirect Costs",null,null,null,null,null,null,null,null,null,null,null,null,null,"21J - State Program Administration"]
["21C","Public Information","21C - Public Information",null,null,null,null,null,null,null,null,null,null,null,null,null,"22 - Unprogrammed Funds"]
["21D","Fair Housing Activities (subject to Admin cap)","21D - Fair Housing Activities (subject to Admin cap)",null,null,null,null,null,null,null,null,null,null,null,null,null,"23 - Tornado Shelters Serving Private Mobile Home Parks"]
["21E","Submission of Applications for Federal Programs","21E - Submission of Applications for Federal Programs",null,null,null,null,null,null,null,null,null,null,null,null,null,"24A - Payment of Interest on Section 108 Loans"]
["21H","CDBG Funding of HOME Admin","21H - CDBG Funding of HOME Admin",null,null,null,null,null,null,null,null,null,null,null,null,null,"24B - Payment of Costs of Section 108 Financing"]
["21I","CDBG Funding of HOME CHDO Operating Expenses","21I - CDBG Funding of HOME CHDO Operating Expenses",null,null,null,null,null,null,null,null,null,null,null,null,null,"24C - Debt Service Reserve"]
["21J","State Program Administration","21J - State Program Administration"]
["23","Tornado Shelters Serving Private Mobile Home Parks",{"$f":"CONCATENATE(A99,\" - \",B99)","v":"23 - Tornado Shelters Serving Private Mobile Home Parks"}]
["24A","Payment of Interest on Section 108 Loans","24A - Payment of Interest on Section 108 Loans"]
["24B","Payment of Costs of Section 108 Financing","24B - Payment of Costs of Section 108 Financing"]
["24C","Debt Service Reserve","24C - Debt Service Reserve"]
[]
[]
[]
[]
[]
[]
[]
[]
[]
[]
[]
[]
[]
[]
[]
[]
["Accomplishment - MC/NO Table"]
["MC","NO","Accomplishment Type1","Accomplishment Type2","Type1 Count","Type 2 Count","Race/Ethn./Inc Data?","Macro Message","Macro Note"]
[{"$f":"$C$3","v":"01 - Acquisition of Real Property"},{"$f":"I15","v":"LMA"},{"$f":"CONCATENATE(I34,\"\",CHAR(10),\"\",CHAR(10),I36)","v":"People:\n\nBusinesses:"},null,2,null,"x","Click Checkbox: LMA 1","LMA Basic"]
[{"$f":"$C$3","v":"01 - Acquisition of Real Property"},{"$f":"I18","v":"LMC"},{"$f":"CONCATENATE(I34,\"\",CHAR(10),\"\",CHAR(10),I36)","v":"People:\n\nBusinesses:"},null,2,null,"x","Do NOT click a Checkbox"]
[{"$f":"$C$3","v":"01 - Acquisition of Real Property"},{"$f":"I26","v":"SBA"},{"$f":"CONCATENATE(I34,\"\",CHAR(10),\"\",CHAR(10),I36)","v":"People:\n\nBusinesses:"},{"$f":"I38","v":"Housing Units:"},2,1,"x","Click Checkbox: SB_URG 9"]
["01 - Acquisition of Real Property",{"$f":"I27","v":"SBS"},{"$f":"C123","v":"People:\n\nBusinesses:"},{"$f":"$D$123","v":"Housing Units:"},2,1,"x","Click Checkbox: SB_URG 9"]
["01 - Acquisition of Real Property",{"$f":"I28","v":"URG"},{"$f":"$C$121","v":"People:\n\nBusinesses:"},{"$f":"$D$123","v":"Housing Units:"},2,1,"x","Click Checkbox: SB_URG 9"]
["01 - Acquisition of Real Property",{"$f":"I21","v":"LMH"},{"$f":"$I$38","v":"Housing Units:"},null,1,null,null,"Click Checkbox: LMH 5"]
["01 - Acquisition of Real Property",{"$f":"I22","v":"LMHS"},{"$f":"$I$38","v":"Housing Units:"},null,1,null,null,"Click Checkbox: LMH 5"]
["01 - Acquisition of Real Property",{"$f":"I23","v":"LMJ"},{"$f":"$I$40","v":"Jobs:"},null,1,null,"x","Click Checkbox: LMJ 1"]
["01 - Acquisition of Real Property",{"$f":"I25","v":"LMJP"},{"$f":"$I$40","v":"Jobs:"},null,1,null,"x","Click Checkbox: LMJ 1"]
["01 - Acquisition of Real Property",{"$f":"I16","v":"LMAFI"},{"$f":"$I$40","v":"Jobs:"},null,1,null,"x",{"$f":"CONCATENATE(\"Click Checkbox: LMA 2\")","v":"Click Checkbox: LMA 2"},"LMAFI/LMASA JOBS"]
["01 - Acquisition of Real Property",{"$f":"I17","v":"LMASA"},{"$f":"$I$40","v":"Jobs:"},null,1,null,"x","Click Checkbox: LMA 2","LMAFI/LMASA JOBS"]
[{"$f":"Backend!$C$4","v":"02 - Disposition of Real Property"},{"$f":"I15","v":"LMA"},{"$f":"$C$121","v":"People:\n\nBusinesses:"},null,2,null,"x","Click Checkbox: LMA 1","LMA Basic"]
[{"$f":"Backend!$C$4","v":"02 - Disposition of Real Property"},{"$f":"I18","v":"LMC"},{"$f":"$C$121","v":"People:\n\nBusinesses:"},null,2,null,"x","Do NOT click a Checkbox"]
[{"$f":"Backend!$C$4","v":"02 - Disposition of Real Property"},{"$f":"I26","v":"SBA"},{"$f":"$C$121","v":"People:\n\nBusinesses:"},null,2,null,"x","Click Checkbox: SB_URG 1"]
[{"$f":"Backend!$C$4","v":"02 - Disposition of Real Property"},{"$f":"I28","v":"URG"},{"$f":"$C$121","v":"People:\n\nBusinesses:"},null,2,null,"x","Click Checkbox: SB_URG 1"]
[{"$f":"Backend!$C$4","v":"02 - Disposition of Real Property"},{"$f":"I21","v":"LMH"},{"$f":"$I$38","v":"Housing Units:"},null,1,null,null,"Click Checkbox: LMH 1"]
[{"$f":"Backend!$C$4","v":"02 - Disposition of Real Property"},{"$f":"I22","v":"LMHS"},{"$f":"$I$38","v":"Housing Units:"},null,1,null,null,"Click Checkbox: LMH 1"]
[{"$f":"Backend!$C$4","v":"02 - Disposition of Real Property"},{"$f":"I23","v":"LMJ"},{"$f":"I40","v":"Jobs:"},null,1,null,"x","Click Checkbox: LMJ 1"]
[{"$f":"Backend!$C$4","v":"02 - Disposition of Real Property"},{"$f":"I25","v":"LMJP"},{"$f":"$C$138","v":"Jobs:"},null,1,null,"x","Click Checkbox: LMJ 1"]
[{"$f":"Backend!$C$4","v":"02 - Disposition of Real Property"},{"$f":"I16","v":"LMAFI"},{"$f":"$C$138","v":"Jobs:"},null,1,null,"x",{"$f":"CONCATENATE(\"Click Checkbox: LMA 2\")","v":"Click Checkbox: LMA 2"},"LMAFI/LMASA JOBS"]
[{"$f":"Backend!$C$4","v":"02 - Disposition of Real Property"},{"$f":"I17","v":"LMASA"},{"$f":"$C$138","v":"Jobs:"},null,1,null,"x","Click Checkbox: LMA 2","LMAFI/LMASA JOBS"]
[{"$f":"$C$5","v":"03A - Senior Center"},{"$f":"I18","v":"LMC"},{"$f":"$I$34","v":"People:"},null,1,null,null,"Click Checkbox: LMC 3"]
["03A - Senior Center",{"$f":"I26","v":"SBA"},"People:",null,1,null,null,"Click Checkbox: SB_URG 3"]
["03A - Senior Center",{"$f":"I27","v":"SBS"},"People:",null,1,null,null,"Click Checkbox: SB_URG 3"]
["03A - Senior Center",{"$f":"I28","v":"URG"},"People:",null,1,null,null,"Click Checkbox: SB_URG 3"]
["03A - Senior Center",{"$f":"I16","v":"LMAFI"},{"$f":"$I$40","v":"Jobs:"},null,1,null,"x",{"$f":"CONCATENATE(\"Click Checkbox: LMA 4\")","v":"Click Checkbox: LMA 4"},"LMAFI/LMASA JOBS"]
["03A - Senior Center",{"$f":"I17","v":"LMASA"},{"$f":"$I$40","v":"Jobs:"},null,1,null,"x","Click Checkbox: LMA 4","LMAFI/LMASA JOBS"]
[{"$f":"$C$6","v":"03B - Facilities for Persons with Disabilities"},{"$f":"I18","v":"LMC"},{"$f":"$I$34","v":"People:"},null,1,null,null,"Click Checkbox: LMC 3"]
["03B - Facilities for Persons with Disabilities",{"$f":"I26","v":"SBA"},"People:",null,1,null,null,"Click Checkbox: SB_URG 3"]
["03B - Facilities for Persons with Disabilities",{"$f":"I27","v":"SBS"},"People:",null,1,null,null,"Click Checkbox: SB_URG 3"]
["03B - Facilities for Persons with Disabilities",{"$f":"I28","v":"URG"},"People:",null,1,null,null,"Click Checkbox: SB_URG 3"]
["03B - Facilities for Persons with Disabilities",{"$f":"I16","v":"LMAFI"},{"$f":"$I$40","v":"Jobs:"},null,1,null,"x",{"$f":"CONCATENATE(\"Click Checkbox: LMA 4\")","v":"Click Checkbox: LMA 4"},"LMAFI/LMASA JOBS"]
["03B - Facilities for Persons with Disabilities",{"$f":"I17","v":"LMASA"},{"$f":"$I$40","v":"Jobs:"},null,1,null,"x","Click Checkbox: LMA 4","LMAFI/LMASA JOBS"]
[{"$f":"$C$7","v":"03C - Homeless Facilities (not operating costs)"},{"$f":"I18","v":"LMC"},{"$f":"$I$34","v":"People:"},null,1,null,null,"Click Checkbox: LMC 3"]
["03C - Homeless Facilities (not operating costs)",{"$f":"I26","v":"SBA"},"People:",null,1,null,null,"Click Checkbox: SB_URG 3"]
["03C - Homeless Facilities (not operating costs)",{"$f":"I27","v":"SBS"},"People:",null,1,null,null,"Click Checkbox: SB_URG 3"]
["03C - Homeless Facilities (not operating costs)",{"$f":"I28","v":"URG"},"People:",null,1,null,null,"Click Checkbox: SB_URG 3"]
["03C - Homeless Facilities (not operating costs)",{"$f":"I16","v":"LMAFI"},{"$f":"$I$40","v":"Jobs:"},null,1,null,"x",{"$f":"CONCATENATE(\"Click Checkbox: LMA 4\")","v":"Click Checkbox: LMA 4"},"LMAFI/LMASA JOBS"]
["03C - Homeless Facilities (not operating costs)",{"$f":"I17","v":"LMASA"},{"$f":"$I$40","v":"Jobs:"},null,1,null,"x","Click Checkbox: LMA 4","LMAFI/LMASA JOBS"]
[{"$f":"$C$8","v":"03D - Youth Centers"},{"$f":"I18","v":"LMC"},{"$f":"$I$34","v":"People:"},null,1,null,null,"Click Checkbox: LMC 3"]
["03D - Youth Centers",{"$f":"I26","v":"SBA"},"People:",null,1,null,null,"Click Checkbox: SB_URG 3"]
["03D - Youth Centers",{"$f":"I27","v":"SBS"},"People:",null,1,null,null,"Click Checkbox: SB_URG 3"]
["03D - Youth Centers",{"$f":"I28","v":"URG"},"People:",null,1,null,null,"Click Checkbox: SB_URG 3"]
["03D - Youth Centers",{"$f":"I16","v":"LMAFI"},{"$f":"$I$40","v":"Jobs:"},null,1,null,"x",{"$f":"CONCATENATE(\"Click Checkbox: LMA 4\")","v":"Click Checkbox: LMA 4"},"LMAFI/LMASA JOBS"]
["03D - Youth Centers",{"$f":"I17","v":"LMASA"},{"$f":"$I$40","v":"Jobs:"},null,1,null,"x","Click Checkbox: LMA 4","LMAFI/LMASA JOBS"]
[{"$f":"$C$9","v":"03E - Neighborhood Facilities"},{"$f":"I15","v":"LMA"},{"$f":"I$34","v":"People:"},null,1,null,null,"Click Checkbox: LMA 5","LMA Basic"]
["03E - Neighborhood Facilities",{"$f":"I18","v":"LMC"},"People:",null,1,null,null,"Click Checkbox: LMC 3"]
["03E - Neighborhood Facilities",{"$f":"I26","v":"SBA"},"People:",null,1,null,null,"Click Checkbox: SB_URG 3"]
["03E - Neighborhood Facilities",{"$f":"I27","v":"SBS"},"People:",null,1,null,null,"Click Checkbox: SB_URG 3"]
["03E - Neighborhood Facilities",{"$f":"I28","v":"URG"},"People:",null,1,null,null,"Click Checkbox: SB_URG 3"]
["03E - Neighborhood Facilities",{"$f":"I16","v":"LMAFI"},{"$f":"$I$40","v":"Jobs:"},null,1,null,"x",{"$f":"CONCATENATE(\"Click Checkbox: LMA 4\")","v":"Click Checkbox: LMA 4"},"LMAFI/LMASA JOBS"]
["03E - Neighborhood Facilities",{"$f":"I17","v":"LMASA"},{"$f":"$I$40","v":"Jobs:"},null,1,null,"x","Click Checkbox: LMA 4","LMAFI/LMASA JOBS"]
[{"$f":"$C$10","v":"03F - Parks, Recreational Facilities"},{"$f":"I15","v":"LMA"},{"$f":"I$34","v":"People:"},null,1,null,null,"Click Checkbox: LMA 5","LMA Basic"]
["03F - Parks, Recreational Facilities",{"$f":"I18","v":"LMC"},"People:",null,1,null,null,"Click Checkbox: LMC 3"]
["03F - Parks, Recreational Facilities",{"$f":"I26","v":"SBA"},"People:",null,1,null,null,"Click Checkbox: SB_URG 3"]
["03F - Parks, Recreational Facilities",{"$f":"I27","v":"SBS"},"People:",null,1,null,null,"Click Checkbox: SB_URG 3"]
["03F - Parks, Recreational Facilities",{"$f":"I28","v":"URG"},"People:",null,1,null,null,"Click Checkbox: SB_URG 3"]
[{"$f":"$C$11","v":"03G - Parking Facilities"},{"$f":"I15","v":"LMA"},{"$f":"$I$34","v":"People:"},null,1,null,null,"Click Checkbox: LMA 5","LMA Basic"]
["03G - Parking Facilities",{"$f":"I18","v":"LMC"},"People:",null,1,null,null,"Click Checkbox: LMC 3"]
["03G - Parking Facilities",{"$f":"I26","v":"SBA"},"People:",null,1,null,null,"Click Checkbox: SB_URG 3"]
["03G - Parking Facilities",{"$f":"I27","v":"SBS"},"People:",null,1,null,null,"Click Checkbox: SB_URG 3"]
["03G - Parking Facilities",{"$f":"I28","v":"URG"},"People:",null,1,null,null,"Click Checkbox: SB_URG 3"]
["03G - Parking Facilities",{"$f":"I16","v":"LMAFI"},{"$f":"$I$40","v":"Jobs:"},null,1,null,"x",{"$f":"CONCATENATE(\"Click Checkbox: LMA 4\")","v":"Click Checkbox: LMA 4"},"LMAFI/LMASA JOBS"]
["03G - Parking Facilities",{"$f":"I17","v":"LMASA"},{"$f":"$I$40","v":"Jobs:"},null,1,null,"x","Click Checkbox: LMA 4","LMAFI/LMASA JOBS"]
[{"$f":"$C$12","v":"03H - Solid Waste Disposal Improvements"},{"$f":"I15","v":"LMA"},{"$f":"$I$34","v":"People:"},null,1,null,null,"Click Checkbox: LMA 5","LMA Basic"]
["03H - Solid Waste Disposal Improvements",{"$f":"I18","v":"LMC"},"People:",null,1,null,null,"Click Checkbox: LMC 3"]
["03H - Solid Waste Disposal Improvements",{"$f":"I26","v":"SBA"},"People:",null,1,null,null,"Click Checkbox: SB_URG 3"]
["03H - Solid Waste Disposal Improvements",{"$f":"I27","v":"SBS"},"People:",null,1,null,null,"Click Checkbox: SB_URG 3"]
["03H - Solid Waste Disposal Improvements",{"$f":"I28","v":"URG"},"People:",null,1,null,null,"Click Checkbox: SB_URG 3"]
["03H - Solid Waste Disposal Improvements",{"$f":"I21","v":"LMH"},{"$f":"$I$38","v":"Housing Units:"},null,1,null,null,"Click Checkbox: LMH 7"]
["03H - Solid Waste Disposal Improvements",{"$f":"I22","v":"LMHS"},{"$f":"$I$38","v":"Housing Units:"},null,1,null,null,"Click Checkbox: LMH 7"]
["03H - Solid Waste Disposal Improvements",{"$f":"I16","v":"LMAFI"},{"$f":"$I$40","v":"Jobs:"},null,1,null,"x",{"$f":"CONCATENATE(\"Click Checkbox: LMA 4\")","v":"Click Checkbox: LMA 4"},"LMAFI/LMASA JOBS"]
["03H - Solid Waste Disposal Improvements",{"$f":"I17","v":"LMASA"},{"$f":"$I$40","v":"Jobs:"},null,1,null,"x","Click Checkbox: LMA 4","LMAFI/LMASA JOBS"]
[{"$f":"$C$13","v":"03I - Flood Drainage Improvements"},{"$f":"I15","v":"LMA"},{"$f":"$I$34","v":"People:"},null,1,null,null,"Click Checkbox: LMA 5","LMA Basic"]
["03I - Flood Drainage Improvements",{"$f":"I18","v":"LMC"},"People:",null,1,null,null,"Click Checkbox: LMC 3"]
["03I - Flood Drainage Improvements",{"$f":"I26","v":"SBA"},"People:",null,1,null,null,"Click Checkbox: SB_URG 3"]
["03I - Flood Drainage Improvements",{"$f":"I27","v":"SBS"},"People:",null,1,null,null,"Click Checkbox: SB_URG 3"]
["03I - Flood Drainage Improvements",{"$f":"I28","v":"URG"},"People:",null,1,null,null,"Click Checkbox: SB_URG 3"]
["03I - Flood Drainage Improvements",{"$f":"I21","v":"LMH"},{"$f":"$I$38","v":"Housing Units:"},null,1,null,null,"Click Checkbox: LMH 7"]
["03I - Flood Drainage Improvements",{"$f":"I22","v":"LMHS"},{"$f":"$I$38","v":"Housing Units:"},null,1,null,null,"Click Checkbox: LMH 7"]
["03I - Flood Drainage Improvements",{"$f":"I16","v":"LMAFI"},{"$f":"$I$40","v":"Jobs:"},null,1,null,"x",{"$f":"CONCATENATE(\"Click Checkbox: LMA 4\")","v":"Click Checkbox: LMA 4"},"LMAFI/LMASA JOBS"]
["03I - Flood Drainage Improvements",{"$f":"I17","v":"LMASA"},{"$f":"$I$40","v":"Jobs:"},null,1,null,"x",{"$f":"CONCATENATE(\"Click Checkbox: LMA 4\")","v":"Click Checkbox: LMA 4"},"LMAFI/LMASA JOBS"]
[{"$f":"$C$14","v":"03J - Water/Sewer Improvements"},{"$f":"I15","v":"LMA"},{"$f":"$I$34","v":"People:"},null,1,null,"x","Click Checkbox: LMA 5","LMA Basic"]
["03J - Water/Sewer Improvements",{"$f":"I18","v":"LMC"},"People:",null,1,null,"x","Click Checkbox: LMC 3"]
["03J - Water/Sewer Improvements",{"$f":"I26","v":"SBA"},"People:",null,1,null,"x","Click Checkbox: SB_URG 3"]
["03J - Water/Sewer Improvements",{"$f":"I27","v":"SBS"},"People:",null,1,null,"x","Click Checkbox: SB_URG 3"]
["03J - Water/Sewer Improvements",{"$f":"I28","v":"URG"},"People:",null,1,null,"x","Click Checkbox: SB_URG 3"]
["03J - Water/Sewer Improvements",{"$f":"I21","v":"LMH"},{"$f":"$I$38","v":"Housing Units:"},null,1,null,null,"Click Checkbox: LMH 7"]
["03J - Water/Sewer Improvements",{"$f":"I22","v":"LMHS"},{"$f":"$I$38","v":"Housing Units:"},null,1,null,null,"Click Checkbox: LMH 7"]
["03J - Water/Sewer Improvements",{"$f":"I16","v":"LMAFI"},{"$f":"$I$40","v":"Jobs:"},null,1,null,"x",{"$f":"CONCATENATE(\"Click Checkbox: LMA 4\")","v":"Click Checkbox: LMA 4"},"LMAFI/LMASA JOBS"]
["03J - Water/Sewer Improvements",{"$f":"I17","v":"LMASA"},{"$f":"$I$40","v":"Jobs:"},null,1,null,"x","Click Checkbox: LMA 4","LMAFI/LMASA JOBS"]
[{"$f":"$C$15","v":"03K - Street Improvements"},{"$f":"I15","v":"LMA"},{"$f":"$I$34","v":"People:"},null,1,null,"x","Click Checkbox: LMA 5","LMA Basic"]
["03K - Street Improvements",{"$f":"I18","v":"LMC"},"People:",null,1,null,"x","Click Checkbox: LMC 3"]
["03K - Street Improvements",{"$f":"I26","v":"SBA"},"People:",null,1,null,"x","Click Checkbox: SB_URG 3"]
["03K - Street Improvements",{"$f":"I27","v":"SBS"},"People:",null,1,null,"x","Click Checkbox: SB_URG 3"]
["03K - Street Improvements",{"$f":"I28","v":"URG"},"People:",null,1,null,"x","Click Checkbox: SB_URG 3"]
["03K - Street Improvements",{"$f":"I21","v":"LMH"},{"$f":"$I$38","v":"Housing Units:"},null,1,null,null,"Click Checkbox: LMH 7"]
["03K - Street Improvements",{"$f":"I22","v":"LMHS"},{"$f":"$I$38","v":"Housing Units:"},null,1,null,null,"Click Checkbox: LMH 7"]
["03K - Street Improvements",{"$f":"I16","v":"LMAFI"},{"$f":"$I$40","v":"Jobs:"},null,1,null,"x",{"$f":"CONCATENATE(\"Click Checkbox: LMA 4\")","v":"Click Checkbox: LMA 4"},"LMAFI/LMASA JOBS"]
["03K - Street Improvements",{"$f":"I17","v":"LMASA"},{"$f":"$I$40","v":"Jobs:"},null,1,null,"x","Click Checkbox: LMA 4","LMAFI/LMASA JOBS"]
[{"$f":"$C$16","v":"03L - Sidewalks"},{"$f":"I15","v":"LMA"},{"$f":"$I$34","v":"People:"},null,1,null,"x","Click Checkbox: LMA 5","LMA Basic"]
["03L - Sidewalks",{"$f":"I18","v":"LMC"},"People:",null,1,null,"x","Click Checkbox: LMC 3"]
["03L - Sidewalks",{"$f":"I26","v":"SBA"},"People:",null,1,null,"x","Click Checkbox: SB_URG 3"]
["03L - Sidewalks",{"$f":"I27","v":"SBS"},"People:",null,1,null,"x","Click Checkbox: SB_URG 3"]
["03L - Sidewalks",{"$f":"I28","v":"URG"},"People:",null,1,null,"x","Click Checkbox: SB_URG 3"]
["03L - Sidewalks",{"$f":"I21","v":"LMH"},{"$f":"$I$38","v":"Housing Units:"},null,1,null,null,"Click Checkbox: LMH 7"]
["03L - Sidewalks",{"$f":"I22","v":"LMHS"},{"$f":"$I$38","v":"Housing Units:"},null,1,null,null,"Click Checkbox: LMH 7"]
["03L - Sidewalks",{"$f":"I16","v":"LMAFI"},{"$f":"$I$40","v":"Jobs:"},null,1,null,"x",{"$f":"CONCATENATE(\"Click Checkbox: LMA 4\")","v":"Click Checkbox: LMA 4"},"LMAFI/LMASA JOBS"]
["03L - Sidewalks",{"$f":"I17","v":"LMASA"},{"$f":"$I$40","v":"Jobs:"},null,1,null,"x","Click Checkbox: LMA 4","LMAFI/LMASA JOBS"]
[{"$f":"$C$17","v":"03M - Child Care Centers"},{"$f":"I18","v":"LMC"},{"$f":"$I$34","v":"People:"},null,1,null,null,"Click Checkbox: LMC 3"]
["03M - Child Care Centers",{"$f":"I26","v":"SBA"},"People:",null,1,null,null,"Click Checkbox: SB_URG 3"]
["03M - Child Care Centers",{"$f":"I27","v":"SBS"},"People:",null,1,null,null,"Click Checkbox: SB_URG 3"]
["03M - Child Care Centers",{"$f":"I28","v":"URG"},"People:",null,1,null,null,"Click Checkbox: SB_URG 3"]
["03M - Child Care Centers",{"$f":"I16","v":"LMAFI"},{"$f":"$I$40","v":"Jobs:"},null,1,null,"x",{"$f":"CONCATENATE(\"Click Checkbox: LMA 4\")","v":"Click Checkbox: LMA 4"},"LMAFI/LMASA JOBS"]
["03M - Child Care Centers",{"$f":"I17","v":"LMASA"},{"$f":"$I$40","v":"Jobs:"},null,1,null,"x","Click Checkbox: LMA 4","LMAFI/LMASA JOBS"]
[{"$f":"$C$18","v":"03N - Tree Planting"},{"$f":"I15","v":"LMA"},{"$f":"$I$34","v":"People:"},null,1,null,null,"Click Checkbox: LMA 5","LMA Basic"]
["03N - Tree Planting",{"$f":"I18","v":"LMC"},"People:",null,1,null,null,"Click Checkbox: LMC 3"]
["03N - Tree Planting",{"$f":"I26","v":"SBA"},"People:",null,1,null,null,"Click Checkbox: SB_URG 3"]
["03N - Tree Planting",{"$f":"I27","v":"SBS"},"People:",null,1,null,null,"Click Checkbox: SB_URG 3"]
["03N - Tree Planting",{"$f":"I28","v":"URG"},"People:",null,1,null,null,"Click Checkbox: SB_URG 3"]
[{"$f":"$C$19","v":"03O - Fire Stations/Equipment"},{"$f":"I15","v":"LMA"},{"$f":"$I$34","v":"People:"},null,1,null,null,"Click Checkbox: LMA 5","LMA Basic"]
["03O - Fire Stations/Equipment",{"$f":"I26","v":"SBA"},"People:",null,1,null,null,"Click Checkbox: SB_URG 3"]
["03O - Fire Stations/Equipment",{"$f":"I27","v":"SBS"},"People:",null,1,null,null,"Click Checkbox: SB_URG 3"]
["03O - Fire Stations/Equipment",{"$f":"I28","v":"URG"},"People:",null,1,null,null,"Click Checkbox: SB_URG 3"]
[{"$f":"$C$20","v":"03P - Health Facilities"},{"$f":"I15","v":"LMA"},{"$f":"$I$34","v":"People:"},null,1,null,null,"Click Checkbox: LMA 5","LMA Basic"]
["03P - Health Facilities",{"$f":"I18","v":"LMC"},"People:",null,1,null,null,"Click Checkbox: LMC 3"]
["03P - Health Facilities",{"$f":"I26","v":"SBA"},"People:",null,1,null,null,"Click Checkbox: SB_URG 3"]
["03P - Health Facilities",{"$f":"I27","v":"SBS"},"People:",null,1,null,null,"Click Checkbox: SB_URG 3"]
["03P - Health Facilities",{"$f":"I28","v":"URG"},"People:",null,1,null,null,"Click Checkbox: SB_URG 3"]
["03P - Health Facilities",{"$f":"I16","v":"LMAFI"},{"$f":"$I$40","v":"Jobs:"},null,1,null,"x",{"$f":"CONCATENATE(\"Click Checkbox: LMA 4\")","v":"Click Checkbox: LMA 4"},"LMAFI/LMASA JOBS"]
["03P - Health Facilities",{"$f":"I17","v":"LMASA"},{"$f":"$I$40","v":"Jobs:"},null,1,null,"x","Click Checkbox: LMA 4","LMAFI/LMASA JOBS"]
[{"$f":"$C$21","v":"03Q - Abused and Neglected Children Facilities"},{"$f":"I18","v":"LMC"},{"$f":"$I$34","v":"People:"},null,1,null,null,"Click Checkbox: LMC 3"]
["03Q - Abused and Neglected Children Facilities",{"$f":"I26","v":"SBA"},"People:",null,1,null,null,"Click Checkbox: SB_URG 3"]
["03Q - Abused and Neglected Children Facilities",{"$f":"I27","v":"SBS"},"People:",null,1,null,null,"Click Checkbox: SB_URG 3"]
["03Q - Abused and Neglected Children Facilities",{"$f":"I28","v":"URG"},"People:",null,1,null,null,"Click Checkbox: SB_URG 3"]
["03Q - Abused and Neglected Children Facilities",{"$f":"I16","v":"LMAFI"},{"$f":"$I$40","v":"Jobs:"},null,1,null,"x",{"$f":"CONCATENATE(\"Click Checkbox: LMA 4\")","v":"Click Checkbox: LMA 4"},"LMAFI/LMASA JOBS"]
["03Q - Abused and Neglected Children Facilities",{"$f":"I17","v":"LMASA"},{"$f":"$I$40","v":"Jobs:"},null,1,null,"x","Click Checkbox: LMA 4","LMAFI/LMASA JOBS"]
[{"$f":"$C$22","v":"03R - Asbestos Removal"},{"$f":"I15","v":"LMA"},{"$f":"$I$34","v":"People:"},null,1,null,null,"Click Checkbox: LMA 5","LMA Basic"]
["03R - Asbestos Removal",{"$f":"I18","v":"LMC"},"People:",null,1,null,null,"Click Checkbox: LMC 3"]
["03R - Asbestos Removal",{"$f":"I26","v":"SBA"},"People:",null,1,null,null,"Click Checkbox: SB_URG 3"]
["03R - Asbestos Removal",{"$f":"I27","v":"SBS"},"People:",null,1,null,null,"Click Checkbox: SB_URG 3"]
["03R - Asbestos Removal",{"$f":"I28","v":"URG"},"People:",null,1,null,null,"Click Checkbox: SB_URG 3"]
["03R - Asbestos Removal",{"$f":"I16","v":"LMAFI"},{"$f":"$I$40","v":"Jobs:"},null,1,null,"x",{"$f":"CONCATENATE(\"Click Checkbox: LMA 4\")","v":"Click Checkbox: LMA 4"},"LMAFI/LMASA JOBS"]
["03R - Asbestos Removal",{"$f":"I17","v":"LMASA"},{"$f":"$I$40","v":"Jobs:"},null,1,null,"x","Click Checkbox: LMA 4","LMAFI/LMASA JOBS"]
[{"$f":"$C$23","v":"03S - Facilities for AIDS Patients (not operating costs)"},{"$f":"I18","v":"LMC"},{"$f":"$I$34","v":"People:"},null,1,null,null,"Click Checkbox: LMC 3"]
["03S - Facilities for AIDS Patients (not operating costs)",{"$f":"I26","v":"SBA"},"People:",null,1,null,null,"Click Checkbox: SB_URG 3"]
["03S - Facilities for AIDS Patients (not operating costs)",{"$f":"I27","v":"SBS"},"People:",null,1,null,null,"Click Checkbox: SB_URG 3"]
["03S - Facilities for AIDS Patients (not operating costs)",{"$f":"I28","v":"URG"},"People:",null,1,null,null,"Click Checkbox: SB_URG 3"]
["03S - Facilities for AIDS Patients (not operating costs)",{"$f":"I16","v":"LMAFI"},{"$f":"$I$40","v":"Jobs:"},null,1,null,"x",{"$f":"CONCATENATE(\"Click Checkbox: LMA 4\")","v":"Click Checkbox: LMA 4"},"LMAFI/LMASA JOBS"]
["03S - Facilities for AIDS Patients (not operating costs)",{"$f":"I17","v":"LMASA"},{"$f":"$I$40","v":"Jobs:"},null,1,null,"x","Click Checkbox: LMA 4","LMAFI/LMASA JOBS"]
[{"$f":"$C$24","v":"03T - Homeless/AIDS Patients Programs (subject to 15% public service cap)"},{"$f":"I18","v":"LMC"},{"$f":"$I$34","v":"People:"},null,1,null,"x","Click Checkbox: LMC 4"]
[{"$f":"$C$24","v":"03T - Homeless/AIDS Patients Programs (subject to 15% public service cap)"},{"$f":"I26","v":"SBA"},{"$f":"$I$34","v":"People:"},null,1,null,"x","Click Checkbox: SB_URG 1"]
[{"$f":"$C$24","v":"03T - Homeless/AIDS Patients Programs (subject to 15% public service cap)"},{"$f":"I28","v":"URG"},{"$f":"$I$34","v":"People:"},null,1,null,"x","Click Checkbox: SB_URG 1"]
[{"$f":"$C$25","v":"03Z - Other Public Improvements Not Listed in 03A-03S"},{"$f":"I15","v":"LMA"},{"$f":"$I$34","v":"People:"},null,1,null,"x","Click Checkbox: LMA 5","LMA Basic"]
["03Z - Other Public Improvements Not Listed in 03A-03S",{"$f":"I18","v":"LMC"},"People:",null,1,null,"x","Click Checkbox: LMC 3"]
["03Z - Other Public Improvements Not Listed in 03A-03S",{"$f":"I26","v":"SBA"},"People:",null,1,null,"x","Click Checkbox: SB_URG 3"]
["03Z - Other Public Improvements Not Listed in 03A-03S",{"$f":"I27","v":"SBS"},"People:",null,1,null,"x","Click Checkbox: SB_URG 3"]
["03Z - Other Public Improvements Not Listed in 03A-03S",{"$f":"I28","v":"URG"},"People:",null,1,null,"x","Click Checkbox: SB_URG 3"]
["03Z - Other Public Improvements Not Listed in 03A-03S",{"$f":"I21","v":"LMH"},{"$f":"$I$38","v":"Housing Units:"},null,1,null,null,"Click Checkbox: LMH 1"]
["03Z - Other Public Improvements Not Listed in 03A-03S",{"$f":"I22","v":"LMHS"},{"$f":"$I$38","v":"Housing Units:"},null,1,null,null,"Click Checkbox: LMH 1"]
["03Z - Other Public Improvements Not Listed in 03A-03S",{"$f":"I16","v":"LMAFI"},{"$f":"$I$40","v":"Jobs:"},null,1,null,"x",{"$f":"CONCATENATE(\"Click Checkbox: LMA 4\")","v":"Click Checkbox: LMA 4"},"LMAFI/LMASA JOBS"]
["03Z - Other Public Improvements Not Listed in 03A-03S",{"$f":"I17","v":"LMASA"},{"$f":"$I$40","v":"Jobs:"},null,1,null,"x","Click Checkbox: LMA 4","LMAFI/LMASA JOBS"]
[{"$f":"$C$26","v":"04 - Clearance and Demolition"},{"$f":"I15","v":"LMA"},{"$f":"CONCATENATE($I$36,\"\",CHAR(10),\"\",CHAR(10),$I$38)","v":"Businesses:\n\nHousing Units:"},null,2,null,null,{"$f":"CONCATENATE(\"Click Checkbox: LMA 7\")","v":"Click Checkbox: LMA 7"},"LMA MC04 & 04A"]
["04 - Clearance and Demolition",{"$f":"I18","v":"LMC"},"Businesses:\n\nHousing Units:",null,2,null,null,{"$f":"CONCATENATE(\"Click Checkbox: LMC 12\")","v":"Click Checkbox: LMC 12"},"LMA MC04 & 04A"]
["04 - Clearance and Demolition",{"$f":"I26","v":"SBA"},"Businesses:\n\nHousing Units:",{"$f":"$I$39","v":"Public Facilities:"},2,1,null,{"$f":"CONCATENATE(\"Click Checkbox: SB_URG 11\")","v":"Click Checkbox: SB_URG 11"},"LMA MC04 & 04A"]
["04 - Clearance and Demolition",{"$f":"I27","v":"SBS"},"Businesses:\n\nHousing Units:","Public Facilities:",2,1,null,{"$f":"CONCATENATE(\"Click Checkbox: SB_URG 11\")","v":"Click Checkbox: SB_URG 11"},"LMA MC04 & 04A"]
["04 - Clearance and Demolition",{"$f":"I28","v":"URG"},"Businesses:\n\nHousing Units:","Public Facilities:",2,1,null,{"$f":"CONCATENATE(\"Click Checkbox: SB_URG 11\")","v":"Click Checkbox: SB_URG 11"},"LMA MC04 & 04A"]
["04 - Clearance and Demolition",{"$f":"I21","v":"LMH"},{"$f":"$I$38","v":"Housing Units:"},null,1,null,null,{"$f":"CONCATENATE(\"Click Checkbox: LMH 11\")","v":"Click Checkbox: LMH 11"},"LMA MC04 & 04A"]
["04 - Clearance and Demolition",{"$f":"I22","v":"LMHS"},{"$f":"$I$38","v":"Housing Units:"},null,1,null,null,{"$f":"CONCATENATE(\"Click Checkbox: LMH 11\")","v":"Click Checkbox: LMH 11"},"LMA MC04 & 04A"]
["04 - Clearance and Demolition",{"$f":"I23","v":"LMJ"},{"$f":"$I$40","v":"Jobs:"},null,1,null,"x",{"$f":"CONCATENATE(\"Click Checkbox: LMJ 4\")","v":"Click Checkbox: LMJ 4"},"LMA MC04 & 04A"]
["04 - Clearance and Demolition",{"$f":"I25","v":"LMJP"},{"$f":"$I$40","v":"Jobs:"},null,1,null,"x",{"$f":"CONCATENATE(\"Click Checkbox: LMJ 4\")","v":"Click Checkbox: LMJ 4"},"LMA MC04 & 04A"]
["04 - Clearance and Demolition",{"$f":"I16","v":"LMAFI"},{"$f":"$I$40","v":"Jobs:"},null,1,null,"x",{"$f":"CONCATENATE(\"Click Checkbox: LMA 7\")","v":"Click Checkbox: LMA 7"},"LMA MC04 & 04A"]
["04 - Clearance and Demolition",{"$f":"I17","v":"LMASA"},{"$f":"$I$40","v":"Jobs:"},null,1,null,"x",{"$f":"CONCATENATE(\"Click Checkbox: LMA 7\")","v":"Click Checkbox: LMA 7"},"LMA MC04 & 04A"]
[{"$f":"$C$27","v":"04A - Cleanup of Contaminated Sites"},{"$f":"I15","v":"LMA"},{"$f":"$I$36","v":"Businesses:"},null,1,null,null,{"$f":"CONCATENATE(\"Click Checkbox: LMA 7\")","v":"Click Checkbox: LMA 7"},"LMA MC04 & 04A"]
["04A - Cleanup of Contaminated Sites",{"$f":"I18","v":"LMC"},"Businesses:",null,1,null,null,{"$f":"CONCATENATE(\"Click Checkbox: LMC 12\")","v":"Click Checkbox: LMC 12"},"LMA MC04 & 04A"]
["04A - Cleanup of Contaminated Sites",{"$f":"I26","v":"SBA"},{"$f":"CONCATENATE($I$36,\"\",CHAR(10),\"\",CHAR(10),$I$39)","v":"Businesses:\n\nPublic Facilities:"},null,2,null,null,{"$f":"CONCATENATE(\"Click Checkbox: SB_URG 11\")","v":"Click Checkbox: SB_URG 11"},"LMA MC04 & 04A"]
["04A - Cleanup of Contaminated Sites",{"$f":"I27","v":"SBS"},"Businesses:\n\nPublic Facilities:",null,2,null,null,{"$f":"CONCATENATE(\"Click Checkbox: SB_URG 11\")","v":"Click Checkbox: SB_URG 11"},"LMA MC04 & 04A"]
["04A - Cleanup of Contaminated Sites",{"$f":"I28","v":"URG"},"Businesses:\n\nPublic Facilities:",null,2,null,null,{"$f":"CONCATENATE(\"Click Checkbox: SB_URG 11\")","v":"Click Checkbox: SB_URG 11"},"LMA MC04 & 04A"]
["04A - Cleanup of Contaminated Sites",{"$f":"I21","v":"LMH"},{"$f":"$I$38","v":"Housing Units:"},null,1,null,null,{"$f":"CONCATENATE(\"Click Checkbox: LMH 11\")","v":"Click Checkbox: LMH 11"},"LMA MC04 & 04A"]
["04A - Cleanup of Contaminated Sites",{"$f":"I22","v":"LMHS"},{"$f":"$I$38","v":"Housing Units:"},null,1,null,null,{"$f":"CONCATENATE(\"Click Checkbox: LMH 11\")","v":"Click Checkbox: LMH 11"},"LMA MC04 & 04A"]
[{"$f":"$C$28","v":"05A - Senior Services"},{"$f":"I18","v":"LMC"},{"$f":"$I$34","v":"People:"},null,1,null,"x","Click Checkbox: LMC 4"]
[{"$f":"$C$28","v":"05A - Senior Services"},{"$f":"I26","v":"SBA"},"People:",null,1,null,"x","Click Checkbox: SB_URG 4"]
[{"$f":"$C$28","v":"05A - Senior Services"},{"$f":"I28","v":"URG"},"People:",null,1,null,"x","Click Checkbox: SB_URG 4"]
[{"$f":"$C$28","v":"05A - Senior Services"},{"$f":"I20","v":"LMCSV"},"People:",null,1,null,"x","Click Checkbox: LMC 4"]
[{"$f":"$C$29","v":"05B - Services for Persons with Disabilities"},{"$f":"I18","v":"LMC"},"People:",null,1,null,"x","Click Checkbox: LMC 4"]
[{"$f":"$C$29","v":"05B - Services for Persons with Disabilities"},{"$f":"I26","v":"SBA"},"People:",null,1,null,"x","Click Checkbox: SB_URG 4"]
[{"$f":"$C$29","v":"05B - Services for Persons with Disabilities"},{"$f":"I28","v":"URG"},"People:",null,1,null,"x","Click Checkbox: SB_URG 4"]
[{"$f":"$C$29","v":"05B - Services for Persons with Disabilities"},{"$f":"I20","v":"LMCSV"},"People:",null,1,null,"x","Click Checkbox: LMC 4"]
[{"$f":"$C$30","v":"05C - Legal Services"},{"$f":"I15","v":"LMA"},"People:",null,1,null,"x",{"$f":"CONCATENATE(\"Click Checkbox: Matrix Code 05\")","v":"Click Checkbox: Matrix Code 05"},"LMA MC05*"]
[{"$f":"$C$30","v":"05C - Legal Services"},{"$f":"I18","v":"LMC"},"People:",null,1,null,"x","Click Checkbox: LMC 7"]
[{"$f":"$C$30","v":"05C - Legal Services"},{"$f":"I26","v":"SBA"},"People:",null,1,null,"x","Click Checkbox: SB_URG 7"]
[{"$f":"$C$30","v":"05C - Legal Services"},{"$f":"I28","v":"URG"},"People:",null,1,null,"x","Click Checkbox: SB_URG 7"]
[{"$f":"$C$30","v":"05C - Legal Services"},{"$f":"I20","v":"LMCSV"},"People:",null,1,null,"x","Click Checkbox: LMC 7"]
[{"$f":"$C$31","v":"05D - Youth Services"},{"$f":"I18","v":"LMC"},"People:",null,1,null,"x","Click Checkbox: LMC 4"]
[{"$f":"$C$31","v":"05D - Youth Services"},{"$f":"I26","v":"SBA"},"People:",null,1,null,"x","Click Checkbox: SB_URG 4"]
[{"$f":"$C$31","v":"05D - Youth Services"},{"$f":"I28","v":"URG"},"People:",null,1,null,"x","Click Checkbox: SB_URG 4"]
[{"$f":"$C$31","v":"05D - Youth Services"},{"$f":"I20","v":"LMCSV"},"People:",null,1,null,"x","Click Checkbox: LMC 4"]
[{"$f":"$C$32","v":"05E - Transportation Services"},{"$f":"I15","v":"LMA"},"People:",null,1,null,"x",{"$f":"CONCATENATE(\"Click Checkbox: Matrix Code 05\")","v":"Click Checkbox: Matrix Code 05"},"LMA MC05*"]
[{"$f":"$C$32","v":"05E - Transportation Services"},{"$f":"I18","v":"LMC"},"People:",null,1,null,"x","Click Checkbox: LMC 4"]
[{"$f":"$C$32","v":"05E - Transportation Services"},{"$f":"I26","v":"SBA"},"People:",null,1,null,"x","Click Checkbox: SB_URG 4"]
[{"$f":"$C$32","v":"05E - Transportation Services"},{"$f":"I28","v":"URG"},"People:",null,1,null,"x","Click Checkbox: SB_URG 4"]
[{"$f":"$C$32","v":"05E - Transportation Services"},{"$f":"I20","v":"LMCSV"},"People:",null,1,null,"x","Click Checkbox: LMC 4"]
[{"$f":"$C$33","v":"05F - Substance Abuse Services"},{"$f":"I15","v":"LMA"},"People:",null,1,null,"x",{"$f":"CONCATENATE(\"Click Checkbox: Matrix Code 05\")","v":"Click Checkbox: Matrix Code 05"},"LMA MC05*"]
[{"$f":"$C$33","v":"05F - Substance Abuse Services"},{"$f":"I18","v":"LMC"},"People:",null,1,null,"x","Click Checkbox: LMC 4"]
[{"$f":"$C$33","v":"05F - Substance Abuse Services"},{"$f":"I26","v":"SBA"},"People:",null,1,null,"x","Click Checkbox: SB_URG 4"]
[{"$f":"$C$33","v":"05F - Substance Abuse Services"},{"$f":"I28","v":"URG"},"People:",null,1,null,"x","Click Checkbox: SB_URG 4"]
[{"$f":"$C$33","v":"05F - Substance Abuse Services"},{"$f":"I20","v":"LMCSV"},"People:",null,1,null,"x","Click Checkbox: LMC 4"]
[{"$f":"$C$34","v":"05G - Services for Battered and Abused Spouses"},"LMC","People:",null,1,null,"x","Click Checkbox: LMC 4"]
[{"$f":"$C$34","v":"05G - Services for Battered and Abused Spouses"},"SBA","People:",null,1,null,"x","Click Checkbox: SB_URG 4"]
[{"$f":"$C$34","v":"05G - Services for Battered and Abused Spouses"},"URG","People:",null,1,null,"x","Click Checkbox: SB_URG 4"]
[{"$f":"$C$34","v":"05G - Services for Battered and Abused Spouses"},"LMCSV","People:",null,1,null,"x","Click Checkbox: LMC 4"]
[{"$f":"$C$35","v":"05H - Employment Training"},"LMA","People:",null,1,null,"x",{"$f":"CONCATENATE(\"Click Checkbox: Matrix Code 05\")","v":"Click Checkbox: Matrix Code 05"},"LMA MC05*"]
[{"$f":"$C$35","v":"05H - Employment Training"},"LMC",{"$f":"$I$34","v":"People:"},null,1,null,"x","Click Checkbox: LMC 4"]
[{"$f":"$C$35","v":"05H - Employment Training"},"SBA","People:",null,1,null,"x","Click Checkbox: SB_URG 4"]
[{"$f":"$C$35","v":"05H - Employment Training"},"URG","People:",null,1,null,"x","Click Checkbox: SB_URG 4"]
[{"$f":"$C$35","v":"05H - Employment Training"},"LMCSV","People:",null,1,null,"x","Click Checkbox: LMC 4"]
[{"$f":"$C$36","v":"05I - Crime Awareness"},"LMA","People:",null,1,null,"x",{"$f":"CONCATENATE(\"Click Checkbox: Matrix Code 05\")","v":"Click Checkbox: Matrix Code 05"},"LMA MC05*"]
[{"$f":"$C$36","v":"05I - Crime Awareness"},"LMC","People:",null,1,null,"x","Click Checkbox: LMC 4"]
[{"$f":"$C$36","v":"05I - Crime Awareness"},"SBA","People:",null,1,null,"x","Click Checkbox: SB_URG 4"]
[{"$f":"$C$36","v":"05I - Crime Awareness"},"URG","People:",null,1,null,"x","Click Checkbox: SB_URG 4"]
[{"$f":"$C$36","v":"05I - Crime Awareness"},"LMCSV","People:",null,1,null,"x","Click Checkbox: LMC 4"]
[{"$f":"$C$37","v":"05J - Fair Housing Activities (subject to Public Services cap)"},"LMA","People:",null,1,null,"x",{"$f":"CONCATENATE(\"Click Checkbox: Matrix Code 05\")","v":"Click Checkbox: Matrix Code 05"},"LMA MC05*"]
[{"$f":"$C$37","v":"05J - Fair Housing Activities (subject to Public Services cap)"},"LMC","People:",null,1,null,"x","Click Checkbox: LMC 4"]
[{"$f":"$C$37","v":"05J - Fair Housing Activities (subject to Public Services cap)"},"SBA","People:",null,1,null,"x","Click Checkbox: SB_URG 4"]
[{"$f":"$C$37","v":"05J - Fair Housing Activities (subject to Public Services cap)"},"URG","People:",null,1,null,"x","Click Checkbox: SB_URG 4"]
[{"$f":"$C$37","v":"05J - Fair Housing Activities (subject to Public Services cap)"},"LMCSV","People:",null,1,null,"x","Click Checkbox: LMC 4"]
[{"$f":"$C$38","v":"05K - Tenant/Landlord Counseling"},{"$f":"I18","v":"LMC"},"People:",null,1,null,"x","Click Checkbox: LMC 4"]
[{"$f":"$C$38","v":"05K - Tenant/Landlord Counseling"},{"$f":"I26","v":"SBA"},"People:",null,1,null,"x","Click Checkbox: SB_URG 4"]
[{"$f":"$C$38","v":"05K - Tenant/Landlord Counseling"},{"$f":"I28","v":"URG"},"People:",null,1,null,"x","Click Checkbox: SB_URG 4"]
[{"$f":"$C$38","v":"05K - Tenant/Landlord Counseling"},{"$f":"I20","v":"LMCSV"},"People:",null,1,null,"x","Click Checkbox: LMC 4"]
[{"$f":"$C$39","v":"05L - Child Care Services"},"LMC","People:",null,1,null,"x","Click Checkbox: LMC 4"]
[{"$f":"$C$39","v":"05L - Child Care Services"},"SBA","People:",null,1,null,"x","Click Checkbox: SB_URG 4"]
[{"$f":"$C$39","v":"05L - Child Care Services"},"URG","People:",null,1,null,"x","Click Checkbox: SB_URG 4"]
[{"$f":"$C$39","v":"05L - Child Care Services"},"LMCSV","People:",null,1,null,"x","Click Checkbox: LMC 4"]
[{"$f":"$C$40","v":"05M - Health Services"},"LMA","People:",null,1,null,"x",{"$f":"CONCATENATE(\"Click Checkbox: Matrix Code 05\")","v":"Click Checkbox: Matrix Code 05"},"LMA MC05*"]
[{"$f":"$C$40","v":"05M - Health Services"},"LMC","People:",null,1,null,"x","Click Checkbox: LMC 4"]
[{"$f":"$C$40","v":"05M - Health Services"},"SBA","People:",null,1,null,"x","Click Checkbox: SB_URG 4"]
[{"$f":"$C$40","v":"05M - Health Services"},"URG","People:",null,1,null,"x","Click Checkbox: SB_URG 4"]
[{"$f":"$C$40","v":"05M - Health Services"},"LMCSV","People:",null,1,null,"x","Click Checkbox: LMC 4"]
[{"$f":"$C$41","v":"05N - Abused and Neglected Children Services"},"LMC","People:",null,1,null,"x","Click Checkbox: LMC 4"]
[{"$f":"$C$41","v":"05N - Abused and Neglected Children Services"},"SBA","People:",null,1,null,"x","Click Checkbox: SB_URG 4"]
[{"$f":"$C$41","v":"05N - Abused and Neglected Children Services"},"URG","People:",null,1,null,"x","Click Checkbox: SB_URG 4"]
[{"$f":"$C$41","v":"05N - Abused and Neglected Children Services"},"LMCSV","People:",null,1,null,"x","Click Checkbox: LMC 4"]
[{"$f":"$C$42","v":"05O - Mental Health Services"},"LMA","People:",null,1,null,"x",{"$f":"CONCATENATE(\"Click Checkbox: Matrix Code 05\")","v":"Click Checkbox: Matrix Code 05"},"LMA MC05*"]
[{"$f":"$C$42","v":"05O - Mental Health Services"},"LMC",{"$f":"$I$34","v":"People:"},null,1,null,"x","Click Checkbox: LMC 4"]
[{"$f":"$C$42","v":"05O - Mental Health Services"},"SBA","People:",null,1,null,"x","Click Checkbox: SB_URG 4"]
[{"$f":"$C$42","v":"05O - Mental Health Services"},"URG","People:",null,1,null,"x","Click Checkbox: SB_URG 4"]
[{"$f":"$C$42","v":"05O - Mental Health Services"},"LMCSV","People:",null,1,null,"x","Click Checkbox: LMC 4"]
[{"$f":"$C$43","v":"05P - Screening for Lead-Based Paint/Lead Hazards"},"LMC","People:",null,1,null,"x","Click Checkbox: LMC 4"]
[{"$f":"$C$43","v":"05P - Screening for Lead-Based Paint/Lead Hazards"},"SBA","People:",null,1,null,"x","Click Checkbox: SB_URG 4"]
[{"$f":"$C$43","v":"05P - Screening for Lead-Based Paint/Lead Hazards"},"URG","People:",null,1,null,"x","Click Checkbox: SB_URG 4"]
[{"$f":"$C$43","v":"05P - Screening for Lead-Based Paint/Lead Hazards"},"LMCSV","People:",null,1,null,"x","Click Checkbox: LMC 4"]
[{"$f":"$C$44","v":"05Q - Subsistence Payments"},"LMC","People:",null,1,null,"x","Click Checkbox: LMC 7"]
[{"$f":"$C$44","v":"05Q - Subsistence Payments"},"SBA","People:",null,1,null,"x","Click Checkbox: SB_URG 7"]
[{"$f":"$C$44","v":"05Q - Subsistence Payments"},"URG","People:",null,1,null,"x","Click Checkbox: SB_URG 7"]
[{"$f":"$C$44","v":"05Q - Subsistence Payments"},"LMCSV","People:",null,1,null,"x","Click Checkbox: LMC 7"]
[{"$f":"$C$45","v":"05R - Homebuyer Downpayment Assistance - Excluding Housing Counseling, under 24 CFR 5.100"},{"$f":"I21","v":"LMH"},{"$f":"$I$35","v":"Households:"},null,1,null,"x","Click Checkbox: LMH 8"]
[{"$f":"$C$45","v":"05R - Homebuyer Downpayment Assistance - Excluding Housing Counseling, under 24 CFR 5.100"},{"$f":"I22","v":"LMHS"},"Households:",null,1,null,"x","Click Checkbox: LMH 8"]
[{"$f":"$C$45","v":"05R - Homebuyer Downpayment Assistance - Excluding Housing Counseling, under 24 CFR 5.100"},{"$f":"I26","v":"SBA"},"Households:",null,1,null,"x","Click Checkbox: SB_URG 5"]
[{"$f":"$C$45","v":"05R - Homebuyer Downpayment Assistance - Excluding Housing Counseling, under 24 CFR 5.100"},{"$f":"I28","v":"URG"},{"$f":"$I$35","v":"Households:"},null,1,null,"x","Click Checkbox: SB_URG 5"]
["05R - Homebuyer Downpayment Assistance - Excluding Housing Counseling, under 24 CFR 5.100","LMCSV","Households:",null,1,null,null,"Click Checkbox: LMC 1"]
[{"$f":"$C$46","v":"05S - Rental Housing Subsidies"},"LMH","Households:",null,1,null,"x","Click Checkbox: LMH 10"]
[{"$f":"$C$46","v":"05S - Rental Housing Subsidies"},"LMHS","Households:",null,1,null,"x","Click Checkbox: LMH 10"]
[{"$f":"$C$46","v":"05S - Rental Housing Subsidies"},"SBA","Households:",null,1,null,"x","Click Checkbox: SB_URG 6"]
[{"$f":"$C$46","v":"05S - Rental Housing Subsidies"},"URG","Households:",null,1,null,"x","Click Checkbox: SB_URG 6"]
[{"$f":"$C$46","v":"05S - Rental Housing Subsidies"},{"$f":"I20","v":"LMCSV"},"Households:",null,1,null,"x","Click Checkbox: LMC 6"]
[{"$f":"$C$47","v":"05T - Security Deposits"},{"$f":"I21","v":"LMH"},"Households:",null,1,null,"x","Click Checkbox: LMH 8"]
[{"$f":"$C$47","v":"05T - Security Deposits"},{"$f":"I22","v":"LMHS"},"Households:",null,1,null,"x","Click Checkbox: LMH 8"]
[{"$f":"$C$47","v":"05T - Security Deposits"},{"$f":"I26","v":"SBA"},"Households:",null,1,null,"x","Click Checkbox: SB_URG 7"]
[{"$f":"$C$47","v":"05T - Security Deposits"},{"$f":"I28","v":"URG"},"Households:",null,1,null,"x","Click Checkbox: SB_URG 7"]
[{"$f":"$C$47","v":"05T - Security Deposits"},{"$f":"I20","v":"LMCSV"},"Households:",null,1,null,"x","Click Checkbox: LMC 8"]
[{"$f":"$C$48","v":"05U - Housing Counseling Only, under 24 CFR 5.100"},{"$f":"I21","v":"LMH"},{"$f":"$I$35","v":"Households:"},null,1,null,"x","Click Checkbox: LMH 1"]
[{"$f":"$C$48","v":"05U - Housing Counseling Only, under 24 CFR 5.100"},{"$f":"I22","v":"LMHS"},"Households:",null,1,null,"x","Click Checkbox: LMH 1"]
[{"$f":"$C$48","v":"05U - Housing Counseling Only, under 24 CFR 5.100"},{"$f":"I18","v":"LMC"},"Households:",null,1,null,"x","Click Checkbox: LMC 5"]
[{"$f":"$C$49","v":"05V - Neighborhood Cleanups"},{"$f":"I15","v":"LMA"},{"$f":"$I$34","v":"People:"},null,1,null,"x",{"$f":"CONCATENATE(\"Click Checkbox: Matrix Code 05\")","v":"Click Checkbox: Matrix Code 05"},"LMA MC05*"]
[{"$f":"$C$49","v":"05V - Neighborhood Cleanups"},{"$f":"I20","v":"LMCSV"},"People:",null,1,null,"x","Click Checkbox: LMC 4"]
[{"$f":"$C$49","v":"05V - Neighborhood Cleanups"},{"$f":"I26","v":"SBA"},{"$f":"$I$34","v":"People:"},null,1,null,"x","Click Checkbox: SB_URG 4"]
["05V - Neighborhood Cleanups","URG","People:",null,1,null,null,"Click Checkbox: SB_URG 4"]
[{"$f":"$C$50","v":"05W - Food Banks"},{"$f":"I15","v":"LMA"},"People:",null,1,null,"x",{"$f":"CONCATENATE(\"Click Checkbox: Matrix Code 05\")","v":"Click Checkbox: Matrix Code 05"},"LMA MC05*"]
[{"$f":"$C$50","v":"05W - Food Banks"},{"$f":"I18","v":"LMC"},"People:",null,1,null,"x","Click Checkbox: LMC 4"]
[{"$f":"$C$50","v":"05W - Food Banks"},{"$f":"I20","v":"LMCSV"},"People:",null,1,null,"x","Click Checkbox: LMC 4"]
[{"$f":"$C$50","v":"05W - Food Banks"},{"$f":"I26","v":"SBA"},"People:",null,1,null,"x","Click Checkbox: SB_URG 4"]
[{"$f":"$C$50","v":"05W - Food Banks"},{"$f":"I28","v":"URG"},"People:",null,1,null,"x","Click Checkbox: SB_URG 4"]
[{"$f":"$C$53","v":"05Z - Other Public Services Not Listed in 03T and 05A-05Y"},{"$f":"I15","v":"LMA"},{"$f":"$I$34","v":"People:"},null,1,null,"x",{"$f":"CONCATENATE(\"Click Checkbox: Matrix Code 05\")","v":"Click Checkbox: Matrix Code 05"},"LMA MC05*"]
[{"$f":"$C$53","v":"05Z - Other Public Services Not Listed in 03T and 05A-05Y"},{"$f":"I18","v":"LMC"},{"$f":"$I$34","v":"People:"},null,1,null,"x","Click Checkbox: LMC 4"]
[{"$f":"$C$53","v":"05Z - Other Public Services Not Listed in 03T and 05A-05Y"},{"$f":"I26","v":"SBA"},{"$f":"$I$34","v":"People:"},null,1,null,"x","Click Checkbox: SB_URG 4"]
[{"$f":"$C$53","v":"05Z - Other Public Services Not Listed in 03T and 05A-05Y"},{"$f":"I28","v":"URG"},{"$f":"$I$34","v":"People:"},null,1,null,"x","Click Checkbox: SB_URG 4"]
[{"$f":"$C$53","v":"05Z - Other Public Services Not Listed in 03T and 05A-05Y"},{"$f":"I20","v":"LMCSV"},{"$f":"$I$34","v":"People:"},null,1,null,"x","Click Checkbox: LMC 4"]
[{"$f":"$C$54","v":"06 - Interim Assistance"},{"$f":"I15","v":"LMA"},{"$f":"CONCATENATE($I$34,\"\",CHAR(10),\"\",CHAR(10),$I$36)","v":"People:\n\nBusinesses:"},{"$f":"$I$38","v":"Housing Units:"},2,1,"x","Click Checkbox: LMA 1","LMA Basic"]
[{"$f":"$C$54","v":"06 - Interim Assistance"},{"$f":"I26","v":"SBA"},{"$f":"CONCATENATE($I$34,\"\",CHAR(10),\"\",CHAR(10),$I$36)","v":"People:\n\nBusinesses:"},"Housing Units:",2,1,"x","Click Checkbox: SB_URG 1"]
[{"$f":"$C$54","v":"06 - Interim Assistance"},{"$f":"I27","v":"SBS"},{"$f":"CONCATENATE($I$34,\"\",CHAR(10),\"\",CHAR(10),$I$36)","v":"People:\n\nBusinesses:"},"Housing Units:",2,1,"x","Click Checkbox: SB_URG 1"]
[{"$f":"$C$54","v":"06 - Interim Assistance"},{"$f":"I28","v":"URG"},{"$f":"CONCATENATE($I$34,\"\",CHAR(10),\"\",CHAR(10),$I$36)","v":"People:\n\nBusinesses:"},"Housing Units:",2,1,"x","Click Checkbox: SB_URG 1"]
[{"$f":"$C$56","v":"08 - Relocation"},{"$f":"I15","v":"LMA"},{"$f":"CONCATENATE($I$34,\"\",CHAR(10),\"\",CHAR(10),$I$35)","v":"People:\n\nHouseholds:"},{"$f":"CONCATENATE($I$36,\"\",CHAR(10),\"\",CHAR(10),$I$37)","v":"Businesses:\n\nOrganizations:"},2,2,"x","Click Checkbox: LMA 1","LMA Basic"]
["08 - Relocation",{"$f":"I18","v":"LMC"},"People:\n\nHouseholds:","Businesses:\n\nOrganizations:",2,2,"x","Click Checkbox: LMC 1"]
["08 - Relocation",{"$f":"I26","v":"SBA"},"People:\n\nHouseholds:","Businesses:\n\nOrganizations:",2,2,"x","Click Checkbox: SB_URG 1"]
["08 - Relocation",{"$f":"I27","v":"SBS"},"People:\n\nHouseholds:","Businesses:\n\nOrganizations:",2,2,"x","Click Checkbox: SB_URG 1"]
["08 - Relocation",{"$f":"I28","v":"URG"},"People:\n\nHouseholds:","Businesses:\n\nOrganizations:",2,2,"x","Click Checkbox: SB_URG 1"]
["08 - Relocation",{"$f":"I21","v":"LMH"},{"$f":"$I$35","v":"Households:"},null,1,null,"x","Click Checkbox: LMH 1"]
["08 - Relocation",{"$f":"I22","v":"LMHS"},{"$f":"$I$35","v":"Households:"},null,1,null,"x","Click Checkbox: LMH 1"]
["08 - Relocation",{"$f":"I23","v":"LMJ"},{"$f":"$I$40","v":"Jobs:"},null,1,null,"x","Click Checkbox: LMJ 1"]
["08 - Relocation",{"$f":"I25","v":"LMJP"},{"$f":"$I$40","v":"Jobs:"},null,1,null,"x","Click Checkbox: LMJ 1"]
["08 - Relocation",{"$f":"I16","v":"LMAFI"},{"$f":"$I$40","v":"Jobs:"},null,1,null,"x",{"$f":"CONCATENATE(\"Click Checkbox: LMA 2\")","v":"Click Checkbox: LMA 2"},"LMAFI/LMASA JOBS"]
["08 - Relocation",{"$f":"I17","v":"LMASA"},{"$f":"$I$40","v":"Jobs:"},null,1,null,"x","Click Checkbox: LMA 2","LMAFI/LMASA JOBS"]
[{"$f":"$C$57","v":"09 - Loss of Rental Income"},{"$f":"I15","v":"LMA"},{"$f":"$I$34","v":"People:"},null,1,null,"x","Click Checkbox: LMA 1","LMA Basic"]
["09 - Loss of Rental Income",{"$f":"I18","v":"LMC"},"People:",null,1,null,"x","Do NOT click a Checkbox"]
["09 - Loss of Rental Income",{"$f":"I21","v":"LMH"},"People:",null,1,null,"x","Click Checkbox: LMH 1"]
["09 - Loss of Rental Income",{"$f":"I22","v":"LMHS"},"People:",null,1,null,"x","Click Checkbox: LMH 1"]
["09 - Loss of Rental Income",{"$f":"I23","v":"LMJ"},"People:",null,1,null,"x","Click Checkbox: LMJ 1"]
["09 - Loss of Rental Income",{"$f":"I26","v":"SBA"},"People:",null,1,null,"x","Click Checkbox: SB_URG 1"]
["09 - Loss of Rental Income",{"$f":"I27","v":"SBS"},"People:",null,1,null,"x","Click Checkbox: SB_URG 1"]
["09 - Loss of Rental Income",{"$f":"I28","v":"URG"},"People:",null,1,null,"x","Click Checkbox: SB_URG 1"]
["09 - Loss of Rental Income",{"$f":"I25","v":"LMJP"},"People:",null,1,null,"x","Click Checkbox: LMJ 1"]
["09 - Loss of Rental Income",{"$f":"I16","v":"LMAFI"},"People:",null,1,null,"x","Click Checkbox: LMA 1","LMA Basic"]
["09 - Loss of Rental Income",{"$f":"I17","v":"LMASA"},"People:",null,1,null,"x","Click Checkbox: LMA 1","LMA Basic"]
[{"$f":"$C$58","v":"11 - Privately Owned Utilities"},{"$f":"I15","v":"LMA"},{"$f":"$I$36","v":"Businesses:"},null,1,null,null,"Click Checkbox: LMA 1","LMA Basic"]
["11 - Privately Owned Utilities",{"$f":"I18","v":"LMC"},"Businesses:",null,1,null,null,"Do NOT click a Checkbox"]
["11 - Privately Owned Utilities",{"$f":"I21","v":"LMH"},"Businesses:",null,1,null,null,"Click Checkbox: LMH 1"]
["11 - Privately Owned Utilities",{"$f":"I22","v":"LMHS"},"Businesses:",null,1,null,null,"Click Checkbox: LMH 1"]
["11 - Privately Owned Utilities",{"$f":"I23","v":"LMJ"},"Businesses:",null,1,null,null,"Click Checkbox: LMJ 1"]
["11 - Privately Owned Utilities",{"$f":"I26","v":"SBA"},"Businesses:",null,1,null,null,"Click Checkbox: SB_URG 1"]
["11 - Privately Owned Utilities",{"$f":"I27","v":"SBS"},"Businesses:",null,1,null,null,"Click Checkbox: SB_URG 1"]
["11 - Privately Owned Utilities",{"$f":"I28","v":"URG"},"Businesses:",null,1,null,null,"Click Checkbox: SB_URG 1"]
["11 - Privately Owned Utilities",{"$f":"I25","v":"LMJP"},"Businesses:",null,1,null,null,"Click Checkbox: LMJ 1"]
["11 - Privately Owned Utilities",{"$f":"I16","v":"LMAFI"},"Businesses:",null,1,null,null,"Click Checkbox: LMA 1","LMA Basic"]
["11 - Privately Owned Utilities",{"$f":"I17","v":"LMASA"},"Businesses:",null,1,null,null,"Click Checkbox: LMA 1","LMA Basic"]
[{"$f":"$C$59","v":"12 - Construction of Housing"},{"$f":"I21","v":"LMH"},{"$f":"$I$38","v":"Housing Units:"},null,1,null,null,"Click Checkbox: LMH 6"]
[{"$f":"$C$59","v":"12 - Construction of Housing"},{"$f":"I22","v":"LMHS"},{"$f":"$I$38","v":"Housing Units:"},null,1,null,null,"Click Checkbox: LMH 6"]
[{"$f":"$C$59","v":"12 - Construction of Housing"},{"$f":"I26","v":"SBA"},{"$f":"$I$38","v":"Housing Units:"},null,1,null,null,"Click Checkbox: SB_URG 9"]
[{"$f":"$C$59","v":"12 - Construction of Housing"},{"$f":"I28","v":"URG"},{"$f":"$I$38","v":"Housing Units:"},null,1,null,null,"Click Checkbox: SB_URG 9"]
[{"$f":"$C$60","v":"13 - Direct Homeownership Assistance"},{"$f":"I21","v":"LMH"},{"$f":"$I$35","v":"Households:"},null,1,null,"x","Click Checkbox: LMH 9"]
[{"$f":"$C$60","v":"13 - Direct Homeownership Assistance"},{"$f":"I22","v":"LMHS"},{"$f":"$I$35","v":"Households:"},null,1,null,"x","Click Checkbox: LMH 9"]
[{"$f":"$C$62","v":"14A - Rehabilitation: Single-Unit Residential"},{"$f":"I21","v":"LMH"},{"$f":"$I$38","v":"Housing Units:"},null,1,null,null,"Click Checkbox: LMH 4"]
["14A - Rehabilitation: Single-Unit Residential",{"$f":"I22","v":"LMHS"},"Housing Units:",null,1,null,null,"Click Checkbox: LMH 4"]
["14A - Rehabilitation: Single-Unit Residential",{"$f":"I26","v":"SBA"},"Housing Units:",null,1,null,null,"Click Checkbox: SB_URG 8"]
["14A - Rehabilitation: Single-Unit Residential",{"$f":"I27","v":"SBS"},"Housing Units:",null,1,null,null,"Click Checkbox: SB_URG 8"]
["14A - Rehabilitation: Single-Unit Residential",{"$f":"I28","v":"URG"},"Housing Units:",null,1,null,null,"Click Checkbox: SB_URG 8"]
[{"$f":"$C$63","v":"14B - Rehabilitation: Multi-Unit Residential"},{"$f":"I21","v":"LMH"},"Housing Units:",null,1,null,null,"Click Checkbox: LMH 4"]
[{"$f":"$C$63","v":"14B - Rehabilitation: Multi-Unit Residential"},{"$f":"I22","v":"LMHS"},"Housing Units:",null,1,null,null,"Click Checkbox: LMH 4"]
[{"$f":"$C$63","v":"14B - Rehabilitation: Multi-Unit Residential"},{"$f":"I26","v":"SBA"},"Housing Units:",null,1,null,null,"Click Checkbox: SB_URG 8"]
[{"$f":"$C$63","v":"14B - Rehabilitation: Multi-Unit Residential"},{"$f":"I27","v":"SBS"},"Housing Units:",null,1,null,null,"Click Checkbox: SB_URG 8"]
[{"$f":"C63","v":"14B - Rehabilitation: Multi-Unit Residential"},{"$f":"I28","v":"URG"},"Housing Units:",null,1,null,null,"Click Checkbox: SB_URG 8"]
[{"$f":"$C$64","v":"14C - Public Housing Modernization"},"LMH","Housing Units:",null,1,null,null,"Click Checkbox: LMH 4"]
[{"$f":"$C$64","v":"14C - Public Housing Modernization"},"LMHS","Housing Units:",null,1,null,null,"Click Checkbox: LMH 4"]
[{"$f":"$C$64","v":"14C - Public Housing Modernization"},"SBA","Housing Units:",null,1,null,null,"Click Checkbox: SB_URG 8"]
[{"$f":"$C$64","v":"14C - Public Housing Modernization"},"SBS","Housing Units:",null,1,null,null,"Click Checkbox: SB_URG 8"]
[{"$f":"C64","v":"14C - Public Housing Modernization"},"URG","Housing Units:",null,1,null,null,"Click Checkbox: SB_URG 8"]
[{"$f":"$C$65","v":"14D - Rehabilitation: Other Publicly Owned Residential Buildings"},"LMH","Housing Units:",null,1,null,null,"Click Checkbox: LMH 4"]
[{"$f":"$C$65","v":"14D - Rehabilitation: Other Publicly Owned Residential Buildings"},"LMHS","Housing Units:",null,1,null,null,"Click Checkbox: LMH 4"]
[{"$f":"$C$65","v":"14D - Rehabilitation: Other Publicly Owned Residential Buildings"},"SBA","Housing Units:",null,1,null,null,"Click Checkbox: SB_URG 8"]
[{"$f":"$C$65","v":"14D - Rehabilitation: Other Publicly Owned Residential Buildings"},"SBS","Housing Units:",null,1,null,null,"Click Checkbox: SB_URG 8"]
[{"$f":"C65","v":"14D - Rehabilitation: Other Publicly Owned Residential Buildings"},"URG","Housing Units:",null,1,null,null,"Click Checkbox: SB_URG 8"]
[{"$f":"$C$66","v":"14E - Rehabilitation: Publicly or Privately Owned Commercial/Industrial"},{"$f":"I15","v":"LMA"},{"$f":"$I$36","v":"Businesses:"},null,1,null,null,{"$f":"CONCATENATE(\"Click Checkbox: LMA 3\")","v":"Click Checkbox: LMA 3"},"LMA Business"]
["14E - Rehabilitation: Publicly or Privately Owned Commercial/Industrial",{"$f":"I18","v":"LMC"},"Businesses:",null,1,null,null,"Click Checkbox: LMC 9"]
["14E - Rehabilitation: Publicly or Privately Owned Commercial/Industrial",{"$f":"I26","v":"SBA"},"Businesses:",null,1,null,null,"Click Checkbox: SB_URG 10"]
["14E - Rehabilitation: Publicly or Privately Owned Commercial/Industrial",{"$f":"I27","v":"SBS"},"Businesses:",null,1,null,null,"Click Checkbox: SB_URG 10"]
["14E - Rehabilitation: Publicly or Privately Owned Commercial/Industrial",{"$f":"I28","v":"URG"},"Businesses:",null,1,null,null,"Click Checkbox: SB_URG 10"]
["14E - Rehabilitation: Publicly or Privately Owned Commercial/Industrial",{"$f":"I23","v":"LMJ"},{"$f":"$I$40","v":"Jobs:"},null,1,null,"x","Click Checkbox: LMJ 2"]
["14E - Rehabilitation: Publicly or Privately Owned Commercial/Industrial",{"$f":"I25","v":"LMJP"},{"$f":"$I$40","v":"Jobs:"},null,1,null,"x","Click Checkbox: LMJ 2"]
["14E - Rehabilitation: Publicly or Privately Owned Commercial/Industrial",{"$f":"I16","v":"LMAFI"},{"$f":"$I$40","v":"Jobs:"},null,1,null,"x",{"$f":"CONCATENATE(\"Click Checkbox: LMA 2\")","v":"Click Checkbox: LMA 2"},"LMAFI/LMASA JOBS"]
["14E - Rehabilitation: Publicly or Privately Owned Commercial/Industrial",{"$f":"I17","v":"LMASA"},{"$f":"$I$40","v":"Jobs:"},null,1,null,"x","Click Checkbox: LMA 2","LMAFI/LMASA JOBS"]
[{"$f":"$C$67","v":"14F - Energy Efficiency Improvements"},{"$f":"I21","v":"LMH"},{"$f":"$I$38","v":"Housing Units:"},null,1,null,null,"Click Checkbox: LMH 4"]
["14F - Energy Efficiency Improvements",{"$f":"I22","v":"LMHS"},"Housing Units:",null,1,null,null,"Click Checkbox: LMH 4"]
["14F - Energy Efficiency Improvements",{"$f":"I26","v":"SBA"},"Housing Units:",null,1,null,null,"Click Checkbox: SB_URG 8"]
["14F - Energy Efficiency Improvements",{"$f":"I27","v":"SBS"},"Housing Units:",null,1,null,null,"Click Checkbox: SB_URG 8"]
["14F - Energy Efficiency Improvements",{"$f":"I28","v":"URG"},"Housing Units:",null,1,null,null,"Click Checkbox: SB_URG 8"]
[{"$f":"$C$68","v":"14G - Acquisition for Rehabilitation"},{"$f":"I21","v":"LMH"},{"$f":"CONCATENATE($I$36,\"\",CHAR(10),\"\",CHAR(10),$I$37)","v":"Businesses:\n\nOrganizations:"},{"$f":"$I$38","v":"Housing Units:"},2,1,null,"Click Checkbox: LMH 2"]
["14G - Acquisition for Rehabilitation",{"$f":"I22","v":"LMHS"},"Businesses:\n\nOrganizations:","Housing Units:",2,1,null,"Click Checkbox: LMH 2"]
["14G - Acquisition for Rehabilitation",{"$f":"I26","v":"SBA"},"Businesses:\n\nOrganizations:","Housing Units:",2,1,null,"Click Checkbox: SB_URG 8"]
["14G - Acquisition for Rehabilitation",{"$f":"I27","v":"SBS"},"Businesses:\n\nOrganizations:","Housing Units:",2,1,null,"Click Checkbox: SB_URG 8"]
["14G - Acquisition for Rehabilitation",{"$f":"I28","v":"URG"},"Businesses:\n\nOrganizations:","Housing Units:",2,1,null,"Click Checkbox: SB_URG 8"]
[{"$f":"$C$69","v":"14H - Rehabilitation Administration"},{"$f":"I15","v":"LMA"},"Businesses:\n\nOrganizations:",null,2,null,null,"Click Checkbox: LMA 1","LMA Basic"]
["14H - Rehabilitation Administration",{"$f":"I18","v":"LMC"},"Businesses:\n\nOrganizations:",null,2,null,null,"Do NOT click a Checkbox"]
["14H - Rehabilitation Administration",{"$f":"I23","v":"LMJ"},"Businesses:\n\nOrganizations:",null,2,null,null,"Click Checkbox: LMJ 1"]
["14H - Rehabilitation Administration",{"$f":"I26","v":"SBA"},"Businesses:\n\nOrganizations:",null,2,null,null,"Click Checkbox: SB_URG 8"]
["14H - Rehabilitation Administration",{"$f":"I27","v":"SBS"},"Businesses:\n\nOrganizations:",null,2,null,null,"Click Checkbox: SB_URG 8"]
["14H - Rehabilitation Administration",{"$f":"I28","v":"URG"},"Businesses:\n\nOrganizations:",null,2,null,null,"Click Checkbox: SB_URG 8"]
["14H - Rehabilitation Administration",{"$f":"I25","v":"LMJP"},"Businesses:\n\nOrganizations:",null,2,null,null,"Click Checkbox: LMJ 1"]
["14H - Rehabilitation Administration",{"$f":"I16","v":"LMAFI"},"Businesses:\n\nOrganizations:",null,2,null,null,"Click Checkbox: LMA 1","LMA Basic"]
["14H - Rehabilitation Administration",{"$f":"I17","v":"LMASA"},"Businesses:\n\nOrganizations:",null,2,null,null,"Click Checkbox: LMA 1","LMA Basic"]
["14H - Rehabilitation Administration",{"$f":"I21","v":"LMH"},{"$f":"$I$38","v":"Housing Units:"},null,1,null,null,"Click Checkbox: LMH 4"]
[{"$f":"C69","v":"14H - Rehabilitation Administration"},{"$f":"I22","v":"LMHS"},"Housing Units:",null,1,null,null,"Click Checkbox: LMH 4"]
[{"$f":"$C$70","v":"14I - Lead-Based Paint Abatement"},{"$f":"I21","v":"LMH"},"Housing Units:",null,1,null,null,"Click Checkbox: LMH 4"]
[{"$f":"$C$70","v":"14I - Lead-Based Paint Abatement"},{"$f":"I22","v":"LMHS"},"Housing Units:",null,1,null,null,"Click Checkbox: LMH 4"]
[{"$f":"$C$70","v":"14I - Lead-Based Paint Abatement"},{"$f":"I26","v":"SBA"},"Housing Units:",null,1,null,null,"Click Checkbox: SB_URG 8"]
[{"$f":"$C$70","v":"14I - Lead-Based Paint Abatement"},{"$f":"I27","v":"SBS"},"Housing Units:",null,1,null,null,"Click Checkbox: SB_URG 8"]
[{"$f":"C70","v":"14I - Lead-Based Paint Abatement"},{"$f":"I28","v":"URG"},"Housing Units:",null,1,null,null,"Click Checkbox: SB_URG 8"]
[{"$f":"$C$71","v":"14J - Housing Services, excluding Housing Counseling, under 24 CFR 5.100"},{"$f":"I21","v":"LMH"},"Housing Units:",null,1,null,null,"Click Checkbox: LMH 1"]
[{"$f":"C71","v":"14J - Housing Services, excluding Housing Counseling, under 24 CFR 5.100"},{"$f":"I22","v":"LMHS"},"Housing Units:",null,1,null,null,"Click Checkbox: LMH 1"]
[{"$f":"$C$74","v":"15 - Code Enforcement"},{"$f":"I15","v":"LMA"},{"$f":"CONCATENATE($I$34,\"\",CHAR(10),\"\",CHAR(10),$I$36)","v":"People:\n\nBusinesses:"},{"$f":"CONCATENATE($I$37,\"\",CHAR(10),\"\",CHAR(10),$I$38)","v":"Organizations:\n\nHousing Units:"},2,2,"x",{"$f":"CONCATENATE(\"Click Checkbox: Matrix Code 15\")","v":"Click Checkbox: Matrix Code 15"},"LMA MC15"]
[{"$f":"$C$74","v":"15 - Code Enforcement"},{"$f":"I26","v":"SBA"},{"$f":"CONCATENATE($I$34,\"\",CHAR(10),\"\",CHAR(10),$I$36)","v":"People:\n\nBusinesses:"},{"$f":"CONCATENATE($I$37,\"\",CHAR(10),\"\",CHAR(10),$I$38)","v":"Organizations:\n\nHousing Units:"},2,2,"x","Click Checkbox: Matrix Code 15","LMA MC15"]
[{"$f":"C74","v":"15 - Code Enforcement"},{"$f":"I28","v":"URG"},{"$f":"CONCATENATE($I$34,\"\",CHAR(10),\"\",CHAR(10),$I$36)","v":"People:\n\nBusinesses:"},{"$f":"CONCATENATE($I$37,\"\",CHAR(10),\"\",CHAR(10),$I$38)","v":"Organizations:\n\nHousing Units:"},2,2,"x","Click Checkbox: Matrix Code 15","LMA MC15"]
[{"$f":"$C$75","v":"16A - Residential Historic Preservation"},{"$f":"I21","v":"LMH"},{"$f":"$I$38","v":"Housing Units:"},null,1,null,null,"Click Checkbox: LMH 3"]
[{"$f":"$C$75","v":"16A - Residential Historic Preservation"},{"$f":"I22","v":"LMHS"},{"$f":"$I$38","v":"Housing Units:"},null,1,null,null,"Click Checkbox: LMH 3"]
[{"$f":"$C$75","v":"16A - Residential Historic Preservation"},{"$f":"I26","v":"SBA"},{"$f":"$I$38","v":"Housing Units:"},null,1,null,null,"Click Checkbox: SB_URG 1"]
[{"$f":"$C$75","v":"16A - Residential Historic Preservation"},{"$f":"I27","v":"SBS"},{"$f":"$I$38","v":"Housing Units:"},null,1,null,null,"Click Checkbox: SB_URG 1"]
[{"$f":"$C$76","v":"16B - Non-Residential Historic Preservation"},{"$f":"I15","v":"LMA"},{"$f":"CONCATENATE($I$36,\"\",CHAR(10),\"\",CHAR(10),$I$37)","v":"Businesses:\n\nOrganizations:"},null,2,null,null,"Click Checkbox: LMA 1","LMA Basic"]
["16B - Non-Residential Historic Preservation",{"$f":"I18","v":"LMC"},"Businesses:\n\nOrganizations:",null,2,null,null,"Do NOT click a Checkbox"]
["16B - Non-Residential Historic Preservation",{"$f":"I23","v":"LMJ"},"Businesses:\n\nOrganizations:",null,2,null,null,"Click Checkbox: LMJ 1"]
["16B - Non-Residential Historic Preservation",{"$f":"I26","v":"SBA"},"Businesses:\n\nOrganizations:",null,2,null,null,"Click Checkbox: SB_URG 1"]
["16B - Non-Residential Historic Preservation",{"$f":"I27","v":"SBS"},"Businesses:\n\nOrganizations:",null,2,null,null,"Click Checkbox: SB_URG 1"]
["16B - Non-Residential Historic Preservation",{"$f":"I25","v":"LMJP"},"Businesses:\n\nOrganizations:",null,2,null,null,"Click Checkbox: LMJ 1"]
["16B - Non-Residential Historic Preservation",{"$f":"I16","v":"LMAFI"},"Businesses:\n\nOrganizations:",null,2,null,null,"Click Checkbox: LMA 1","LMA Basic"]
[{"$f":"C76","v":"16B - Non-Residential Historic Preservation"},{"$f":"I17","v":"LMASA"},"Businesses:\n\nOrganizations:",null,2,null,null,"Click Checkbox: LMA 1","LMA Basic"]
[{"$f":"$C$77","v":"17A - Commercial/Industrial: Acquisition/Disposition"},{"$f":"I15","v":"LMA"},{"$f":"$I$36","v":"Businesses:"},null,1,null,null,{"$f":"CONCATENATE(\"Click Checkbox: LMA 3\")","v":"Click Checkbox: LMA 3"},"LMA Business"]
["17A - Commercial/Industrial: Acquisition/Disposition",{"$f":"I18","v":"LMC"},"Businesses:",null,1,null,null,"Click Checkbox: LMC 9"]
["17A - Commercial/Industrial: Acquisition/Disposition",{"$f":"I26","v":"SBA"},"Businesses:",null,1,null,null,"Click Checkbox: SB_URG 10"]
["17A - Commercial/Industrial: Acquisition/Disposition",{"$f":"I27","v":"SBS"},"Businesses:",null,1,null,null,"Click Checkbox: SB_URG 10"]
["17A - Commercial/Industrial: Acquisition/Disposition",{"$f":"I28","v":"URG"},"Businesses:",null,1,null,null,"Click Checkbox: SB_URG 10"]
["17A - Commercial/Industrial: Acquisition/Disposition",{"$f":"I23","v":"LMJ"},{"$f":"$I$40","v":"Jobs:"},null,1,null,"x","Click Checkbox: LMJ 2"]
["17A - Commercial/Industrial: Acquisition/Disposition",{"$f":"I25","v":"LMJP"},{"$f":"$I$40","v":"Jobs:"},null,1,null,"x","Click Checkbox: LMJ 2"]
["17A - Commercial/Industrial: Acquisition/Disposition",{"$f":"I16","v":"LMAFI"},{"$f":"$I$40","v":"Jobs:"},null,1,null,"x",{"$f":"CONCATENATE(\"Click Checkbox: LMA 2\")","v":"Click Checkbox: LMA 2"},"LMAFI/LMASA JOBS"]
[{"$f":"C77","v":"17A - Commercial/Industrial: Acquisition/Disposition"},{"$f":"I17","v":"LMASA"},{"$f":"$I$40","v":"Jobs:"},null,1,null,"x","Click Checkbox: LMA 2","LMAFI/LMASA JOBS"]
[{"$f":"$C$78","v":"17B - Commercial/Industrial: Infrastructure Development"},{"$f":"I15","v":"LMA"},{"$f":"$I$36","v":"Businesses:"},null,1,null,null,{"$f":"CONCATENATE(\"Click Checkbox: LMA 3\")","v":"Click Checkbox: LMA 3"},"LMA Business"]
["17B - Commercial/Industrial: Infrastructure Development",{"$f":"I18","v":"LMC"},{"$f":"$I$36","v":"Businesses:"},null,1,null,null,"Click Checkbox: LMC 9"]
["17B - Commercial/Industrial: Infrastructure Development",{"$f":"I26","v":"SBA"},{"$f":"$I$36","v":"Businesses:"},null,1,null,null,"Click Checkbox: SB_URG 10"]
["17B - Commercial/Industrial: Infrastructure Development",{"$f":"I28","v":"URG"},{"$f":"$I$36","v":"Businesses:"},null,1,null,null,"Click Checkbox: SB_URG 10"]
["17B - Commercial/Industrial: Infrastructure Development",{"$f":"I23","v":"LMJ"},{"$f":"$I$40","v":"Jobs:"},null,1,null,"x","Click Checkbox: LMJ 2"]
["17B - Commercial/Industrial: Infrastructure Development",{"$f":"I25","v":"LMJP"},{"$f":"$I$40","v":"Jobs:"},null,1,null,"x","Click Checkbox: LMJ 2"]
["17B - Commercial/Industrial: Infrastructure Development",{"$f":"I16","v":"LMAFI"},{"$f":"$I$40","v":"Jobs:"},null,1,null,"x",{"$f":"CONCATENATE(\"Click Checkbox: LMA 2\")","v":"Click Checkbox: LMA 2"},"LMAFI/LMASA JOBS"]
[{"$f":"C78","v":"17B - Commercial/Industrial: Infrastructure Development"},{"$f":"I17","v":"LMASA"},{"$f":"$I$40","v":"Jobs:"},null,1,null,"x","Click Checkbox: LMA 2","LMAFI/LMASA JOBS"]
[{"$f":"$C$79","v":"17C - Commercial/Industrial: Building Acquisition, Construction, & Rehabilitation"},{"$f":"I15","v":"LMA"},{"$f":"$I$36","v":"Businesses:"},null,1,null,null,{"$f":"CONCATENATE(\"Click Checkbox: LMA 3\")","v":"Click Checkbox: LMA 3"},"LMA Business"]
["17C - Commercial/Industrial: Building Acquisition, Construction, & Rehabilitation",{"$f":"I18","v":"LMC"},"Businesses:",null,1,null,null,"Click Checkbox: LMC 9"]
["17C - Commercial/Industrial: Building Acquisition, Construction, & Rehabilitation",{"$f":"I26","v":"SBA"},"Businesses:",null,1,null,null,"Click Checkbox: SB_URG 10"]
["17C - Commercial/Industrial: Building Acquisition, Construction, & Rehabilitation",{"$f":"I27","v":"SBS"},"Businesses:",null,1,null,null,"Click Checkbox: SB_URG 10"]
["17C - Commercial/Industrial: Building Acquisition, Construction, & Rehabilitation",{"$f":"I28","v":"URG"},"Businesses:",null,1,null,null,"Click Checkbox: SB_URG 10"]
["17C - Commercial/Industrial: Building Acquisition, Construction, & Rehabilitation",{"$f":"I23","v":"LMJ"},{"$f":"$I$40","v":"Jobs:"},null,1,null,"x","Click Checkbox: LMJ 2"]
["17C - Commercial/Industrial: Building Acquisition, Construction, & Rehabilitation",{"$f":"I25","v":"LMJP"},{"$f":"$I$40","v":"Jobs:"},null,1,null,"x","Click Checkbox: LMJ 2"]
["17C - Commercial/Industrial: Building Acquisition, Construction, & Rehabilitation",{"$f":"I16","v":"LMAFI"},{"$f":"$I$40","v":"Jobs:"},null,1,null,"x",{"$f":"CONCATENATE(\"Click Checkbox: LMA 2\")","v":"Click Checkbox: LMA 2"},"LMAFI/LMASA JOBS"]
[{"$f":"C79","v":"17C - Commercial/Industrial: Building Acquisition, Construction, & Rehabilitation"},{"$f":"I17","v":"LMASA"},{"$f":"$I$40","v":"Jobs:"},null,1,null,"x","Click Checkbox: LMA 2","LMAFI/LMASA JOBS"]
[{"$f":"$C$80","v":"17D - Commercial/Industrial: Other Improvements"},{"$f":"I15","v":"LMA"},{"$f":"$I$36","v":"Businesses:"},null,1,null,null,{"$f":"CONCATENATE(\"Click Checkbox: LMA 3\")","v":"Click Checkbox: LMA 3"},"LMA Business"]
["17D - Commercial/Industrial: Other Improvements",{"$f":"I18","v":"LMC"},"Businesses:",null,1,null,null,"Click Checkbox: LMC 9"]
["17D - Commercial/Industrial: Other Improvements",{"$f":"I26","v":"SBA"},"Businesses:",null,1,null,null,"Click Checkbox: SB_URG 10"]
["17D - Commercial/Industrial: Other Improvements",{"$f":"I27","v":"SBS"},"Businesses:",null,1,null,null,"Click Checkbox: SB_URG 10"]
["17D - Commercial/Industrial: Other Improvements",{"$f":"I28","v":"URG"},"Businesses:",null,1,null,null,"Click Checkbox: SB_URG 10"]
["17D - Commercial/Industrial: Other Improvements",{"$f":"I23","v":"LMJ"},{"$f":"$I$40","v":"Jobs:"},null,1,null,"x","Click Checkbox: LMJ 2"]
["17D - Commercial/Industrial: Other Improvements",{"$f":"I25","v":"LMJP"},{"$f":"$I$40","v":"Jobs:"},null,1,null,"x","Click Checkbox: LMJ 2"]
["17D - Commercial/Industrial: Other Improvements",{"$f":"I16","v":"LMAFI"},{"$f":"$I$40","v":"Jobs:"},null,1,null,"x",{"$f":"CONCATENATE(\"Click Checkbox: LMA 2\")","v":"Click Checkbox: LMA 2"},"LMAFI/LMASA JOBS"]
[{"$f":"C80","v":"17D - Commercial/Industrial: Other Improvements"},{"$f":"I17","v":"LMASA"},{"$f":"$I$40","v":"Jobs:"},null,1,null,"x","Click Checkbox: LMA 2","LMAFI/LMASA JOBS"]
[{"$f":"$C$81","v":"18A - Economic Development: Direct Financial Assistance to For-Profit Business"},{"$f":"I15","v":"LMA"},{"$f":"$I$36","v":"Businesses:"},null,1,null,null,{"$f":"CONCATENATE(\"Click Checkbox: LMA 3\")","v":"Click Checkbox: LMA 3"},"LMA Business"]
["18A - Economic Development: Direct Financial Assistance to For-Profit Business",{"$f":"I26","v":"SBA"},{"$f":"$I$36","v":"Businesses:"},null,1,null,null,"Click Checkbox: SB_URG 10"]
["18A - Economic Development: Direct Financial Assistance to For-Profit Business",{"$f":"I28","v":"URG"},{"$f":"$I$36","v":"Businesses:"},null,1,null,null,"Click Checkbox: SB_URG 10"]
["18A - Economic Development: Direct Financial Assistance to For-Profit Business",{"$f":"I23","v":"LMJ"},{"$f":"$I$40","v":"Jobs:"},null,1,null,"x","Click Checkbox: LMJ 2"]
["18A - Economic Development: Direct Financial Assistance to For-Profit Business",{"$f":"I25","v":"LMJP"},{"$f":"$I$40","v":"Jobs:"},null,1,null,"x","Click Checkbox: LMJ 2"]
["18A - Economic Development: Direct Financial Assistance to For-Profit Business",{"$f":"I16","v":"LMAFI"},{"$f":"$I$40","v":"Jobs:"},null,1,null,"x",{"$f":"CONCATENATE(\"Click Checkbox: LMA 2\")","v":"Click Checkbox: LMA 2"},"LMAFI/LMASA JOBS"]
[{"$f":"C81","v":"18A - Economic Development: Direct Financial Assistance to For-Profit Business"},{"$f":"I17","v":"LMASA"},{"$f":"$I$40","v":"Jobs:"},null,1,null,"x","Click Checkbox: LMA 2","LMAFI/LMASA JOBS"]
[{"$f":"$C$82","v":"18B - Economic Development: Technical Assistance"},{"$f":"I15","v":"LMA"},{"$f":"$I$36","v":"Businesses:"},null,1,null,null,{"$f":"CONCATENATE(\"Click Checkbox: LMA 3\")","v":"Click Checkbox: LMA 3"},"LMA Business"]
["18B - Economic Development: Technical Assistance",{"$f":"I26","v":"SBA"},{"$f":"$I$36","v":"Businesses:"},null,1,null,null,"Click Checkbox: SB_URG 10"]
["18B - Economic Development: Technical Assistance",{"$f":"I28","v":"URG"},{"$f":"$I$36","v":"Businesses:"},null,1,null,null,"Click Checkbox: SB_URG 10"]
["18B - Economic Development: Technical Assistance",{"$f":"I20","v":"LMCSV"},{"$f":"$I$36","v":"Businesses:"},null,1,null,null,"Click Checkbox: LMC 9"]
["18B - Economic Development: Technical Assistance",{"$f":"I23","v":"LMJ"},{"$f":"$I$40","v":"Jobs:"},null,1,null,"x","Click Checkbox: LMJ 2"]
["18B - Economic Development: Technical Assistance",{"$f":"I25","v":"LMJP"},{"$f":"$I$40","v":"Jobs:"},null,1,null,"x","Click Checkbox: LMJ 2"]
["18B - Economic Development: Technical Assistance",{"$f":"I16","v":"LMAFI"},{"$f":"$I$40","v":"Jobs:"},null,1,null,"x",{"$f":"CONCATENATE(\"Click Checkbox: LMA 2\")","v":"Click Checkbox: LMA 2"},"LMAFI/LMASA JOBS"]
[{"$f":"C82","v":"18B - Economic Development: Technical Assistance"},{"$f":"I17","v":"LMASA"},{"$f":"$I$40","v":"Jobs:"},null,1,null,"x","Click Checkbox: LMA 2","LMAFI/LMASA JOBS"]
[{"$f":"$C$83","v":"18C - Economic Development: Micro-Enterprise Assistance"},{"$f":"I15","v":"LMA"},{"$f":"CONCATENATE($I$34,\"\",CHAR(10),\"\",CHAR(10),$I$36)","v":"People:\n\nBusinesses:"},null,2,null,"x",{"$f":"CONCATENATE(\"Click Checkbox: LMA 3\")","v":"Click Checkbox: LMA 3"},"LMA Business"]
["18C - Economic Development: Micro-Enterprise Assistance",{"$f":"I18","v":"LMC"},"People:\n\nBusinesses:",null,2,null,"x","Click Checkbox: LMC 11"]
["18C - Economic Development: Micro-Enterprise Assistance",{"$f":"I26","v":"SBA"},"People:\n\nBusinesses:",null,2,null,"x","Click Checkbox: SB_URG 10"]
["18C - Economic Development: Micro-Enterprise Assistance",{"$f":"I28","v":"URG"},"People:\n\nBusinesses:",null,2,null,"x","Click Checkbox: SB_URG 10"]
["18C - Economic Development: Micro-Enterprise Assistance",{"$f":"I19","v":"LMCMC"},"People:\n\nBusinesses:",null,2,null,"x","Click Checkbox: LMC 11"]
["18C - Economic Development: Micro-Enterprise Assistance",{"$f":"I23","v":"LMJ"},{"$f":"$I$40","v":"Jobs:"},null,1,null,"x","Click Checkbox: LMJ 2"]
["18C - Economic Development: Micro-Enterprise Assistance",{"$f":"I25","v":"LMJP"},{"$f":"$I$40","v":"Jobs:"},null,1,null,"x","Click Checkbox: LMJ 2"]
["18C - Economic Development: Micro-Enterprise Assistance",{"$f":"I16","v":"LMAFI"},{"$f":"$I$40","v":"Jobs:"},null,1,null,"x",{"$f":"CONCATENATE(\"Click Checkbox: LMA 2\")","v":"Click Checkbox: LMA 2"},"LMAFI/LMASA JOBS"]
[{"$f":"C83","v":"18C - Economic Development: Micro-Enterprise Assistance"},{"$f":"I17","v":"LMASA"},{"$f":"$I$40","v":"Jobs:"},null,1,null,"x","Click Checkbox: LMA 2","LMAFI/LMASA JOBS"]
[{"$f":"$C$84","v":"19C - Nonprofit Capacity Building"},{"$f":"I15","v":"LMA"},{"$f":"$I$37","v":"Organizations:"},null,1,null,null,"Click Checkbox: LMA 1","LMA Basic"]
["19C - Nonprofit Capacity Building","LMAFI","Organizations:",null,1,null,null,"Click Checkbox: LMA 1","LMA Basic"]
["19C - Nonprofit Capacity Building","LMASA","Organizations:",null,1,null,null,"Click Checkbox: LMA 1","LMA Basic"]
["19C - Nonprofit Capacity Building","LMC","Organizations:",null,1,null,null,"Do NOT click a Checkbox"]
["19C - Nonprofit Capacity Building","LMCMC","Organizations:",null,1,null,null,"Click Checkbox: LMC 10"]
["19C - Nonprofit Capacity Building","LMCSV","Organizations:",null,1,null,null,"Do NOT click a Checkbox"]
["19C - Nonprofit Capacity Building","LMH","Organizations:",null,1,null,null,"Click Checkbox: LMH 1"]
["19C - Nonprofit Capacity Building","LMHS","Organizations:",null,1,null,null,"Click Checkbox: LMH 1"]
["19C - Nonprofit Capacity Building","LMJ","Organizations:",null,1,null,null,"Click Checkbox: LMJ 1"]
["19C - Nonprofit Capacity Building","LMJFI","Organizations:",null,1,null,null,"Click Checkbox: LMJ 1"]
["19C - Nonprofit Capacity Building","LMJP","Organizations:",null,1,null,null,"Click Checkbox: LMJ 1"]
["19C - Nonprofit Capacity Building","SBA","Organizations:",null,1,null,null,"Click Checkbox: SB_URG 1"]
["19C - Nonprofit Capacity Building","SBS","Organizations:",null,1,null,null,"Click Checkbox: SB_URG 1"]
[{"$f":"C84","v":"19C - Nonprofit Capacity Building"},"URG","Organizations:",null,1,null,null,"Click Checkbox: SB_URG 1"]
[{"$f":"$C$85","v":"19E - Operation and Repair of Foreclosed Property"},{"$f":"I15","v":"LMA"},{"$f":"$I$38","v":"Housing Units:"},null,1,null,null,"Click Checkbox: LMA 1","LMA Basic"]
[{"$f":"$C$85","v":"19E - Operation and Repair of Foreclosed Property"},{"$f":"I21","v":"LMH"},{"$f":"$I$38","v":"Housing Units:"},null,1,null,null,"Click Checkbox: LMH 1"]
[{"$f":"C85","v":"19E - Operation and Repair of Foreclosed Property"},{"$f":"I22","v":"LMHS"},{"$f":"$I$38","v":"Housing Units:"},null,1,null,null,"Click Checkbox: LMH 1"]
["19F - Planned Repayments of Section 108 Loans",{"$f":"$I$29","v":"None"},{"$f":"$I$42","v":"None"},null,null,null,null,"Do NOT click a Checkbox"]
["19G - Unplanned Repayments of Section 108 Loans","None","None",null,null,null,null,"Do NOT click a Checkbox"]
["19H - State CDBG Technical Assistance to Grantees","None","None",null,null,null,null,"Do NOT click a Checkbox"]
["20 - Planning","None","None",null,null,null,null,"Do NOT click a Checkbox"]
[{"$f":"$C$90","v":"20A - State Planning-Only Activities"},"LMA",{"$f":"$I$42","v":"None"},null,null,null,null,"Do NOT click a Checkbox"]
["20A - State Planning-Only Activities","LMAFI","None",null,null,null,null,"Do NOT click a Checkbox"]
["20A - State Planning-Only Activities","LMASA","None",null,null,null,null,"Do NOT click a Checkbox"]
["20A - State Planning-Only Activities","LMC","None",null,null,null,null,"Do NOT click a Checkbox"]
["20A - State Planning-Only Activities","LMCMC","None",null,null,null,null,"Do NOT click a Checkbox"]
["20A - State Planning-Only Activities","LMCSV","None",null,null,null,null,"Do NOT click a Checkbox"]
["20A - State Planning-Only Activities","LMH","None",null,null,null,null,"Do NOT click a Checkbox"]
["20A - State Planning-Only Activities","LMHS","None",null,null,null,null,"Do NOT click a Checkbox"]
["20A - State Planning-Only Activities","LMJ","None",null,null,null,null,"Do NOT click a Checkbox"]
["20A - State Planning-Only Activities","LMJFI","None",null,null,null,null,"Do NOT click a Checkbox"]
["20A - State Planning-Only Activities","LMJP","None",null,null,null,null,"Do NOT click a Checkbox"]
["20A - State Planning-Only Activities","SBA","None",null,null,null,null,"Do NOT click a Checkbox"]
["20A - State Planning-Only Activities","SBS","None",null,null,null,null,"Do NOT click a Checkbox"]
[{"$f":"C91","v":"21A - General Program Administration"},"None","None",null,null,null,null,"Do NOT click a Checkbox"]
["21B - Indirect Costs","None","None",null,null,null,null,"Do NOT click a Checkbox"]
["21C - Public Information","None","None",null,null,null,null,"Do NOT click a Checkbox"]
["21D - Fair Housing Activities (subject to Admin cap)","None","None",null,null,null,null,"Do NOT click a Checkbox"]
["21E - Submission of Applications for Federal Programs","None","None",null,null,null,null,"Do NOT click a Checkbox"]
["21H - CDBG Funding of HOME Admin","None","None",null,null,null,null,"Do NOT click a Checkbox"]
["21I - CDBG Funding of HOME CHDO Operating Expenses","None","None",null,null,null,null,"Do NOT click a Checkbox"]
["21J - State Program Administration",{"$f":"$I$29","v":"None"},{"$f":"$I$42","v":"None"},null,null,null,null,"Do NOT click a Checkbox"]
["22 - Unprogrammed Funds","None","None",null,null,null,null,"Do NOT click a Checkbox"]
[{"$f":"C99","v":"23 - Tornado Shelters Serving Private Mobile Home Parks"},{"$f":"I15","v":"LMA"},{"$f":"$I$38","v":"Housing Units:"},null,1,null,null,"Click Checkbox: LMA 1","LMA Basic"]
[{"$f":"C100","v":"24A - Payment of Interest on Section 108 Loans"},{"$f":"I29","v":"None"},{"$f":"I42","v":"None"},null,null,null,null,"Do NOT click a Checkbox"]
[{"$f":"$C$101","v":"24B - Payment of Costs of Section 108 Financing"},"None","None",null,null,null,null,"Do NOT click a Checkbox"]
[{"$f":"C102","v":"24C - Debt Service Reserve"},{"$f":"I29","v":"None"},{"$f":"I42","v":"None"},null,null,null,null,"Do NOT click a Checkbox"]

{"sheet":"Activity Accomplishments","index":3,"n_rows":77,"n_cols":33,"rows_kept":77,"cut":false,"hidden":false,"merged":[[32,4,36,10],[32,11,32,14],[32,16,36,22],[32,23,32,26],[34,11,36,14],[34,23,36,26],[8,28,23,36],[6,0,6,26],[0,0,5,26],[7,0,7,26],[29,0,29,26],[8,0,28,26]]}
[{"$f":"IFERROR(IF(INDEX(Backend!$A$120:$H$629,MATCH(1,('Activity Information'!$AD$39=Backend!$B$120:$B$629)*('Activity Information'!$H$41=Backend!$A$120:$A$629),0),MATCH(Backend!$H$120,Backend!$A$120:$H$120,0))=\"#N/A\",\"Enter National Objective and Matrix Code\",INDEX(Backend!$A$120:$H$629,MATCH(1,('Activity Information'!$AD$39=Backend!$B$120:$B$629)*('Activity Information'!$H$41=Backend!$A$120:$A$629),0),MATCH(Backend!$H$120,Backend!$A$120:$H$120,0))), \"Enter National Objective and Matrix Code\")","v":"Enter National Objective and Matrix Code"}]
[]
[]
[]
[]
[]
[]
["Accomplishment Narrative"]
[null,null,null,null,null,null,null,null,null,null,null,null,null,null,null,null,null,null,null,null,null,null,null,null,null,null,null,null,"Instructions: Enter all data into light blue shaded cells and report on all relevant goals and accomplishments based on the completed activity's national objective and matrix code. \nDark blue shaded cells are auto-populated based on data entered.\nLMA: In each of the boxes, enter the total number of accomplishments per the appropriate performance measurement type which varies by national objective and matrix code.\nLMC: Totals for Race/Ethnicity and Income Information must equal the total persons assisted. \nLMH: Totals for Race/Ethnicity and Income Information must equal the total households assisted. \nLMJ: Job information is split between Job Creation and Retention. Then further split between total job count and total weekly hours.\nSB_URG: Enter data according to original activity setup (i.e., was activity for Homeowners versus Rental Units)."]
[]
[]
[]
[]
[]
[]
[]
[]
[]
[]
[]
[]
[]
[]
[]
[]
[]
[]
[]
[]
["Accomplishment Information"]
["Performance Measurement Type(s):"]
[]
[null,null,null,null,{"$f":"IFERROR(INDEX(Backend!$A$120:$D$1048576,MATCH(1,('Activity Information'!$H$41=Backend!$A$120:$A$1048576)*('Activity Information'!$AD$39=Backend!$B$120:$B$1048576),0),MATCH(\"Accomplishment Type1\",Backend!$A$120:$D$120,0)),\"INCORRECT CRITERIA\")","v":"INCORRECT CRITERIA"},null,null,null,null,null,null,null,null,null,null,null,{"$f":"IFERROR(IF((INDEX(Backend!$A$120:$D$1048576,MATCH(1,('Activity Information'!$H$41=Backend!$A$120:$A$1048576)*('Activity Information'!$AD$39=Backend!$B$120:$B$1048576),0),MATCH(\"Accomplishment Type2\",Backend!$A$120:$D$120,0)))=\"\",\"\",INDEX(Backend!$A$120:$D$1048576,MATCH(1,('Activity Information'!$H$41=Backend!$A$120:$A$1048576)*('Activity Information'!$AD$39=Backend!$B$120:$B$1048576),0),MATCH(\"Accomplishment Type2\",Backend!$A$120:$D$120,0))),\"\")","v":""}]
[]
[]
[]
[]
[]
[]
[]
[]
[]
[]
[]
[]
[]
[]
[]
[]
[]
[]
[]
[]
[]
[]
[]
[]
[]
[]
[]
[]
[]
[]
[]
[]
[]
[]
[]
[]
[]
[]
[]
[]
[]
[]
[]
[null,null,null,null,null,null,null,null,null,null,null,null,null,null,null,null,null,null,null,null,null,null,null,null,null,null,null,null,null,null,null,null," "]

{"sheet":"LMC 1","index":4,"n_rows":102,"n_cols":33,"rows_kept":102,"cut":false,"hidden":true,"merged":[[97,23,97,26],[99,23,99,26],[101,23,101,26],[88,23,88,26],[90,23,90,26],[92,23,92,26],[79,23,79,26],[81,23,81,26],[83,23,83,26],[73,17,73,18],[73,15,73,16],[70,15,70,16],[71,15,71,16],[68,15,68,16],[75,11,75,14],[75,15,75,16],[75,17,75,18],[76,11,76,14],[76,15,76,16],[76,17,76,18],[68,17,68,18],[72,11,72,14],[72,15,72,16],[72,17,72,18],[68,11,68,14],[69,15,69,16],[69,17,69,18],[70,17,70,18],[71,17,71,18],[69,11,69,14],[70,11,70,14],[71,11,71,14],[73,11,73,14],[62,0,63,10],[62,11,63,14],[62,15,63,16],[64,11,64,14],[64,15,64,16],[65,11,65,14],[65,15,65,16],[58,0,59,10],[58,11,59,14],[58,15,59,16],[60,11,60,14],[60,15,60,16],[61,11,61,14],[61,15,61,16],[36,11,36,14],[36,15,36,16],[37,0,38,10],[37,11,38,14],[37,15,38,16],[56,0,57,10],[56,11,57,14],[56,15,57,16],[49,10,49,15],[50,15,51,16],[51,11,51,14],[52,11,52,14],[52,15,52,16],[53,11,53,14],[53,15,53,16],[54,11,54,14],[54,15,54,16],[55,11,55,14],[55,15,55,16],[43,0,44,10],[43,11,44,14],[43,15,44,16],[45,11,45,14],[45,15,45,16],[46,11,46,14],[46,15,46,16],[39,0,40,10],[39,11,40,14],[39,15,40,16],[41,11,41,14],[41,15,41,16],[42,11,42,14],[42,15,42,16],[21,0,22,10],[21,11,22,14],[21,15,22,16],[23,11,23,14],[23,15,23,16],[24,11,24,14],[24,15,24,16],[25,0,26,10],[25,11,26,14],[30,10,30,15],[31,15,32,16],[32,11,32,14],[33,11,33,14],[33,15,33,16],[34,11,34,14],[34,15,34,16],[35,11,35,14],[28,11,28,14],[28,15,28,16],[35,15,35,16],[4,23,6,26],[4,11,6,14],[2,23,2,26],[2,16,6,22],[2,11,2,14],[2,4,6,10],[48,0,48,26],[17,11,17,14],[17,15,17,16],[18,11,18,14],[18,15,18,16],[19,0,20,10],[19,11,20,14],[19,15,20,16],[13,15,14,16],[14,11,14,14],[15,11,15,14],[15,15,15,16],[16,11,16,14],[16,15,16,16],[25,15,26,16],[27,11,27,14],[27,15,27,16],[12,10,12,15]]}
["Performance Measurement Type(s):"]
[]
[null,null,null,null,{"$f":"IFERROR(INDEX(Backend!$A$120:$D$1048576,MATCH(1,('Activity Information'!$H$41=Backend!$A$120:$A$1048576)*('Activity Information'!$AD$39=Backend!$B$120:$B$1048576),0),MATCH(\"Accomplishment Type1\",Backend!$A$120:$D$120,0)),\"INCORRECT CRITERIA\")","v":"INCORRECT CRITERIA"},null,null,null,null,null,null,null,null,null,null,null,{"$f":"IFERROR(IF((INDEX(Backend!$A$120:$D$1048576,MATCH(1,('Activity Information'!$H$41=Backend!$A$120:$A$1048576)*('Activity Information'!$AD$39=Backend!$B$120:$B$1048576),0),MATCH(\"Accomplishment Type2\",Backend!$A$120:$D$120,0)))=\"\",\"\",INDEX(Backend!$A$120:$D$1048576,MATCH(1,('Activity Information'!$H$41=Backend!$A$120:$A$1048576)*('Activity Information'!$AD$39=Backend!$B$120:$B$1048576),0),MATCH(\"Accomplishment Type2\",Backend!$A$120:$D$120,0))),\"\")","v":""}]
[]
[]
[]
[]
[]
[]
[]
[]
[]
[null,null,null,null,null,null,null,null,null,null,"Households\n(Owners)"]
[null,null,null,null,null,null,null,null,null,null,null,null,null,null,null,"Hispanic\n/Latino"]
[null,null,null,null,null,"Race/Ethnicity",null,null,null,null,null,"Race"]
[null,null,null,null,null,"White"]
[null,null,null,null,null,"Black / African American"]
[null,null,null,null,null,"Asian"]
[null,null,null,null,null,"American Indian / Alaskan Native"]
["Native Hawaiian / Other Pacific Islander"]
[]
["American Indian / Alaskan Native & White"]
[]
[null,null,null,null,null,"Asian & White"]
[null,null,null,null,null,"Black / African American & White"]
["American Indian / Alaskan Native & Black / African American"]
[]
[null,null,null,null,null,"Other Multi-Racial"]
[null,null,null,null,null,null,null,null,null,null,"Total:",{"$f":"SUM(L16:O28)","v":0},null,null,null,{"$f":"SUM(P16:Q28)","v":0}]
[]
[null,null,null,null,null,null,null,null,null,null,"Households\n(Renters)"]
[null,null,null,null,null,null,null,null,null,null,null,null,null,null,null,"Hispanic\n/Latino"]
[null,null,null,null,null,"Race/Ethnicity",null,null,null,null,null,"Race"]
[null,null,null,null,null,"White"]
[null,null,null,null,null,"Black / African American"]
[null,null,null,null,null,"Asian"]
[null,null,null,null,null,"American Indian / Alaskan Native"]
["Native Hawaiian / Other Pacific Islander"]
[]
["American Indian / Alaskan Native & White"]
[]
[null,null,null,null,null,"Asian & White"]
[null,null,null,null,null,"Black / African American & White"]
["American Indian / Alaskan Native & Black / African American"]
[]
[null,null,null,null,null,"Other Multi-Racial"]
[null,null,null,null,null,null,null,null,null,null,"Total:",{"$f":"SUM(L34:O46)","v":0},null,null,null,{"$f":"SUM(P34:Q46)","v":0}]
[]
["Accomplishment Information"]
[null,null,null,null,null,null,null,null,null,null,"Households\n(Total)"]
[null,null,null,null,null,null,null,null,null,null,null,null,null,null,null,"Hispanic\n/Latino"]
[null,null,null,null,null,"Race/Ethnicity",null,null,null,null,null,"Race"]
[null,null,null,null,null,"White",null,null,null,null,null,{"$f":"L16+L34","v":0},null,null,null,{"$f":"P16+P34","v":0}]
[null,null,null,null,null,"Black / African American",null,null,null,null,null,{"$f":"L17+L35","v":0},null,null,null,{"$f":"P17+P35","v":0}]
[null,null,null,null,null,"Asian",null,null,null,null,null,0,null,null,null,{"$f":"P18+P36","v":0}]
[null,null,null,null,null,"American Indian / Alaskan Native",null,null,null,null,null,0,null,null,null,{"$f":"P19+P37","v":0}]
["Native Hawaiian / Other Pacific Islander",null,null,null,null,null,null,null,null,null,null,0,null,null,null,{"$f":"P20+P38","v":0}]
[]
["American Indian / Alaskan Native & White",null,null,null,null,null,null,null,null,null,null,0,null,null,null,{"$f":"P22+P40","v":0}]
[]
[null,null,null,null,null,"Asian & White",null,null,null,null,null,0,null,null,null,{"$f":"P24+P42","v":0}]
[null,null,null,null,null,"Black / African American & White",null,null,null,null,null,0,null,null,null,{"$f":"P25+P43","v":0}]
["American Indian / Alaskan Native & Black / African American",null,null,null,null,null,null,null,null,null,null,0,null,null,null,{"$f":"P26+P44","v":0}]
[]
[null,null,null,null,null,"Other Multi-Racial",null,null,null,null,null,{"$f":"L28+L46","v":0},null,null,null,{"$f":"P28+P46","v":0}]
[null,null,null,null,null,null,null,null,null,null,"Total:",{"$f":"SUM(L53:O65)","v":0},null,null,null,{"$f":"SUM(P53:Q65)","v":0}]
[]
[]
[null,null,null,null,"Income Information",null,null,null,null,null,null,"Owner",null,null,null,"Renter",null,"Total"]
[null,null,null,null,"Extremely Low (0-30% AMI)",null,null,null,null,null,null,null,null,null,null,null,null,{"$f":"L70+P70","v":0}]
[null,null,null,null,"Low (31-50% AMI)",null,null,null,null,null,null,null,null,null,null,null,null,0]
[null,null,null,null,"Moderate (51-80% AMI)",null,null,null,null,null,null,null,null,null,null,null,null,0]
[null,null,null,null,"Non-Low/Moderate",null,null,null,null,null,null,null,null,null,null,null,null,{"$f":"L73+P73","v":0}]
[null,null,null,null,null,null,null,null,null,null,"Total:",{"$f":"SUM(L70:O73)","v":0},null,null,null,{"$f":"SUM(P70:Q73)","v":0},null,{"$f":"SUM(R70:S73)","v":0}]
[]
[null,null,null,null,null,null,null,null,null,null,null,"Owner",null,null,null,"Renter",null,"Total"]
[null,null,null,null,"Female-Headed Households",null,null,null,null,null,null,null,null,null,null,null,null,{"$f":"L77+P77","v":0}]
[]
["Of the Total Persons, Number of:"]
[null,null,null,null,null,null,null,null,null,null,null,null,null,null,null,"With New or Continuing Access to a Service or Benefit:"]
[]
[null,null,null,null,null,null,null,null,null,null,null,null,null,null,null,null,"With Improved Access to a Service or Benefit:"]
[]
[null,null,null,null,null,null,null,null,null,null,null,null,null,null,"Receive a Service or Benefit that is No Longer Substandard:"]
[null,null,null,null,null,null,null,null,null,null,null,null,null,null,null,null,null,null,null,null,null,null,null,null,null,null,null,null,null,null,null,null," "]
["If the activity is intended to help the homeless:"]
[]
["Of the Total Persons, Number of:"]
[null,null,null,null,null,null,null,null,null,null,null,null,"Homeless Persons Given Overnight Shelter:"]
[]
[null,null,null,null,null,null,null,null,"Beds Created in Overnight Shelter or Other Emergency Housing:"]
[]
[null,null,null,null,null,null,null,null,null,null,null,null,null,null,null,null,null,null,null,null,"Total:",null,null,{"$f":"X89+X91","v":0}]
[]
["If the activity is intended to prevent homelessness:"]
[]
["Of the Total Persons, Number of:"]
[null,null,null,null,"Individuals receiving emergency financial assistance to prevent homelessness:"]
[]
[null,null,null,null,null,"Individuals receiving emergency legal assistance to prevent homelessness:"]
[]
[null,null,null,null,null,null,null,null,null,null,null,null,null,null,null,null,null,null,null,null,"Total:",null,null,{"$f":"X98+X100","v":0}]

{"sheet":"Relocation and Displacement","index":5,"n_rows":631,"n_cols":25,"rows_kept":631,"cut":false,"hidden":false,"merged":[[11,19,12,19],[11,20,12,20],[11,9,12,12],[13,9,13,12],[9,0,9,20],[13,2,13,8],[4,0,8,20],[23,2,23,6],[23,9,23,12],[27,2,27,8],[25,9,25,12],[26,10,26,12],[26,15,26,17],[25,13,25,17],[27,15,27,17],[20,0,20,20],[11,2,12,8],[14,9,14,12],[15,2,15,20],[16,2,18,20],[11,13,11,18],[26,13,26,14],[25,2,26,8],[28,2,28,8],[29,2,29,8],[30,2,30,8],[31,2,31,8],[22,7,22,8],[33,15,33,17],[34,15,34,17],[35,15,35,17],[36,15,36,17],[27,10,27,12],[28,10,28,12],[29,10,29,12],[30,10,30,12],[31,10,31,12],[32,10,32,12],[33,10,33,12],[34,10,34,12],[27,13,27,14],[28,13,28,14],[29,13,29,14],[37,2,37,19],[32,13,32,14],[33,13,33,14],[34,13,34,14],[35,13,35,14],[33,2,33,8],[34,2,34,8],[35,2,35,8],[36,2,36,8],[32,2,32,8],[25,18,25,19],[35,10,35,12],[36,10,36,12],[31,15,31,17],[32,15,32,17],[30,13,30,14],[28,15,28,17],[29,15,29,17],[30,15,30,17],[31,13,31,14]]}
[]
[]
[]
[]
["Relocation and Displacement"]
[]
[]
[null,null,null,null,null,null,null,null,null,null,null,null,null,null,null,null,null,null,null,null,null,null,null,"2018-2019","CDBG"]
[null,null,null,null,null,null,null,null,null,null,null,null,null,null,null,null,null,null,null,null,null,null,null,"2019-2020","CDBG-CV"]
["One-for-One Replacement",null,null,null,null,null,null,null,null,null,null,null,null,null,null,null,null,null,null,null,null,null,null,"2020-2021"]
[null,null,null,null,null,null,null,null,null,null,null,null,null,null,null,null,null,null,null,null,null,null,null,"2021-2022"]
[null,null,"Unit Type",null,null,null,null,null,null,"Address",null,null,null,"Number of Bedrooms",null,null,null,null,null,"Agreement Executed (mm/dd/yy)","Available (mm/dd/yy)",null,null,"2022-2023"]
[null,null,null,null,null,null,null,null,null,null,null,null,null,"0/1",2,3,4,"5+","Total",null,null,null,null,"2023-2024"]
[null,null,"Demolished/ Converted",null,null,null,null,null,null,null,null,null,null,null,null,null,null,null,null,null,null,null,null,"2024-2025"]
[null,null,"Replacement",null,null,null,null,null,null,null,null,null,null,null,null,null,null,null,null,null,null,null,null,"2025-2026"]
[null,null,"Description:",null,null,null,null,null,null,null,null,null,null,null,null,null,null,null,null,null,null,null,null,"2029-2030"]
[null,null,null,null,null,null,null,null,null,null,null,null,null,null,null,null,null,null,null,null,null,null,null,"2030-2031"]
[]
[]
[]
["CDBG Displacement"]
[]
[null,null,"City*",null,null,null,null,"OR",null,"Census Tract*"]
[]
[]
[null,null,"Race",null,null,null,null,null,null,"Displaced",null,null,null,"Remained In",null,null,null,null,"Relocated To"]
[null,null,null,null,null,null,null,null,null,"Total","Hispanic/Latino",null,null,"Total",null,"Hispanic/Latino",null,null,"Total","Hispanic/Latino"]
[null,null,"White"]
[null,null,"Black/African American"]
[null,null,"Asian"]
[null,null,"American Indian/ Alaskan Native"]
[null,null,"Native Hawaiian/ Other Pacific Islander",null,null,null,null,null,null,null,null,null,null,null,null,null,null,null,null,null,null,null,null,"NO. Code"]
[null,null,"American Indian/ Alaskan Native & White",null,null,null,null,null,null,null,null,null,null,null,null,null,null,null,null,null,null,null,null,{"$f":"INDEX(Backend!G14:I29,MATCH(H33,Backend!H14:H29,0),MATCH(\"Code\",Backend!G14:I14,0))","v":{"$error":"#N/A"}}]
[null,null,"Asian & White"]
[null,null,"Black/ African American & White"]
[null,null,"American Indian/ Alaskan Native & Black/ African American"]
[null,null,"Other/ Multi-Racial"]
[null,null,"*If multiple Census Tracts or Cities, duplicate this tab and complete table for each City/ Census Tract in which displacement occured. "]
[]
[]
[]
[]
[]
[]
[]
[]
[]
[]
[]
[]
[]
[]
[]
[]
[]
[]
[]
[]
[]
[]
[]
[]
[]
[]
[]
[]
[]
[]
[]
[]
[]
[]
[]
[]
[]
[]
[]
[]
[]
[]
[]
[]
[]
[]
[]
[]
[]
[]
[]
[]
[]
[]
[]
[]
[]
[]
[]
[]
[]
[]
[]
[]
[]
[]
[]
[]
[]
[]
[]
[]
[]
[]
[]
[]
[]
[]
[]
[]
[]
[]
[]
[]
[]
[]
[]
[]
[]
[]
[]
[]
[]
[]
[]
[]
[]
[]
[]
[]
[]
[]
[]
[]
[]
[]
[]
[]
[]
[]
[]
[]
[]
[]
[]
[]
[]
[]
[]
[]
[]
[]
[]
[]
[]
[]
[]
[]
[]
[]
[]
[]
[]
[]
[]
[]
[]
[]
[]
[]
[]
[]
[]
[]
[]
[]
[]
[]
[]
[]
[]
[]
[]
[]
[]
[]
[]
[]
[]
[]
[]
[]
[]
[]
[]
[]
[]
[]
[]
[]
[]
[]
[]
[]
[]
[]
[]
[]
[]
[]
[]
[]
[]
[]
[]
[]
[]
[]
[]
[]
[]
[]
[]
[]
[]
[]
[]
[]
[]
[]
[]
[]
[]
[]
[]
[]
[]
[]
[]
[]
[]
[]
[]
[]
[]
[]
[]
[]
[]
[]
[]
[]
[]
[]
[]
[]
[]
[]
[]
[]
[]
[]
[]
[]
[]
[]
[]
[]
[]
[]
[]
[]
[]
[]
[]
[]
[]
[]
[]
[]
[]
[]
[]
[]
[]
[]
[]
[]
[]
[]
[]
[]
[]
[]
[]
[]
[]
[]
[]
[]
[]
[]
[]
[]
[]
[]
[]
[]
[]
[]
[]
[]
[]
[]
[]
[]
[]
[]
[]
[]
[]
[]
[]
[]
[]
[]
[]
[]
[]
[]
[]
[]
[]
[]
[]
[]
[]
[]
[]
[]
[]
[]
[]
[]
[]
[]
[]
[]
[]
[]
[]
[]
[]
[]
[]
[]
[]
[]
[]
[]
[]
[]
[]
[]
[]
[]
[]
[]
[]
[]
[]
[]
[]
[]
[]
[]
[]
[]
[]
[]
[]
[]
[]
[]
[]
[]
[]
[]
[]
[]
[]
[]
[]
[]
[]
[]
[]
[]
[]
[]
[]
[]
[]
[]
[]
[]
[]
[]
[]
[]
[]
[]
[]
[]
[]
[]
[]
[]
[]
[]
[]
[]
[]
[]
[]
[]
[]
[]
[]
[]
[]
[]
[]
[]
[]
[]
[]
[]
[]
[]
[]
[]
[]
[]
[]
[]
[]
[]
[]
[]
[]
[]
[]
[]
[]
[]
[]
[]
[]
[]
[]
[]
[]
[]
[]
[]
[]
[]
[]
[]
[]
[]
[]
[]
[]
[]
[]
[]
[]
[]
[]
[]
[]
[]
[]
[]
[]
[]
[]
[]
[]
[]
[]
[]
[]
[]
[]
[]
[]
[]
[]
[]
[]
[]
[]
[]
[]
[]
[]
[]
[]
[]
[]
[]
[]
[]
[]
[]
[]
[]
[]
[]
[]
[]
[]
[]
[]
[]
[]
[]
[]
[]
[]
[]
[]
[]
[]
[]
[]
[]
[]
[]
[]
[]
[]
[]
[]
[]
[]
[]
[]
[]
[]
[]
[]
[]
[]
[]
[]
[]
[]
[]
[]
[]
[]
[]
[]
[]
[]
[]
[]
[]
[]
[]
[]
[]
[]
[]
[]
[]
[]
[]
[]
[]
[]
[]
[]
[]
[]
[]
[]
[]
[]
[]
[]
[]
[]
[]
[]
[]
[]
[]
[]
[]
[]
[]
[]
[]
[]
[]
[]
[]
[]
[]
[]
[]
[]
[]
[]
[]
[]
[]
[null,null,null,"Daniel Perez "]

{"sheet":"LMC 2","index":6,"n_rows":23,"n_cols":33,"rows_kept":23,"cut":false,"hidden":true,"merged":[[20,11,20,14],[22,11,22,14],[22,23,22,26],[11,23,12,26],[13,11,13,14],[13,23,13,26],[15,11,15,14],[15,23,15,26],[17,11,19,13],[4,23,5,26],[5,11,5,14],[6,11,6,14],[6,23,6,26],[8,11,8,14],[8,23,8,26]]}
[]
[]
[]
[null,null,null,null,null,null,null,null,null,null,null,null,null,null,null,null,null,"Total Job Count"]
[null,null,null,null,null,null,null,null,null,null,null,null,null,null,null,null,null,null,null,null,null,null,null,"Full Time Low/Mod"]
[null,null,null,null,null,null,null,null,null,null,null,"Full Time"]
[null,null,null,null,"Actually Created:",null,null,null,null,null,null,null,null,null,null,null,null,"Actually Created:"]
[]
[null,null,null,null,"Actually Retained:",null,null,null,null,null,null,null,null,null,null,null,null,"Actually Retained:"]
[]
[null,null,null,null,null,null,null,null,null,null,null,null,null,null,null,null,null,"Total Weekly Hours"]
["Note: Enter total number of weekly hours, not number of jobs.",null,null,null,null,null,null,null,null,null,null,null,null,null,null,null,null,null,null,null,null,null,null,"Part Time Low/Mod"]
[null,null,null,null,null,null,null,null,null,null,null,"Part Time"]
[null,null,null,null,"Actually Created:",null,null,null,null,null,null,null,null,null,null,null,null,"Actually Created:",null,null,null,null,null,null,null,null,null,null,null,null,null,null," "]
[]
[null,null,null,null,"Actually Retained:",null,null,null,null,null,null,null,null,null,null,null,null,"Actually Retained:"]
[]
[null,null,null,null,null,null,null,null,null,null,null,"Percent\nLow/Mod Jobs"]
[]
[]
[null,null,null,null,"Actually Created:",null,null,null,null,null,null,{"$f":"X7/L7","v":{"$error":"#DIV/0!"}}]
[]
[null,null,null,null,"Actually Retained:",null,null,null,null,null,null,{"$f":"X9/L9","v":{"$error":"#DIV/0!"}},null,null,null,null,null,null,"Actual FTE Jobs:"]

{"sheet":"LMC 3","index":7,"n_rows":52,"n_cols":33,"rows_kept":52,"cut":false,"hidden":true,"merged":[[47,23,47,26],[49,23,49,26],[51,23,51,26],[26,11,26,14],[38,23,38,26],[40,23,40,26],[42,23,42,26],[29,23,29,26],[31,23,31,26],[33,23,33,26],[34,0,34,26],[23,11,23,14],[17,11,17,14],[17,15,17,16],[14,0,15,10],[14,11,15,14],[14,15,15,16],[16,11,16,14],[16,15,16,16],[13,11,13,14],[13,15,13,16],[20,11,20,14],[21,11,21,14],[22,11,22,14],[6,11,6,14],[6,15,6,16],[7,15,7,16],[12,11,12,14],[12,15,12,16],[7,11,7,14],[2,15,3,16],[3,11,3,14],[4,11,4,14],[4,15,4,16],[5,11,5,14],[5,15,5,16],[8,0,9,10],[8,11,9,14],[8,15,9,16],[10,0,11,10],[10,11,11,14],[10,15,11,16]]}
[]
[]
[null,null,null,null,null,null,null,null,null,null,null,null,null,null,null,"Hispanic\n/Latino"]
[null,null,null,null,null,"Race/Ethnicity",null,null,null,null,null,"Race"]
[null,null,null,null,null,"White"]
[null,null,null,null,null,"Black / African American"]
[null,null,null,null,null,"Asian"]
[null,null,null,null,null,"American Indian / Alaskan Native"]
["Native Hawaiian / Other Pacific Islander"]
[]
["American Indian / Alaskan Native & White"]
[]
[null,null,null,null,null,"Asian & White"]
[null,null,null,null,null,"Black / African American & White"]
["American Indian / Alaskan Native & Black / African American"]
[]
[null,null,null,null,null,"Other Multi-Racial"]
[null,null,null,null,null,null,null,null,null,null,"Total:",{"$f":"SUM(L5:O17)","v":0},null,null,null,{"$f":"SUM(P5:Q17)","v":0}]
[]
[null,null,null,null,"Income Information"]
[null,null,null,null,"Extremely Low (0-30% AMI)"]
[null,null,null,null,"Low (31-50% AMI)"]
[null,null,null,null,"Moderate (51-80% AMI)"]
[null,null,null,null,null,null,null,null,null,null,"Total:",{"$f":"SUM(L21:O23)","v":0}]
[]
["Public Facilities & Infrastructure"]
[null,null,null,null,null,null,null,"Total Persons Assisted:"]
[]
["Of the Total Persons, Number of:"]
[null,null,null,null,null,null,null,null,null,null,null,null,"With New Access to this Type of Public Facility or Infrastructure Improvement:",null,null,null,null,null,null,null,null,null,null,null,null,null,null,null,null,null,null,null," "]
[]
[null,"With Improved Access to this Type of Public Facility or Infrastructure Improvement:"]
[]
[null,null,null,null,null,null,null,null,null,null,null,null,"With Access to Public Facility or Infrastructure that Is No Longer Substandard:"]
["Accomplishment Narrative"]
["If the activity is intended to help the homeless:"]
[]
["Of the Total Persons, Number of:"]
[null,null,null,null,null,null,null,null,null,null,null,null,"Homeless Persons Given Overnight Shelter:"]
[]
[null,null,null,null,null,null,null,null,"Beds Created in Overnight Shelter or Other Emergency Housing:"]
[]
[null,null,null,null,null,null,null,null,null,null,null,null,null,null,null,null,null,null,null,null,"Total:",null,null,{"$f":"X39+X41","v":0}]
[]
["If the activity is intended to prevent homelessness:"]
[]
["Of the Total Persons, Number of:"]
[null,null,null,null,"Individuals receiving emergency financial assistance to prevent homelessness:"]
[]
[null,null,null,null,null,"Individuals receiving emergency legal assistance to prevent homelessness:"]
[]
[null,null,null,null,null,null,null,null,null,null,null,null,null,null,null,null,null,null,null,null,"Total:",null,null,{"$f":"X48+X50","v":0}]

{"sheet":"LMC 4","index":8,"n_rows":58,"n_cols":33,"rows_kept":58,"cut":false,"hidden":true,"merged":[[53,23,53,26],[55,23,55,26],[57,23,57,26],[44,23,44,26],[46,23,46,26],[48,23,48,26],[35,23,35,26],[37,23,37,26],[39,23,39,26],[8,15,9,16],[9,11,9,14],[10,11,10,14],[10,15,10,16],[11,11,11,14],[11,15,11,16],[12,11,12,14],[12,15,12,16],[13,11,13,14],[13,15,13,16],[18,11,18,14],[18,15,18,16],[19,11,19,14],[14,0,15,10],[14,11,15,14],[14,15,15,16],[16,0,17,10],[16,11,17,14],[16,15,17,16],[19,15,19,16],[20,0,21,10],[20,11,21,14],[20,15,21,16],[27,11,27,14],[28,11,28,14],[29,11,29,14],[33,0,33,26],[22,11,22,14],[22,15,22,16],[23,11,23,14],[23,15,23,16],[26,11,26,14],[32,11,32,14]]}
[]
[]
[]
[]
[]
[]
[]
[]
[null,null,null,null,null,null,null,null,null,null,null,null,null,null,null,"Hispanic\n/Latino"]
[null,null,null,null,null,"Race/Ethnicity",null,null,null,null,null,"Race"]
[null,null,null,null,null,"White"]
[null,null,null,null,null,"Black / African American"]
[null,null,null,null,null,"Asian"]
[null,null,null,null,null,"American Indian / Alaskan Native"]
["Native Hawaiian / Other Pacific Islander"]
[]
["American Indian / Alaskan Native & White"]
[]
[null,null,null,null,null,"Asian & White"]
[null,null,null,null,null,"Black / African American & White"]
["American Indian / Alaskan Native & Black / African American"]
[]
[null,null,null,null,null,"Other Multi-Racial"]
[null,null,null,null,null,null,null,null,null,null,"Total:",{"$f":"SUM(L11:O23)","v":0},null,null,null,{"$f":"SUM(P11:Q23)","v":0}]
[]
[null,null,null,null,"Income Information"]
[null,null,null,null,"Extremely Low (0-30% AMI)"]
[null,null,null,null,"Low (31-50% AMI)"]
[null,null,null,null,"Moderate (51-80% AMI)"]
[null,null,null,null,null,null,null,null,null,null,"Total:",{"$f":"SUM(L27:O29)","v":0}]
[]
["Public Services"]
[null,null,null,null,null,null,null,"Total Persons Assisted:"]
["Accomplishment Information"]
["Of the Total Persons, Number of:"]
[null,null,null,null,null,null,null,null,null,null,null,null,null,null,null,"With New or Continuing Access to a Service or Benefit:"]
[]
[null,null,null,null,null,null,null,null,null,null,"With Improved Access to a Service or Benefit:",null,null,null,null,null,null,null,null,null,null,null,null,null,null,null,null,null,null,null,null,null," "]
[]
[null,null,null,null,null,null,null,null,null,null,null,null,null,null,"Receive a Service or Benefit that is No Longer Substandard:"]
[]
["If the activity is intended to help the homeless:"]
[]
["Of the Total Persons, Number of:"]
[null,null,null,null,null,null,null,null,null,null,null,null,"Homeless Persons Given Overnight Shelter:"]
[]
[null,null,null,null,null,null,null,null,"Beds Created in Overnight Shelter or Other Emergency Housing:"]
[]
[null,null,null,null,null,null,null,null,null,null,null,null,null,null,null,null,null,null,null,null,"Total:",null,null,{"$f":"X45+X47","v":0}]
[]
["If the activity is intended to prevent homelessness:"]
[]
["Of the Total Persons, Number of:"]
[null,null,null,null,"Individuals receiving emergency financial assistance to prevent homelessness:"]
[]
[null,null,null,null,null,"Individuals receiving emergency legal assistance to prevent homelessness:"]
[]
[null,null,null,null,null,null,null,null,null,null,null,null,null,null,null,null,null,null,null,null,"Total:",null,null,{"$f":"X54+X56","v":0}]

{"sheet":"LMC 6","index":9,"n_rows":104,"n_cols":33,"rows_kept":104,"cut":false,"hidden":true,"merged":[[99,23,99,26],[101,23,101,26],[103,23,103,26],[92,23,92,26],[94,23,94,26],[81,23,81,26],[83,23,83,26],[85,23,85,26],[90,23,90,26],[71,11,71,14],[74,23,74,26],[76,23,76,26],[78,23,78,26],[68,11,68,14],[68,15,68,16],[68,17,68,18],[69,11,69,14],[69,15,69,16],[69,17,69,18],[65,11,65,14],[65,15,65,16],[65,17,65,18],[66,11,66,14],[66,15,66,16],[66,17,66,18],[63,11,63,14],[63,15,63,16],[63,17,63,18],[64,11,64,14],[64,15,64,16],[64,17,64,18],[61,11,61,14],[61,15,61,16],[61,17,61,18],[62,11,62,14],[62,15,62,16],[62,17,62,18],[55,0,56,10],[55,11,56,14],[55,15,56,16],[57,11,57,14],[57,15,57,16],[58,11,58,14],[58,15,58,16],[51,0,52,10],[51,11,52,14],[51,15,52,16],[53,11,53,14],[53,15,53,16],[54,11,54,14],[54,15,54,16],[47,11,47,14],[47,15,47,16],[48,11,48,14],[48,15,48,16],[49,0,50,10],[49,11,50,14],[49,15,50,16],[42,10,42,15],[43,15,44,16],[44,11,44,14],[45,11,45,14],[45,15,45,16],[46,11,46,14],[46,15,46,16],[36,0,37,10],[36,11,37,14],[36,15,37,16],[38,11,38,14],[38,15,38,16],[39,11,39,14],[39,15,39,16],[41,0,41,26],[32,0,33,10],[32,11,33,14],[32,15,33,16],[34,11,34,14],[34,15,34,16],[35,11,35,14],[35,15,35,16],[29,11,29,14],[29,15,29,16],[30,0,31,10],[30,11,31,14],[30,15,31,16],[26,15,26,16],[27,11,27,14],[27,15,27,16],[20,11,20,14],[20,15,20,16],[21,11,21,14],[21,15,21,16],[12,11,13,14],[12,15,13,16],[16,11,16,14],[16,15,16,16],[17,11,17,14],[17,15,17,16],[28,11,28,14],[28,15,28,16],[5,10,5,15],[6,15,7,16],[7,11,7,14],[8,11,8,14],[8,15,8,16],[9,11,9,14],[9,15,9,16],[18,0,19,10],[18,11,19,14],[18,15,19,16],[14,0,15,10],[14,11,15,14],[14,15,15,16],[10,11,10,14],[10,15,10,16],[11,11,11,14],[11,15,11,16],[12,0,13,10],[23,10,23,15],[24,15,25,16],[25,11,25,14],[26,11,26,14]]}
[]
[]
[]
[]
[]
[null,null,null,null,null,null,null,null,null,null,"Households\n(Owners)"]
[null,null,null,null,null,null,null,null,null,null,null,null,null,null,null,"Hispanic\n/Latino"]
[null,null,null,null,null,"Race/Ethnicity",null,null,null,null,null,"Race"]
[null,null,null,null,null,"White"]
[null,null,null,null,null,"Black / African American"]
[null,null,null,null,null,"Asian"]
[null,null,null,null,null,"American Indian / Alaskan Native"]
["Native Hawaiian / Other Pacific Islander"]
[null,null,null,null,null,null,null,null,null,null,null,null,null,null,null,null,null,null,null,null,null,null,null,null,null,null,null,null,null,null,null,null," "]
["American Indian / Alaskan Native & White"]
[]
[null,null,null,null,null,"Asian & White"]
[null,null,null,null,null,"Black / African American & White"]
["American Indian / Alaskan Native & Black / African American"]
[]
[null,null,null,null,null,"Other Multi-Racial"]
[null,null,null,null,null,null,null,null,null,null,"Total:",{"$f":"SUM(L9:O21)","v":0},null,null,null,{"$f":"SUM(P9:Q21)","v":0}]
[]
[null,null,null,null,null,null,null,null,null,null,"Households\n(Renters)"]
[null,null,null,null,null,null,null,null,null,null,null,null,null,null,null,"Hispanic\n/Latino"]
[null,null,null,null,null,"Race/Ethnicity",null,null,null,null,null,"Race"]
[null,null,null,null,null,"White"]
[null,null,null,null,null,"Black / African American"]
[null,null,null,null,null,"Asian"]
[null,null,null,null,null,"American Indian / Alaskan Native"]
["Native Hawaiian / Other Pacific Islander"]
[]
["American Indian / Alaskan Native & White"]
[]
[null,null,null,null,null,"Asian & White"]
[null,null,null,null,null,"Black / African American & White"]
["American Indian / Alaskan Native & Black / African American"]
[]
[null,null,null,null,null,"Other Multi-Racial"]
[null,null,null,null,null,null,null,null,null,null,"Total:",{"$f":"SUM(L27:O39)","v":0},null,null,null,{"$f":"SUM(P27:Q39)","v":0}]
[]
["Accomplishment Information"]
[null,null,null,null,null,null,null,null,null,null,"Households\n(Total)"]
[null,null,null,null,null,null,null,null,null,null,null,null,null,null,null,"Hispanic\n/Latino"]
[null,null,null,null,null,"Race/Ethnicity",null,null,null,null,null,"Race"]
[null,null,null,null,null,"White",null,null,null,null,null,{"$f":"L9+L27","v":0},null,null,null,{"$f":"P9+P27","v":0}]
[null,null,null,null,null,"Black / African American",null,null,null,null,null,{"$f":"L10+L28","v":0},null,null,null,{"$f":"P10+P28","v":0}]
[null,null,null,null,null,"Asian",null,null,null,null,null,{"$f":"L11+L29","v":0},null,null,null,{"$f":"P11+P29","v":0}]
[null,null,null,null,null,"American Indian / Alaskan Native",null,null,null,null,null,{"$f":"L12+L30","v":0},null,null,null,{"$f":"P12+P30","v":0}]
["Native Hawaiian / Other Pacific Islander",null,null,null,null,null,null,null,null,null,null,{"$f":"L13+L31","v":0},null,null,null,{"$f":"P13+P31","v":0}]
[]
["American Indian / Alaskan Native & White",null,null,null,null,null,null,null,null,null,null,{"$f":"L15+L33","v":0},null,null,null,{"$f":"P15+P33","v":0}]
[]
[null,null,null,null,null,"Asian & White",null,null,null,null,null,{"$f":"L17+L35","v":0},null,null,null,{"$f":"P17+P35","v":0}]
[null,null,null,null,null,"Black / African American & White",null,null,null,null,null,{"$f":"L18+L36","v":0},null,null,null,{"$f":"P18+P36","v":0}]
["American Indian / Alaskan Native & Black / African American",null,null,null,null,null,null,null,null,null,null,{"$f":"L19+L37","v":0},null,null,null,{"$f":"P19+P37","v":0}]
[]
[null,null,null,null,null,"Other Multi-Racial",null,null,null,null,null,{"$f":"L21+L39","v":0},null,null,null,{"$f":"P21+P39","v":0}]
[null,null,null,null,null,null,null,null,null,null,"Total:",{"$f":"SUM(L46:O58)","v":0},null,null,null,{"$f":"SUM(P46:Q58)","v":0}]
[]
[]
[null,null,null,null,"Income Information",null,null,null,null,null,null,"Owner",null,null,null,"Renter",null,"Total"]
[null,null,null,null,"Extremely Low (0-30% AMI)",null,null,null,null,null,null,null,null,null,null,null,null,{"$f":"L63+P63","v":0}]
[null,null,null,null,"Low (31-50% AMI)",null,null,null,null,null,null,null,null,null,null,null,null,0]
[null,null,null,null,"Moderate (51-80% AMI)",null,null,null,null,null,null,null,null,null,null,null,null,0]
[null,null,null,null,"Non-Low/Moderate",null,null,null,null,null,null,null,null,null,null,null,null,{"$f":"L66+P66","v":0}]
[null,null,null,null,null,null,null,null,null,null,"Total:",{"$f":"SUM(L63:O66)","v":0},null,null,null,{"$f":"SUM(P63:Q66)","v":0},null,{"$f":"SUM(R63:S66)","v":0}]
[]
[null,null,null,null,null,null,null,null,null,null,null,"Owner",null,null,null,"Renter",null,"Total"]
[null,null,null,null,"Female-Headed Households",null,null,null,null,null,null,null,null,null,null,null,null,{"$f":"L70+P70","v":0}]
[]
[null,null,null,null,null,null,null,"Total Households Assisted:"]
[]
["Of the Total Households , Number of:"]
[null,null,null,null,null,null,null,null,null,null,null,null,null,"Receiving short-term rental assistance (not more than three months):"]
[]
[null,null,null,null,null,null,null,null,null,null,null,null,null,"That were previously homeless:"]
[]
[null,null,null,null,null,null,null,null,null,"Of those, the number that were chronically homeless:"]
[]
["Of the Total Persons, Number of:"]
[null,null,null,null,null,null,null,null,null,null,null,null,null,null,null,"With New or Continuing Access to a Service or Benefit:"]
[]
[null,null,null,null,null,null,null,null,null,null,null,null,null,null,null,null,"With Improved Access to a Service or Benefit:"]
[]
[null,null,null,null,null,null,null,null,null,null,null,null,null,null,"Receive a Service or Benefit that is No Longer Substandard:"]
[]
["If the activity is intended to help the homeless:"]
[]
["Of the Total Persons, Number of:"]
[null,null,null,null,null,null,null,null,null,null,null,null,"Homeless Persons Given Overnight Shelter:"]
[]
[null,null,null,null,null,null,null,null,"Beds Created in Overnight Shelter or Other Emergency Housing:"]
[]
[null,null,null,null,null,null,null,null,null,null,null,null,null,null,null,null,null,null,null,null,"Total:",null,null,{"$f":"X91+X93","v":0}]
[]
["If the activity is intended to prevent homelessness:"]
[]
["Of the Total Persons, Number of:"]
[null,null,null,null,"Individuals receiving emergency financial assistance to prevent homelessness:"]
[]
[null,null,null,null,null,"Individuals receiving emergency legal assistance to prevent homelessness:"]
[]
[null,null,null,null,null,null,null,null,null,null,null,null,null,null,null,null,null,null,null,null,"Total:",null,null,{"$f":"X100+X102","v":0}]

{"sheet":"LMC 7","index":10,"n_rows":51,"n_cols":24,"rows_kept":51,"cut":false,"hidden":true,"merged":[[3,15,4,16],[4,11,4,14],[5,11,5,14],[5,15,5,16],[6,11,6,14],[6,15,6,16],[7,11,7,14],[7,15,7,16],[8,11,8,14],[8,15,8,16],[9,0,10,10],[9,11,10,14],[9,15,10,16],[11,0,12,10],[11,11,12,14],[11,15,12,16],[13,11,13,14],[13,15,13,16],[14,11,14,14],[14,15,14,16],[15,0,16,10],[15,11,16,14],[15,15,16,16],[17,11,17,14],[17,15,17,16],[18,11,18,14],[18,15,18,16],[21,11,21,14],[48,23,48,26],[50,23,50,26],[22,11,22,14],[23,11,23,14],[24,11,24,14],[27,0,27,26],[26,11,26,14],[39,23,39,26],[41,23,41,26],[29,23,29,26],[31,23,31,26],[33,23,33,26],[37,23,37,26],[46,23,46,26]]}
[]
[]
[]
[null,null,null,null,null,null,null,null,null,null,null,null,null,null,null,"Hispanic\n/Latino"]
[null,null,null,null,null,"Race/Ethnicity",null,null,null,null,null,"Race"]
[null,null,null,null,null,"White"]
[null,null,null,null,null,"Black / African American"]
[null,null,null,null,null,"Asian"]
[null,null,null,null,null,"American Indian / Alaskan Native"]
["Native Hawaiian / Other Pacific Islander"]
[]
["American Indian / Alaskan Native & White"]
[]
[null,null,null,null,null,"Asian & White"]
[null,null,null,null,null,"Black / African American & White"]
["American Indian / Alaskan Native & Black / African American"]
[]
[null,null,null,null,null,"Other Multi-Racial"]
[null,null,null,null,null,null,null,null,null,null,"Total:",{"$f":"SUM(L6:O18)","v":0},null,null,null,{"$f":"SUM(P6:Q18)","v":0}]
[]
[null,null,null,null,"Income Information"]
[null,null,null,null,"Extremely Low (0-30% AMI)"]
[null,null,null,null,"Low (31-50% AMI)"]
[null,null,null,null,"Moderate (51-80% AMI)"]
[null,null,null,null,null,null,null,null,null,null,"Total:",{"$f":"SUM(L22:O24)","v":0}]
[]
[null,null,null,null,null,null,null,"Total Persons Assisted:"]
["Accomplishment Information"]
["Of the Total Persons, Number of:"]
[null,null,null,null,null,null,null,null,null,null,null,null,null,null,null,"With New or Continuing Access to a Service or Benefit:"]
[]
[null,null,null,null,null,null,null,null,null,null,null,null,null,null,null,null,"With Improved Access to a Service or Benefit:"]
[]
[null,null,null,null,null,null,null,null,null,null,null,null,null,null,"Receive a Service or Benefit that is No Longer Substandard:"]
["If the activity is intended to help the homeless:"]
[]
["Of the Total Persons, Number of:"]
[null,null,null,null,null,null,null,null,null,null,null,null,"Homeless Persons Given Overnight Shelter:"]
[]
[null,null,null,null,null,null,null,null,"Beds Created in Overnight Shelter or Other Emergency Housing:"]
[]
[null,null,null,null,null,null,null,null,null,null,null,null,null,null,null,null,null,null,null,null,"Total:",null,null,{"$f":"X38+X40","v":0}]
[]
["If the activity is intended to prevent homelessness:"]
[]
["Of the Total Persons, Number of:"]
[null,null,null,null,"Individuals receiving emergency financial assistance to prevent homelessness:"]
[]
[null,null,null,null,null,"Individuals receiving emergency legal assistance to prevent homelessness:"]
[]
[null,null,null,null,null,null,null,null,null,null,null,null,null,null,null,null,null,null,null,null,"Total:",null,null,{"$f":"X47+X49","v":0}]

{"sheet":"LMC 8","index":11,"n_rows":97,"n_cols":33,"rows_kept":97,"cut":false,"hidden":true,"merged":[[85,23,85,26],[87,23,87,26],[74,23,74,26],[76,23,76,26],[78,23,78,26],[83,23,83,26],[71,11,71,14],[68,11,68,14],[68,15,68,16],[68,17,68,18],[69,11,69,14],[69,15,69,16],[69,17,69,18],[65,11,65,14],[65,15,65,16],[65,17,65,18],[66,11,66,14],[66,15,66,16],[66,17,66,18],[63,11,63,14],[63,15,63,16],[63,17,63,18],[64,11,64,14],[64,15,64,16],[64,17,64,18],[61,11,61,14],[61,15,61,16],[61,17,61,18],[62,11,62,14],[62,15,62,16],[62,17,62,18],[55,0,56,10],[55,11,56,14],[55,15,56,16],[57,11,57,14],[57,15,57,16],[58,11,58,14],[58,15,58,16],[51,0,52,10],[51,11,52,14],[51,15,52,16],[53,11,53,14],[53,15,53,16],[54,11,54,14],[54,15,54,16],[47,11,47,14],[47,15,47,16],[48,11,48,14],[48,15,48,16],[49,0,50,10],[49,11,50,14],[49,15,50,16],[46,11,46,14],[46,15,46,16],[36,0,37,10],[36,11,37,14],[36,15,37,16],[38,11,38,14],[38,15,38,16],[39,11,39,14],[39,15,39,16],[41,0,41,26],[29,15,29,16],[30,0,31,10],[30,11,31,14],[30,15,31,16],[42,10,42,15],[43,15,44,16],[44,11,44,14],[45,11,45,14],[45,15,45,16],[28,11,28,14],[28,15,28,16],[92,23,92,26],[94,23,94,26],[96,23,96,26],[20,11,20,14],[23,10,23,15],[24,15,25,16],[25,11,25,14],[26,11,26,14],[26,15,26,16],[27,11,27,14],[27,15,27,16],[20,15,20,16],[21,11,21,14],[21,15,21,16],[32,0,33,10],[32,11,33,14],[32,15,33,16],[34,11,34,14],[34,15,34,16],[35,11,35,14],[35,15,35,16],[29,11,29,14],[5,10,5,15],[6,15,7,16],[7,11,7,14],[8,11,8,14],[8,15,8,16],[9,11,9,14],[9,15,9,16],[18,0,19,10],[18,11,19,14],[18,15,19,16],[14,0,15,10],[14,11,15,14],[14,15,15,16],[10,11,10,14],[10,15,10,16],[11,11,11,14],[11,15,11,16],[12,0,13,10],[12,11,13,14],[12,15,13,16],[16,11,16,14],[16,15,16,16],[17,11,17,14],[17,15,17,16]]}
[]
[]
[]
[]
[]
[null,null,null,null,null,null,null,null,null,null,"Households\n(Owners)"]
[null,null,null,null,null,null,null,null,null,null,null,null,null,null,null,"Hispanic\n/Latino"]
[null,null,null,null,null,"Race/Ethnicity",null,null,null,null,null,"Race"]
[null,null,null,null,null,"White"]
[null,null,null,null,null,"Black / African American"]
[null,null,null,null,null,"Asian"]
[null,null,null,null,null,"American Indian / Alaskan Native"]
["Native Hawaiian / Other Pacific Islander"]
[null,null,null,null,null,null,null,null,null,null,null,null,null,null,null,null,null,null,null,null,null,null,null,null,null,null,null,null,null,null,null,null," "]
["American Indian / Alaskan Native & White"]
[]
[null,null,null,null,null,"Asian & White"]
[null,null,null,null,null,"Black / African American & White"]
["American Indian / Alaskan Native & Black / African American"]
[]
[null,null,null,null,null,"Other Multi-Racial"]
[null,null,null,null,null,null,null,null,null,null,"Total:",{"$f":"SUM(L9:O21)","v":0},null,null,null,{"$f":"SUM(P9:Q21)","v":0}]
[]
[null,null,null,null,null,null,null,null,null,null,"Households\n(Renters)"]
[null,null,null,null,null,null,null,null,null,null,null,null,null,null,null,"Hispanic\n/Latino"]
[null,null,null,null,null,"Race/Ethnicity",null,null,null,null,null,"Race"]
[null,null,null,null,null,"White"]
[null,null,null,null,null,"Black / African American"]
[null,null,null,null,null,"Asian"]
[null,null,null,null,null,"American Indian / Alaskan Native"]
["Native Hawaiian / Other Pacific Islander"]
[]
["American Indian / Alaskan Native & White"]
[]
[null,null,null,null,null,"Asian & White"]
[null,null,null,null,null,"Black / African American & White"]
["American Indian / Alaskan Native & Black / African American"]
[]
[null,null,null,null,null,"Other Multi-Racial"]
[null,null,null,null,null,null,null,null,null,null,"Total:",{"$f":"SUM(L27:O39)","v":0},null,null,null,{"$f":"SUM(P27:Q39)","v":0}]
[]
["Accomplishment Information"]
[null,null,null,null,null,null,null,null,null,null,"Households\n(Total)"]
[null,null,null,null,null,null,null,null,null,null,null,null,null,null,null,"Hispanic\n/Latino"]
[null,null,null,null,null,"Race/Ethnicity",null,null,null,null,null,"Race"]
[null,null,null,null,null,"White",null,null,null,null,null,{"$f":"L9+L27","v":0},null,null,null,{"$f":"P9+P27","v":0}]
[null,null,null,null,null,"Black / African American",null,null,null,null,null,{"$f":"L10+L28","v":0},null,null,null,{"$f":"P10+P28","v":0}]
[null,null,null,null,null,"Asian",null,null,null,null,null,{"$f":"L11+L29","v":0},null,null,null,{"$f":"P11+P29","v":0}]
[null,null,null,null,null,"American Indian / Alaskan Native",null,null,null,null,null,{"$f":"L12+L30","v":0},null,null,null,{"$f":"P12+P30","v":0}]
["Native Hawaiian / Other Pacific Islander",null,null,null,null,null,null,null,null,null,null,{"$f":"L13+L31","v":0},null,null,null,{"$f":"P13+P31","v":0}]
[]
["American Indian / Alaskan Native & White",null,null,null,null,null,null,null,null,null,null,{"$f":"L15+L33","v":0},null,null,null,{"$f":"P15+P33","v":0}]
[]
[null,null,null,null,null,"Asian & White",null,null,null,null,null,{"$f":"L17+L35","v":0},null,null,null,{"$f":"P17+P35","v":0}]
[null,null,null,null,null,"Black / African American & White",null,null,null,null,null,{"$f":"L18+L36","v":0},null,null,null,{"$f":"P18+P36","v":0}]
["American Indian / Alaskan Native & Black / African American",null,null,null,null,null,null,null,null,null,null,{"$f":"L19+L37","v":0},null,null,null,{"$f":"P19+P37","v":0}]
[]
[null,null,null,null,null,"Other Multi-Racial",null,null,null,null,null,{"$f":"L21+L39","v":0},null,null,null,{"$f":"P21+P39","v":0}]
[null,null,null,null,null,null,null,null,null,null,"Total:",{"$f":"SUM(L46:O58)","v":0},null,null,null,{"$f":"SUM(P46:Q58)","v":0}]
[]
[]
[null,null,null,null,"Income Information",null,null,null,null,null,null,"Owner",null,null,null,"Renter",null,"Total"]
[null,null,null,null,"Extremely Low (0-30% AMI)",null,null,null,null,null,null,null,null,null,null,null,null,{"$f":"L63+P63","v":0}]
[null,null,null,null,"Low (31-50% AMI)",null,null,null,null,null,null,null,null,null,null,null,null,0]
[null,null,null,null,"Moderate (51-80% AMI)",null,null,null,null,null,null,null,null,null,null,null,null,0]
[null,null,null,null,"Non-Low/Moderate",null,null,null,null,null,null,null,null,null,null,null,null,{"$f":"L66+P66","v":0}]
[null,null,null,null,null,null,null,null,null,null,"Total:",{"$f":"SUM(L63:O66)","v":0},null,null,null,{"$f":"SUM(P63:Q66)","v":0},null,{"$f":"SUM(R63:S66)","v":0}]
[]
[null,null,null,null,null,null,null,null,null,null,null,"Owner",null,null,null,"Renter",null,"Total"]
[null,null,null,null,"Female-Headed Households",null,null,null,null,null,null,null,null,null,null,null,null,{"$f":"L70+P70","v":0}]
[]
[null,null,null,null,null,null,null,"Total Persons Assisted:"]
[]
["Of the Total Persons, Number of:"]
[null,null,null,null,null,null,null,null,null,null,null,null,null,null,null,"With New or Continuing Access to a Service or Benefit:"]
[]
[null,null,null,null,null,null,null,null,null,null,null,null,null,null,null,null,"With Improved Access to a Service or Benefit:"]
[]
[null,null,null,null,null,null,null,null,null,null,null,null,null,null,"Receive a Service or Benefit that is No Longer Substandard:"]
[]
["If the activity is intended to help the homeless:"]
[]
["Of the Total Persons, Number of:"]
[null,null,null,null,null,null,null,null,null,null,null,null,"Homeless Persons Given Overnight Shelter:"]
[]
[null,null,null,null,null,null,null,null,"Beds Created in Overnight Shelter or Other Emergency Housing:"]
[]
[null,null,null,null,null,null,null,null,null,null,null,null,null,null,null,null,null,null,null,null,"Total:",null,null,{"$f":"X84+X86","v":0}]
[]
["If the activity is intended to prevent homelessness:"]
[]
["Of the Total Persons, Number of:"]
[null,null,null,null,"Individuals receiving emergency financial assistance to prevent homelessness:"]
[]
[null,null,null,null,null,"Individuals receiving emergency legal assistance to prevent homelessness:"]
[]
[null,null,null,null,null,null,null,null,null,null,null,null,null,null,null,null,null,null,null,null,"Total:",null,null,{"$f":"X93+X95","v":0}]

{"sheet":"LMC 9","index":12,"n_rows":36,"n_cols":33,"rows_kept":36,"cut":false,"hidden":true,"merged":[[12,23,12,26],[14,23,14,26],[13,8,14,22],[18,3,18,14],[16,0,16,26],[4,9,4,10],[7,9,7,10],[7,13,7,15],[34,3,34,14],[29,3,29,14],[30,3,30,14],[31,3,31,14],[32,3,32,14],[10,9,10,10],[35,3,35,14],[19,3,19,14],[20,3,20,14],[21,3,21,14],[33,3,33,14],[22,3,22,14],[23,3,23,14],[24,3,24,14],[25,3,25,14],[26,3,26,14],[27,3,27,14],[28,3,28,14]]}
[]
[]
[]
[]
["New Businesses Assisted:"]
[]
[null,null,null,null,null,null,null,null,null,null,null,null,null,null,"Number Expanding",null,null,null,null,"Number Relocating"]
["Existing Businesses Assisted:"]
[]
[]
[null,null,null,null,null,null,"Total:",null,null,{"$f":"J5+J8","v":0}]
[]
[null,null,null,null,null,null,null,null,null,null,null,null,null,null,null,"Number of Business Facades/Buildings Rehabilitated:"]
[null,null,null,null,null,null,null,null,"Number of Businesses Assisted that Provide Goods or Services to Meet the Needs of a Service Area:",null,null,null,null,null,null,null,null,null,null,null,null,null,null,null,null,null,null,null,null,null,null,null," "]
[]
[]
["Accomplishment Information"]
["Specify UEI# for Each Business Assisted:"]
[null,null,"UEI#:"]
[null,null,"UEI#:"]
[null,null,"UEI#:"]
[null,null,"UEI#:"]
[null,null,"UEI#:"]
[null,null,"UEI#:"]
[null,null,"UEI#:"]
[null,null,"UEI#:"]
[null,null,"UEI#:"]
[null,null,"UEI#:"]
[null,null,"UEI#:"]
[null,null,"UEI#:"]
[null,null,"UEI#:"]
[null,null,"UEI#:"]
[null,null,"UEI#:"]
[null,null,"UEI#:"]
[null,null,"UEI#:"]
[null,null,"UEI#:"]

{"sheet":"LMC 10","index":13,"n_rows":25,"n_cols":33,"rows_kept":25,"cut":false,"hidden":true,"merged":[[18,16,18,17],[19,11,19,14],[9,23,9,26],[12,23,12,26],[16,11,16,14],[16,16,16,17],[17,11,17,14],[17,16,17,17],[13,0,13,26],[3,11,3,14],[3,23,3,26],[24,11,24,14],[23,11,23,14],[23,16,23,17],[24,16,24,17],[20,11,20,14],[21,11,21,14],[19,16,19,17],[20,16,20,17],[8,0,9,22],[6,23,6,26],[21,16,21,17],[22,11,22,14],[22,16,22,17],[18,11,18,14]]}
[]
[]
[]
[null,null,null,"Actual FTE Jobs Created:",null,null,null,null,null,null,null,null,null,null,null,null,"Actual FTE Jobs Retained:"]
[]
["Created"]
[null,null,"Of Jobs Created, Number of Jobs With Employer Sponsored Health Care Benefits:"]
[]
["Of Jobs Created, Number of Persons Unemployed Prior to Taking Jobs Created Under This Activity:"]
[]
[]
["Retained"]
[null,null,null,null,null,null,null,null,null,null,null,null,"Of Jobs Retained, Number of Jobs With Employer Sponsored Health Care Benefits:"]
["Accomplishment Information",null,null,null,null,null,null,null,null,null,null,null,null,null,null,null,null,null,null,null,null,null,null,null,null,null,null,null,null,null,null,null," "]
[null,"Types of Jobs Created/Retained"]
[null,null,null,"Job Category",null,null,null,null,null,null,null,null,"Jobs Created",null,null,null,"Jobs Retained"]
[null,null,null,"Officials and Managers"]
[null,null,null,"Professional"]
[null,null,null,"Technicians"]
[null,null,null,"Sales"]
[null,null,null,"Office and Clerical"]
[null,null,null,"Craft Workers (Skilled)"]
[null,null,null,"Operatives (Semi-Skilled)"]
[null,null,null,"Laborers (Unskilled)"]
[null,null,null,"Service Workers"]

{"sheet":"LMC 11","index":14,"n_rows":51,"n_cols":33,"rows_kept":51,"cut":false,"hidden":true,"merged":[[44,11,44,14],[44,16,44,17],[29,11,29,14],[29,23,29,26],[32,23,32,26],[34,0,35,22],[35,23,35,26],[38,23,38,26],[39,0,39,26],[42,11,42,14],[42,16,42,17],[43,11,43,14],[43,16,43,17],[45,11,45,14],[45,16,45,17],[46,11,46,14],[46,16,46,17],[47,11,47,14],[47,16,47,17],[48,11,48,14],[48,16,48,17],[49,11,49,14],[49,16,49,17],[50,11,50,14],[50,16,50,17],[12,0,13,10],[12,11,13,14],[12,15,13,16],[6,15,7,16],[7,11,7,14],[8,11,8,14],[8,15,8,16],[9,11,9,14],[9,15,9,16],[17,11,17,14],[17,15,17,16],[10,11,10,14],[10,15,10,16],[11,11,11,14],[11,15,11,16],[14,0,15,10],[14,11,15,14],[14,15,15,16],[16,11,16,14],[16,15,16,16],[18,15,19,16],[20,11,20,14],[20,15,20,16],[21,11,21,14],[21,15,21,16],[24,11,24,14],[25,11,25,14],[26,11,26,14],[27,11,27,14],[18,0,19,10],[18,11,19,14]]}
[]
[]
[]
[]
[]
[]
[null,null,null,null,null,null,null,null,null,null,null,null,null,null,null,"Hispanic\n/Latino"]
[null,null,null,null,null,"Race/Ethnicity",null,null,null,null,null,"Race"]
[null,null,null,null,null,"White"]
[null,null,null,null,null,"Black / African American"]
[null,null,null,null,null,"Asian"]
[null,null,null,null,null,"American Indian / Alaskan Native"]
["Native Hawaiian / Other Pacific Islander"]
[]
["American Indian / Alaskan Native & White"]
[]
[null,null,null,null,null,"Asian & White"]
[null,null,null,null,null,"Black / African American & White"]
["American Indian / Alaskan Native & Black / African American"]
[]
[null,null,null,null,null,"Other Multi-Racial"]
[null,null,null,null,null,null,null,null,null,null,"Total:",{"$f":"SUM(L9:O21)","v":0},null,null,null,{"$f":"SUM(P9:Q21)","v":0}]
[]
[null,null,null,null,"Income Information"]
[null,null,null,null,"Extremely Low (0-30% AMI)"]
[null,null,null,null,"Low (31-50% AMI)"]
[null,null,null,null,"Moderate (51-80% AMI)"]
[null,null,null,null,null,null,null,null,null,null,"Total:",{"$f":"SUM(L25:O27)","v":0}]
[]
[null,null,null,"Actual FTE Jobs Created:",null,null,null,null,null,null,null,null,null,null,null,null,"Actual FTE Jobs Retained:"]
[]
["Created"]
[null,null,"Of Jobs Created, Number of Jobs With Employer Sponsored Health Care Benefits:"]
[]
["Of Jobs Created, Number of Persons Unemployed Prior to Taking Jobs Created Under This Activity:"]
[]
[]
["Retained"]
[null,null,null,null,null,null,null,null,null,null,null,null,"Of Jobs Retained, Number of Jobs With Employer Sponsored Health Care Benefits:"]
["Accomplishment Information",null,null,null,null,null,null,null,null,null,null,null,null,null,null,null,null,null,null,null,null,null,null,null,null,null,null,null,null,null,null,null," "]
[null,"Types of Jobs Created/Retained"]
[null,null,null,"Job Category",null,null,null,null,null,null,null,null,"Jobs Created",null,null,null,"Jobs Retained"]
[null,null,null,"Officials and Managers"]
[null,null,null,"Professional"]
[null,null,null,"Technicians"]
[null,null,null,"Sales"]
[null,null,null,"Office and Clerical"]
[null,null,null,"Craft Workers (Skilled)"]
[null,null,null,"Operatives (Semi-Skilled)"]
[null,null,null,"Laborers (Unskilled)"]
[null,null,null,"Service Workers"]

{"sheet":"Reset","index":15,"n_rows":33,"n_cols":17,"rows_kept":33,"cut":false,"hidden":true,"merged":[[32,23,32,26],[34,11,36,14],[34,23,36,26],[0,0,5,26],[6,0,6,26],[7,0,7,26],[8,0,28,26],[29,0,29,26],[32,4,36,10],[32,11,32,14],[32,16,36,22]]}
[{"$f":"IFERROR(IF(INDEX(Backend!$A$120:$H$629,MATCH(1,('Activity Information'!$AD$39=Backend!$B$120:$B$629)*('Activity Information'!$H$41=Backend!$A$120:$A$629),0),MATCH(Backend!$H$120,Backend!$A$120:$H$120,0))=\"#N/A\",\"Enter National Objective and Matrix Code\",INDEX(Backend!$A$120:$H$629,MATCH(1,('Activity Information'!$AD$39=Backend!$B$120:$B$629)*('Activity Information'!$H$41=Backend!$A$120:$A$629),0),MATCH(Backend!$H$120,Backend!$A$120:$H$120,0))), \"Enter National Objective and Matrix Code\")","v":"Enter National Objective and Matrix Code"}]
[]
[]
[]
[]
[]
[]
["Accomplishment Narrative"]
[]
[]
[]
[]
[]
[]
[]
[]
[]
[]
[]
[]
[]
[]
[]
[]
[]
[]
[]
[]
[]
["Accomplishment Information"]
["Performance Measurement Type(s):"]
[]
[null,null,null,null,{"$f":"IFERROR(INDEX(Backend!$A$120:$D$1048576,MATCH(1,('Activity Information'!$H$41=Backend!$A$120:$A$1048576)*('Activity Information'!$AD$39=Backend!$B$120:$B$1048576),0),MATCH(\"Accomplishment Type1\",Backend!$A$120:$D$120,0)),\"INCORRECT CRITERIA\")","v":"INCORRECT CRITERIA"},null,null,null,null,null,null,null,null,null,null,null,{"$f":"IFERROR(IF((INDEX(Backend!$A$120:$D$1048576,MATCH(1,('Activity Information'!$H$41=Backend!$A$120:$A$1048576)*('Activity Information'!$AD$39=Backend!$B$120:$B$1048576),0),MATCH(\"Accomplishment Type2\",Backend!$A$120:$D$120,0)))=\"\",\"\",INDEX(Backend!$A$120:$D$1048576,MATCH(1,('Activity Information'!$H$41=Backend!$A$120:$A$1048576)*('Activity Information'!$AD$39=Backend!$B$120:$B$1048576),0),MATCH(\"Accomplishment Type2\",Backend!$A$120:$D$120,0))),\"\")","v":""}]

{"sheet":"LMC NA","index":16,"n_rows":14,"n_cols":33,"rows_kept":14,"cut":false,"hidden":true,"merged":[[3,11,3,14],[6,23,6,26],[8,23,8,26],[10,23,10,26],[1,11,1,14]]}
[]
[null,null,null,null,null,null,null,null,"Proposed Units:"]
[]
[null,null,null,null,null,null,null,"Total Households Assisted:"]
[]
["Of the Total Households, Number of:"]
[null,null,null,null,null,null,null,null,null,null,null,null,null,null,null,null,null,"First-Time Homebuyers:"]
[]
[null,"Of the Number of First-Time Homebuyers, Number Receiving Housing Counseling:"]
[]
[null,null,null,null,null,null,null,null,null,null,null,null,"Downpayment Assistance/Closing Costs:"]
[]
[]
[null,null,null,null,null,null,null,null,null,null,null,null,null,null,null,null,null,null,null,null,null,null,null,null,null,null,null,null,null,null,null,null," "]

{"sheet":"LMH 1","index":17,"n_rows":103,"n_cols":33,"rows_kept":103,"cut":false,"hidden":true,"merged":[[20,0,21,10],[20,11,21,14],[20,15,21,16],[2,4,6,10],[2,11,2,14],[2,16,6,22],[2,23,2,26],[4,11,6,14],[4,23,6,26],[15,11,15,14],[16,11,16,14],[16,15,16,16],[13,10,13,15],[14,15,15,16],[17,11,17,14],[17,15,17,16],[18,11,18,14],[18,15,18,16],[19,11,19,14],[19,15,19,16],[28,15,28,16],[24,11,24,14],[24,15,24,16],[22,0,23,10],[22,11,23,14],[33,11,33,14],[34,11,34,14],[40,0,41,10],[40,11,41,14],[40,15,41,16],[29,11,29,14],[29,15,29,16],[31,10,31,15],[32,15,33,16],[34,15,34,16],[22,15,23,16],[25,11,25,14],[25,15,25,16],[26,0,27,10],[26,11,27,14],[26,15,27,16],[28,11,28,14],[42,11,42,14],[42,15,42,16],[35,15,35,16],[36,11,36,14],[36,15,36,16],[37,15,37,16],[38,0,39,10],[38,11,39,14],[38,15,39,16],[37,11,37,14],[35,11,35,14],[46,11,46,14],[46,15,46,16],[47,11,47,14],[47,15,47,16],[49,0,49,26],[43,11,43,14],[43,15,43,16],[44,0,45,10],[44,11,45,14],[44,15,45,16],[54,11,54,14],[54,15,54,16],[55,11,55,14],[55,15,55,16],[56,11,56,14],[56,15,56,16],[50,10,50,15],[51,15,52,16],[52,11,52,14],[53,11,53,14],[53,15,53,16],[61,11,61,14],[61,15,61,16],[62,11,62,14],[62,15,62,16],[63,0,64,10],[63,11,64,14],[63,15,64,16],[57,0,58,10],[57,11,58,14],[57,15,58,16],[59,0,60,10],[59,11,60,14],[59,15,60,16],[69,17,69,18],[70,11,70,14],[70,15,70,16],[70,17,70,18],[71,11,71,14],[71,15,71,16],[71,17,71,18],[65,11,65,14],[65,15,65,16],[66,11,66,14],[66,15,66,16],[69,11,69,14],[69,15,69,16],[74,11,74,14],[74,15,74,16],[74,17,74,18],[72,11,72,14],[72,15,72,16],[72,17,72,18],[73,11,73,14],[73,15,73,16],[73,17,73,18],[98,23,98,26],[100,23,100,26],[102,23,102,26],[77,11,77,14],[77,15,77,16],[77,17,77,18],[76,11,76,14],[76,15,76,16],[76,17,76,18],[80,23,80,26],[82,23,82,26],[84,23,84,26],[89,23,89,26],[91,23,91,26],[93,23,93,26]]}
["Performance Measurement Type(s):"]
[]
[null,null,null,null,{"$f":"IFERROR(INDEX(Backend!$A$120:$D$1048576,MATCH(1,('Activity Information'!$H$41=Backend!$A$120:$A$1048576)*('Activity Information'!$AD$39=Backend!$B$120:$B$1048576),0),MATCH(\"Accomplishment Type1\",Backend!$A$120:$D$120,0)),\"INCORRECT CRITERIA\")","v":"INCORRECT CRITERIA"},null,null,null,null,null,null,null,null,null,null,null,{"$f":"IFERROR(IF((INDEX(Backend!$A$120:$D$1048576,MATCH(1,('Activity Information'!$H$41=Backend!$A$120:$A$1048576)*('Activity Information'!$AD$39=Backend!$B$120:$B$1048576),0),MATCH(\"Accomplishment Type2\",Backend!$A$120:$D$120,0)))=\"\",\"\",INDEX(Backend!$A$120:$D$1048576,MATCH(1,('Activity Information'!$H$41=Backend!$A$120:$A$1048576)*('Activity Information'!$AD$39=Backend!$B$120:$B$1048576),0),MATCH(\"Accomplishment Type2\",Backend!$A$120:$D$120,0))),\"\")","v":""}]
[]
[]
[]
[]
[]
[]
[]
[]
[]
[]
[null,null,null,null,null,null,null,null,null,null,"Households\n(Owners)"]
[null,null,null,null,null,null,null,null,null,null,null,null,null,null,null,"Hispanic\n/Latino"]
[null,null,null,null,null,"Race/Ethnicity",null,null,null,null,null,"Race"]
[null,null,null,null,null,"White"]
[null,null,null,null,null,"Black / African American"]
[null,null,null,null,null,"Asian"]
[null,null,null,null,null,"American Indian / Alaskan Native"]
["Native Hawaiian / Other Pacific Islander"]
[]
["American Indian / Alaskan Native & White"]
[]
[null,null,null,null,null,"Asian & White"]
[null,null,null,null,null,"Black / African American & White"]
["American Indian / Alaskan Native & Black / African American"]
[]
[null,null,null,null,null,"Other Multi-Racial"]
[null,null,null,null,null,null,null,null,null,null,"Total:",{"$f":"SUM(L17:O29)","v":0},null,null,null,{"$f":"SUM(P17:Q29)","v":0}]
[]
[null,null,null,null,null,null,null,null,null,null,"Households\n(Renters)"]
[null,null,null,null,null,null,null,null,null,null,null,null,null,null,null,"Hispanic\n/Latino"]
[null,null,null,null,null,"Race/Ethnicity",null,null,null,null,null,"Race"]
[null,null,null,null,null,"White"]
[null,null,null,null,null,"Black / African American"]
[null,null,null,null,null,"Asian"]
[null,null,null,null,null,"American Indian / Alaskan Native"]
["Native Hawaiian / Other Pacific Islander"]
[]
["American Indian / Alaskan Native & White"]
[]
[null,null,null,null,null,"Asian & White"]
[null,null,null,null,null,"Black / African American & White"]
["American Indian / Alaskan Native & Black / African American"]
[]
[null,null,null,null,null,"Other Multi-Racial"]
[null,null,null,null,null,null,null,null,null,null,"Total:",{"$f":"SUM(L35:O47)","v":0},null,null,null,{"$f":"SUM(P35:Q47)","v":0}]
[]
["Accomplishment Information"]
[null,null,null,null,null,null,null,null,null,null,"Households\n(Total)"]
[null,null,null,null,null,null,null,null,null,null,null,null,null,null,null,"Hispanic\n/Latino",null,null,null,null,null,null,null,null,null,null,null,null,null,null,null,null," "]
[null,null,null,null,null,"Race/Ethnicity",null,null,null,null,null,"Race"]
[null,null,null,null,null,"White",null,null,null,null,null,{"$f":"L17+L35","v":0},null,null,null,{"$f":"P17+P35","v":0}]
[null,null,null,null,null,"Black / African American",null,null,null,null,null,{"$f":"L18+L36","v":0},null,null,null,{"$f":"P18+P36","v":0}]
[null,null,null,null,null,"Asian",null,null,null,null,null,{"$f":"L19+L37","v":0},null,null,null,{"$f":"P19+P37","v":0}]
[null,null,null,null,null,"American Indian / Alaskan Native",null,null,null,null,null,{"$f":"L20+L38","v":0},null,null,null,{"$f":"P20+P38","v":0}]
["Native Hawaiian / Other Pacific Islander",null,null,null,null,null,null,null,null,null,null,{"$f":"L21+L39","v":0},null,null,null,{"$f":"P21+P39","v":0}]
[]
["American Indian / Alaskan Native & White",null,null,null,null,null,null,null,null,null,null,{"$f":"L23+L41","v":0},null,null,null,{"$f":"P23+P41","v":0}]
[]
[null,null,null,null,null,"Asian & White",null,null,null,null,null,{"$f":"L25+L43","v":0},null,null,null,{"$f":"P25+P43","v":0}]
[null,null,null,null,null,"Black / African American & White",null,null,null,null,null,{"$f":"L26+L44","v":0},null,null,null,{"$f":"P26+P44","v":0}]
["American Indian / Alaskan Native & Black / African American",null,null,null,null,null,null,null,null,null,null,{"$f":"L27+L45","v":0},null,null,null,{"$f":"P27+P45","v":0}]
[]
[null,null,null,null,null,"Other Multi-Racial",null,null,null,null,null,{"$f":"L29+L47","v":0},null,null,null,{"$f":"P29+P47","v":0}]
[null,null,null,null,null,null,null,null,null,null,"Total:",{"$f":"SUM(L54:O66)","v":0},null,null,null,{"$f":"SUM(P54:Q66)","v":0}]
[]
[]
[null,null,null,null,"Income Information",null,null,null,null,null,null,"Owner",null,null,null,"Renter",null,"Total"]
[null,null,null,null,"Extremely Low (0-30% AMI)",null,null,null,null,null,null,null,null,null,null,null,null,{"$f":"L71+P71","v":0}]
[null,null,null,null,"Low (31-50% AMI)",null,null,null,null,null,null,null,null,null,null,null,null,{"$f":"L72+P72","v":0}]
[null,null,null,null,"Moderate (51-80% AMI)",null,null,null,null,null,null,null,null,null,null,null,null,0]
[null,null,null,null,"Non-Low/Moderate",null,null,null,null,null,null,null,null,null,null,null,null,{"$f":"L74+P74","v":0}]
[null,null,null,null,null,null,null,null,null,null,"Total:",{"$f":"SUM(L71:O74)","v":0},null,null,null,{"$f":"SUM(P71:Q74)","v":0},null,{"$f":"SUM(R71:S74)","v":0}]
[]
[null,null,null,null,null,null,null,null,null,null,null,"Owner",null,null,null,"Renter",null,"Total"]
[null,null,null,null,"Female-Headed Households",null,null,null,null,null,null,null,null,null,null,null,null,{"$f":"L78+P78","v":0}]
[]
["Of the Total Persons, Number of:"]
[null,null,null,null,null,null,null,null,null,null,null,null,null,null,null,"With New or Continuing Access to a Service or Benefit:"]
[]
[null,null,null,null,null,null,null,null,null,null,null,null,null,null,null,null,"With Improved Access to a Service or Benefit:"]
[]
[null,null,null,null,null,null,null,null,null,null,null,null,null,null,"Receive a Service or Benefit that is No Longer Substandard:"]
[]
["If the activity is intended to help the homeless:"]
[]
["Of the Total Persons, Number of:"]
[null,null,null,null,null,null,null,null,null,null,null,null,"Homeless Persons Given Overnight Shelter:"]
[]
[null,null,null,null,null,null,null,null,"Beds Created in Overnight Shelter or Other Emergency Housing:"]
[]
[null,null,null,null,null,null,null,null,null,null,null,null,null,null,null,null,null,null,null,null,"Total:",null,null,{"$f":"X90+X92","v":0}]
[]
["If the activity is intended to prevent homelessness:"]
[]
["Of the Total Persons, Number of:"]
[null,null,null,null,"Individuals receiving emergency financial assistance to prevent homelessness:"]
[]
[null,null,null,null,null,"Individuals receiving emergency legal assistance to prevent homelessness:"]
[]
[null,null,null,null,null,null,null,null,null,null,null,null,null,null,null,null,null,null,null,null,"Total:",null,null,{"$f":"X99+X101","v":0}]

{"sheet":"LMH 2","index":18,"n_rows":121,"n_cols":33,"rows_kept":121,"cut":false,"hidden":true,"merged":[[22,0,23,10],[22,11,23,14],[22,15,23,16],[15,10,15,15],[16,15,17,16],[17,11,17,14],[18,11,18,14],[18,15,18,16],[19,11,19,14],[19,15,19,16],[2,4,6,10],[2,11,2,14],[2,16,6,22],[2,23,2,26],[4,11,6,14],[4,23,6,26],[20,11,20,14],[20,15,20,16],[21,11,21,14],[21,15,21,16],[28,11,29,14],[28,15,29,16],[30,11,30,14],[30,15,30,16],[31,11,31,14],[31,15,31,16],[24,0,25,10],[24,11,25,14],[24,15,25,16],[26,11,26,14],[26,15,26,16],[27,11,27,14],[27,15,27,16],[28,0,29,10],[38,11,38,14],[38,15,38,16],[39,11,39,14],[39,15,39,16],[40,0,41,10],[40,11,41,14],[40,15,41,16],[33,10,33,15],[34,15,35,16],[35,11,35,14],[36,11,36,14],[36,15,36,16],[37,11,37,14],[37,15,37,16],[46,0,47,10],[46,11,47,14],[46,15,47,16],[48,11,48,14],[48,15,48,16],[49,11,49,14],[49,15,49,16],[42,0,43,10],[42,11,43,14],[42,15,43,16],[44,11,44,14],[44,15,44,16],[45,11,45,14],[45,15,45,16],[56,11,56,14],[56,15,56,16],[57,11,57,14],[57,15,57,16],[58,11,58,14],[58,15,58,16],[51,0,51,26],[52,10,52,15],[53,15,54,16],[54,11,54,14],[55,11,55,14],[55,15,55,16],[63,11,63,14],[63,15,63,16],[64,11,64,14],[64,15,64,16],[65,0,66,10],[65,11,66,14],[65,15,66,16],[59,0,60,10],[59,11,60,14],[59,15,60,16],[61,0,62,10],[61,11,62,14],[61,15,62,16],[71,17,71,18],[72,11,72,14],[72,15,72,16],[72,17,72,18],[73,11,73,14],[73,15,73,16],[73,17,73,18],[67,11,67,14],[67,15,67,16],[68,11,68,14],[68,15,68,16],[71,11,71,14],[71,15,71,16],[78,11,78,14],[78,15,78,16],[78,17,78,18],[76,11,76,14],[76,15,76,16],[76,17,76,18],[74,11,74,14],[74,15,74,16],[74,17,74,18],[75,11,75,14],[75,15,75,16],[75,17,75,18],[91,23,91,26],[93,23,93,26],[95,23,95,26],[88,23,88,26],[81,23,81,26],[90,23,90,26],[79,11,79,14],[79,15,79,16],[79,17,79,18],[82,23,82,26],[84,23,84,26],[86,23,86,26],[103,0,103,26],[116,23,116,26],[118,23,118,26],[120,23,120,26],[96,23,96,26],[97,11,98,22],[98,23,98,26],[100,23,100,26],[102,23,102,26],[107,23,107,26],[109,23,109,26],[111,23,111,26]]}
["Performance Measurement Type(s):"]
[]
[null,null,null,null,{"$f":"IFERROR(INDEX(Backend!$A$120:$D$1048576,MATCH(1,('Activity Information'!$H$41=Backend!$A$120:$A$1048576)*('Activity Information'!$AD$39=Backend!$B$120:$B$1048576),0),MATCH(\"Accomplishment Type1\",Backend!$A$120:$D$120,0)),\"INCORRECT CRITERIA\")","v":"INCORRECT CRITERIA"},null,null,null,null,null,null,null,null,null,null,null,{"$f":"IFERROR(IF((INDEX(Backend!$A$120:$D$1048576,MATCH(1,('Activity Information'!$H$41=Backend!$A$120:$A$1048576)*('Activity Information'!$AD$39=Backend!$B$120:$B$1048576),0),MATCH(\"Accomplishment Type2\",Backend!$A$120:$D$120,0)))=\"\",\"\",INDEX(Backend!$A$120:$D$1048576,MATCH(1,('Activity Information'!$H$41=Backend!$A$120:$A$1048576)*('Activity Information'!$AD$39=Backend!$B$120:$B$1048576),0),MATCH(\"Accomplishment Type2\",Backend!$A$120:$D$120,0))),\"\")","v":""}]
[]
[]
[]
[]
[]
[]
[]
[]
[]
[]
[]
[]
[null,null,null,null,null,null,null,null,null,null,"Households\n(Owners)"]
[null,null,null,null,null,null,null,null,null,null,null,null,null,null,null,"Hispanic\n/Latino"]
[null,null,null,null,null,"Race/Ethnicity",null,null,null,null,null,"Race"]
[null,null,null,null,null,"White"]
[null,null,null,null,null,"Black / African American"]
[null,null,null,null,null,"Asian"]
[null,null,null,null,null,"American Indian / Alaskan Native"]
["Native Hawaiian / Other Pacific Islander"]
[]
["American Indian / Alaskan Native & White"]
[]
[null,null,null,null,null,"Asian & White"]
[null,null,null,null,null,"Black / African American & White"]
["American Indian / Alaskan Native & Black / African American"]
[]
[null,null,null,null,null,"Other Multi-Racial"]
[null,null,null,null,null,null,null,null,null,null,"Total:",{"$f":"SUM(L19:O31)","v":0},null,null,null,{"$f":"SUM(P19:Q31)","v":0}]
[]
[null,null,null,null,null,null,null,null,null,null,"Households\n(Renters)"]
[null,null,null,null,null,null,null,null,null,null,null,null,null,null,null,"Hispanic\n/Latino"]
[null,null,null,null,null,"Race/Ethnicity",null,null,null,null,null,"Race"]
[null,null,null,null,null,"White"]
[null,null,null,null,null,"Black / African American"]
[null,null,null,null,null,"Asian"]
[null,null,null,null,null,"American Indian / Alaskan Native"]
["Native Hawaiian / Other Pacific Islander"]
[]
["American Indian / Alaskan Native & White"]
[]
[null,null,null,null,null,"Asian & White"]
[null,null,null,null,null,"Black / African American & White"]
["American Indian / Alaskan Native & Black / African American"]
[]
[null,null,null,null,null,"Other Multi-Racial"]
[null,null,null,null,null,null,null,null,null,null,"Total:",{"$f":"SUM(L37:O49)","v":0},null,null,null,{"$f":"SUM(P37:Q49)","v":0}]
[]
["Accomplishment Information"]
[null,null,null,null,null,null,null,null,null,null,"Households\n(Total)"]
[null,null,null,null,null,null,null,null,null,null,null,null,null,null,null,"Hispanic\n/Latino",null,null,null,null,null,null,null,null,null,null,null,null,null,null,null,null," "]
[null,null,null,null,null,"Race/Ethnicity",null,null,null,null,null,"Race"]
[null,null,null,null,null,"White",null,null,null,null,null,{"$f":"L19+L37","v":0},null,null,null,{"$f":"P19+P37","v":0}]
[null,null,null,null,null,"Black / African American",null,null,null,null,null,{"$f":"L20+L38","v":0},null,null,null,{"$f":"P20+P38","v":0}]
[null,null,null,null,null,"Asian",null,null,null,null,null,{"$f":"L21+L39","v":0},null,null,null,{"$f":"P21+P39","v":0}]
[null,null,null,null,null,"American Indian / Alaskan Native",null,null,null,null,null,{"$f":"L22+L40","v":0},null,null,null,{"$f":"P22+P40","v":0}]
["Native Hawaiian / Other Pacific Islander",null,null,null,null,null,null,null,null,null,null,{"$f":"L23+L41","v":0},null,null,null,{"$f":"P23+P41","v":0}]
[]
["American Indian / Alaskan Native & White",null,null,null,null,null,null,null,null,null,null,{"$f":"L25+L43","v":0},null,null,null,{"$f":"P25+P43","v":0}]
[]
[null,null,null,null,null,"Asian & White",null,null,null,null,null,{"$f":"L27+L45","v":0},null,null,null,{"$f":"P27+P45","v":0}]
[null,null,null,null,null,"Black / African American & White",null,null,null,null,null,{"$f":"L28+L46","v":0},null,null,null,{"$f":"P28+P46","v":0}]
["American Indian / Alaskan Native & Black / African American",null,null,null,null,null,null,null,null,null,null,{"$f":"L29+L47","v":0},null,null,null,{"$f":"P29+P47","v":0}]
[]
[null,null,null,null,null,"Other Multi-Racial",null,null,null,null,null,{"$f":"L31+L49","v":0},null,null,null,{"$f":"P31+P49","v":0}]
[null,null,null,null,null,null,null,null,null,null,"Total:",{"$f":"SUM(L56:O68)","v":0},null,null,null,{"$f":"SUM(P56:Q68)","v":0}]
[]
[]
[null,null,null,null,"Income Information",null,null,null,null,null,null,"Owner",null,null,null,"Renter",null,"Total"]
[null,null,null,null,"Extremely Low (0-30% AMI)",null,null,null,null,null,null,null,null,null,null,null,null,{"$f":"L73+P73","v":0}]
[null,null,null,null,"Low (31-50% AMI)",null,null,null,null,null,null,null,null,null,null,null,null,{"$f":"L74+P74","v":0}]
[null,null,null,null,"Moderate (51-80% AMI)",null,null,null,null,null,null,null,null,null,null,null,null,{"$f":"L75+P75","v":0}]
[null,null,null,null,"Non-Low/Moderate",null,null,null,null,null,null,null,null,null,null,null,null,{"$f":"L76+P76","v":0}]
[null,null,null,null,null,null,null,null,null,null,"Total:",{"$f":"SUM(L73:O76)","v":0},null,null,null,{"$f":"SUM(P73:Q76)","v":0},null,{"$f":"SUM(R73:S76)","v":0}]
[]
[null,null,null,null,null,null,null,null,null,null,null,"Owner",null,null,null,"Renter",null,"Total"]
[null,null,null,null,"Female-Headed Households",null,null,null,null,null,null,null,null,null,null,null,null,{"$f":"L80+P80","v":0}]
[]
["Applicable Lead Paint Requirement:",null,null,null,null,null,null,null,null,null,null,null,null,null,null,null,null,null,null,null,null,null,null,"# Units"]
[null,null,null,null,null,null,null,null,null,null,null,null,null,null,null,null,null,"Housing constructed before 1978:"]
[]
[null,null,null,null,null,null,null,null,null,null,null,null,"Exempt: Housing constructed 1978 or later:"]
[]
[null,null,null,null,null,null,null,null,null,null,null,null,null,null,null,"Exempt: Hard costs <= $5,000:"]
[]
[null,null,null,null,null,null,null,null,null,null,null,null,null,null,null,null,null,null,"Otherwise exempt:"]
[]
["Lead Hazard Remediation Actions: (For acquisition only)",null,null,null,null,null,null,null,null,null,null,null,null,null,null,null,null,null,null,null,null,null,null,"# Units"]
[null,null,null,null,null,null,null,null,null,"Visual Assessment/Paint Stabilization (24 CFR 35.1015):"]
[]
[null,null,null,null,null,null,null,null,null,null,null,"Other Actions required by State/Local Codes:"]
[]
["Lead Hazard Remediation Actions: (For acquisition and rehabilitation)",null,null,null,null,null,null,null,null,null,null,null,null,null,null,null,null,null,null,null,null,null,null,"# Units"]
[null,null,null,null,null,null,null,null,null,null,null,null,null,"Lead Safe Work Practices (24 CFR 35.930(b))  (Hard Costs <= $5,000):"]
[null,null,null,null,null,null,null,null,null,null,null,"Interim Controls or Standard Practices (24 CFR 35.930(c))  (Hard Costs $5,000 - $25,000):"]
[]
[]
[null,null,null,null,null,null,null,null,null,"Abatement (24 CFR 35.930(d))  (Hard Costs >$25,000):"]
[]
[null,null,null,null,null,null,null,null,null,null,null,null,"Total for Lead Hazard Remdiation Actions:"]
["Accomplishment Information"]
["If the activity is intended to help the homeless:"]
[]
["Of the Total Persons, Number of:"]
[null,null,null,null,null,null,null,null,null,null,null,null,"Homeless Persons Given Overnight Shelter:"]
[]
[null,null,null,null,null,null,null,null,"Beds Created in Overnight Shelter or Other Emergency Housing:"]
[]
[null,null,null,null,null,null,null,null,null,null,null,null,null,null,null,null,null,null,null,null,"Total:",null,null,{"$f":"X108+X110","v":0}]
[]
["If the activity is intended to prevent homelessness:"]
[]
["Of the Total Persons, Number of:"]
[null,null,null,null,"Individuals receiving emergency financial assistance to prevent homelessness:"]
[]
[null,null,null,null,null,"Individuals receiving emergency legal assistance to prevent homelessness:"]
[]
[null,null,null,null,null,null,null,null,null,null,null,null,null,null,null,null,null,null,null,null,"Total:",null,null,{"$f":"X117+X119","v":0}]

{"sheet":"LMH 3","index":19,"n_rows":115,"n_cols":33,"rows_kept":115,"cut":false,"hidden":true,"merged":[[23,0,24,10],[23,11,24,14],[23,15,24,16],[16,10,16,15],[17,15,18,16],[18,11,18,14],[19,11,19,14],[19,15,19,16],[20,11,20,14],[20,15,20,16],[2,4,6,10],[2,11,2,14],[2,16,6,22],[2,23,2,26],[4,11,6,14],[4,23,6,26],[21,11,21,14],[21,15,21,16],[22,11,22,14],[22,15,22,16],[29,11,30,14],[29,15,30,16],[31,11,31,14],[31,15,31,16],[32,11,32,14],[32,15,32,16],[25,0,26,10],[25,11,26,14],[25,15,26,16],[27,11,27,14],[27,15,27,16],[28,11,28,14],[28,15,28,16],[29,0,30,10],[39,11,39,14],[39,15,39,16],[40,11,40,14],[40,15,40,16],[41,0,42,10],[41,11,42,14],[41,15,42,16],[34,10,34,15],[35,15,36,16],[36,11,36,14],[37,11,37,14],[37,15,37,16],[38,11,38,14],[38,15,38,16],[47,0,48,10],[47,11,48,14],[47,15,48,16],[49,11,49,14],[49,15,49,16],[50,11,50,14],[50,15,50,16],[43,0,44,10],[43,11,44,14],[43,15,44,16],[45,11,45,14],[45,15,45,16],[46,11,46,14],[46,15,46,16],[57,11,57,14],[57,15,57,16],[58,11,58,14],[58,15,58,16],[59,11,59,14],[59,15,59,16],[52,0,52,26],[53,10,53,15],[54,15,55,16],[55,11,55,14],[56,11,56,14],[56,15,56,16],[64,11,64,14],[64,15,64,16],[65,11,65,14],[65,15,65,16],[66,0,67,10],[66,11,67,14],[66,15,67,16],[60,0,61,10],[60,11,61,14],[60,15,61,16],[62,0,63,10],[62,11,63,14],[62,15,63,16],[72,17,72,18],[73,11,73,14],[73,15,73,16],[73,17,73,18],[74,11,74,14],[74,15,74,16],[74,17,74,18],[68,11,68,14],[68,15,68,16],[69,11,69,14],[69,15,69,16],[72,11,72,14],[72,15,72,16],[77,11,77,14],[77,15,77,16],[77,17,77,18],[75,11,75,14],[75,15,75,16],[75,17,75,18],[76,11,76,14],[76,15,76,16],[76,17,76,18],[80,11,80,14],[80,15,80,16],[80,17,80,18],[82,23,82,26],[83,23,83,26],[85,23,85,26],[79,11,79,14],[79,15,79,16],[79,17,79,18],[97,0,97,26],[110,23,110,26],[112,23,112,26],[114,23,114,26],[93,11,94,22],[87,23,87,26],[89,23,89,26],[91,23,91,26],[92,23,92,26],[94,23,94,26],[96,23,96,26],[101,23,101,26],[103,23,103,26],[105,23,105,26]]}
["Performance Measurement Type(s):"]
[]
[null,null,null,null,{"$f":"IFERROR(INDEX(Backend!$A$120:$D$1048576,MATCH(1,('Activity Information'!$H$41=Backend!$A$120:$A$1048576)*('Activity Information'!$AD$39=Backend!$B$120:$B$1048576),0),MATCH(\"Accomplishment Type1\",Backend!$A$120:$D$120,0)),\"INCORRECT CRITERIA\")","v":"INCORRECT CRITERIA"},null,null,null,null,null,null,null,null,null,null,null,{"$f":"IFERROR(IF((INDEX(Backend!$A$120:$D$1048576,MATCH(1,('Activity Information'!$H$41=Backend!$A$120:$A$1048576)*('Activity Information'!$AD$39=Backend!$B$120:$B$1048576),0),MATCH(\"Accomplishment Type2\",Backend!$A$120:$D$120,0)))=\"\",\"\",INDEX(Backend!$A$120:$D$1048576,MATCH(1,('Activity Information'!$H$41=Backend!$A$120:$A$1048576)*('Activity Information'!$AD$39=Backend!$B$120:$B$1048576),0),MATCH(\"Accomplishment Type2\",Backend!$A$120:$D$120,0))),\"\")","v":""}]
[]
[]
[]
[]
[]
[]
[]
[]
[]
[]
[]
[]
[]
[null,null,null,null,null,null,null,null,null,null,"Households\n(Owners)"]
[null,null,null,null,null,null,null,null,null,null,null,null,null,null,null,"Hispanic\n/Latino"]
[null,null,null,null,null,"Race/Ethnicity",null,null,null,null,null,"Race"]
[null,null,null,null,null,"White"]
[null,null,null,null,null,"Black / African American"]
[null,null,null,null,null,"Asian"]
[null,null,null,null,null,"American Indian / Alaskan Native"]
["Native Hawaiian / Other Pacific Islander"]
[]
["American Indian / Alaskan Native & White"]
[]
[null,null,null,null,null,"Asian & White"]
[null,null,null,null,null,"Black / African American & White"]
["American Indian / Alaskan Native & Black / African American"]
[]
[null,null,null,null,null,"Other Multi-Racial"]
[null,null,null,null,null,null,null,null,null,null,"Total:",{"$f":"SUM(L20:O32)","v":0},null,null,null,{"$f":"SUM(P20:Q32)","v":0}]
[]
[null,null,null,null,null,null,null,null,null,null,"Households\n(Renters)"]
[null,null,null,null,null,null,null,null,null,null,null,null,null,null,null,"Hispanic\n/Latino"]
[null,null,null,null,null,"Race/Ethnicity",null,null,null,null,null,"Race"]
[null,null,null,null,null,"White"]
[null,null,null,null,null,"Black / African American"]
[null,null,null,null,null,"Asian"]
[null,null,null,null,null,"American Indian / Alaskan Native"]
["Native Hawaiian / Other Pacific Islander"]
[]
["American Indian / Alaskan Native & White"]
[]
[null,null,null,null,null,"Asian & White"]
[null,null,null,null,null,"Black / African American & White"]
["American Indian / Alaskan Native & Black / African American"]
[]
[null,null,null,null,null,"Other Multi-Racial"]
[null,null,null,null,null,null,null,null,null,null,"Total:",{"$f":"SUM(L38:O50)","v":0},null,null,null,{"$f":"SUM(P38:Q50)","v":0}]
[]
["Accomplishment Information"]
[null,null,null,null,null,null,null,null,null,null,"Households\n(Total)"]
[null,null,null,null,null,null,null,null,null,null,null,null,null,null,null,"Hispanic\n/Latino",null,null,null,null,null,null,null,null,null,null,null,null,null,null,null,null," "]
[null,null,null,null,null,"Race/Ethnicity",null,null,null,null,null,"Race"]
[null,null,null,null,null,"White",null,null,null,null,null,{"$f":"L20+L38","v":0},null,null,null,{"$f":"P20+P38","v":0}]
[null,null,null,null,null,"Black / African American",null,null,null,null,null,{"$f":"L21+L39","v":0},null,null,null,{"$f":"P21+P39","v":0}]
[null,null,null,null,null,"Asian",null,null,null,null,null,{"$f":"L22+L40","v":0},null,null,null,{"$f":"P22+P40","v":0}]
[null,null,null,null,null,"American Indian / Alaskan Native",null,null,null,null,null,{"$f":"L23+L41","v":0},null,null,null,{"$f":"P23+P41","v":0}]
["Native Hawaiian / Other Pacific Islander",null,null,null,null,null,null,null,null,null,null,{"$f":"L24+L42","v":0},null,null,null,{"$f":"P24+P42","v":0}]
[]
["American Indian / Alaskan Native & White",null,null,null,null,null,null,null,null,null,null,{"$f":"L26+L44","v":0},null,null,null,{"$f":"P26+P44","v":0}]
[]
[null,null,null,null,null,"Asian & White",null,null,null,null,null,{"$f":"L28+L46","v":0},null,null,null,{"$f":"P28+P46","v":0}]
[null,null,null,null,null,"Black / African American & White",null,null,null,null,null,{"$f":"L29+L47","v":0},null,null,null,{"$f":"P29+P47","v":0}]
["American Indian / Alaskan Native & Black / African American",null,null,null,null,null,null,null,null,null,null,{"$f":"L30+L48","v":0},null,null,null,{"$f":"P30+P48","v":0}]
[]
[null,null,null,null,null,"Other Multi-Racial",null,null,null,null,null,{"$f":"L32+L50","v":0},null,null,null,{"$f":"P32+P50","v":0}]
[null,null,null,null,null,null,null,null,null,null,"Total:",{"$f":"SUM(L57:O69)","v":0},null,null,null,{"$f":"SUM(P57:Q69)","v":0}]
[]
[]
[null,null,null,null,"Income Information",null,null,null,null,null,null,"Owner",null,null,null,"Renter",null,"Total"]
[null,null,null,null,"Extremely Low (0-30% AMI)",null,null,null,null,null,null,null,null,null,null,null,null,{"$f":"L74+P74","v":0}]
[null,null,null,null,"Low (31-50% AMI)",null,null,null,null,null,null,null,null,null,null,null,null,0]
[null,null,null,null,"Moderate (51-80% AMI)",null,null,null,null,null,null,null,null,null,null,null,null,0]
[null,null,null,null,"Non-Low/Moderate",null,null,null,null,null,null,null,null,null,null,null,null,{"$f":"L77+P77","v":0}]
[null,null,null,null,null,null,null,null,null,null,"Total:",{"$f":"SUM(L74:O77)","v":0},null,null,null,{"$f":"SUM(P74:Q77)","v":0},null,{"$f":"SUM(R74:S77)","v":0}]
[]
[null,null,null,null,null,null,null,null,null,null,null,"Owner",null,null,null,"Renter",null,"Total"]
[null,null,null,null,"Female-Headed Households",null,null,null,null,null,null,null,null,null,null,null,null,{"$f":"L81+P81","v":0}]
[]
["Applicable Lead Paint Requirement:",null,null,null,null,null,null,null,null,null,null,null,null,null,null,null,null,null,null,null,null,null,null,"# Units"]
[null,null,null,null,null,null,null,null,null,null,null,null,null,null,null,null,null,"Housing constructed before 1978:"]
[]
[null,null,null,null,null,null,null,null,null,null,null,null,"Exempt: Housing constructed 1978 or later:"]
[]
[null,null,null,null,null,null,null,null,null,null,null,null,null,null,null,"Exempt: Hard costs <= $5,000:"]
[]
[null,null,null,null,null,null,null,null,null,null,null,null,null,null,null,null,null,null,"Otherwise exempt:"]
[]
["Lead Hazard Remediation Actions: (For rehabilitation only)",null,null,null,null,null,null,null,null,null,null,null,null,null,null,null,null,null,null,null,null,null,null,"# Units"]
[null,null,null,null,null,null,null,null,null,null,null,null,null,"Lead Safe Work Practices (24 CFR 35.930(b))  (Hard Costs <= $5,000):"]
[null,null,null,null,null,null,null,null,null,null,null,"Interim Controls or Standard Practices (24 CFR 35.930(c))  (Hard Costs $5,000 - $25,000):"]
[]
[]
[null,null,null,null,null,null,null,null,null,"Abatement (24 CFR 35.930(d))  (Hard Costs >$25,000):"]
["Accomplishment Information"]
["If the activity is intended to help the homeless:"]
[]
["Of the Total Persons, Number of:"]
[null,null,null,null,null,null,null,null,null,null,null,null,"Homeless Persons Given Overnight Shelter:"]
[]
[null,null,null,null,null,null,null,null,"Beds Created in Overnight Shelter or Other Emergency Housing:"]
[]
[null,null,null,null,null,null,null,null,null,null,null,null,null,null,null,null,null,null,null,null,"Total:",null,null,{"$f":"X102+X104","v":0}]
[]
["If the activity is intended to prevent homelessness:"]
[]
["Of the Total Persons, Number of:"]
[null,null,null,null,"Individuals receiving emergency financial assistance to prevent homelessness:"]
[]
[null,null,null,null,null,"Individuals receiving emergency legal assistance to prevent homelessness:"]
[]
[null,null,null,null,null,null,null,null,null,null,null,null,null,null,null,null,null,null,null,null,"Total:",null,null,{"$f":"X111+X113","v":0}]

{"sheet":"LMH 4","index":20,"n_rows":158,"n_cols":33,"rows_kept":158,"cut":false,"hidden":true,"merged":[[22,0,23,10],[22,11,23,14],[22,15,23,16],[15,10,15,15],[16,15,17,16],[17,11,17,14],[18,11,18,14],[18,15,18,16],[19,11,19,14],[19,15,19,16],[2,4,6,10],[2,11,2,14],[2,16,6,22],[2,23,2,26],[4,11,6,14],[4,23,6,26],[20,11,20,14],[20,15,20,16],[21,11,21,14],[21,15,21,16],[28,11,29,14],[28,15,29,16],[30,11,30,14],[30,15,30,16],[31,11,31,14],[31,15,31,16],[24,0,25,10],[24,11,25,14],[24,15,25,16],[26,11,26,14],[26,15,26,16],[27,11,27,14],[27,15,27,16],[28,0,29,10],[38,11,38,14],[38,15,38,16],[39,11,39,14],[39,15,39,16],[40,0,41,10],[40,11,41,14],[40,15,41,16],[33,10,33,15],[34,15,35,16],[35,11,35,14],[36,11,36,14],[36,15,36,16],[37,11,37,14],[37,15,37,16],[46,0,47,10],[46,11,47,14],[46,15,47,16],[48,11,48,14],[48,15,48,16],[49,11,49,14],[49,15,49,16],[42,0,43,10],[42,11,43,14],[42,15,43,16],[44,11,44,14],[44,15,44,16],[45,11,45,14],[45,15,45,16],[56,11,56,14],[56,15,56,16],[57,11,57,14],[57,15,57,16],[58,11,58,14],[58,15,58,16],[51,0,51,26],[52,10,52,15],[53,15,54,16],[54,11,54,14],[55,11,55,14],[55,15,55,16],[65,0,66,10],[65,11,66,14],[65,15,66,16],[59,0,60,10],[59,11,60,14],[59,15,60,16],[61,0,62,10],[61,11,62,14],[61,15,62,16],[67,11,67,14],[67,15,67,16],[68,11,68,14],[68,15,68,16],[71,11,71,14],[71,15,71,16],[63,11,63,14],[63,15,63,16],[64,11,64,14],[64,15,64,16],[74,11,74,14],[74,15,74,16],[74,17,74,18],[75,11,75,14],[75,15,75,16],[75,17,75,18],[71,17,71,18],[72,11,72,14],[72,15,72,16],[72,17,72,18],[73,11,73,14],[73,15,73,16],[73,17,73,18],[76,11,76,14],[76,15,76,16],[76,17,76,18],[114,10,115,22],[116,9,117,22],[118,9,119,22],[79,11,79,14],[79,15,79,16],[79,17,79,18],[81,11,81,14],[94,11,94,14],[153,23,153,26],[155,23,155,26],[157,23,157,26],[139,23,139,26],[78,11,78,14],[78,15,78,16],[78,17,78,18],[107,23,107,26],[111,23,111,26],[113,23,113,26],[120,5,121,22],[109,0,109,26],[84,23,84,26],[86,23,86,26],[88,23,88,26],[90,23,90,26],[92,23,92,26],[144,23,144,26],[146,23,146,26],[148,23,148,26],[97,23,97,26],[99,23,99,26],[130,23,130,26],[132,23,132,26],[101,23,101,26],[103,23,103,26],[105,23,105,26],[135,23,135,26],[136,11,137,22],[137,23,137,26],[122,8,123,22],[114,23,115,26],[116,23,117,26],[118,23,119,26],[120,23,121,26],[122,23,123,26],[126,23,126,26],[128,23,128,26]]}
["Performance Measurement Type(s):"]
[]
[null,null,null,null,{"$f":"IFERROR(INDEX(Backend!$A$120:$D$1048576,MATCH(1,('Activity Information'!$H$41=Backend!$A$120:$A$1048576)*('Activity Information'!$AD$39=Backend!$B$120:$B$1048576),0),MATCH(\"Accomplishment Type1\",Backend!$A$120:$D$120,0)),\"INCORRECT CRITERIA\")","v":"INCORRECT CRITERIA"},null,null,null,null,null,null,null,null,null,null,null,{"$f":"IFERROR(IF((INDEX(Backend!$A$120:$D$1048576,MATCH(1,('Activity Information'!$H$41=Backend!$A$120:$A$1048576)*('Activity Information'!$AD$39=Backend!$B$120:$B$1048576),0),MATCH(\"Accomplishment Type2\",Backend!$A$120:$D$120,0)))=\"\",\"\",INDEX(Backend!$A$120:$D$1048576,MATCH(1,('Activity Information'!$H$41=Backend!$A$120:$A$1048576)*('Activity Information'!$AD$39=Backend!$B$120:$B$1048576),0),MATCH(\"Accomplishment Type2\",Backend!$A$120:$D$120,0))),\"\")","v":""}]
[]
[]
[]
[]
[]
[]
[]
[]
[]
[]
[]
[]
[null,null,null,null,null,null,null,null,null,null,"Households\n(Owners)"]
[null,null,null,null,null,null,null,null,null,null,null,null,null,null,null,"Hispanic\n/Latino"]
[null,null,null,null,null,"Race/Ethnicity",null,null,null,null,null,"Race"]
[null,null,null,null,null,"White"]
[null,null,null,null,null,"Black / African American"]
[null,null,null,null,null,"Asian"]
[null,null,null,null,null,"American Indian / Alaskan Native"]
["Native Hawaiian / Other Pacific Islander"]
[]
["American Indian / Alaskan Native & White"]
[]
[null,null,null,null,null,"Asian & White"]
[null,null,null,null,null,"Black / African American & White"]
["American Indian / Alaskan Native & Black / African American"]
[]
[null,null,null,null,null,"Other Multi-Racial"]
[null,null,null,null,null,null,null,null,null,null,"Total:",{"$f":"SUM(L19:O31)","v":0},null,null,null,{"$f":"SUM(P19:Q31)","v":0}]
[]
[null,null,null,null,null,null,null,null,null,null,"Households\n(Renters)"]
[null,null,null,null,null,null,null,null,null,null,null,null,null,null,null,"Hispanic\n/Latino"]
[null,null,null,null,null,"Race/Ethnicity",null,null,null,null,null,"Race"]
[null,null,null,null,null,"White"]
[null,null,null,null,null,"Black / African American"]
[null,null,null,null,null,"Asian"]
[null,null,null,null,null,"American Indian / Alaskan Native"]
["Native Hawaiian / Other Pacific Islander"]
[]
["American Indian / Alaskan Native & White"]
[]
[null,null,null,null,null,"Asian & White"]
[null,null,null,null,null,"Black / African American & White"]
["American Indian / Alaskan Native & Black / African American"]
[]
[null,null,null,null,null,"Other Multi-Racial"]
[null,null,null,null,null,null,null,null,null,null,"Total:",{"$f":"SUM(L37:O49)","v":0},null,null,null,{"$f":"SUM(P37:Q49)","v":0}]
[]
["Accomplishment Information"]
[null,null,null,null,null,null,null,null,null,null,"Households\n(Total)"]
[null,null,null,null,null,null,null,null,null,null,null,null,null,null,null,"Hispanic\n/Latino",null,null,null,null,null,null,null,null,null,null,null,null,null,null,null,null," "]
[null,null,null,null,null,"Race/Ethnicity",null,null,null,null,null,"Race"]
[null,null,null,null,null,"White",null,null,null,null,null,{"$f":"L19+L37","v":0},null,null,null,{"$f":"P19+P37","v":0}]
[null,null,null,null,null,"Black / African American",null,null,null,null,null,{"$f":"L20+L38","v":0},null,null,null,{"$f":"P20+P38","v":0}]
[null,null,null,null,null,"Asian",null,null,null,null,null,{"$f":"L21+L39","v":0},null,null,null,{"$f":"P21+P39","v":0}]
[null,null,null,null,null,"American Indian / Alaskan Native",null,null,null,null,null,{"$f":"L22+L40","v":0},null,null,null,{"$f":"P22+P40","v":0}]
["Native Hawaiian / Other Pacific Islander",null,null,null,null,null,null,null,null,null,null,{"$f":"L23+L41","v":0},null,null,null,{"$f":"P23+P41","v":0}]
[]
["American Indian / Alaskan Native & White",null,null,null,null,null,null,null,null,null,null,{"$f":"L25+L43","v":0},null,null,null,{"$f":"P25+P43","v":0}]
[]
[null,null,null,null,null,"Asian & White",null,null,null,null,null,{"$f":"L27+L45","v":0},null,null,null,{"$f":"P27+P45","v":0}]
[null,null,null,null,null,"Black / African American & White",null,null,null,null,null,{"$f":"L28+L46","v":0},null,null,null,{"$f":"P28+P46","v":0}]
["American Indian / Alaskan Native & Black / African American",null,null,null,null,null,null,null,null,null,null,{"$f":"L29+L47","v":0},null,null,null,{"$f":"P29+P47","v":0}]
[]
[null,null,null,null,null,"Other Multi-Racial",null,null,null,null,null,{"$f":"L31+L49","v":0},null,null,null,{"$f":"P31+P49","v":0}]
[null,null,null,null,null,null,null,null,null,null,"Total:",{"$f":"SUM(L56:O68)","v":0},null,null,null,{"$f":"SUM(P56:Q68)","v":0}]
[]
[]
[null,null,null,null,"Income Information",null,null,null,null,null,null,"Owner",null,null,null,"Renter",null,"Total"]
[null,null,null,null,"Extremely Low (0-30% AMI)",null,null,null,null,null,null,null,null,null,null,null,null,{"$f":"L73+P73","v":0}]
[null,null,null,null,"Low (31-50% AMI)",null,null,null,null,null,null,null,null,null,null,null,null,0]
[null,null,null,null,"Moderate (51-80% AMI)",null,null,null,null,null,null,null,null,null,null,null,null,0]
[null,null,null,null,"Non-Low/Moderate",null,null,null,null,null,null,null,null,null,null,null,null,{"$f":"L76+P76","v":0}]
[null,null,null,null,null,null,null,null,null,null,"Total:",{"$f":"SUM(L73:O76)","v":0},null,null,null,{"$f":"SUM(P73:Q76)","v":0},null,{"$f":"SUM(R73:S76)","v":0}]
[]
[null,null,null,null,null,null,null,null,null,null,null,"Owner",null,null,null,"Renter",null,"Total"]
[null,null,null,null,"Female-Headed Households",null,null,null,null,null,null,null,null,null,null,null,null,{"$f":"L80+P80","v":0}]
[]
[null,null,null,null,null,null,null,"Total Owner Units:"]
[]
["Of the Total Owner Units, Number of:",null,null,null,null,null,null,null,null,null,null,null,null,null,null,null,null,null,null,null,null,null,"Number of Units:"]
[null,null,null,null,null,null,null,null,null,null,null,null,null,null,null,null,"Units Occupied by Elderly:"]
[]
[null,null,null,null,null,null,null,null,null,null,null,null,null,null,"Units Moved from Substandard to Standard (HQS or Local Code):"]
[]
[null,null,null,null,null,null,null,null,null,null,null,null,null,null,null,null,"Section 504 Accessible Units:"]
[]
[null,null,null,null,null,null,null,null,null,null,null,null,null,null,null,null,null,"Units Qualified as Energy Star:"]
[]
[null,null,null,null,null,null,null,null,null,null,null,null,null,null,"Brought into Compliance with Lead Safety Rules (24 CFR Part 35):"]
[]
[null,null,null,null,null,null,null,"Total Rental Units:"]
[]
["Of the Total Rental Units, Number of:",null,null,null,null,null,null,null,null,null,null,null,null,null,null,null,null,null,null,null,null,null,"Number of Units:"]
[null,null,null,null,null,null,null,null,null,null,null,null,null,null,null,null,null,"Affordable Units:"]
[]
[null,null,null,null,null,null,null,null,null,null,null,null,null,null,null,null,null,"Section 504 Accessible Units:"]
[]
[null,null,null,"Brought from Substandard to Standard Condition (HQS or Local Code):"]
[]
[null,null,null,null,null,null,null,null,null,null,null,null,null,null,null,null,null,"Units Qualified as Energy Star:"]
[]
[null,null,null,null,null,null,null,null,null,null,null,null,null,null,"Brought into Compliance with Lead Safety Rules (24 CFR Part 35):"]
[]
[null,null,"Units Created Through Conversion of Non-Residential to Residential Buildings:"]
[]
["Accomplishment Information"]
["Of the Total Affordable Units, Number of:",null,null,null,null,null,null,null,null,null,null,null,null,null,null,null,null,null,null,null,null,null,"Number of Units:"]
[null,null,null,null,null,null,null,null,null,null,null,null,null,null,null,null,"Units Occupied by Elderly:"]
[]
[null,null,null,null,null,null,null,null,null,null,null,null,null,"Years of Affordability Guaranteed:"]
[null,null,null,null,null,null,null,null,null,null,"Units Subsidized with Project-Based Rental Assistance by Another Federal, State, or Local Program:"]
[]
[null,null,null,null,null,null,null,null,null,"Units Designated for Persons with HIV/AIDS Including Units Receiving Assistance for Operations:"]
[]
[null,null,null,null,null,null,null,null,null,"Of Units Designated for Persons with HIV/AIDS, Number Specifically for Chronically Homeless:"]
[]
[null,null,null,null,null,"Permanent Housing Units Designated for Homeless Persons and Families, Including Units Receiving Assistance for Operations:"]
[]
[null,null,null,null,null,null,null,null,"Of Permanent Housing Units Designated for Homeless, Number for the Chronically Homeless:"]
[]
[]
["Applicable Lead Paint Requirement:",null,null,null,null,null,null,null,null,null,null,null,null,null,null,null,null,null,null,null,null,null,"Number of Units:"]
[null,null,null,null,null,null,null,null,null,null,null,null,null,null,null,null,null,"Housing constructed before 1978:"]
[]
[null,null,null,null,null,null,null,null,null,null,null,null,"Exempt: Housing constructed 1978 or later:"]
[]
[null,null,null,null,null,null,null,null,null,null,null,null,null,null,null,"Exempt: Hard costs <= $5,000:"]
[]
[null,null,null,null,null,null,null,null,null,null,null,null,null,null,null,null,null,null,"Otherwise exempt:"]
[]
["Lead Hazard Remediation Actions: (For rehabilitation only)",null,null,null,null,null,null,null,null,null,null,null,null,null,null,null,null,null,null,null,null,null,"Number of Units:"]
[null,null,null,null,null,null,null,null,null,null,null,null,null,"Lead Safe Work Practices (24 CFR 35.930(b))  (Hard Costs <= $5,000):"]
[null,null,null,null,null,null,null,null,null,null,null,"Interim Controls or Standard Practices (24 CFR 35.930(c))  (Hard Costs $5,000 - $25,000):"]
[]
[]
[null,null,null,null,null,null,null,null,null,"Abatement (24 CFR 35.930(d))  (Hard Costs >$25,000):"]
[]
["If the activity is intended to help the homeless:"]
[]
["Of the Total Persons, Number of:"]
[null,null,null,null,null,null,null,null,null,null,null,null,"Homeless Persons Given Overnight Shelter:"]
[]
[null,null,null,null,null,null,null,null,"Beds Created in Overnight Shelter or Other Emergency Housing:"]
[]
[null,null,null,null,null,null,null,null,null,null,null,null,null,null,null,null,null,null,null,null,"Total:",null,null,{"$f":"X145+X147","v":0}]
[]
["If the activity is intended to prevent homelessness:"]
[]
["Of the Total Persons, Number of:"]
[null,null,null,null,"Individuals receiving emergency financial assistance to prevent homelessness:"]
[]
[null,null,null,null,null,"Individuals receiving emergency legal assistance to prevent homelessness:"]
[]
[null,null,null,null,null,null,null,null,null,null,null,null,null,null,null,null,null,null,null,null,"Total:",null,null,{"$f":"X154+X156","v":0}]

{"sheet":"LMH 5","index":21,"n_rows":199,"n_cols":33,"rows_kept":199,"cut":false,"hidden":true,"merged":[[23,0,24,10],[23,11,24,14],[23,15,24,16],[16,10,16,15],[17,15,18,16],[18,11,18,14],[19,11,19,14],[19,15,19,16],[20,11,20,14],[20,15,20,16],[2,4,6,10],[2,11,2,14],[2,16,6,22],[2,23,2,26],[4,11,6,14],[4,23,6,26],[21,11,21,14],[21,15,21,16],[22,11,22,14],[22,15,22,16],[29,0,30,10],[29,11,30,14],[29,15,30,16],[31,11,31,14],[31,15,31,16],[32,11,32,14],[32,15,32,16],[25,0,26,10],[25,11,26,14],[25,15,26,16],[27,11,27,14],[27,15,27,16],[28,11,28,14],[28,15,28,16],[39,11,39,14],[39,15,39,16],[40,11,40,14],[40,15,40,16],[41,0,42,10],[41,11,42,14],[41,15,42,16],[34,10,34,15],[35,15,36,16],[36,11,36,14],[37,11,37,14],[37,15,37,16],[38,11,38,14],[38,15,38,16],[47,0,48,10],[47,11,48,14],[47,15,48,16],[49,11,49,14],[49,15,49,16],[50,11,50,14],[50,15,50,16],[43,0,44,10],[43,11,44,14],[43,15,44,16],[45,11,45,14],[45,15,45,16],[46,11,46,14],[46,15,46,16],[57,11,57,14],[57,15,57,16],[58,11,58,14],[58,15,58,16],[59,11,59,14],[59,15,59,16],[52,0,52,26],[53,10,53,15],[54,15,55,16],[55,11,55,14],[56,11,56,14],[56,15,56,16],[64,11,64,14],[64,15,64,16],[65,11,65,14],[65,15,65,16],[66,0,67,10],[66,11,67,14],[66,15,67,16],[60,0,61,10],[60,11,61,14],[60,15,61,16],[62,0,63,10],[62,11,63,14],[62,15,63,16],[72,17,72,18],[73,11,73,14],[73,15,73,16],[73,17,73,18],[74,11,74,14],[74,15,74,16],[74,17,74,18],[68,11,68,14],[68,15,68,16],[69,11,69,14],[69,15,69,16],[72,11,72,14],[72,15,72,16],[77,11,77,14],[77,15,77,16],[77,17,77,18],[75,11,75,14],[75,15,75,16],[75,17,75,18],[76,11,76,14],[76,15,76,16],[76,17,76,18],[80,11,80,14],[80,15,80,16],[80,17,80,18],[82,11,82,14],[85,23,85,26],[87,23,87,26],[79,11,79,14],[79,15,79,16],[79,17,79,18],[106,23,106,26],[108,23,108,26],[110,23,110,26],[112,23,112,26],[116,23,116,26],[117,23,117,26],[114,0,114,26],[89,23,89,26],[91,23,91,26],[93,23,93,26],[99,11,99,14],[102,23,102,26],[104,23,104,26],[95,23,95,26],[97,23,97,26],[148,11,148,14],[150,23,150,26],[152,23,152,26],[154,23,154,26],[145,23,145,26],[118,23,119,26],[121,23,122,26],[123,23,124,26],[125,23,126,26],[128,23,129,26],[120,23,120,26],[127,23,127,26],[134,23,134,26],[136,23,136,26],[138,23,138,26],[141,23,141,26],[142,11,143,22],[143,23,143,26],[125,5,126,22],[128,8,129,22],[132,23,132,26],[118,10,119,22],[121,9,122,22],[123,9,124,22],[167,23,167,26],[170,23,170,26],[172,23,172,26],[174,23,174,26],[176,23,176,26],[156,23,156,26],[158,23,158,26],[161,11,161,14],[163,23,163,26],[165,23,165,26],[194,23,194,26],[196,23,196,26],[198,23,198,26],[178,23,178,26],[180,23,180,26],[173,10,174,22],[175,9,176,22],[177,5,178,22],[179,11,180,22],[181,0,181,26],[185,23,185,26],[187,23,187,26],[189,23,189,26]]}
["Performance Measurement Type(s):"]
[]
[null,null,null,null,{"$f":"IFERROR(INDEX(Backend!$A$120:$D$1048576,MATCH(1,('Activity Information'!$H$41=Backend!$A$120:$A$1048576)*('Activity Information'!$AD$39=Backend!$B$120:$B$1048576),0),MATCH(\"Accomplishment Type1\",Backend!$A$120:$D$120,0)),\"INCORRECT CRITERIA\")","v":"INCORRECT CRITERIA"},null,null,null,null,null,null,null,null,null,null,null,{"$f":"IFERROR(IF((INDEX(Backend!$A$120:$D$1048576,MATCH(1,('Activity Information'!$H$41=Backend!$A$120:$A$1048576)*('Activity Information'!$AD$39=Backend!$B$120:$B$1048576),0),MATCH(\"Accomplishment Type2\",Backend!$A$120:$D$120,0)))=\"\",\"\",INDEX(Backend!$A$120:$D$1048576,MATCH(1,('Activity Information'!$H$41=Backend!$A$120:$A$1048576)*('Activity Information'!$AD$39=Backend!$B$120:$B$1048576),0),MATCH(\"Accomplishment Type2\",Backend!$A$120:$D$120,0))),\"\")","v":""}]
[]
[]
[]
[]
[]
[]
[]
[]
[]
[]
[]
[]
[]
[null,null,null,null,null,null,null,null,null,null,"Households\n(Owners)"]
[null,null,null,null,null,null,null,null,null,null,null,null,null,null,null,"Hispanic\n/Latino"]
[null,null,null,null,null,"Race/Ethnicity",null,null,null,null,null,"Race"]
[null,null,null,null,null,"White"]
[null,null,null,null,null,"Black / African American"]
[null,null,null,null,null,"Asian"]
[null,null,null,null,null,"American Indian / Alaskan Native"]
["Native Hawaiian / Other Pacific Islander"]
[]
["American Indian / Alaskan Native & White"]
[]
[null,null,null,null,null,"Asian & White"]
[null,null,null,null,null,"Black / African American & White"]
["American Indian / Alaskan Native & Black / African American"]
[]
[null,null,null,null,null,"Other Multi-Racial"]
[null,null,null,null,null,null,null,null,null,null,"Total:",{"$f":"SUM(L20:O32)","v":0},null,null,null,{"$f":"SUM(P20:Q32)","v":0}]
[]
[null,null,null,null,null,null,null,null,null,null,"Households\n(Renters)"]
[null,null,null,null,null,null,null,null,null,null,null,null,null,null,null,"Hispanic\n/Latino"]
[null,null,null,null,null,"Race/Ethnicity",null,null,null,null,null,"Race"]
[null,null,null,null,null,"White"]
[null,null,null,null,null,"Black / African American"]
[null,null,null,null,null,"Asian"]
[null,null,null,null,null,"American Indian / Alaskan Native"]
["Native Hawaiian / Other Pacific Islander"]
[]
["American Indian / Alaskan Native & White"]
[]
[null,null,null,null,null,"Asian & White"]
[null,null,null,null,null,"Black / African American & White"]
["American Indian / Alaskan Native & Black / African American"]
[]
[null,null,null,null,null,"Other Multi-Racial"]
[null,null,null,null,null,null,null,null,null,null,"Total:",{"$f":"SUM(L38:O50)","v":0},null,null,null,{"$f":"SUM(P38:Q50)","v":0}]
[]
["Accomplishment Information"]
[null,null,null,null,null,null,null,null,null,null,"Households\n(Total)"]
[null,null,null,null,null,null,null,null,null,null,null,null,null,null,null,"Hispanic\n/Latino",null,null,null,null,null,null,null,null,null,null,null,null,null,null,null,null," "]
[null,null,null,null,null,"Race/Ethnicity",null,null,null,null,null,"Race"]
[null,null,null,null,null,"White",null,null,null,null,null,{"$f":"L20+L38","v":0},null,null,null,{"$f":"P20+P38","v":0}]
[null,null,null,null,null,"Black / African American",null,null,null,null,null,{"$f":"L21+L39","v":0},null,null,null,{"$f":"P21+P39","v":0}]
[null,null,null,null,null,"Asian",null,null,null,null,null,{"$f":"L22+L40","v":0},null,null,null,{"$f":"P22+P40","v":0}]
[null,null,null,null,null,"American Indian / Alaskan Native",null,null,null,null,null,{"$f":"L23+L41","v":0},null,null,null,{"$f":"P23+P41","v":0}]
["Native Hawaiian / Other Pacific Islander",null,null,null,null,null,null,null,null,null,null,{"$f":"L24+L42","v":0},null,null,null,{"$f":"P24+P42","v":0}]
[]
["American Indian / Alaskan Native & White",null,null,null,null,null,null,null,null,null,null,{"$f":"L26+L44","v":0},null,null,null,{"$f":"P26+P44","v":0}]
[]
[null,null,null,null,null,"Asian & White",null,null,null,null,null,{"$f":"L28+L46","v":0},null,null,null,{"$f":"P28+P46","v":0}]
[null,null,null,null,null,"Black / African American & White",null,null,null,null,null,{"$f":"L29+L47","v":0},null,null,null,{"$f":"P29+P47","v":0}]
["American Indian / Alaskan Native & Black / African American",null,null,null,null,null,null,null,null,null,null,{"$f":"L30+L48","v":0},null,null,null,{"$f":"P30+P48","v":0}]
[]
[null,null,null,null,null,"Other Multi-Racial",null,null,null,null,null,{"$f":"L32+L50","v":0},null,null,null,{"$f":"P32+P50","v":0}]
[null,null,null,null,null,null,null,null,null,null,"Total:",{"$f":"SUM(L57:O69)","v":0},null,null,null,{"$f":"SUM(P57:Q69)","v":0}]
[]
[]
[null,null,null,null,"Income Information",null,null,null,null,null,null,"Owner",null,null,null,"Renter",null,"Total"]
[null,null,null,null,"Extremely Low (0-30% AMI)",null,null,null,null,null,null,null,null,null,null,null,null,{"$f":"L74+P74","v":0}]
[null,null,null,null,"Low (31-50% AMI)",null,null,null,null,null,null,null,null,null,null,null,null,0]
[null,null,null,null,"Moderate (51-80% AMI)",null,null,null,null,null,null,null,null,null,null,null,null,0]
[null,null,null,null,"Non-Low/Moderate",null,null,null,null,null,null,null,null,null,null,null,null,{"$f":"L77+P77","v":0}]
[null,null,null,null,null,null,null,null,null,null,"Total:",{"$f":"SUM(L74:O77)","v":0},null,null,null,{"$f":"SUM(P74:Q77)","v":0},null,{"$f":"SUM(R74:S77)","v":0}]
[]
[null,null,null,null,null,null,null,null,null,null,null,"Owner",null,null,null,"Renter",null,"Total"]
[null,null,null,null,"Female-Headed Households",null,null,null,null,null,null,null,null,null,null,null,null,{"$f":"L81+P81","v":0}]
[]
[null,null,null,null,null,null,null,"Total Owner Units:"]
[]
["Of the Total Owner Units, Number of:",null,null,null,null,null,null,null,null,null,null,null,null,null,null,null,null,null,null,null,null,null,"Number of Units:"]
[null,null,null,null,null,null,null,null,null,null,null,null,null,null,null,null,"Units Occupied by Elderly:"]
[]
[null,null,null,null,null,null,null,null,null,null,null,null,null,null,"Units Moved from Substandard to Standard (HQS or Local Code):"]
[]
[null,null,null,null,null,null,null,null,null,null,null,null,null,null,null,null,"Section 504 Accessible Units:"]
[]
[null,null,null,null,null,null,null,null,null,null,null,null,null,null,null,null,null,"Units Qualified as Energy Star:"]
[]
[null,null,null,null,null,null,null,null,null,null,null,null,null,null,"Brought into Compliance with Lead Safety Rules (24 CFR Part 35):"]
[]
[null,null,null,null,null,null,null,null,null,null,null,null,null,null,null,null,null,"Affordable Units:"]
[]
[null,null,null,null,null,null,null,null,null,null,null,null,null,null,null,null,"Households previously living in subsidized housing:"]
[]
[null,null,null,null,null,null,null,"Total Rental Units:"]
[]
["Of the Total Rental Units, Number of:",null,null,null,null,null,null,null,null,null,null,null,null,null,null,null,null,null,null,null,null,null,"Number of Units:"]
[null,null,null,null,null,null,null,null,null,null,null,null,null,null,null,null,null,"Affordable Units:"]
[]
[null,null,null,null,null,null,null,null,null,null,null,null,null,null,null,null,null,"Section 504 Accessible Units:"]
[]
[null,null,null,"Brought from Substandard to Standard Condition (HQS or Local Code):"]
[]
[null,null,null,null,null,null,null,null,null,null,null,null,null,null,null,null,null,"Units Qualified as Energy Star:"]
[]
[null,null,null,null,null,null,null,null,null,null,null,null,null,null,"Brought into Compliance with Lead Safety Rules (24 CFR Part 35):"]
[]
[null,null,"Units Created Through Conversion of Non-Residential to Residential Buildings:"]
[]
["Accomplishment Information"]
["Of the Total Affordable Units, Number of:",null,null,null,null,null,null,null,null,null,null,null,null,null,null,null,null,null,null,null,null,null,"Number of Units:"]
[null,null,null,null,null,null,null,null,null,null,null,null,null,null,null,null,"Units Occupied by Elderly:"]
[null,null,null,null,null,null,null,null,null,null,null,null,null,"Years of Affordability Guaranteed:"]
[null,null,null,null,null,null,null,null,null,null,"Units Subsidized with Project-Based Rental Assistance by Another Federal, State, or Local Program:"]
[]
[null,null,null,null,null,null,null,null,null,"Units Specifically Designated for Persons with HIV/AIDS:"]
[null,null,null,null,null,null,null,null,null,"Units Designated for Persons with HIV/AIDS Including Units Receiving Assistance for Operations:"]
[]
[null,null,null,null,null,null,null,null,null,"Of Units Designated for Persons with HIV/AIDS, Number Specifically for Chronically Homeless:"]
[]
[null,null,null,null,null,"Permanent Housing Units Designated for Homeless Persons and Families, Including Units Receiving Assistance for Operations:"]
[]
[null,null,null,null,null,null,null,null,null,null,null,null,"Units Specifically Designated for Homeless:"]
[null,null,null,null,null,null,null,null,"Of Permanent Housing Units Designated for Homeless, Number for the Chronically Homeless:"]
[]
[]
["Applicable Lead Paint Requirement:",null,null,null,null,null,null,null,null,null,null,null,null,null,null,null,null,null,null,null,null,null,"Number of Units:"]
[null,null,null,null,null,null,null,null,null,null,null,null,null,null,null,null,null,"Housing constructed before 1978:"]
[]
[null,null,null,null,null,null,null,null,null,null,null,null,"Exempt: Housing constructed 1978 or later:"]
[]
[null,null,null,null,null,null,null,null,null,null,null,null,null,null,null,"Exempt: Hard costs <= $5,000:"]
[]
[null,null,null,null,null,null,null,null,null,null,null,null,null,null,null,null,null,null,"Otherwise exempt:"]
[]
["Lead Hazard Remediation Actions: (For rehabilitation only)",null,null,null,null,null,null,null,null,null,null,null,null,null,null,null,null,null,null,null,null,null,"Number of Units:"]
[null,null,null,null,null,null,null,null,null,null,null,null,null,"Lead Safe Work Practices (24 CFR 35.930(b))  (Hard Costs <= $5,000):"]
[null,null,null,null,null,null,null,null,null,null,null,"Interim Controls or Standard Practices (24 CFR 35.930(c))  (Hard Costs $5,000 - $25,000):"]
[]
[]
[null,null,null,null,null,null,null,null,null,"Abatement (24 CFR 35.930(d))  (Hard Costs >$25,000):"]
[]
["Homeowner Rehab:"]
[null,null,"Total Homeowner Rehab Units:"]
[null,null,null,null,null,null,null,null,null,null,null,null,null,null,null,null,null,null,null,null,null,null,"Number of Units:"]
[null,null,null,null,null,null,null,null,null,null,null,null,null,null,null,null,"Units Occupied by Elderly:"]
[]
[null,null,null,"Brought from Substandard to Standard Condition (HQS or Local Code):"]
[]
[null,null,null,null,null,null,null,null,null,null,null,null,null,null,null,null,null,"Section 504 Accessible Units:"]
[]
[null,null,null,null,null,null,null,null,null,null,null,null,null,null,null,null,null,"Units Qualified as Energy Star:"]
[]
[null,null,null,null,null,null,null,null,null,null,null,null,null,null,"Brought into Compliance with Lead Safety Rules (24 CFR Part 35):"]
[]
["Construction of Rental Units"]
[null,null,"Total Constructed Rental Units:"]
["Of the Total Rental Units, Number of:",null,null,null,null,null,null,null,null,null,null,null,null,null,null,null,null,null,null,null,null,null,"Number of Units:"]
[null,null,null,null,null,null,null,null,null,null,null,null,null,null,null,null,null,"Affordable Units:"]
[]
[null,null,null,null,null,null,null,null,null,null,null,null,null,null,null,null,null,"Section 504 Accessible Units:"]
[]
[null,null,null,null,null,null,null,null,null,null,null,null,null,null,null,null,null,"Units Qualified as Energy Star:"]
[]
["Of the Total Rental Units, Number of:",null,null,null,null,null,null,null,null,null,null,null,null,null,null,null,null,null,null,null,null,null,"Number of Units:"]
[null,null,null,null,null,null,null,null,null,null,null,null,null,null,null,null,"Units Occupied by Elderly:"]
[]
[null,null,null,null,null,null,null,null,null,null,null,null,null,"Years of Affordability Guaranteed:"]
[null,null,null,null,null,null,null,null,null,null,"Units Subsidized with Project-Based Rental Assistance by Another Federal, State, or Local Program:"]
[]
[null,null,null,null,null,null,null,null,null,"Units Designated for Persons with HIV/AIDS Including Units Receiving Assistance for Operations:"]
[]
[null,null,null,null,null,"Permanent Housing Units Designated for Homeless Persons and Families, Including Units Receiving Assistance for Operations:"]
[]
[null,null,null,null,null,null,null,null,null,null,null,"Of Permanent Housing Units Designated for Homeless, Number for Chronically Homeless:"]
[]
["Accomplishment Information"]
["If the activity is intended to help the homeless:"]
[]
["Of the Total Persons, Number of:"]
[null,null,null,null,null,null,null,null,null,null,null,null,"Homeless Persons Given Overnight Shelter:"]
[]
[null,null,null,null,null,null,null,null,"Beds Created in Overnight Shelter or Other Emergency Housing:"]
[]
[null,null,null,null,null,null,null,null,null,null,null,null,null,null,null,null,null,null,null,null,"Total:",null,null,{"$f":"X186+X188","v":0}]
[]
["If the activity is intended to prevent homelessness:"]
[]
["Of the Total Persons, Number of:"]
[null,null,null,null,"Individuals receiving emergency financial assistance to prevent homelessness:"]
[]
[null,null,null,null,null,"Individuals receiving emergency legal assistance to prevent homelessness:"]
[]
[null,null,null,null,null,null,null,null,null,null,null,null,null,null,null,null,null,null,null,null,"Total:",null,null,{"$f":"X195+X197","v":0}]

{"sheet":"LMH 6","index":22,"n_rows":147,"n_cols":33,"rows_kept":147,"cut":false,"hidden":true,"merged":[[24,0,25,10],[24,11,25,14],[24,15,25,16],[17,10,17,15],[18,15,19,16],[19,11,19,14],[20,11,20,14],[20,15,20,16],[21,11,21,14],[21,15,21,16],[2,4,6,10],[2,11,2,14],[2,16,6,22],[2,23,2,26],[4,11,6,14],[4,23,6,26],[22,11,22,14],[22,15,22,16],[23,11,23,14],[23,15,23,16],[30,11,31,14],[30,15,31,16],[32,11,32,14],[32,15,32,16],[33,11,33,14],[33,15,33,16],[26,0,27,10],[26,11,27,14],[26,15,27,16],[28,11,28,14],[28,15,28,16],[29,11,29,14],[29,15,29,16],[30,0,31,10],[40,11,40,14],[40,15,40,16],[41,11,41,14],[41,15,41,16],[42,0,43,10],[42,11,43,14],[42,15,43,16],[35,10,35,15],[36,15,37,16],[37,11,37,14],[38,11,38,14],[38,15,38,16],[39,11,39,14],[39,15,39,16],[48,0,49,10],[48,11,49,14],[48,15,49,16],[50,11,50,14],[50,15,50,16],[51,11,51,14],[51,15,51,16],[44,0,45,10],[44,11,45,14],[44,15,45,16],[46,11,46,14],[46,15,46,16],[47,11,47,14],[47,15,47,16],[58,11,58,14],[58,15,58,16],[59,11,59,14],[59,15,59,16],[60,11,60,14],[60,15,60,16],[53,0,53,26],[54,10,54,15],[55,15,56,16],[56,11,56,14],[57,11,57,14],[57,15,57,16],[65,11,65,14],[65,15,65,16],[66,11,66,14],[66,15,66,16],[67,0,68,10],[67,11,68,14],[67,15,68,16],[61,0,62,10],[61,11,62,14],[61,15,62,16],[63,0,64,10],[63,11,64,14],[63,15,64,16],[73,17,73,18],[74,11,74,14],[74,15,74,16],[74,17,74,18],[75,11,75,14],[75,15,75,16],[75,17,75,18],[69,11,69,14],[69,15,69,16],[70,11,70,14],[70,15,70,16],[73,11,73,14],[73,15,73,16],[78,11,78,14],[78,15,78,16],[78,17,78,18],[76,11,76,14],[76,15,76,16],[76,17,76,18],[77,11,77,14],[77,15,77,16],[77,17,77,18],[81,11,81,14],[81,15,81,16],[81,17,81,18],[83,11,83,14],[86,23,86,26],[88,23,88,26],[80,11,80,14],[80,15,80,16],[80,17,80,18],[97,23,97,26],[99,23,99,26],[101,23,101,26],[103,23,103,26],[105,23,105,26],[100,8,101,22],[104,12,105,22],[90,23,90,26],[92,23,92,26],[94,23,94,26],[142,23,142,26],[144,23,144,26],[146,23,146,26],[107,0,107,26],[127,11,128,22],[128,23,128,26],[121,10,122,22],[122,23,122,26],[123,9,124,22],[124,23,124,26],[125,5,126,22],[126,23,126,26],[109,11,109,14],[111,23,111,26],[113,23,113,26],[115,23,115,26],[118,23,118,26],[120,23,120,26],[133,23,133,26],[135,23,135,26],[137,23,137,26]]}
["Performance Measurement Type(s):"]
[]
[null,null,null,null,{"$f":"IFERROR(INDEX(Backend!$A$120:$D$1048576,MATCH(1,('Activity Information'!$H$41=Backend!$A$120:$A$1048576)*('Activity Information'!$AD$39=Backend!$B$120:$B$1048576),0),MATCH(\"Accomplishment Type1\",Backend!$A$120:$D$120,0)),\"INCORRECT CRITERIA\")","v":"INCORRECT CRITERIA"},null,null,null,null,null,null,null,null,null,null,null,{"$f":"IFERROR(IF((INDEX(Backend!$A$120:$D$1048576,MATCH(1,('Activity Information'!$H$41=Backend!$A$120:$A$1048576)*('Activity Information'!$AD$39=Backend!$B$120:$B$1048576),0),MATCH(\"Accomplishment Type2\",Backend!$A$120:$D$120,0)))=\"\",\"\",INDEX(Backend!$A$120:$D$1048576,MATCH(1,('Activity Information'!$H$41=Backend!$A$120:$A$1048576)*('Activity Information'!$AD$39=Backend!$B$120:$B$1048576),0),MATCH(\"Accomplishment Type2\",Backend!$A$120:$D$120,0))),\"\")","v":""}]
[]
[]
[]
[]
[]
[]
[]
[]
[]
[]
[]
[]
[]
[]
[null,null,null,null,null,null,null,null,null,null,"Households\n(Owners)"]
[null,null,null,null,null,null,null,null,null,null,null,null,null,null,null,"Hispanic\n/Latino"]
[null,null,null,null,null,"Race/Ethnicity",null,null,null,null,null,"Race"]
[null,null,null,null,null,"White"]
[null,null,null,null,null,"Black / African American"]
[null,null,null,null,null,"Asian"]
[null,null,null,null,null,"American Indian / Alaskan Native"]
["Native Hawaiian / Other Pacific Islander"]
[]
["American Indian / Alaskan Native & White"]
[]
[null,null,null,null,null,"Asian & White"]
[null,null,null,null,null,"Black / African American & White"]
["American Indian / Alaskan Native & Black / African American"]
[]
[null,null,null,null,null,"Other Multi-Racial"]
[null,null,null,null,null,null,null,null,null,null,"Total:",{"$f":"SUM(L21:O33)","v":0},null,null,null,{"$f":"SUM(P21:Q33)","v":0}]
[]
[null,null,null,null,null,null,null,null,null,null,"Households\n(Renters)"]
[null,null,null,null,null,null,null,null,null,null,null,null,null,null,null,"Hispanic\n/Latino"]
[null,null,null,null,null,"Race/Ethnicity",null,null,null,null,null,"Race"]
[null,null,null,null,null,"White"]
[null,null,null,null,null,"Black / African American"]
[null,null,null,null,null,"Asian"]
[null,null,null,null,null,"American Indian / Alaskan Native"]
["Native Hawaiian / Other Pacific Islander"]
[]
["American Indian / Alaskan Native & White"]
[]
[null,null,null,null,null,"Asian & White"]
[null,null,null,null,null,"Black / African American & White"]
["American Indian / Alaskan Native & Black / African American"]
[]
[null,null,null,null,null,"Other Multi-Racial"]
[null,null,null,null,null,null,null,null,null,null,"Total:",{"$f":"SUM(L39:O51)","v":0},null,null,null,{"$f":"SUM(P39:Q51)","v":0}]
[]
["Accomplishment Information"]
[null,null,null,null,null,null,null,null,null,null,"Households\n(Total)"]
[null,null,null,null,null,null,null,null,null,null,null,null,null,null,null,"Hispanic\n/Latino",null,null,null,null,null,null,null,null,null,null,null,null,null,null,null,null," "]
[null,null,null,null,null,"Race/Ethnicity",null,null,null,null,null,"Race"]
[null,null,null,null,null,"White",null,null,null,null,null,{"$f":"L21+L39","v":0},null,null,null,{"$f":"P21+P39","v":0}]
[null,null,null,null,null,"Black / African American",null,null,null,null,null,{"$f":"L22+L40","v":0},null,null,null,{"$f":"P22+P40","v":0}]
[null,null,null,null,null,"Asian",null,null,null,null,null,{"$f":"L23+L41","v":0},null,null,null,{"$f":"P23+P41","v":0}]
[null,null,null,null,null,"American Indian / Alaskan Native",null,null,null,null,null,{"$f":"L24+L42","v":0},null,null,null,{"$f":"P24+P42","v":0}]
["Native Hawaiian / Other Pacific Islander",null,null,null,null,null,null,null,null,null,null,{"$f":"L25+L43","v":0},null,null,null,{"$f":"P25+P43","v":0}]
[]
["American Indian / Alaskan Native & White",null,null,null,null,null,null,null,null,null,null,{"$f":"L27+L45","v":0},null,null,null,{"$f":"P27+P45","v":0}]
[]
[null,null,null,null,null,"Asian & White",null,null,null,null,null,{"$f":"L29+L47","v":0},null,null,null,{"$f":"P29+P47","v":0}]
[null,null,null,null,null,"Black / African American & White",null,null,null,null,null,{"$f":"L30+L48","v":0},null,null,null,{"$f":"P30+P48","v":0}]
["American Indian / Alaskan Native & Black / African American",null,null,null,null,null,null,null,null,null,null,{"$f":"L31+L49","v":0},null,null,null,{"$f":"P31+P49","v":0}]
[]
[null,null,null,null,null,"Other Multi-Racial",null,null,null,null,null,{"$f":"L33+L51","v":0},null,null,null,{"$f":"P33+P51","v":0}]
[null,null,null,null,null,null,null,null,null,null,"Total:",{"$f":"SUM(L58:O70)","v":0},null,null,null,{"$f":"SUM(P58:Q70)","v":0}]
[]
[]
[null,null,null,null,"Income Information",null,null,null,null,null,null,"Owner",null,null,null,"Renter",null,"Total"]
[null,null,null,null,"Extremely Low (0-30% AMI)",null,null,null,null,null,null,null,null,null,null,null,null,{"$f":"L75+P75","v":0}]
[null,null,null,null,"Low (31-50% AMI)",null,null,null,null,null,null,null,null,null,null,null,null,0]
[null,null,null,null,"Moderate (51-80% AMI)",null,null,null,null,null,null,null,null,null,null,null,null,0]
[null,null,null,null,"Non-Low/Moderate",null,null,null,null,null,null,null,null,null,null,null,null,{"$f":"L78+P78","v":0}]
[null,null,null,null,null,null,null,null,null,null,"Total:",{"$f":"SUM(L75:O78)","v":0},null,null,null,{"$f":"SUM(P75:Q78)","v":0},null,{"$f":"SUM(R75:S78)","v":0}]
[]
[null,null,null,null,null,null,null,null,null,null,null,"Owner",null,null,null,"Renter",null,"Total"]
[null,null,null,null,"Female-Headed Households",null,null,null,null,null,null,null,null,null,null,null,null,{"$f":"L82+P82","v":0}]
[]
[null,null,null,null,null,null,null,"Total Owner Units:"]
[]
["Of the Total Owner Units, Number of:",null,null,null,null,null,null,null,null,null,null,null,null,null,null,null,null,null,null,null,null,null,"Number of Units:"]
[null,null,null,null,null,null,null,null,null,null,null,null,null,null,null,null,null,"Affordable Units:"]
[]
[null,null,null,null,null,null,null,null,null,null,null,null,null,null,null,null,null,"Years of Affordability Guaranteed:"]
[]
[null,null,null,null,null,null,null,null,null,null,null,null,null,null,null,null,"Section 504 Accessible Units:"]
[]
[null,null,null,null,null,null,null,null,null,null,null,null,null,null,null,null,null,"Units Qualified as Energy Star:"]
[]
[null,null,null,null,null,null,null,null,null,null,null,null,null,null,null,null,"Households previously living in subsidized housing:"]
[]
["Of the Total Affordable Units, Number of:",null,null,null,null,null,null,null,null,null,null,null,null,null,null,null,null,null,null,null,null,null,"Number of Units:"]
[null,null,null,null,null,null,null,null,null,null,null,null,null,null,null,null,"Units Occupied by Elderly:"]
[]
[null,null,null,null,null,null,null,null,null,null,null,null,null,null,null,null,"Units Specifically Designed for Persons with HIV/AIDS:"]
[null,null,null,null,null,null,null,null,"Of Units Designated for Persons with HIV/AIDS, Number Specifically for Chronically Homeless:"]
[]
[]
[null,null,null,null,null,null,null,null,null,null,null,null,"Units Specifically Designated for Homeless:"]
[null,null,null,null,null,null,null,null,null,null,null,null,"Of Units Designated for Homeless, Number Specifically for Chronically Homeless:"]
[]
[]
["Accomplishment Information"]
["Construction of Rental Units"]
[null,null,"Total Constructed Rental Units:"]
["Of the Total Rental Units, Number of:",null,null,null,null,null,null,null,null,null,null,null,null,null,null,null,null,null,null,null,null,null,"Number of Units:"]
[null,null,null,null,null,null,null,null,null,null,null,null,null,null,null,null,null,"Affordable Units:"]
[]
[null,null,null,null,null,null,null,null,null,null,null,null,null,null,null,null,null,"Section 504 Accessible Units:"]
[]
[null,null,null,null,null,null,null,null,null,null,null,null,null,null,null,null,null,"Units Qualified as Energy Star:"]
[]
["Of the Total Rental Units, Number of:",null,null,null,null,null,null,null,null,null,null,null,null,null,null,null,null,null,null,null,null,null,"Number of Units:"]
[null,null,null,null,null,null,null,null,null,null,null,null,null,null,null,null,"Units Occupied by Elderly:"]
[]
[null,null,null,null,null,null,null,null,null,null,null,null,null,"Years of Affordability Guaranteed:"]
[null,null,null,null,null,null,null,null,null,null,"Units Subsidized with Project-Based Rental Assistance by Another Federal, State, or Local Program:"]
[]
[null,null,null,null,null,null,null,null,null,"Units Designated for Persons with HIV/AIDS Including Units Receiving Assistance for Operations:"]
[]
[null,null,null,null,null,"Permanent Housing Units Designated for Homeless Persons and Families, Including Units Receiving Assistance for Operations:"]
[]
[null,null,null,null,null,null,null,null,null,null,null,"Of Permanent Housing Units Designated for Homeless, Number for Chronically Homeless:"]
[]
[]
["If the activity is intended to help the homeless:"]
[]
["Of the Total Persons, Number of:"]
[null,null,null,null,null,null,null,null,null,null,null,null,"Homeless Persons Given Overnight Shelter:"]
[]
[null,null,null,null,null,null,null,null,"Beds Created in Overnight Shelter or Other Emergency Housing:"]
[]
[null,null,null,null,null,null,null,null,null,null,null,null,null,null,null,null,null,null,null,null,"Total:",null,null,{"$f":"X134+X136","v":0}]
[]
["If the activity is intended to prevent homelessness:"]
[]
["Of the Total Persons, Number of:"]
[null,null,null,null,"Individuals receiving emergency financial assistance to prevent homelessness:"]
[]
[null,null,null,null,null,"Individuals receiving emergency legal assistance to prevent homelessness:"]
[]
[null,null,null,null,null,null,null,null,null,null,null,null,null,null,null,null,null,null,null,null,"Total:",null,null,{"$f":"X143+X145","v":0}]

{"sheet":"LMH 7","index":23,"n_rows":108,"n_cols":33,"rows_kept":108,"cut":false,"hidden":true,"merged":[[21,0,22,10],[21,11,22,14],[21,15,22,16],[14,10,14,15],[15,15,16,16],[16,11,16,14],[17,11,17,14],[17,15,17,16],[18,11,18,14],[18,15,18,16],[2,4,6,10],[2,11,2,14],[2,16,6,22],[2,23,2,26],[4,11,6,14],[4,23,6,26],[19,11,19,14],[19,15,19,16],[20,11,20,14],[20,15,20,16],[27,11,28,14],[27,15,28,16],[29,11,29,14],[29,15,29,16],[30,11,30,14],[30,15,30,16],[23,0,24,10],[23,11,24,14],[23,15,24,16],[25,11,25,14],[25,15,25,16],[26,11,26,14],[26,15,26,16],[27,0,28,10],[37,11,37,14],[37,15,37,16],[38,11,38,14],[38,15,38,16],[39,0,40,10],[39,11,40,14],[39,15,40,16],[32,10,32,15],[33,15,34,16],[34,11,34,14],[35,11,35,14],[35,15,35,16],[36,11,36,14],[36,15,36,16],[45,0,46,10],[45,11,46,14],[45,15,46,16],[47,11,47,14],[47,15,47,16],[48,11,48,14],[48,15,48,16],[41,0,42,10],[41,11,42,14],[41,15,42,16],[43,11,43,14],[43,15,43,16],[44,11,44,14],[44,15,44,16],[55,11,55,14],[55,15,55,16],[56,11,56,14],[56,15,56,16],[57,11,57,14],[57,15,57,16],[50,0,50,26],[51,10,51,15],[52,15,53,16],[53,11,53,14],[54,11,54,14],[54,15,54,16],[62,11,62,14],[62,15,62,16],[63,11,63,14],[63,15,63,16],[64,0,65,10],[64,11,65,14],[64,15,65,16],[58,0,59,10],[58,11,59,14],[58,15,59,16],[60,0,61,10],[60,11,61,14],[60,15,61,16],[70,17,70,18],[71,11,71,14],[71,15,71,16],[71,17,71,18],[72,11,72,14],[72,15,72,16],[72,17,72,18],[66,11,66,14],[66,15,66,16],[67,11,67,14],[67,15,67,16],[70,11,70,14],[70,15,70,16],[77,11,77,14],[77,15,77,16],[77,17,77,18],[83,0,83,26],[75,11,75,14],[75,15,75,16],[75,17,75,18],[73,11,73,14],[73,15,73,16],[73,17,73,18],[74,11,74,14],[74,15,74,16],[74,17,74,18],[103,23,103,26],[105,23,105,26],[107,23,107,26],[87,23,87,26],[89,23,89,26],[88,10,89,22],[78,11,78,14],[78,15,78,16],[78,17,78,18],[82,11,82,14],[85,23,85,26],[94,23,94,26],[96,23,96,26],[98,23,98,26]]}
["Performance Measurement Type(s):"]
[]
[null,null,null,null,{"$f":"IFERROR(INDEX(Backend!$A$120:$D$1048576,MATCH(1,('Activity Information'!$H$41=Backend!$A$120:$A$1048576)*('Activity Information'!$AD$39=Backend!$B$120:$B$1048576),0),MATCH(\"Accomplishment Type1\",Backend!$A$120:$D$120,0)),\"INCORRECT CRITERIA\")","v":"INCORRECT CRITERIA"},null,null,null,null,null,null,null,null,null,null,null,{"$f":"IFERROR(IF((INDEX(Backend!$A$120:$D$1048576,MATCH(1,('Activity Information'!$H$41=Backend!$A$120:$A$1048576)*('Activity Information'!$AD$39=Backend!$B$120:$B$1048576),0),MATCH(\"Accomplishment Type2\",Backend!$A$120:$D$120,0)))=\"\",\"\",INDEX(Backend!$A$120:$D$1048576,MATCH(1,('Activity Information'!$H$41=Backend!$A$120:$A$1048576)*('Activity Information'!$AD$39=Backend!$B$120:$B$1048576),0),MATCH(\"Accomplishment Type2\",Backend!$A$120:$D$120,0))),\"\")","v":""}]
[]
[]
[]
[]
[]
[]
[]
[]
[]
[]
[]
[null,null,null,null,null,null,null,null,null,null,"Households\n(Owners)"]
[null,null,null,null,null,null,null,null,null,null,null,null,null,null,null,"Hispanic\n/Latino"]
[null,null,null,null,null,"Race/Ethnicity",null,null,null,null,null,"Race"]
[null,null,null,null,null,"White"]
[null,null,null,null,null,"Black / African American"]
[null,null,null,null,null,"Asian"]
[null,null,null,null,null,"American Indian / Alaskan Native"]
["Native Hawaiian / Other Pacific Islander"]
[]
["American Indian / Alaskan Native & White"]
[]
[null,null,null,null,null,"Asian & White"]
[null,null,null,null,null,"Black / African American & White"]
["American Indian / Alaskan Native & Black / African American"]
[]
[null,null,null,null,null,"Other Multi-Racial"]
[null,null,null,null,null,null,null,null,null,null,"Total:",{"$f":"SUM(L18:O30)","v":0},null,null,null,{"$f":"SUM(P18:Q30)","v":0}]
[]
[null,null,null,null,null,null,null,null,null,null,"Households\n(Renters)"]
[null,null,null,null,null,null,null,null,null,null,null,null,null,null,null,"Hispanic\n/Latino"]
[null,null,null,null,null,"Race/Ethnicity",null,null,null,null,null,"Race"]
[null,null,null,null,null,"White"]
[null,null,null,null,null,"Black / African American"]
[null,null,null,null,null,"Asian"]
[null,null,null,null,null,"American Indian / Alaskan Native"]
["Native Hawaiian / Other Pacific Islander"]
[]
["American Indian / Alaskan Native & White"]
[]
[null,null,null,null,null,"Asian & White"]
[null,null,null,null,null,"Black / African American & White"]
["American Indian / Alaskan Native & Black / African American"]
[]
[null,null,null,null,null,"Other Multi-Racial"]
[null,null,null,null,null,null,null,null,null,null,"Total:",{"$f":"SUM(L36:O48)","v":0},null,null,null,{"$f":"SUM(P36:Q48)","v":0}]
[]
["Accomplishment Information"]
[null,null,null,null,null,null,null,null,null,null,"Households\n(Total)"]
[null,null,null,null,null,null,null,null,null,null,null,null,null,null,null,"Hispanic\n/Latino",null,null,null,null,null,null,null,null,null,null,null,null,null,null,null,null," "]
[null,null,null,null,null,"Race/Ethnicity",null,null,null,null,null,"Race"]
[null,null,null,null,null,"White",null,null,null,null,null,{"$f":"L18+L36","v":0},null,null,null,{"$f":"P18+P36","v":0}]
[null,null,null,null,null,"Black / African American",null,null,null,null,null,{"$f":"L19+L37","v":0},null,null,null,{"$f":"P19+P37","v":0}]
[null,null,null,null,null,"Asian",null,null,null,null,null,{"$f":"L20+L38","v":0},null,null,null,{"$f":"P20+P38","v":0}]
[null,null,null,null,null,"American Indian / Alaskan Native",null,null,null,null,null,{"$f":"L21+L39","v":0},null,null,null,{"$f":"P21+P39","v":0}]
["Native Hawaiian / Other Pacific Islander",null,null,null,null,null,null,null,null,null,null,{"$f":"L22+L40","v":0},null,null,null,{"$f":"P22+P40","v":0}]
[]
["American Indian / Alaskan Native & White",null,null,null,null,null,null,null,null,null,null,{"$f":"L24+L42","v":0},null,null,null,{"$f":"P24+P42","v":0}]
[]
[null,null,null,null,null,"Asian & White",null,null,null,null,null,{"$f":"L26+L44","v":0},null,null,null,{"$f":"P26+P44","v":0}]
[null,null,null,null,null,"Black / African American & White",null,null,null,null,null,{"$f":"L27+L45","v":0},null,null,null,{"$f":"P27+P45","v":0}]
["American Indian / Alaskan Native & Black / African American",null,null,null,null,null,null,null,null,null,null,{"$f":"L28+L46","v":0},null,null,null,{"$f":"P28+P46","v":0}]
[]
[null,null,null,null,null,"Other Multi-Racial",null,null,null,null,null,{"$f":"L30+L48","v":0},null,null,null,{"$f":"P30+P48","v":0}]
[null,null,null,null,null,null,null,null,null,null,"Total:",{"$f":"SUM(L55:O67)","v":0},null,null,null,{"$f":"SUM(P55:Q67)","v":0}]
[]
[]
[null,null,null,null,"Income Information",null,null,null,null,null,null,"Owner",null,null,null,"Renter",null,"Total"]
[null,null,null,null,"Extremely Low (0-30% AMI)",null,null,null,null,null,null,null,null,null,null,null,null,{"$f":"L72+P72","v":0}]
[null,null,null,null,"Low (31-50% AMI)",null,null,null,null,null,null,null,null,null,null,null,null,0]
[null,null,null,null,"Moderate (51-80% AMI)",null,null,null,null,null,null,null,null,null,null,null,null,0]
[null,null,null,null,"Non-Low/Moderate",null,null,null,null,null,null,null,null,null,null,null,null,{"$f":"L75+P75","v":0}]
[null,null,null,null,null,null,null,null,null,null,"Total:",{"$f":"SUM(L72:O75)","v":0},null,null,null,{"$f":"SUM(P72:Q75)","v":0},null,{"$f":"SUM(R72:S75)","v":0}]
[]
[null,null,null,null,null,null,null,null,null,null,null,"Owner",null,null,null,"Renter",null,"Total"]
[null,null,null,null,"Female-Headed Households",null,null,null,null,null,null,null,null,null,null,null,null,{"$f":"L79+P79","v":0}]
[]
["Public Facilities and Infrastructure"]
[]
[null,null,"Total Households Assisted:"]
["Accomplishment Information"]
["Of the Total Households, Number of:",null,null,null,null,null,null,null,null,null,null,null,null,null,null,null,null,null,null,null,"Number of Households:"]
[null,null,null,"With New Access to this type of Public Facility or Infrastructure Improvement:"]
[]
[null,null,"With Improved Access to this Type of Public Facility or Infrastructure Improvement:"]
[null,null,null,null,null,null,null,null,null,null,"With Access to Public Facility or Infrastructure Improvement that is No Longer Substandard:"]
[]
[]
["If the activity is intended to help the homeless:"]
[]
["Of the Total Persons, Number of:"]
[null,null,null,null,null,null,null,null,null,null,null,null,"Homeless Persons Given Overnight Shelter:"]
[]
[null,null,null,null,null,null,null,null,"Beds Created in Overnight Shelter or Other Emergency Housing:"]
[]
[null,null,null,null,null,null,null,null,null,null,null,null,null,null,null,null,null,null,null,null,"Total:",null,null,{"$f":"X95+X97","v":0}]
[]
["If the activity is intended to prevent homelessness:"]
[]
["Of the Total Persons, Number of:"]
[null,null,null,null,"Individuals receiving emergency financial assistance to prevent homelessness:"]
[]
[null,null,null,null,null,"Individuals receiving emergency legal assistance to prevent homelessness:"]
[]
[null,null,null,null,null,null,null,null,null,null,null,null,null,null,null,null,null,null,null,null,"Total:",null,null,{"$f":"X104+X106","v":0}]

{"sheet":"LMH 8","index":24,"n_rows":109,"n_cols":33,"rows_kept":109,"cut":false,"hidden":true,"merged":[[22,0,23,10],[22,11,23,14],[22,15,23,16],[15,10,15,15],[16,15,17,16],[17,11,17,14],[18,11,18,14],[18,15,18,16],[19,11,19,14],[19,15,19,16],[2,4,6,10],[2,11,2,14],[2,16,6,22],[2,23,2,26],[4,11,6,14],[4,23,6,26],[20,11,20,14],[20,15,20,16],[21,11,21,14],[21,15,21,16],[28,11,29,14],[28,15,29,16],[30,11,30,14],[30,15,30,16],[31,11,31,14],[31,15,31,16],[24,0,25,10],[24,11,25,14],[24,15,25,16],[26,11,26,14],[26,15,26,16],[27,11,27,14],[27,15,27,16],[28,0,29,10],[38,11,38,14],[38,15,38,16],[39,11,39,14],[39,15,39,16],[40,0,41,10],[40,11,41,14],[40,15,41,16],[33,10,33,15],[34,15,35,16],[35,11,35,14],[36,11,36,14],[36,15,36,16],[37,11,37,14],[37,15,37,16],[46,0,47,10],[46,11,47,14],[46,15,47,16],[48,11,48,14],[48,15,48,16],[49,11,49,14],[49,15,49,16],[42,0,43,10],[42,11,43,14],[42,15,43,16],[44,11,44,14],[44,15,44,16],[45,11,45,14],[45,15,45,16],[56,11,56,14],[56,15,56,16],[57,11,57,14],[57,15,57,16],[58,11,58,14],[58,15,58,16],[51,0,51,26],[52,10,52,15],[53,15,54,16],[54,11,54,14],[55,11,55,14],[55,15,55,16],[63,11,63,14],[63,15,63,16],[64,11,64,14],[64,15,64,16],[65,0,66,10],[65,11,66,14],[65,15,66,16],[59,0,60,10],[59,11,60,14],[59,15,60,16],[61,0,62,10],[61,11,62,14],[61,15,62,16],[71,17,71,18],[72,11,72,14],[72,15,72,16],[72,17,72,18],[73,11,73,14],[73,15,73,16],[73,17,73,18],[67,11,67,14],[67,15,67,16],[68,11,68,14],[68,15,68,16],[71,11,71,14],[71,15,71,16],[78,11,78,14],[78,15,78,16],[78,17,78,18],[76,11,76,14],[76,15,76,16],[76,17,76,18],[74,11,74,14],[74,15,74,16],[74,17,74,18],[75,11,75,14],[75,15,75,16],[75,17,75,18],[91,0,91,26],[104,23,104,26],[106,23,106,26],[108,23,108,26],[90,23,90,26],[79,11,79,14],[79,15,79,16],[79,17,79,18],[83,11,83,14],[86,23,86,26],[88,23,88,26],[95,23,95,26],[97,23,97,26],[99,23,99,26]]}
["Performance Measurement Type(s):"]
[]
[null,null,null,null,{"$f":"IFERROR(INDEX(Backend!$A$120:$D$1048576,MATCH(1,('Activity Information'!$H$41=Backend!$A$120:$A$1048576)*('Activity Information'!$AD$39=Backend!$B$120:$B$1048576),0),MATCH(\"Accomplishment Type1\",Backend!$A$120:$D$120,0)),\"INCORRECT CRITERIA\")","v":"INCORRECT CRITERIA"},null,null,null,null,null,null,null,null,null,null,null,{"$f":"IFERROR(IF((INDEX(Backend!$A$120:$D$1048576,MATCH(1,('Activity Information'!$H$41=Backend!$A$120:$A$1048576)*('Activity Information'!$AD$39=Backend!$B$120:$B$1048576),0),MATCH(\"Accomplishment Type2\",Backend!$A$120:$D$120,0)))=\"\",\"\",INDEX(Backend!$A$120:$D$1048576,MATCH(1,('Activity Information'!$H$41=Backend!$A$120:$A$1048576)*('Activity Information'!$AD$39=Backend!$B$120:$B$1048576),0),MATCH(\"Accomplishment Type2\",Backend!$A$120:$D$120,0))),\"\")","v":""}]
[]
[]
[]
[]
[]
[]
[]
[]
[]
[]
[]
[]
[null,null,null,null,null,null,null,null,null,null,"Households\n(Owners)"]
[null,null,null,null,null,null,null,null,null,null,null,null,null,null,null,"Hispanic\n/Latino"]
[null,null,null,null,null,"Race/Ethnicity",null,null,null,null,null,"Race"]
[null,null,null,null,null,"White"]
[null,null,null,null,null,"Black / African American"]
[null,null,null,null,null,"Asian"]
[null,null,null,null,null,"American Indian / Alaskan Native"]
["Native Hawaiian / Other Pacific Islander"]
[]
["American Indian / Alaskan Native & White"]
[]
[null,null,null,null,null,"Asian & White"]
[null,null,null,null,null,"Black / African American & White"]
["American Indian / Alaskan Native & Black / African American"]
[]
[null,null,null,null,null,"Other Multi-Racial"]
[null,null,null,null,null,null,null,null,null,null,"Total:",{"$f":"SUM(L19:O31)","v":0},null,null,null,{"$f":"SUM(P19:Q31)","v":0}]
[]
[null,null,null,null,null,null,null,null,null,null,"Households\n(Renters)"]
[null,null,null,null,null,null,null,null,null,null,null,null,null,null,null,"Hispanic\n/Latino"]
[null,null,null,null,null,"Race/Ethnicity",null,null,null,null,null,"Race"]
[null,null,null,null,null,"White"]
[null,null,null,null,null,"Black / African American"]
[null,null,null,null,null,"Asian"]
[null,null,null,null,null,"American Indian / Alaskan Native"]
["Native Hawaiian / Other Pacific Islander"]
[]
["American Indian / Alaskan Native & White"]
[]
[null,null,null,null,null,"Asian & White"]
[null,null,null,null,null,"Black / African American & White"]
["American Indian / Alaskan Native & Black / African American"]
[]
[null,null,null,null,null,"Other Multi-Racial"]
[null,null,null,null,null,null,null,null,null,null,"Total:",{"$f":"SUM(L37:O49)","v":0},null,null,null,{"$f":"SUM(P37:Q49)","v":0}]
[]
["Accomplishment Information"]
[null,null,null,null,null,null,null,null,null,null,"Households\n(Total)"]
[null,null,null,null,null,null,null,null,null,null,null,null,null,null,null,"Hispanic\n/Latino",null,null,null,null,null,null,null,null,null,null,null,null,null,null,null,null," "]
[null,null,null,null,null,"Race/Ethnicity",null,null,null,null,null,"Race"]
[null,null,null,null,null,"White",null,null,null,null,null,{"$f":"L19+L37","v":0},null,null,null,{"$f":"P19+P37","v":0}]
[null,null,null,null,null,"Black / African American",null,null,null,null,null,{"$f":"L20+L38","v":0},null,null,null,{"$f":"P20+P38","v":0}]
[null,null,null,null,null,"Asian",null,null,null,null,null,{"$f":"L21+L39","v":0},null,null,null,{"$f":"P21+P39","v":0}]
[null,null,null,null,null,"American Indian / Alaskan Native",null,null,null,null,null,{"$f":"L22+L40","v":0},null,null,null,{"$f":"P22+P40","v":0}]
["Native Hawaiian / Other Pacific Islander",null,null,null,null,null,null,null,null,null,null,{"$f":"L23+L41","v":0},null,null,null,{"$f":"P23+P41","v":0}]
[]
["American Indian / Alaskan Native & White",null,null,null,null,null,null,null,null,null,null,{"$f":"L25+L43","v":0},null,null,null,{"$f":"P25+P43","v":0}]
[]
[null,null,null,null,null,"Asian & White",null,null,null,null,null,{"$f":"L27+L45","v":0},null,null,null,{"$f":"P27+P45","v":0}]
[null,null,null,null,null,"Black / African American & White",null,null,null,null,null,{"$f":"L28+L46","v":0},null,null,null,{"$f":"P28+P46","v":0}]
["American Indian / Alaskan Native & Black / African American",null,null,null,null,null,null,null,null,null,null,{"$f":"L29+L47","v":0},null,null,null,{"$f":"P29+P47","v":0}]
[]
[null,null,null,null,null,"Other Multi-Racial",null,null,null,null,null,{"$f":"L31+L49","v":0},null,null,null,{"$f":"P31+P49","v":0}]
[null,null,null,null,null,null,null,null,null,null,"Total:",{"$f":"SUM(L56:O68)","v":0},null,null,null,{"$f":"SUM(P56:Q68)","v":0}]
[]
[]
[null,null,null,null,"Income Information",null,null,null,null,null,null,"Owner",null,null,null,"Renter",null,"Total"]
[null,null,null,null,"Extremely Low (0-30% AMI)",null,null,null,null,null,null,null,null,null,null,null,null,{"$f":"L73+P73","v":0}]
[null,null,null,null,"Low (31-50% AMI)",null,null,null,null,null,null,null,null,null,null,null,null,{"$f":"L74+P74","v":0}]
[null,null,null,null,"Moderate (51-80% AMI)",null,null,null,null,null,null,null,null,null,null,null,null,{"$f":"L75+P75","v":0}]
[null,null,null,null,"Non-Low/Moderate",null,null,null,null,null,null,null,null,null,null,null,null,{"$f":"L76+P76","v":0}]
[null,null,null,null,null,null,null,null,null,null,"Total:",{"$f":"SUM(L73:O76)","v":0},null,null,null,{"$f":"SUM(P73:Q76)","v":0},null,{"$f":"SUM(R73:S76)","v":0}]
[]
[null,null,null,null,null,null,null,null,null,null,null,"Owner",null,null,null,"Renter",null,"Total"]
[null,null,null,null,"Female-Headed Households",null,null,null,null,null,null,null,null,null,null,null,null,{"$f":"L80+P80","v":0}]
[]
["Public Services"]
[]
[null,null,"Total Households Assisted:"]
[]
["Of the Total Households, Number of:",null,null,null,null,null,null,null,null,null,null,null,null,null,null,null,null,null,null,null,"Number of Households:"]
[null,null,null,null,null,null,null,null,null,null,null,null,null,null,null,"With New or Continuing Access to a Service or Benefit:"]
[]
[null,null,null,null,null,null,null,null,null,null,"With Improved Access to a Service or Benefit:"]
[]
[null,null,null,null,null,null,null,null,null,null,null,null,null,null,"Receive a Service or Benefit that is No Longer Substandard:"]
["Accomplishment Information"]
["If the activity is intended to help the homeless:"]
[]
["Of the Total Persons, Number of:"]
[null,null,null,null,null,null,null,null,null,null,null,null,"Homeless Persons Given Overnight Shelter:"]
[]
[null,null,null,null,null,null,null,null,"Beds Created in Overnight Shelter or Other Emergency Housing:"]
[]
[null,null,null,null,null,null,null,null,null,null,null,null,null,null,null,null,null,null,null,null,"Total:",null,null,{"$f":"X96+X98","v":0}]
[]
["If the activity is intended to prevent homelessness:"]
[]
["Of the Total Persons, Number of:"]
[null,null,null,null,"Individuals receiving emergency financial assistance to prevent homelessness:"]
[]
[null,null,null,null,null,"Individuals receiving emergency legal assistance to prevent homelessness:"]
[]
[null,null,null,null,null,null,null,null,null,null,null,null,null,null,null,null,null,null,null,null,"Total:",null,null,{"$f":"X105+X107","v":0}]

{"sheet":"LMH 9","index":25,"n_rows":109,"n_cols":33,"rows_kept":109,"cut":false,"hidden":true,"merged":[[22,0,23,10],[22,11,23,14],[22,15,23,16],[15,10,15,15],[16,15,17,16],[17,11,17,14],[18,11,18,14],[18,15,18,16],[19,11,19,14],[19,15,19,16],[2,4,6,10],[2,11,2,14],[2,16,6,22],[2,23,2,26],[4,11,6,14],[4,23,6,26],[20,11,20,14],[20,15,20,16],[21,11,21,14],[21,15,21,16],[28,11,29,14],[28,15,29,16],[30,11,30,14],[30,15,30,16],[31,11,31,14],[31,15,31,16],[24,0,25,10],[24,11,25,14],[24,15,25,16],[26,11,26,14],[26,15,26,16],[27,11,27,14],[27,15,27,16],[28,0,29,10],[38,11,38,14],[38,15,38,16],[39,11,39,14],[39,15,39,16],[40,0,41,10],[40,11,41,14],[40,15,41,16],[33,10,33,15],[34,15,35,16],[35,11,35,14],[36,11,36,14],[36,15,36,16],[37,11,37,14],[37,15,37,16],[46,0,47,10],[46,11,47,14],[46,15,47,16],[48,11,48,14],[48,15,48,16],[49,11,49,14],[49,15,49,16],[42,0,43,10],[42,11,43,14],[42,15,43,16],[44,11,44,14],[44,15,44,16],[45,11,45,14],[45,15,45,16],[56,11,56,14],[56,15,56,16],[57,11,57,14],[57,15,57,16],[58,11,58,14],[58,15,58,16],[51,0,51,26],[52,10,52,15],[53,15,54,16],[54,11,54,14],[55,11,55,14],[55,15,55,16],[63,11,63,14],[63,15,63,16],[64,11,64,14],[64,15,64,16],[65,0,66,10],[65,11,66,14],[65,15,66,16],[59,0,60,10],[59,11,60,14],[59,15,60,16],[61,0,62,10],[61,11,62,14],[61,15,62,16],[71,17,71,18],[72,11,72,14],[72,15,72,16],[72,17,72,18],[73,11,73,14],[73,15,73,16],[73,17,73,18],[67,11,67,14],[67,15,67,16],[68,11,68,14],[68,15,68,16],[71,11,71,14],[71,15,71,16],[78,11,78,14],[78,15,78,16],[78,17,78,18],[76,11,76,14],[76,15,76,16],[76,17,76,18],[74,11,74,14],[74,15,74,16],[74,17,74,18],[75,11,75,14],[75,15,75,16],[75,17,75,18],[91,0,91,26],[104,23,104,26],[106,23,106,26],[108,23,108,26],[90,23,90,26],[79,11,79,14],[79,15,79,16],[79,17,79,18],[83,11,83,14],[86,23,86,26],[88,23,88,26],[95,23,95,26],[97,23,97,26],[99,23,99,26]]}
["Performance Measurement Type(s):"]
[]
[null,null,null,null,{"$f":"IFERROR(INDEX(Backend!$A$120:$D$1048576,MATCH(1,('Activity Information'!$H$41=Backend!$A$120:$A$1048576)*('Activity Information'!$AD$39=Backend!$B$120:$B$1048576),0),MATCH(\"Accomplishment Type1\",Backend!$A$120:$D$120,0)),\"INCORRECT CRITERIA\")","v":"INCORRECT CRITERIA"},null,null,null,null,null,null,null,null,null,null,null,{"$f":"IFERROR(IF((INDEX(Backend!$A$120:$D$1048576,MATCH(1,('Activity Information'!$H$41=Backend!$A$120:$A$1048576)*('Activity Information'!$AD$39=Backend!$B$120:$B$1048576),0),MATCH(\"Accomplishment Type2\",Backend!$A$120:$D$120,0)))=\"\",\"\",INDEX(Backend!$A$120:$D$1048576,MATCH(1,('Activity Information'!$H$41=Backend!$A$120:$A$1048576)*('Activity Information'!$AD$39=Backend!$B$120:$B$1048576),0),MATCH(\"Accomplishment Type2\",Backend!$A$120:$D$120,0))),\"\")","v":""}]
[]
[]
[]
[]
[]
[]
[]
[]
[]
[]
[]
[]
[null,null,null,null,null,null,null,null,null,null,"Households\n(Owners)"]
[null,null,null,null,null,null,null,null,null,null,null,null,null,null,null,"Hispanic\n/Latino"]
[null,null,null,null,null,"Race/Ethnicity",null,null,null,null,null,"Race"]
[null,null,null,null,null,"White"]
[null,null,null,null,null,"Black / African American"]
[null,null,null,null,null,"Asian"]
[null,null,null,null,null,"American Indian / Alaskan Native"]
["Native Hawaiian / Other Pacific Islander"]
[]
["American Indian / Alaskan Native & White"]
[]
[null,null,null,null,null,"Asian & White"]
[null,null,null,null,null,"Black / African American & White"]
["American Indian / Alaskan Native & Black / African American"]
[]
[null,null,null,null,null,"Other Multi-Racial"]
[null,null,null,null,null,null,null,null,null,null,"Total:",{"$f":"SUM(L19:O31)","v":0},null,null,null,{"$f":"SUM(P19:Q31)","v":0}]
[]
[null,null,null,null,null,null,null,null,null,null,"Households\n(Renters)"]
[null,null,null,null,null,null,null,null,null,null,null,null,null,null,null,"Hispanic\n/Latino"]
[null,null,null,null,null,"Race/Ethnicity",null,null,null,null,null,"Race"]
[null,null,null,null,null,"White"]
[null,null,null,null,null,"Black / African American"]
[null,null,null,null,null,"Asian"]
[null,null,null,null,null,"American Indian / Alaskan Native"]
["Native Hawaiian / Other Pacific Islander"]
[]
["American Indian / Alaskan Native & White"]
[]
[null,null,null,null,null,"Asian & White"]
[null,null,null,null,null,"Black / African American & White"]
["American Indian / Alaskan Native & Black / African American"]
[]
[null,null,null,null,null,"Other Multi-Racial"]
[null,null,null,null,null,null,null,null,null,null,"Total:",{"$f":"SUM(L37:O49)","v":0},null,null,null,{"$f":"SUM(P37:Q49)","v":0}]
[]
["Accomplishment Information"]
[null,null,null,null,null,null,null,null,null,null,"Households\n(Total)"]
[null,null,null,null,null,null,null,null,null,null,null,null,null,null,null,"Hispanic\n/Latino",null,null,null,null,null,null,null,null,null,null,null,null,null,null,null,null," "]
[null,null,null,null,null,"Race/Ethnicity",null,null,null,null,null,"Race"]
[null,null,null,null,null,"White",null,null,null,null,null,{"$f":"L19+L37","v":0},null,null,null,{"$f":"P19+P37","v":0}]
[null,null,null,null,null,"Black / African American",null,null,null,null,null,{"$f":"L20+L38","v":0},null,null,null,{"$f":"P20+P38","v":0}]
[null,null,null,null,null,"Asian",null,null,null,null,null,{"$f":"L21+L39","v":0},null,null,null,{"$f":"P21+P39","v":0}]
[null,null,null,null,null,"American Indian / Alaskan Native",null,null,null,null,null,{"$f":"L22+L40","v":0},null,null,null,{"$f":"P22+P40","v":0}]
["Native Hawaiian / Other Pacific Islander",null,null,null,null,null,null,null,null,null,null,{"$f":"L23+L41","v":0},null,null,null,{"$f":"P23+P41","v":0}]
[]
["American Indian / Alaskan Native & White",null,null,null,null,null,null,null,null,null,null,{"$f":"L25+L43","v":0},null,null,null,{"$f":"P25+P43","v":0}]
[]
[null,null,null,null,null,"Asian & White",null,null,null,null,null,{"$f":"L27+L45","v":0},null,null,null,{"$f":"P27+P45","v":0}]
[null,null,null,null,null,"Black / African American & White",null,null,null,null,null,{"$f":"L28+L46","v":0},null,null,null,{"$f":"P28+P46","v":0}]
["American Indian / Alaskan Native & Black / African American",null,null,null,null,null,null,null,null,null,null,{"$f":"L29+L47","v":0},null,null,null,{"$f":"P29+P47","v":0}]
[]
[null,null,null,null,null,"Other Multi-Racial",null,null,null,null,null,{"$f":"L31+L49","v":0},null,null,null,{"$f":"P31+P49","v":0}]
[null,null,null,null,null,null,null,null,null,null,"Total:",{"$f":"SUM(L56:O68)","v":0},null,null,null,{"$f":"SUM(P56:Q68)","v":0}]
[]
[]
[null,null,null,null,"Income Information",null,null,null,null,null,null,"Owner",null,null,null,"Renter",null,"Total"]
[null,null,null,null,"Extremely Low (0-30% AMI)",null,null,null,null,null,null,null,null,null,null,null,null,{"$f":"L73+P73","v":0}]
[null,null,null,null,"Low (31-50% AMI)",null,null,null,null,null,null,null,null,null,null,null,null,0]
[null,null,null,null,"Moderate (51-80% AMI)",null,null,null,null,null,null,null,null,null,null,null,null,0]
[null,null,null,null,"Non-Low/Moderate",null,null,null,null,null,null,null,null,null,null,null,null,{"$f":"L76+P76","v":0}]
[null,null,null,null,null,null,null,null,null,null,"Total:",{"$f":"SUM(L73:O76)","v":0},null,null,null,{"$f":"SUM(P73:Q76)","v":0},null,{"$f":"SUM(R73:S76)","v":0}]
[]
[null,null,null,null,null,null,null,null,null,null,null,"Owner",null,null,null,"Renter",null,"Total"]
[null,null,null,null,"Female-Headed Households",null,null,null,null,null,null,null,null,null,null,null,null,{"$f":"L80+P80","v":0}]
[]
["Direct Financial Assistance to Homebuyers"]
[]
[null,null,"Total Households Assisted:"]
[]
["Of the Total Households, Number of:",null,null,null,null,null,null,null,null,null,null,null,null,null,null,null,null,null,null,null,"Number of Households:"]
[null,null,null,null,null,null,null,null,null,null,null,null,null,null,null,null,null,"First-Time Homebuyers:"]
[]
["Of the Number of First-Time Homebuyers, Number Receiving Housing Counseling:"]
[]
[null,null,null,null,null,null,null,null,null,null,null,null,"Downpayment Assistance/Closing Costs:"]
["Accomplishment Information"]
["If the activity is intended to help the homeless:"]
[]
["Of the Total Persons, Number of:"]
[null,null,null,null,null,null,null,null,null,null,null,null,"Homeless Persons Given Overnight Shelter:"]
[]
[null,null,null,null,null,null,null,null,"Beds Created in Overnight Shelter or Other Emergency Housing:"]
[]
[null,null,null,null,null,null,null,null,null,null,null,null,null,null,null,null,null,null,null,null,"Total:",null,null,{"$f":"X96+X98","v":0}]
[]
["If the activity is intended to prevent homelessness:"]
[]
["Of the Total Persons, Number of:"]
[null,null,null,null,"Individuals receiving emergency financial assistance to prevent homelessness:"]
[]
[null,null,null,null,null,"Individuals receiving emergency legal assistance to prevent homelessness:"]
[]
[null,null,null,null,null,null,null,null,null,null,null,null,null,null,null,null,null,null,null,null,"Total:",null,null,{"$f":"X105+X107","v":0}]

{"sheet":"LMH 10","index":26,"n_rows":116,"n_cols":33,"rows_kept":116,"cut":false,"hidden":true,"merged":[[2,23,2,26],[4,11,6,14],[4,23,6,26],[20,11,20,14],[20,15,20,16],[21,11,21,14],[21,15,21,16],[15,10,15,15],[16,15,17,16],[17,11,17,14],[18,11,18,14],[18,15,18,16],[19,11,19,14],[19,15,19,16],[24,0,25,10],[24,11,25,14],[24,15,25,16],[26,11,26,14],[26,15,26,16],[27,11,27,14],[27,15,27,16],[2,4,6,10],[2,11,2,14],[2,16,6,22],[22,0,23,10],[22,11,23,14],[22,15,23,16],[28,0,29,10],[28,11,29,14],[28,15,29,16],[30,11,30,14],[30,15,30,16],[31,11,31,14],[31,15,31,16],[46,0,47,10],[46,11,47,14],[46,15,47,16],[38,11,38,14],[38,15,38,16],[39,11,39,14],[39,15,39,16],[40,0,41,10],[40,11,41,14],[40,15,41,16],[33,10,33,15],[34,15,35,16],[35,11,35,14],[36,11,36,14],[36,15,36,16],[37,11,37,14],[37,15,37,16],[48,11,48,14],[48,15,48,16],[49,11,49,14],[49,15,49,16],[42,0,43,10],[42,11,43,14],[42,15,43,16],[44,11,44,14],[44,15,44,16],[45,11,45,14],[45,15,45,16],[56,11,56,14],[56,15,56,16],[57,11,57,14],[57,15,57,16],[58,11,58,14],[58,15,58,16],[51,0,51,26],[52,10,52,15],[53,15,54,16],[54,11,54,14],[55,11,55,14],[55,15,55,16],[63,11,63,14],[63,15,63,16],[64,11,64,14],[64,15,64,16],[65,0,66,10],[65,11,66,14],[65,15,66,16],[59,0,60,10],[59,11,60,14],[59,15,60,16],[61,0,62,10],[61,11,62,14],[61,15,62,16],[71,17,71,18],[72,11,72,14],[72,15,72,16],[72,17,72,18],[73,11,73,14],[73,15,73,16],[73,17,73,18],[67,11,67,14],[67,15,67,16],[68,11,68,14],[68,15,68,16],[71,11,71,14],[71,15,71,16],[78,11,78,14],[78,15,78,16],[78,17,78,18],[76,11,76,14],[76,15,76,16],[76,17,76,18],[74,11,74,14],[74,15,74,16],[74,17,74,18],[75,11,75,14],[75,15,75,16],[75,17,75,18],[98,0,98,26],[111,23,111,26],[113,23,113,26],[115,23,115,26],[90,23,90,26],[79,11,79,14],[79,15,79,16],[79,17,79,18],[83,11,83,14],[86,23,86,26],[88,23,88,26],[93,23,93,26],[95,23,95,26],[97,23,97,26],[102,23,102,26],[104,23,104,26],[106,23,106,26]]}
["Performance Measurement Type(s):"]
[]
[null,null,null,null,{"$f":"IFERROR(INDEX(Backend!$A$120:$D$1048576,MATCH(1,('Activity Information'!$H$41=Backend!$A$120:$A$1048576)*('Activity Information'!$AD$39=Backend!$B$120:$B$1048576),0),MATCH(\"Accomplishment Type1\",Backend!$A$120:$D$120,0)),\"INCORRECT CRITERIA\")","v":"INCORRECT CRITERIA"},null,null,null,null,null,null,null,null,null,null,null,{"$f":"IFERROR(IF((INDEX(Backend!$A$120:$D$1048576,MATCH(1,('Activity Information'!$H$41=Backend!$A$120:$A$1048576)*('Activity Information'!$AD$39=Backend!$B$120:$B$1048576),0),MATCH(\"Accomplishment Type2\",Backend!$A$120:$D$120,0)))=\"\",\"\",INDEX(Backend!$A$120:$D$1048576,MATCH(1,('Activity Information'!$H$41=Backend!$A$120:$A$1048576)*('Activity Information'!$AD$39=Backend!$B$120:$B$1048576),0),MATCH(\"Accomplishment Type2\",Backend!$A$120:$D$120,0))),\"\")","v":""}]
[]
[]
[]
[]
[]
[]
[]
[]
[]
[]
[]
[]
[null,null,null,null,null,null,null,null,null,null,"Households\n(Owners)"]
[null,null,null,null,null,null,null,null,null,null,null,null,null,null,null,"Hispanic\n/Latino"]
[null,null,null,null,null,"Race/Ethnicity",null,null,null,null,null,"Race"]
[null,null,null,null,null,"White"]
[null,null,null,null,null,"Black / African American"]
[null,null,null,null,null,"Asian"]
[null,null,null,null,null,"American Indian / Alaskan Native"]
["Native Hawaiian / Other Pacific Islander"]
[]
["American Indian / Alaskan Native & White"]
[]
[null,null,null,null,null,"Asian & White"]
[null,null,null,null,null,"Black / African American & White"]
["American Indian / Alaskan Native & Black / African American"]
[]
[null,null,null,null,null,"Other Multi-Racial"]
[null,null,null,null,null,null,null,null,null,null,"Total:",{"$f":"SUM(L19:O31)","v":0},null,null,null,{"$f":"SUM(P19:Q31)","v":0}]
[]
[null,null,null,null,null,null,null,null,null,null,"Households\n(Renters)"]
[null,null,null,null,null,null,null,null,null,null,null,null,null,null,null,"Hispanic\n/Latino"]
[null,null,null,null,null,"Race/Ethnicity",null,null,null,null,null,"Race"]
[null,null,null,null,null,"White"]
[null,null,null,null,null,"Black / African American"]
[null,null,null,null,null,"Asian"]
[null,null,null,null,null,"American Indian / Alaskan Native"]
["Native Hawaiian / Other Pacific Islander"]
[]
["American Indian / Alaskan Native & White"]
[]
[null,null,null,null,null,"Asian & White"]
[null,null,null,null,null,"Black / African American & White"]
["American Indian / Alaskan Native & Black / African American"]
[]
[null,null,null,null,null,"Other Multi-Racial"]
[null,null,null,null,null,null,null,null,null,null,"Total:",{"$f":"SUM(L37:O49)","v":0},null,null,null,{"$f":"SUM(P37:Q49)","v":0}]
[]
["Accomplishment Information"]
[null,null,null,null,null,null,null,null,null,null,"Households\n(Total)"]
[null,null,null,null,null,null,null,null,null,null,null,null,null,null,null,"Hispanic\n/Latino",null,null,null,null,null,null,null,null,null,null,null,null,null,null,null,null," "]
[null,null,null,null,null,"Race/Ethnicity",null,null,null,null,null,"Race"]
[null,null,null,null,null,"White",null,null,null,null,null,{"$f":"L19+L37","v":0},null,null,null,{"$f":"P19+P37","v":0}]
[null,null,null,null,null,"Black / African American",null,null,null,null,null,{"$f":"L20+L38","v":0},null,null,null,{"$f":"P20+P38","v":0}]
[null,null,null,null,null,"Asian",null,null,null,null,null,{"$f":"L21+L39","v":0},null,null,null,{"$f":"P21+P39","v":0}]
[null,null,null,null,null,"American Indian / Alaskan Native",null,null,null,null,null,{"$f":"L22+L40","v":0},null,null,null,{"$f":"P22+P40","v":0}]
["Native Hawaiian / Other Pacific Islander",null,null,null,null,null,null,null,null,null,null,{"$f":"L23+L41","v":0},null,null,null,{"$f":"P23+P41","v":0}]
[]
["American Indian / Alaskan Native & White",null,null,null,null,null,null,null,null,null,null,{"$f":"L25+L43","v":0},null,null,null,{"$f":"P25+P43","v":0}]
[]
[null,null,null,null,null,"Asian & White",null,null,null,null,null,{"$f":"L27+L45","v":0},null,null,null,{"$f":"P27+P45","v":0}]
[null,null,null,null,null,"Black / African American & White",null,null,null,null,null,{"$f":"L28+L46","v":0},null,null,null,{"$f":"P28+P46","v":0}]
["American Indian / Alaskan Native & Black / African American",null,null,null,null,null,null,null,null,null,null,{"$f":"L29+L47","v":0},null,null,null,{"$f":"P29+P47","v":0}]
[]
[null,null,null,null,null,"Other Multi-Racial",null,null,null,null,null,{"$f":"L31+L49","v":0},null,null,null,{"$f":"P31+P49","v":0}]
[null,null,null,null,null,null,null,null,null,null,"Total:",{"$f":"SUM(L56:O68)","v":0},null,null,null,{"$f":"SUM(P56:Q68)","v":0}]
[]
[]
[null,null,null,null,"Income Information",null,null,null,null,null,null,"Owner",null,null,null,"Renter",null,"Total"]
[null,null,null,null,"Extremely Low (0-30% AMI)",null,null,null,null,null,null,null,null,null,null,null,null,{"$f":"L73+P73","v":0}]
[null,null,null,null,"Low (31-50% AMI)",null,null,null,null,null,null,null,null,null,null,null,null,0]
[null,null,null,null,"Moderate (51-80% AMI)",null,null,null,null,null,null,null,null,null,null,null,null,0]
[null,null,null,null,"Non-Low/Moderate",null,null,null,null,null,null,null,null,null,null,null,null,{"$f":"L76+P76","v":0}]
[null,null,null,null,null,null,null,null,null,null,"Total:",{"$f":"SUM(L73:O76)","v":0},null,null,null,{"$f":"SUM(P73:Q76)","v":0},null,{"$f":"SUM(R73:S76)","v":0}]
[]
[null,null,null,null,null,null,null,null,null,null,null,"Owner",null,null,null,"Renter",null,"Total"]
[null,null,null,null,"Female-Headed Households",null,null,null,null,null,null,null,null,null,null,null,null,{"$f":"L80+P80","v":0}]
[]
["Short-Term Rental Assistance:"]
[]
[null,null,"Total Households Assisted:"]
[]
["Of the Households Assisted, Number of:",null,null,null,null,null,null,null,null,null,null,null,null,null,null,null,null,null,null,null,"Number of Households:"]
[null,null,null,null,null,null,null,null,null,null,null,null,null,"Receiving short-term rental assistance (not more than three months):"]
[]
[null,null,null,null,null,null,null,null,null,null,null,null,null,null,"That were previously homeless:"]
[]
[null,null,null,null,null,null,null,null,null,null,"Of those, the number that were chronically homeless:"]
[]
["Of the Total Persons, Number of:"]
[null,null,null,null,null,null,null,null,null,null,null,null,null,null,null,"With New or Continuing Access to a Service or Benefit:"]
[]
[null,null,null,null,null,null,null,null,null,null,null,null,null,null,null,null,"With Improved Access to a Service or Benefit:"]
[]
[null,null,null,null,null,null,null,null,null,null,null,null,null,null,"Receive a Service or Benefit that is No Longer Substandard:"]
["Accomplishment Information"]
["If the activity is intended to help the homeless:"]
[]
["Of the Total Persons, Number of:"]
[null,null,null,null,null,null,null,null,null,null,null,null,"Homeless Persons Given Overnight Shelter:"]
[]
[null,null,null,null,null,null,null,null,"Beds Created in Overnight Shelter or Other Emergency Housing:"]
[]
[null,null,null,null,null,null,null,null,null,null,null,null,null,null,null,null,null,null,null,null,"Total:",null,null,{"$f":"X103+X105","v":0}]
[]
["If the activity is intended to prevent homelessness:"]
[]
["Of the Total Persons, Number of:"]
[null,null,null,null,"Individuals receiving emergency financial assistance to prevent homelessness:"]
[]
[null,null,null,null,null,"Individuals receiving emergency legal assistance to prevent homelessness:"]
[]
[null,null,null,null,null,null,null,null,null,null,null,null,null,null,null,null,null,null,null,null,"Total:",null,null,{"$f":"X112+X114","v":0}]

{"sheet":"SBURG 1","index":27,"n_rows":21,"n_cols":33,"rows_kept":21,"cut":false,"hidden":true,"merged":[[18,23,18,26],[20,23,20,26],[2,23,2,26],[7,23,7,26],[9,23,9,26],[11,23,11,26],[16,23,16,26]]}
[]
[]
[null,null,null,null,null,null,null,null,null,null,null,null,null,null,null,null,null,null,"Actual Units:"]
[]
["If the activity is intended to help the homeless:"]
[]
["Of the Total Persons, Number of:"]
[null,null,null,null,null,null,null,null,null,null,null,null,"Homeless Persons Given Overnight Shelter:"]
[]
[null,null,null,null,null,null,null,null,"Beds Created in Overnight Shelter or Other Emergency Housing:"]
[]
[null,null,null,null,null,null,null,null,null,null,null,null,null,null,null,null,null,null,null,null,"Total:",null,null,{"$f":"X8+X10","v":0},null,null,null,null,null,null,null,null," "]
[]
["If the activity is intended to prevent homelessness:"]
[]
["Of the Total Persons, Number of:"]
[null,null,null,null,"Individuals receiving emergency financial assistance to prevent homelessness:"]
[]
[null,null,null,null,null,"Individuals receiving emergency legal assistance to prevent homelessness:"]
[]
[null,null,null,null,null,null,null,null,null,null,null,null,null,null,null,null,null,null,null,null,"Total:",null,null,{"$f":"X17+X19","v":0}]

{"sheet":"SBURG 2","index":28,"n_rows":37,"n_cols":33,"rows_kept":37,"cut":false,"hidden":true,"merged":[[2,23,2,26],[4,23,4,26],[5,23,5,26],[7,23,7,26],[23,23,23,26],[9,23,9,26],[11,23,11,26],[13,23,13,26],[14,23,14,26],[32,23,32,26],[34,23,34,26],[36,23,36,26],[15,11,16,22],[16,23,16,26],[25,23,25,26],[27,23,27,26],[18,23,18,26]]}
[]
[]
[null,null,null,null,null,null,null,null,null,null,null,null,null,null,null,null,null,null,"Actual Units:"]
[]
["Applicable Lead Paint Requirement:",null,null,null,null,null,null,null,null,null,null,null,null,null,null,null,null,null,null,null,null,null,null,"# Units"]
[null,null,null,null,null,null,null,null,null,null,null,null,null,null,null,null,null,"Housing constructed before 1978:"]
[]
[null,null,null,null,null,null,null,null,null,null,null,null,"Exempt: Housing constructed 1978 or later:"]
[]
[null,null,null,null,null,null,null,null,null,null,null,null,null,null,null,"Exempt: Hard costs <= $5,000:"]
[]
[null,null,null,null,null,null,null,null,null,null,null,null,null,null,null,null,null,null,"Otherwise exempt:",null,null,null,null,null,null,null,null,null,null,null,null,null," "]
[]
["Lead Hazard Remediation Actions: (For rehabilitation only)",null,null,null,null,null,null,null,null,null,null,null,null,null,null,null,null,null,null,null,null,null,null,"# Units"]
[null,null,null,null,null,null,null,null,null,null,null,null,null,"Lead Safe Work Practices (24 CFR 35.930(b))  (Hard Costs <= $5,000):"]
[null,null,null,null,null,null,null,null,null,null,null,"Interim Controls or Standard Practices (24 CFR 35.930(c))  (Hard Costs $5,000 - $25,000):"]
[]
[]
[null,null,null,null,null,null,null,null,null,"Abatement (24 CFR 35.930(d))  (Hard Costs >$25,000):"]
[]
["If the activity is intended to help the homeless:"]
[]
["Of the Total Persons, Number of:"]
[null,null,null,null,null,null,null,null,null,null,null,null,"Homeless Persons Given Overnight Shelter:"]
[]
[null,null,null,null,null,null,null,null,"Beds Created in Overnight Shelter or Other Emergency Housing:"]
[]
[null,null,null,null,null,null,null,null,null,null,null,null,null,null,null,null,null,null,null,null,"Total:",null,null,{"$f":"X24+X26","v":0}]
[]
["If the activity is intended to prevent homelessness:"]
[]
["Of the Total Persons, Number of:"]
[null,null,null,null,"Individuals receiving emergency financial assistance to prevent homelessness:"]
[]
[null,null,null,null,null,"Individuals receiving emergency legal assistance to prevent homelessness:"]
[]
[null,null,null,null,null,null,null,null,null,null,null,null,null,null,null,null,null,null,null,null,"Total:",null,null,{"$f":"X33+X35","v":0}]

{"sheet":"SBURG 3","index":29,"n_rows":19,"n_cols":33,"rows_kept":19,"cut":false,"hidden":true,"merged":[[14,23,14,26],[16,23,16,26],[18,23,18,26],[4,11,4,14],[7,23,7,26],[9,23,9,26],[11,23,11,26]]}
[]
[]
[]
[]
[null,null,null,null,null,null,null,"Total Persons Assisted:"]
[]
["Of the Total Persons, Number of:",null,null,null,null,null,null,null,null,null,null,null,null,null,null,null,null,null,null,null,null,"Number of Persons"]
[null,null,null,null,null,null,null,null,null,null,null,null,"With New Access to this Type of Public Facility or Infrastructure Improvement:"]
[]
["With Improved Access to this Type of Public Facility or Infrastructure Improvement:"]
[]
[null,null,null,null,null,null,null,null,null,null,null,null,"With Access to Public Facility or Infrastructure that Is No Longer Substandard:",null,null,null,null,null,null,null,null,null,null,null,null,null,null,null,null,null,null,null," "]
[]
["Of the Total Persons, Number of:",null,null,null,null,null,null,null,null,null,null,null,null,null,null,null,null,null,null,null,null,"Number of Persons"]
[null,null,null,null,null,null,null,null,null,null,null,null,null,null,null,null,"Homeless Persons Given Overnight Shelter:"]
[]
[null,null,null,null,null,null,"Beds Created in Overnight Shelter or Other Emergency Housing:"]
[]
[null,null,null,null,null,null,null,null,null,null,null,null,null,null,null,null,null,null,null,null,null,"Total:",null,{"$f":"X15+X17","v":0}]

{"sheet":"SBURG 4","index":30,"n_rows":32,"n_cols":33,"rows_kept":32,"cut":false,"hidden":true,"merged":[[1,0,1,26],[13,23,13,26],[2,23,2,26],[7,23,7,26],[9,23,9,26],[11,23,11,26],[4,11,4,14],[27,23,27,26],[29,23,29,26],[31,23,31,26],[18,23,18,26],[20,23,20,26],[22,23,22,26]]}
[]
["Accomplishment Narrative"]
[null,null,null,null,null,null,null,null,null,null,null,null,null,null,null,null,null,null,"Actual Units:"]
[]
[null,null,null,null,null,null,null,"Total Persons Assisted:"]
[]
["Of the Total Persons, Number of:",null,null,null,null,null,null,null,null,null,null,null,null,null,null,null,null,null,null,null,null,"Number of Persons"]
[null,null,null,null,null,null,null,null,null,null,null,null,null,null,null,"With New or Continuing Access to a Service or Benefit:"]
[]
[null,null,null,null,null,null,null,null,null,null,null,null,null,null,null,null,"With Improved Access to a Service or Benefit:"]
[]
[null,null,null,null,null,null,null,null,null,null,null,null,null,null,"Receive a Service or Benefit that is No Longer Substandard:"]
[null,null,null,null,null,null,null,null,null,null,null,null,null,null,null,null,null,null,null,null,null,null,null,null,null,null,null,null,null,null,null,null," "]
[null,null,null,null,null,null,null,null,null,null,null,null,null,null,null,null,null,null,null,null,null,"Total:",null,{"$f":"X8+X10+X12","v":0}]
[]
["If the activity is intended to help the homeless:"]
[]
["Of the Total Persons, Number of:"]
[null,null,null,null,null,null,null,null,null,null,null,null,"Homeless Persons Given Overnight Shelter:"]
[]
[null,null,null,null,null,null,null,null,"Beds Created in Overnight Shelter or Other Emergency Housing:"]
[]
[null,null,null,null,null,null,null,null,null,null,null,null,null,null,null,null,null,null,null,null,"Total:",null,null,{"$f":"X19+X21","v":0}]
[]
["If the activity is intended to prevent homelessness:"]
[]
["Of the Total Persons, Number of:"]
[null,null,null,null,"Individuals receiving emergency financial assistance to prevent homelessness:"]
[]
[null,null,null,null,null,"Individuals receiving emergency legal assistance to prevent homelessness:"]
[]
[null,null,null,null,null,null,null,null,null,null,null,null,null,null,null,null,null,null,null,null,"Total:",null,null,{"$f":"X28+X30","v":0}]

{"sheet":"SBURG 5","index":31,"n_rows":39,"n_cols":33,"rows_kept":39,"cut":false,"hidden":true,"merged":[[34,23,34,26],[36,23,36,26],[38,23,38,26],[1,0,1,26],[11,23,11,26],[2,23,2,26],[4,11,4,14],[7,23,7,26],[9,23,9,26],[27,23,27,26],[29,23,29,26],[14,23,14,26],[16,23,16,26],[18,23,18,26],[20,23,20,26],[25,23,25,26]]}
[]
["Accomplishment Information"]
[null,null,null,null,null,null,null,null,null,null,null,null,null,null,null,null,null,null,"Actual Units:"]
["Direct Financial Assistance to Homebuyers"]
[null,null,null,null,null,null,null,"Total Households Assisted:"]
[]
["Of the Total Households, Number of:"]
[null,null,null,null,null,null,null,null,null,null,null,null,null,null,null,null,null,null,"First-Time Homebuyers:"]
[]
[null,"Of the Number of First-Time Homebuyers, Number Receiving Housing Counseling:"]
[null,null,null,null,null,null,null,null,null,null,null,null,null,null,null,null,null,null,null,null,null,null,null,null,null,null,null,null,null,null,null,null," "]
[null,null,null,null,null,null,null,null,null,null,null,null,"Downpayment Assistance/Closing Costs:"]
[]
["Of the Total Persons, Number of:",null,null,null,null,null,null,null,null,null,null,null,null,null,null,null,null,null,null,null,null,"Number of Persons"]
[null,null,null,null,null,null,null,null,null,null,null,null,null,null,null,"With New or Continuing Access to a Service or Benefit:"]
[]
[null,null,null,null,null,null,null,null,null,null,null,null,null,null,null,null,"With Improved Access to a Service or Benefit:"]
[]
[null,null,null,null,null,null,null,null,null,null,null,null,null,null,"Receive a Service or Benefit that is No Longer Substandard:"]
[]
[null,null,null,null,null,null,null,null,null,null,null,null,null,null,null,null,null,null,null,null,null,"Total:",null,{"$f":"X15+X17+X19","v":0}]
[]
["If the activity is intended to help the homeless:"]
[]
["Of the Total Persons, Number of:"]
[null,null,null,null,null,null,null,null,null,null,null,null,"Homeless Persons Given Overnight Shelter:"]
[]
[null,null,null,null,null,null,null,null,"Beds Created in Overnight Shelter or Other Emergency Housing:"]
[]
[null,null,null,null,null,null,null,null,null,null,null,null,null,null,null,null,null,null,null,null,"Total:",null,null,{"$f":"X26+X28","v":0}]
[]
["If the activity is intended to prevent homelessness:"]
[]
["Of the Total Persons, Number of:"]
[null,null,null,null,"Individuals receiving emergency financial assistance to prevent homelessness:"]
[]
[null,null,null,null,null,"Individuals receiving emergency legal assistance to prevent homelessness:"]
[]
[null,null,null,null,null,null,null,null,null,null,null,null,null,null,null,null,null,null,null,null,"Total:",null,null,{"$f":"X35+X37","v":0}]

{"sheet":"SBURG 6","index":32,"n_rows":31,"n_cols":33,"rows_kept":31,"cut":false,"hidden":true,"merged":[[1,0,1,26],[12,23,12,26],[2,23,2,26],[5,11,5,14],[8,23,8,26],[10,23,10,26],[26,23,26,26],[28,23,28,26],[30,23,30,26],[17,23,17,26],[19,23,19,26],[21,23,21,26]]}
[]
["Accomplishment Information"]
[null,null,null,null,null,null,null,null,null,null,null,null,null,null,null,null,null,null,"Actual Units:"]
[]
["Short-term Rental Assistance"]
[null,null,null,null,null,null,null,"Total Households Assisted:"]
[]
["Of the Total Households , Number of:"]
[null,null,null,null,null,null,null,null,null,null,null,null,null,"Receiving short-term rental assistance (not more than three months):"]
[]
[null,null,null,null,null,null,null,null,null,null,null,null,null,"That were previously homeless:"]
[null,null,null,null,null,null,null,null,null,null,null,null,null,null,null,null,null,null,null,null,null,null,null,null,null,null,null,null,null,null,null,null," "]
[null,null,null,null,null,null,null,null,null,"Of those, the number that were chronically homeless:"]
[]
["If the activity is intended to help the homeless:"]
[]
["Of the Total Persons, Number of:"]
[null,null,null,null,null,null,null,null,null,null,null,null,"Homeless Persons Given Overnight Shelter:"]
[]
[null,null,null,null,null,null,null,null,"Beds Created in Overnight Shelter or Other Emergency Housing:"]
[]
[null,null,null,null,null,null,null,null,null,null,null,null,null,null,null,null,null,null,null,null,"Total:",null,null,{"$f":"X18+X20","v":0}]
[]
["If the activity is intended to prevent homelessness:"]
[]
["Of the Total Persons, Number of:"]
[null,null,null,null,"Individuals receiving emergency financial assistance to prevent homelessness:"]
[]
[null,null,null,null,null,"Individuals receiving emergency legal assistance to prevent homelessness:"]
[]
[null,null,null,null,null,null,null,null,null,null,null,null,null,null,null,null,null,null,null,null,"Total:",null,null,{"$f":"X27+X29","v":0}]

{"sheet":"SBURG 7","index":33,"n_rows":33,"n_cols":24,"rows_kept":33,"cut":false,"hidden":true,"merged":[[28,23,28,26],[30,23,30,26],[32,23,32,26],[1,0,1,26],[2,23,2,26],[5,11,5,14],[21,23,21,26],[23,23,23,26],[8,23,8,26],[10,23,10,26],[12,23,12,26],[14,23,14,26],[19,23,19,26]]}
[]
["Accomplishment Information"]
[null,null,null,null,null,null,null,null,null,null,null,null,null,null,null,null,null,null,"Actual Units:"]
[]
["Homeless Prevention"]
[null,null,null,null,null,null,null,"Total Persons Assisted:"]
[]
["Of the Total Persons, Number of:",null,null,null,null,null,null,null,null,null,null,null,null,null,null,null,null,null,null,null,null,"Number of Persons"]
[null,null,null,null,null,null,null,null,null,null,null,null,null,null,null,"With New or Continuing Access to a Service or Benefit:"]
[]
[null,null,null,null,null,null,null,null,null,null,null,null,null,null,null,null,"With Improved Access to a Service or Benefit:"]
[]
[null,null,null,null,null,null,null,null,null,null,null,null,null,null,"Receive a Service or Benefit that is No Longer Substandard:"]
[]
[null,null,null,null,null,null,null,null,null,null,null,null,null,null,null,null,null,null,null,null,null,"Total:",null,{"$f":"X9+X11+X13","v":0}]
[]
["If the activity is intended to help the homeless:"]
[]
["Of the Total Persons, Number of:"]
[null,null,null,null,null,null,null,null,null,null,null,null,"Homeless Persons Given Overnight Shelter:"]
[]
[null,null,null,null,null,null,null,null,"Beds Created in Overnight Shelter or Other Emergency Housing:"]
[]
[null,null,null,null,null,null,null,null,null,null,null,null,null,null,null,null,null,null,null,null,"Total:",null,null,{"$f":"X20+X22","v":0}]
[]
["If the activity is intended to prevent homelessness:"]
[]
["Of the Total Persons, Number of:"]
[null,null,null,null,"Individuals receiving emergency financial assistance to prevent homelessness:"]
[]
[null,null,null,null,null,"Individuals receiving emergency legal assistance to prevent homelessness:"]
[]
[null,null,null,null,null,null,null,null,null,null,null,null,null,null,null,null,null,null,null,null,"Total:",null,null,{"$f":"X29+X31","v":0}]

{"sheet":"SBURG 8","index":34,"n_rows":67,"n_cols":33,"rows_kept":67,"cut":false,"hidden":true,"merged":[[43,9,44,22],[43,23,44,26],[16,23,16,26],[5,11,5,14],[19,11,19,14],[22,23,22,26],[24,23,24,26],[38,23,38,26],[36,23,36,26],[39,23,40,26],[41,9,42,22],[41,23,42,26],[1,0,1,26],[8,23,8,26],[10,23,10,26],[12,23,12,26],[14,23,14,26],[62,23,62,26],[64,23,64,26],[66,23,66,26],[26,23,26,26],[28,23,28,26],[30,23,30,26],[32,23,32,26],[53,23,53,26],[55,23,55,26],[57,23,57,26],[34,0,34,26],[45,5,46,22],[45,23,46,26],[47,8,48,22],[47,23,48,26],[39,10,40,22]]}
[]
["Accomplishment Narrative"]
[]
[]
["Homeowner Rehab"]
[null,null,null,null,null,null,"Total Actual Units:"]
[]
["Of the Total Owner Units, Number of:",null,null,null,null,null,null,null,null,null,null,null,null,null,null,null,null,null,null,null,null,null,"Number of Units:"]
[null,null,null,null,null,null,null,null,null,null,null,null,null,null,null,null,"Units Occupied by Elderly:"]
[]
[null,null,null,null,null,null,null,null,null,null,null,null,null,null,"Units Moved from Substandard to Standard (HQS or Local Code):"]
[]
[null,null,null,null,null,null,null,null,null,null,null,null,null,null,null,null,"Section 504 Accessible Units:"]
[null,null,null,null,null,null,null,null,null,null,null,null,null,null,null,null,null,null,null,null,null,null,null,null,null,null,null,null,null,null,null,null," "]
[null,null,null,null,null,null,null,null,null,null,null,null,null,null,null,null,null,"Units Qualified as Energy Star:"]
[]
[null,null,null,null,null,null,null,null,null,null,null,null,null,null,"Brought into Compliance with Lead Safety Rules (24 CFR Part 35):"]
[]
["Rental Rehab"]
[null,null,null,null,null,null,null,"Total Rental Units:"]
[]
["Of the Total Rental Units, Number of:",null,null,null,null,null,null,null,null,null,null,null,null,null,null,null,null,null,null,null,null,null,"Number of Units:"]
[null,null,null,null,null,null,null,null,null,null,null,null,null,null,null,null,null,"Affordable Units:"]
[]
[null,null,null,null,null,null,null,null,null,null,null,null,null,null,null,null,null,"Section 504 Accessible Units:"]
[]
[null,null,null,"Brought from Substandard to Standard Condition (HQS or Local Code):"]
[]
[null,null,null,null,null,null,null,null,null,null,null,null,null,null,null,null,null,"Units Qualified as Energy Star:"]
[]
[null,null,null,null,null,null,null,null,null,null,null,null,null,null,"Brought into Compliance with Lead Safety Rules (24 CFR Part 35):"]
[]
[null,null,"Units Created Through Conversion of Non-Residential to Residential Buildings:"]
[]
["Accomplishment Narrative"]
["Of the Total Affordable Units, Number of:",null,null,null,null,null,null,null,null,null,null,null,null,null,null,null,null,null,null,null,null,null,"Number of Units:"]
[null,null,null,null,null,null,null,null,null,null,null,null,null,null,null,null,"Units Occupied by Elderly:"]
[]
[null,null,null,null,null,null,null,null,null,null,null,null,null,"Years of Affordability Guaranteed:"]
[null,null,null,null,null,null,null,null,null,null,"Units Subsidized with Project-Based Rental Assistance by Another Federal, State, or Local Program:"]
[]
[null,null,null,null,null,null,null,null,null,"Units Designated for Persons with HIV/AIDS Including Units Receiving Assistance for Operations:"]
[]
[null,null,null,null,null,null,null,null,null,"Of Units Designated for Persons with HIV/AIDS, Number Specifically for Chronically Homeless:"]
[]
[null,null,null,null,null,"Permanent Housing Units Designated for Homeless Persons and Families, Including Units Receiving Assistance for Operations:"]
[]
[null,null,null,null,null,null,null,null,"Of Permanent Housing Units Designated for Homeless, Number for the Chronically Homeless:"]
[]
[]
["If the activity is intended to help the homeless:"]
[]
["Of the Total Persons, Number of:"]
[null,null,null,null,null,null,null,null,null,null,null,null,"Homeless Persons Given Overnight Shelter:"]
[]
[null,null,null,null,null,null,null,null,"Beds Created in Overnight Shelter or Other Emergency Housing:"]
[]
[null,null,null,null,null,null,null,null,null,null,null,null,null,null,null,null,null,null,null,null,"Total:",null,null,{"$f":"X54+X56","v":0}]
[]
["If the activity is intended to prevent homelessness:"]
[]
["Of the Total Persons, Number of:"]
[null,null,null,null,"Individuals receiving emergency financial assistance to prevent homelessness:"]
[]
[null,null,null,null,null,"Individuals receiving emergency legal assistance to prevent homelessness:"]
[]
[null,null,null,null,null,null,null,null,null,null,null,null,null,null,null,null,null,null,null,null,"Total:",null,null,{"$f":"X63+X65","v":0}]

{"sheet":"SBURG 9","index":35,"n_rows":75,"n_cols":33,"rows_kept":75,"cut":false,"hidden":true,"merged":[[52,5,53,22],[53,23,53,26],[55,11,56,22],[56,23,56,26],[49,11,50,22],[46,9,47,22],[47,23,47,26],[25,23,25,26],[26,12,27,22],[27,23,27,26],[30,11,30,14],[32,23,32,26],[34,23,34,26],[36,23,36,26],[39,23,39,26],[41,23,41,26],[43,10,44,22],[44,23,44,26],[28,0,28,26],[22,8,23,22],[23,23,23,26],[5,11,5,14],[8,23,8,26],[10,23,10,26],[12,23,12,26],[14,23,14,26],[16,23,16,26],[70,23,70,26],[72,23,72,26],[74,23,74,26],[19,23,19,26],[21,23,21,26],[50,23,50,26],[61,23,61,26],[63,23,63,26],[65,23,65,26]]}
[]
[]
[]
[]
["Acquisition/Construction New Homeowner"]
[null,null,null,null,null,null,null,"Total Actual Units:"]
[]
["Of the Total Owner Units, Number of:",null,null,null,null,null,null,null,null,null,null,null,null,null,null,null,null,null,null,null,null,null,"Number of Units:"]
[null,null,null,null,null,null,null,null,null,null,null,null,null,null,null,null,null,"Affordable Units:"]
[]
[null,null,null,null,null,null,null,null,null,null,null,null,null,null,null,null,null,"Years of Affordability Guaranteed:"]
[null,null,null,null,null,null,null,null,null,null,null,null,null,null,null,null,null,null,null,null,null,null,null,null,null,null,null,null,null,null,null,null," "]
[null,null,null,null,null,null,null,null,null,null,null,null,null,null,null,null,"Section 504 Accessible Units:"]
[]
[null,null,null,null,null,null,null,null,null,null,null,null,null,null,null,null,null,"Units Qualified as Energy Star:"]
[]
[null,null,null,null,null,null,null,null,null,null,null,null,null,null,null,null,"Households previously living in subsidized housing:"]
[]
["Of the Total Affordable Units, Number of:",null,null,null,null,null,null,null,null,null,null,null,null,null,null,null,null,null,null,null,null,null,"Number of Units:"]
[null,null,null,null,null,null,null,null,null,null,null,null,null,null,null,null,"Units Occupied by Elderly:"]
[]
[null,null,null,null,null,null,null,null,null,null,null,null,null,null,null,null,"Units Specifically Designed for Persons with HIV/AIDS:"]
[null,null,null,null,null,null,null,null,"Of Units Designated for Persons with HIV/AIDS, Number Specifically for Chronically Homeless:"]
[]
[]
[null,null,null,null,null,null,null,null,null,null,null,null,"Units Specifically Designated for Homeless:"]
[null,null,null,null,null,null,null,null,null,null,null,null,"Of Units Designated for Homeless, Number Specifically for Chronically Homeless:"]
[]
["Accomplishment Narrative"]
["Construction of Rental Units"]
[null,null,"Total Constructed Rental Units:"]
["Of the Total Rental Units, Number of:",null,null,null,null,null,null,null,null,null,null,null,null,null,null,null,null,null,null,null,null,null,"Number of Units:"]
[null,null,null,null,null,null,null,null,null,null,null,null,null,null,null,null,null,"Affordable Units:"]
[]
[null,null,null,null,null,null,null,null,null,null,null,null,null,null,null,null,null,"Section 504 Accessible Units:"]
[]
[null,null,null,null,null,null,null,null,null,null,null,null,null,null,null,null,null,"Units Qualified as Energy Star:"]
[]
["Of the Total Rental Units, Number of:",null,null,null,null,null,null,null,null,null,null,null,null,null,null,null,null,null,null,null,null,null,"Number of Units:"]
[null,null,null,null,null,null,null,null,null,null,null,null,null,null,null,null,"Units Occupied by Elderly:"]
[]
[null,null,null,null,null,null,null,null,null,null,null,null,null,"Years of Affordability Guaranteed:"]
[]
[null,null,null,null,null,null,null,null,null,null,"Units Subsidized with Project-Based Rental Assistance by Another Federal, State, or Local Program:"]
[]
[]
[null,null,null,null,null,null,null,null,null,"Units Designated for Persons with HIV/AIDS Including Units Receiving Assistance for Operations:"]
[]
[]
[null,null,null,null,null,null,null,null,null,null,null,"Of Units Designated for Persons with HIV/AIDS, Number Specifically for Chronically Homeless:"]
[]
[]
[null,null,null,null,null,"Permanent Housing Units Designated for Homeless Persons and Families, Including Units Receiving Assistance for Operations:"]
[]
[]
[null,null,null,null,null,null,null,null,null,null,null,"Of Permanent Housing Units Designated for Homeless, Number for Chronically Homeless:"]
[]
[]
["If the activity is intended to help the homeless:"]
[]
["Of the Total Persons, Number of:"]
[null,null,null,null,null,null,null,null,null,null,null,null,"Homeless Persons Given Overnight Shelter:"]
[]
[null,null,null,null,null,null,null,null,"Beds Created in Overnight Shelter or Other Emergency Housing:"]
[]
[null,null,null,null,null,null,null,null,null,null,null,null,null,null,null,null,null,null,null,null,"Total:",null,null,{"$f":"X62+X64","v":0}]
[]
["If the activity is intended to prevent homelessness:"]
[]
["Of the Total Persons, Number of:"]
[null,null,null,null,"Individuals receiving emergency financial assistance to prevent homelessness:"]
[]
[null,null,null,null,null,"Individuals receiving emergency legal assistance to prevent homelessness:"]
[]
[null,null,null,null,null,null,null,null,null,null,null,null,null,null,null,null,null,null,null,null,"Total:",null,null,{"$f":"X71+X73","v":0}]

{"sheet":"SBURG 10","index":36,"n_rows":35,"n_cols":33,"rows_kept":35,"cut":false,"hidden":true,"merged":[[31,3,31,14],[32,3,32,14],[33,3,33,14],[34,3,34,14],[25,3,25,14],[26,3,26,14],[27,3,27,14],[28,3,28,14],[29,3,29,14],[30,3,30,14],[24,3,24,14],[12,23,12,26],[13,8,14,22],[14,23,14,26],[17,3,17,14],[18,3,18,14],[19,3,19,14],[20,3,20,14],[21,3,21,14],[22,3,22,14],[23,3,23,14],[10,9,10,10],[2,23,2,26],[4,9,4,10],[7,9,7,10],[7,13,7,15]]}
[]
[]
[null,null,null,null,null,null,null,null,null,null,null,null,null,null,null,null,null,null,"Actual Units:"]
[]
["New Businesses Assisted:"]
[]
[null,null,null,null,null,null,null,null,null,null,null,null,null,null,"Number Expanding",null,null,null,null,"Number Relocating"]
["Existing Businesses Assisted:"]
[]
[]
[null,null,null,null,null,null,"Total:",null,null,{"$f":"J5+J8","v":0}]
[null,null,null,null,null,null,null,null,null,null,null,null,null,null,null,null,null,null,null,null,null,null,null,null,null,null,null,null,null,null,null,null," "]
[null,null,null,null,null,null,null,null,null,null,null,null,null,null,null,"Number of Business Facades/Buildings Rehabilitated:"]
[null,null,null,null,null,null,null,null,"Number of Businesses Assisted that Provide Goods or Services to Meet the Needs of a Service Area:"]
[]
[]
["Specify UEI# for Each Business Assisted:"]
[null,null,"UEI#:"]
[null,null,"UEI#:"]
[null,null,"UEI#:"]
[null,null,"UEI#:"]
[null,null,"UEI#:"]
[null,null,"UEI#:"]
[null,null,"UEI#:"]
[null,null,"UEI#:"]
[null,null,"UEI#:"]
[null,null,"UEI#:"]
[null,null,"UEI#:"]
[null,null,"UEI#:"]
[null,null,"UEI#:"]
[null,null,"UEI#:"]
[null,null,"UEI#:"]
[null,null,"UEI#:"]
[null,null,"UEI#:"]
[null,null,"UEI#:"]

{"sheet":"LMJ 1","index":37,"n_rows":72,"n_cols":33,"rows_kept":72,"cut":false,"hidden":true,"merged":[[29,23,30,26],[30,11,30,14],[31,11,31,14],[31,23,31,26],[33,11,33,14],[33,23,33,26],[35,0,35,26],[55,10,56,22],[59,23,59,26],[37,23,38,26],[39,11,39,14],[39,23,39,26],[41,11,41,14],[41,23,41,26],[43,11,45,13],[46,11,46,14],[48,11,48,14],[51,11,51,14],[54,23,54,26],[51,23,51,26],[63,11,63,14],[63,16,63,17],[64,11,64,14],[64,16,64,17],[55,23,56,26],[65,11,65,14],[65,16,65,17],[71,11,71,14],[71,16,71,17],[66,11,66,14],[66,16,66,17],[67,11,67,14],[67,16,67,17],[68,11,68,14],[68,16,68,17],[69,11,69,14],[69,16,69,17],[70,11,70,14],[70,16,70,17],[5,15,6,16],[6,11,6,14],[7,11,7,14],[7,15,7,16],[8,11,8,14],[8,15,8,16],[9,11,9,14],[9,15,9,16],[10,11,10,14],[10,15,10,16],[11,0,12,10],[11,11,12,14],[11,15,12,16],[13,0,14,10],[13,11,14,14],[13,15,14,16],[15,11,15,14],[15,15,15,16],[16,11,16,14],[16,15,16,16],[17,0,18,10],[17,11,18,14],[17,15,18,16],[24,11,24,14],[25,11,25,14],[26,11,26,14],[19,11,19,14],[19,15,19,16],[20,11,20,14],[20,15,20,16],[23,11,23,14]]}
[]
[]
[]
[]
[]
[null,null,null,null,null,null,null,null,null,null,null,null,null,null,null,"Hispanic\n/Latino"]
[null,null,null,null,null,"Race/Ethnicity",null,null,null,null,null,"Race"]
[null,null,null,null,null,"White"]
[null,null,null,null,null,"Black / African American"]
[null,null,null,null,null,"Asian"]
[null,null,null,null,null,"American Indian / Alaskan Native"]
["Native Hawaiian / Other Pacific Islander"]
[]
["American Indian / Alaskan Native & White"]
[]
[null,null,null,null,null,"Asian & White"]
[null,null,null,null,null,"Black / African American & White"]
["American Indian / Alaskan Native & Black / African American"]
[]
[null,null,null,null,null,"Other Multi-Racial"]
[null,null,null,null,null,null,null,null,null,null,"Total:",{"$f":"SUM(L8:O20)","v":0},null,null,null,{"$f":"SUM(P8:Q20)","v":0}]
[]
[null,null,null,null,"Income Information"]
[null,null,null,null,"Extremely Low (0-30% AMI)"]
[null,null,null,null,"Low (31-50% AMI)"]
[null,null,null,null,"Moderate (51-80% AMI)"]
[null,null,null,null,null,null,null,null,null,null,"Total:",{"$f":"SUM(L24:O26)","v":0}]
[]
[null,null,null,null,null,null,null,null,null,null,null,null,null,null,null,null,null,"Total Job Count"]
[null,null,null,null,null,null,null,null,null,null,null,null,null,null,null,null,null,null,null,null,null,null,null,"Full Time Low/Mod"]
[null,null,null,null,null,null,null,null,null,null,null,"Full Time"]
[null,null,null,null,"Actually Created:",null,null,null,null,null,null,null,null,null,null,null,null,"Actually Created:"]
[]
[null,null,null,null,"Actually Retained:",null,null,null,null,null,null,null,null,null,null,null,null,"Actually Retained:"]
[]
["Accomplishment Narrative"]
[null,null,null,null,null,null,null,null,null,null,null,null,null,null,null,null,null,"Total Weekly Hours"]
["Note: Enter total number of weekly hours, not number of jobs.",null,null,null,null,null,null,null,null,null,null,null,null,null,null,null,null,null,null,null,null,null,null,"Part Time Low/Mod"]
[null,null,null,null,null,null,null,null,null,null,null,"Part Time"]
[null,null,null,null,"Actually Created:",null,null,null,null,null,null,null,null,null,null,null,null,"Actually Created:",null,null,null,null,null,null,null,null,null,null,null,null,null,null," "]
[]
[null,null,null,null,"Actually Retained:",null,null,null,null,null,null,null,null,null,null,null,null,"Actually Retained:"]
[]
[null,null,null,null,null,null,null,null,null,null,null,"Percent\nLow/Mod Jobs"]
[]
[]
[null,null,null,null,"Actually Created:",null,null,null,null,null,null,{"$f":"X32/L32","v":{"$error":"#DIV/0!"}}]
[]
[null,null,null,null,"Actually Retained:",null,null,null,null,null,null,{"$f":"X34/L34","v":{"$error":"#DIV/0!"}}]
[]
["Job Performance Measures"]
[null,null,null,null,null,null,"Actual FTE Jobs Created:",null,null,null,null,null,null,null,null,null,"Actual FTE Jobs Retained:"]
[]
["Created",null,null,null,null,null,null,null,null,null,null,null,null,null,null,null,null,null,null,null,null,null,null,null,null,"Total"]
[null,null,"Of Jobs Created, Number of Jobs With Employer Sponsored Health Care Benefits:"]
[null,null,null,null,null,null,null,null,null,null,"Of Jobs Created, Number of Persons Unemployed Prior to Taking Jobs Created Under This Activity:"]
[]
[]
["Retained",null,null,null,null,null,null,null,null,null,null,null,null,null,null,null,null,null,null,null,null,null,null,null,null,"Total"]
[null,null,null,null,null,null,null,null,null,null,null,null,"Of Jobs Retained, Number of Jobs With Employer Sponsored Health Care Benefits:"]
[]
[null,"Types of Jobs Created/Retained"]
[null,null,null,"Job Category",null,null,null,null,null,null,null,null,"Jobs Created",null,null,null,"Jobs Retained"]
[null,null,null,"Officials and Managers"]
[null,null,null,"Professional"]
[null,null,null,"Technicians"]
[null,null,null,"Sales"]
[null,null,null,"Office and Clerical"]
[null,null,null,"Craft Workers (Skilled)"]
[null,null,null,"Operatives (Semi-Skilled)"]
[null,null,null,"Laborers (Unskilled)"]
[null,null,null,"Service Workers"]

{"sheet":"LMJ 2","index":38,"n_rows":105,"n_cols":33,"rows_kept":105,"cut":false,"hidden":true,"merged":[[29,23,30,26],[30,11,30,14],[31,11,31,14],[31,23,31,26],[33,11,33,14],[33,23,33,26],[35,0,35,26],[43,11,45,13],[46,11,46,14],[48,11,48,14],[51,11,51,14],[37,23,38,26],[39,11,39,14],[39,23,39,26],[41,11,41,14],[41,23,41,26],[64,16,64,17],[66,11,66,14],[66,16,66,17],[51,23,51,26],[54,23,54,26],[55,10,56,22],[55,23,56,26],[59,23,59,26],[102,3,102,14],[103,3,103,14],[104,3,104,14],[93,3,93,14],[94,3,94,14],[95,3,95,14],[96,3,96,14],[97,3,97,14],[98,3,98,14],[100,3,100,14],[99,3,99,14],[88,3,88,14],[89,3,89,14],[90,3,90,14],[91,3,91,14],[101,3,101,14],[92,3,92,14],[87,3,87,14],[82,23,82,26],[83,9,84,22],[83,23,84,26],[67,11,67,14],[67,16,67,17],[80,9,80,10],[68,11,68,14],[68,16,68,17],[69,11,69,14],[69,16,69,17],[70,11,70,14],[70,16,70,17],[71,11,71,14],[71,16,71,17],[74,9,74,10],[5,15,6,16],[6,11,6,14],[7,11,7,14],[7,15,7,16],[8,11,8,14],[8,15,8,16],[9,11,9,14],[9,15,9,16],[10,11,10,14],[10,15,10,16],[11,0,12,10],[11,11,12,14],[11,15,12,16],[13,0,14,10],[13,11,14,14],[13,15,14,16],[15,11,15,14],[15,15,15,16],[16,11,16,14],[16,15,16,16],[17,0,18,10],[17,11,18,14],[17,15,18,16],[24,11,24,14],[25,11,25,14],[26,11,26,14],[85,0,85,26],[19,11,19,14],[19,15,19,16],[20,11,20,14],[20,15,20,16],[23,11,23,14],[63,11,63,14],[63,16,63,17],[77,9,77,10],[77,13,77,15],[65,11,65,14],[65,16,65,17],[64,11,64,14]]}
[]
[]
[]
[]
[]
[null,null,null,null,null,null,null,null,null,null,null,null,null,null,null,"Hispanic\n/Latino"]
[null,null,null,null,null,"Race/Ethnicity",null,null,null,null,null,"Race"]
[null,null,null,null,null,"White"]
[null,null,null,null,null,"Black / African American"]
[null,null,null,null,null,"Asian"]
[null,null,null,null,null,"American Indian / Alaskan Native"]
["Native Hawaiian / Other Pacific Islander"]
[]
["American Indian / Alaskan Native & White"]
[]
[null,null,null,null,null,"Asian & White"]
[null,null,null,null,null,"Black / African American & White"]
["American Indian / Alaskan Native & Black / African American"]
[]
[null,null,null,null,null,"Other Multi-Racial"]
[null,null,null,null,null,null,null,null,null,null,"Total:",{"$f":"SUM(L8:O20)","v":0},null,null,null,{"$f":"SUM(P8:Q20)","v":0}]
[]
[null,null,null,null,"Income Information"]
[null,null,null,null,"Extremely Low (0-30% AMI)"]
[null,null,null,null,"Low (31-50% AMI)"]
[null,null,null,null,"Moderate (51-80% AMI)"]
[null,null,null,null,null,null,null,null,null,null,"Total:",{"$f":"SUM(L24:O26)","v":0}]
[]
[null,null,null,null,null,null,null,null,null,null,null,null,null,null,null,null,null,"Total Job Count"]
[null,null,null,null,null,null,null,null,null,null,null,null,null,null,null,null,null,null,null,null,null,null,null,"Full Time Low/Mod"]
[null,null,null,null,null,null,null,null,null,null,null,"Full Time"]
[null,null,null,null,"Actually Created:",null,null,null,null,null,null,null,null,null,null,null,null,"Actually Created:"]
[]
[null,null,null,null,"Actually Retained:",null,null,null,null,null,null,null,null,null,null,null,null,"Actually Retained:"]
[]
["Accomplishment Narrative"]
[null,null,null,null,null,null,null,null,null,null,null,null,null,null,null,null,null,"Total Weekly Hours"]
["Note: Enter total number of weekly hours, not number of jobs.",null,null,null,null,null,null,null,null,null,null,null,null,null,null,null,null,null,null,null,null,null,null,"Part Time Low/Mod"]
[null,null,null,null,null,null,null,null,null,null,null,"Part Time"]
[null,null,null,null,"Actually Created:",null,null,null,null,null,null,null,null,null,null,null,null,"Actually Created:",null,null,null,null,null,null,null,null,null,null,null,null,null,null," "]
[]
[null,null,null,null,"Actually Retained:",null,null,null,null,null,null,null,null,null,null,null,null,"Actually Retained:"]
[]
[null,null,null,null,null,null,null,null,null,null,null,"Percent\nLow/Mod Jobs"]
[]
[]
[null,null,null,null,"Actually Created:",null,null,null,null,null,null,{"$f":"X32/L32","v":{"$error":"#DIV/0!"}}]
[]
[null,null,null,null,"Actually Retained:",null,null,null,null,null,null,{"$f":"X34/L34","v":{"$error":"#DIV/0!"}}]
[]
["Job Performance Measures"]
[null,null,null,null,null,null,"Actual FTE Jobs Created:",null,null,null,null,null,null,null,null,null,"Actual FTE Jobs Retained:"]
[]
["Created",null,null,null,null,null,null,null,null,null,null,null,null,null,null,null,null,null,null,null,null,null,null,null,null,"Total"]
[null,null,"Of Jobs Created, Number of Jobs With Employer Sponsored Health Care Benefits:"]
[null,null,null,null,null,null,null,null,null,null,"Of Jobs Created, Number of Persons Unemployed Prior to Taking Jobs Created Under This Activity:"]
[]
[]
["Retained",null,null,null,null,null,null,null,null,null,null,null,null,null,null,null,null,null,null,null,null,null,null,null,null,"Total"]
[null,null,null,null,null,null,null,null,null,null,null,null,"Of Jobs Retained, Number of Jobs With Employer Sponsored Health Care Benefits:"]
[]
[null,"Types of Jobs Created/Retained"]
[null,null,null,"Job Category",null,null,null,null,null,null,null,null,"Jobs Created",null,null,null,"Jobs Retained"]
[null,null,null,"Officials and Managers"]
[null,null,null,"Professional"]
[null,null,null,"Technicians"]
[null,null,null,"Sales"]
[null,null,null,"Office and Clerical"]
[null,null,null,"Craft Workers (Skilled)"]
[null,null,null,"Operatives (Semi-Skilled)"]
[null,null,null,"Laborers (Unskilled)"]
[null,null,null,"Service Workers"]
[]
["Assistance to Businesses"]
["New Businesses Assisted:"]
[]
[null,null,null,null,null,null,null,null,null,null,null,null,null,null,"Number Expanding",null,null,null,null,"Number Relocating"]
["Existing Businesses Assisted:"]
[]
[]
[null,null,null,null,null,null,"Total:",null,null,{"$f":"J75+J78","v":0}]
[]
[null,null,null,null,null,null,null,null,null,null,null,null,null,null,null,null,"Number of Business Facades/Building Rehabilitated:"]
[null,null,null,null,null,null,null,null,null,"Number of Businesses Assisted that Provide Goods or Services to Meet the Needs of a Service Area:"]
[]
["Accomplishment Narrative"]
["Specify UEI# for Each Business Assisted:"]
[null,null,"UEI#:"]
[null,null,"UEI#:"]
[null,null,"UEI#:"]
[null,null,"UEI#:"]
[null,null,"UEI#:"]
[null,null,"UEI#:"]
[null,null,"UEI#:"]
[null,null,"UEI#:"]
[null,null,"UEI#:"]
[null,null,"UEI#:"]
[null,null,"UEI#:"]
[null,null,"UEI#:"]
[null,null,"UEI#:"]
[null,null,"UEI#:"]
[null,null,"UEI#:"]
[null,null,"UEI#:"]
[null,null,"UEI#:"]
[null,null,"UEI#:"]

{"sheet":"LMJ 3","index":39,"n_rows":78,"n_cols":33,"rows_kept":78,"cut":false,"hidden":true,"merged":[[70,11,70,14],[70,16,70,17],[73,23,73,26],[75,23,75,26],[77,23,77,26],[67,11,67,14],[67,16,67,17],[68,11,68,14],[68,16,68,17],[69,11,69,14],[69,16,69,17],[64,11,64,14],[64,16,64,17],[65,11,65,14],[65,16,65,17],[66,11,66,14],[66,16,66,17],[54,23,55,26],[58,23,58,26],[63,11,63,14],[63,16,63,17],[42,11,44,13],[45,11,45,14],[47,11,47,14],[50,11,50,14],[54,10,55,22],[62,11,62,14],[62,16,62,17],[50,23,50,26],[53,23,53,26],[34,0,34,26],[36,23,37,26],[38,11,38,14],[38,23,38,26],[40,11,40,14],[40,23,40,26],[32,11,32,14],[32,23,32,26],[28,23,29,26],[29,11,29,14],[30,11,30,14],[30,23,30,26],[4,15,5,16],[5,11,5,14],[6,11,6,14],[6,15,6,16],[7,11,7,14],[7,15,7,16],[8,11,8,14],[8,15,8,16],[9,11,9,14],[9,15,9,16],[10,0,11,10],[10,11,11,14],[10,15,11,16],[12,0,13,10],[12,11,13,14],[12,15,13,16],[14,11,14,14],[14,15,14,16],[15,11,15,14],[15,15,15,16],[16,0,17,10],[16,11,17,14],[16,15,17,16],[23,11,23,14],[24,11,24,14],[25,11,25,14],[18,11,18,14],[18,15,18,16],[19,11,19,14],[19,15,19,16],[22,11,22,14]]}
[]
[]
[]
[]
[null,null,null,null,null,null,null,null,null,null,null,null,null,null,null,"Hispanic\n/Latino"]
[null,null,null,null,null,"Race/Ethnicity",null,null,null,null,null,"Race"]
[null,null,null,null,null,"White"]
[null,null,null,null,null,"Black / African American"]
[null,null,null,null,null,"Asian"]
[null,null,null,null,null,"American Indian / Alaskan Native"]
["Native Hawaiian / Other Pacific Islander"]
[]
["American Indian / Alaskan Native & White"]
[]
[null,null,null,null,null,"Asian & White"]
[null,null,null,null,null,"Black / African American & White"]
["American Indian / Alaskan Native & Black / African American"]
[]
[null,null,null,null,null,"Other Multi-Racial"]
[null,null,null,null,null,null,null,null,null,null,"Total:",{"$f":"SUM(L7:O19)","v":0},null,null,null,{"$f":"SUM(P7:Q19)","v":0}]
[]
[null,null,null,null,"Income Information"]
[null,null,null,null,"Extremely Low (0-30% AMI)"]
[null,null,null,null,"Low (31-50% AMI)"]
[null,null,null,null,"Moderate (51-80% AMI)"]
[null,null,null,null,null,null,null,null,null,null,"Total:",{"$f":"SUM(L23:O25)","v":0}]
[]
[null,null,null,null,null,null,null,null,null,null,null,null,null,null,null,null,null,"Total Job Count"]
[null,null,null,null,null,null,null,null,null,null,null,null,null,null,null,null,null,null,null,null,null,null,null,"Full Time Low/Mod"]
[null,null,null,null,null,null,null,null,null,null,null,"Full Time"]
[null,null,null,null,"Actually Created:",null,null,null,null,null,null,null,null,null,null,null,null,"Actually Created:"]
[]
[null,null,null,null,"Actually Retained:",null,null,null,null,null,null,null,null,null,null,null,null,"Actually Retained:"]
[]
["Accomplishment Narrative"]
[null,null,null,null,null,null,null,null,null,null,null,null,null,null,null,null,null,"Total Weekly Hours"]
["Note: Enter total number of weekly hours, not number of jobs.",null,null,null,null,null,null,null,null,null,null,null,null,null,null,null,null,null,null,null,null,null,null,"Part Time Low/Mod"]
[null,null,null,null,null,null,null,null,null,null,null,"Part Time"]
[null,null,null,null,"Actually Created:",null,null,null,null,null,null,null,null,null,null,null,null,"Actually Created:",null,null,null,null,null,null,null,null,null,null,null,null,null,null," "]
[]
[null,null,null,null,"Actually Retained:",null,null,null,null,null,null,null,null,null,null,null,null,"Actually Retained:"]
[]
[null,null,null,null,null,null,null,null,null,null,null,"Percent\nLow/Mod Jobs"]
[]
[]
[null,null,null,null,"Actually Created:",null,null,null,null,null,null,{"$f":"X31/L31","v":{"$error":"#DIV/0!"}}]
[]
[null,null,null,null,"Actually Retained:",null,null,null,null,null,null,{"$f":"X33/L33","v":{"$error":"#DIV/0!"}}]
[]
["Job Performance Measures"]
[null,null,null,null,null,null,"Actual FTE Jobs Created:",null,null,null,null,null,null,null,null,null,"Actual FTE Jobs Retained:"]
[]
["Created",null,null,null,null,null,null,null,null,null,null,null,null,null,null,null,null,null,null,null,null,null,null,null,null,"Total"]
[null,null,"Of Jobs Created, Number of Jobs With Employer Sponsored Health Care Benefits:"]
[null,null,null,null,null,null,null,null,null,null,"Of Jobs Created, Number of Persons Unemployed Prior to Taking Jobs Created Under This Activity:"]
[]
[]
["Retained",null,null,null,null,null,null,null,null,null,null,null,null,null,null,null,null,null,null,null,null,null,null,null,null,"Total"]
[null,null,null,null,null,null,null,null,null,null,null,null,"Of Jobs Retained, Number of Jobs With Employer Sponsored Health Care Benefits:"]
[]
[null,"Types of Jobs Created/Retained"]
[null,null,null,"Job Category",null,null,null,null,null,null,null,null,"Jobs Created",null,null,null,"Jobs Retained"]
[null,null,null,"Officials and Managers"]
[null,null,null,"Professional"]
[null,null,null,"Technicians"]
[null,null,null,"Sales"]
[null,null,null,"Office and Clerical"]
[null,null,null,"Craft Workers (Skilled)"]
[null,null,null,"Operatives (Semi-Skilled)"]
[null,null,null,"Laborers (Unskilled)"]
[null,null,null,"Service Workers"]
[]
["Of the Total Persons, Number of:"]
[null,null,null,null,null,null,null,null,null,null,null,null,null,null,null,"With New or Continuing Access to a Service or Benefit:"]
[]
[null,null,null,null,null,null,null,null,null,null,null,null,null,null,null,null,"With Improved Access to a Service or Benefit:"]
[]
[null,null,null,null,null,null,null,null,null,null,null,null,null,null,"Receive a Service or Benefit that is No Longer Substandard:"]

{"sheet":"MC05","index":40,"n_rows":442,"n_cols":24,"rows_kept":442,"cut":false,"hidden":true,"merged":[[24,23,24,26],[26,23,26,26],[28,23,28,26],[4,11,4,14],[15,23,15,26],[17,23,17,26],[19,23,19,26],[7,23,7,26],[9,23,9,26],[11,23,11,26]]}
[]
[]
[]
["Public Services"]
[null,null,null,null,null,null,null,"Total Persons Assisted:"]
[]
["Of the Total Persons, Number of:"]
[null,null,null,null,null,null,null,null,null,null,null,null,null,null,null,"With New or Continuing Access to a Service or Benefit:"]
[]
[null,null,null,null,null,null,null,null,null,null,null,null,null,null,null,null,"With Improved Access to a Service or Benefit:"]
[]
[null,null,null,null,null,null,null,null,null,null,null,null,null,null,"Receive a Service or Benefit that is No Longer Substandard:"]
["If the activity is intended to help the homeless:"]
[]
["Of the Total Persons, Number of:"]
[null,null,null,null,null,null,null,null,null,null,null,null,"Homeless Persons Given Overnight Shelter:"]
[]
[null,null,null,null,null,null,null,null,"Beds Created in Overnight Shelter or Other Emergency Housing:"]
[]
[null,null,null,null,null,null,null,null,null,null,null,null,null,null,null,null,null,null,null,null,"Total:",null,null,{"$f":"X16+X18","v":0}]
[]
["If the activity is intended to prevent homelessness:"]
[]
["Of the Total Persons, Number of:"]
[null,null,null,null,"Individuals receiving emergency financial assistance to prevent homelessness:"]
[]
[null,null,null,null,null,"Individuals receiving emergency legal assistance to prevent homelessness:"]
[]
[null,null,null,null,null,null,null,null,null,null,null,null,null,null,null,null,null,null,null,null,"Total:",null,null,{"$f":"X25+X27","v":0}]
[]
[]
[]
[]
[]
[]
[]
[]
[]
[]
[]
[]
[]
[]
[]
[]
[]
[]
[]
[]
[]
[]
[]
[]
[]
[]
[]
[]
[]
[]
[]
[]
[]
[]
[]
[]
[]
[]
[]
[]
[]
[]
[]
[]
[]
[]
[]
[]
[]
[]
[]
[]
[]
[]
[]
[]
[]
[]
[]
[]
[]
[]
[]
[]
[]
[]
[]
[]
[]
[]
[]
[]
[]
[]
[]
[]
[]
[]
[]
[]
[]
[]
[]
[]
[]
[]
[]
[]
[]
[]
[]
[]
[]
[]
[]
[]
[]
[]
[]
[]
[]
[]
[]
[]
[]
[]
[]
[]
[]
[]
[]
[]
[]
[]
[]
[]
[]
[]
[]
[]
[]
[]
[]
[]
[]
[]
[]
[]
[]
[]
[]
[]
[]
[]
[]
[]
[]
[]
[]
[]
[]
[]
[]
[]
[]
[]
[]
[]
[]
[]
[]
[]
[]
[]
[]
[]
[]
[]
[]
[]
[]
[]
[]
[]
[]
[]
[]
[]
[]
[]
[]
[]
[]
[]
[]
[]
[]
[]
[]
[]
[]
[]
[]
[]
[]
[]
[]
[]
[]
[]
[]
[]
[]
[]
[]
[]
[]
[]
[]
[]
[]
[]
[]
[]
[]
[]
[]
[]
[]
[]
[]
[]
[]
[]
[]
[]
[]
[]
[]
[]
[]
[]
[]
[]
[]
[]
[]
[]
[]
[]
[]
[]
[]
[]
[]
[]
[]
[]
[]
[]
[]
[]
[]
[]
[]
[]
[]
[]
[]
[]
[]
[]
[]
[]
[]
[]
[]
[]
[]
[]
[]
[]
[]
[]
[]
[]
[]
[]
[]
[]
[]
[]
[]
[]
[]
[]
[]
[]
[]
[]
[]
[]
[]
[]
[]
[]
[]
[]
[]
[]
[]
[]
[]
[]
[]
[]
[]
[]
[]
[]
[]
[]
[]
[]
[]
[]
[]
[]
[]
[]
[]
[]
[]
[]
[]
[]
[]
[]
[]
[]
[]
[]
[]
[]
[]
[]
[]
[]
[]
[]
[]
[]
[]
[]
[]
[]
[]
[]
[]
[]
[]
[]
[]
[]
[]
[]
[]
[]
[]
[]
[]
[]
[]
[]
[]
[]
[]
[]
[]
[]
[]
[]
[]
[]
[]
[]
[]
[]
[]
[]
[]
[]
[]
[]
[]
[]
[]
[]
[]
[]
[]
[]
[]
[]
[]
[]
[]
[]
[]
[]
[]
[]
[]
[]
[]
[]
[]
[]
[]
[]
[]
[]
[]
[]
[]
[]
[]
[]
[]
[]
[]
[]
[null,null,null,"Daniel Perez "]

{"sheet":"MC04-04A","index":41,"n_rows":652,"n_cols":19,"rows_kept":652,"cut":false,"hidden":true,"merged":[]}
[]
[null,null,null,null,null,null,null,null,null,null,null,null,null,null,null,null,null,null,"Actual Units:"]
[]
[]
[]
[]
[]
[]
[]
[]
[]
[]
[]
[]
[]
[]
[]
[]
[]
[]
[]
[]
[]
[]
[]
[]
[]
[]
[]
[]
[]
[]
[]
[]
[]
[]
[]
[]
[]
[]
[]
[]
[]
[]
[]
[]
[]
[]
[]
[]
[]
[]
[]
[]
[]
[]
[]
[]
[]
[]
[]
[]
[]
[]
[]
[]
[]
[]
[]
[]
[]
[]
[]
[]
[]
[]
[]
[]
[]
[]
[]
[]
[]
[]
[]
[]
[]
[]
[]
[]
[]
[]
[]
[]
[]
[]
[]
[]
[]
[]
[]
[]
[]
[]
[]
[]
[]
[]
[]
[]
[]
[]
[]
[]
[]
[]
[]
[]
[]
[]
[]
[]
[]
[]
[]
[]
[]
[]
[]
[]
[]
[]
[]
[]
[]
[]
[]
[]
[]
[]
[]
[]
[]
[]
[]
[]
[]
[]
[]
[]
[]
[]
[]
[]
[]
[]
[]
[]
[]
[]
[]
[]
[]
[]
[]
[]
[]
[]
[]
[]
[]
[]
[]
[]
[]
[]
[]
[]
[]
[]
[]
[]
[]
[]
[]
[]
[]
[]
[]
[]
[]
[]
[]
[]
[]
[]
[]
[]
[]
[]
[]
[]
[]
[]
[]
[]
[]
[]
[]
[]
[]
[]
[]
[]
[]
[]
[]
[]
[]
[]
[]
[]
[]
[]
[]
[]
[]
[]
[]
[]
[]
[]
[]
[]
[]
[]
[]
[]
[]
[]
[]
[]
[]
[]
[]
[]
[]
[]
[]
[]
[]
[]
[]
[]
[]
[]
[]
[]
[]
[]
[]
[]
[]
[]
[]
[]
[]
[]
[]
[]
[]
[]
[]
[]
[]
[]
[]
[]
[]
[]
[]
[]
[]
[]
[]
[]
[]
[]
[]
[]
[]
[]
[]
[]
[]
[]
[]
[]
[]
[]
[]
[]
[]
[]
[]
[]
[]
[]
[]
[]
[]
[]
[]
[]
[]
[]
[]
[]
[]
[]
[]
[]
[]
[]
[]
[]
[]
[]
[]
[]
[]
[]
[]
[]
[]
[]
[]
[]
[]
[]
[]
[]
[]
[]
[]
[]
[]
[]
[]
[]
[]
[]
[]
[]
[]
[]
[]
[]
[]
[]
[]
[]
[]
[]
[]
[]
[]
[]
[]
[]
[]
[]
[]
[]
[]
[]
[]
[]
[]
[]
[]
[]
[]
[]
[]
[]
[]
[]
[]
[]
[]
[]
[]
[]
[]
[]
[]
[]
[]
[]
[]
[]
[]
[]
[]
[]
[]
[]
[]
[]
[]
[]
[]
[]
[]
[]
[]
[]
[]
[]
[]
[]
[]
[]
[]
[]
[]
[]
[]
[]
[]
[]
[]
[]
[]
[]
[]
[]
[]
[]
[]
[]
[]
[]
[]
[]
[]
[]
[]
[]
[]
[]
[]
[]
[]
[]
[]
[]
[]
[]
[]
[]
[]
[]
[]
[]
[]
[]
[]
[]
[]
[]
[]
[]
[]
[]
[]
[]
[]
[]
[]
[]
[]
[]
[]
[]
[]
[]
[]
[]
[]
[]
[]
[]
[]
[]
[]
[]
[]
[]
[]
[]
[]
[]
[]
[]
[]
[]
[]
[]
[]
[]
[]
[]
[]
[]
[]
[]
[]
[]
[]
[]
[]
[]
[]
[]
[]
[]
[]
[]
[]
[]
[]
[]
[]
[]
[]
[]
[]
[]
[]
[]
[]
[]
[]
[]
[]
[]
[]
[]
[]
[]
[]
[]
[]
[]
[]
[]
[]
[]
[]
[]
[]
[]
[]
[]
[]
[]
[]
[]
[]
[]
[]
[]
[]
[]
[]
[]
[]
[]
[]
[]
[]
[]
[]
[]
[]
[]
[]
[]
[]
[]
[]
[]
[]
[]
[]
[]
[]
[]
[]
[]
[]
[]
[]
[]
[]
[]
[]
[]
[]
[]
[]
[]
[]
[]
[]
[]
[]
[]
[]
[]
[]
[]
[]
[]
[]
[]
[]
[]
[]
[]
[]
[]
[]
[]
[]
[]
[]
[]
[]
[]
[]
[]
[]
[]
[]
[]
[]
[]
[]
[null,null,null,"Daniel Perez "]

{"sheet":"MC15","index":42,"n_rows":34,"n_cols":18,"rows_kept":34,"cut":false,"hidden":true,"merged":[[34,10,34,13],[36,10,36,13],[38,10,38,13],[40,10,40,13],[25,0,30,26],[13,0,13,26],[16,23,16,26],[18,23,18,26],[20,23,20,26],[22,23,22,26]]}
[]
[]
[]
[]
[]
[]
[]
[]
[]
[]
[]
[]
[]
["Accomplishment Information"]
[]
[]
[null,null,null,null,null,null,null,null,null,null,null,null,null,null,null,null,null,"Housing units receiving violations:"]
[]
[null,null,null,null,null,null,null,null,null,null,null,null,"Housing units where code violations have been corrected using CDBG Funds:"]
[]
[null,null,null,null,null,null,null,null,null,null,null,null,"Housing units where code violations have been corrected by the owner:"]
[]
[null,null,null,null,null,null,null,null,null,null,null,null,"Housing units where code violations have been corrected using other funds:"]
[]
["Describe specific public and private improvements or services in the code enforcement area:"]
[]
[]
[]
[]
[]
[]
[]
[]
["IDIS Activity IDs where code corrections are being tracked"]

{"sheet":"LMA1","index":43,"n_rows":652,"n_cols":24,"rows_kept":652,"cut":false,"hidden":true,"merged":[[19,23,19,26],[6,23,6,26],[8,23,8,26],[10,23,10,26],[15,23,15,26],[17,23,17,26]]}
[]
[]
[]
["If the activity is intended to help the homeless:"]
[]
["Of the Total Persons, Number of:"]
[null,null,null,null,null,null,null,null,null,null,null,null,"Homeless Persons Given Overnight Shelter:"]
[]
[null,null,null,null,null,null,null,null,"Beds Created in Overnight Shelter or Other Emergency Housing:"]
[]
[null,null,null,null,null,null,null,null,null,null,null,null,null,null,null,null,null,null,null,null,"Total:",null,null,{"$f":"X7+X9","v":0}]
[]
["If the activity is intended to prevent homelessness:"]
[]
["Of the Total Persons, Number of:"]
[null,null,null,null,"Individuals receiving emergency financial assistance to prevent homelessness:"]
[]
[null,null,null,null,null,"Individuals receiving emergency legal assistance to prevent homelessness:"]
[]
[null,null,null,null,null,null,null,null,null,null,null,null,null,null,null,null,null,null,null,null,"Total:",null,null,{"$f":"X16+X18","v":0}]
[]
[]
[]
[]
[]
[]
[]
[]
[]
[]
[]
[]
[]
[]
[]
[]
[]
[]
[]
[]
[]
[]
[]
[]
[]
[]
[]
[]
[]
[]
[]
[]
[]
[]
[]
[]
[]
[]
[]
[]
[]
[]
[]
[]
[]
[]
[]
[]
[]
[]
[]
[]
[]
[]
[]
[]
[]
[]
[]
[]
[]
[]
[]
[]
[]
[]
[]
[]
[]
[]
[]
[]
[]
[]
[]
[]
[]
[]
[]
[]
[]
[]
[]
[]
[]
[]
[]
[]
[]
[]
[]
[]
[]
[]
[]
[]
[]
[]
[]
[]
[]
[]
[]
[]
[]
[]
[]
[]
[]
[]
[]
[]
[]
[]
[]
[]
[]
[]
[]
[]
[]
[]
[]
[]
[]
[]
[]
[]
[]
[]
[]
[]
[]
[]
[]
[]
[]
[]
[]
[]
[]
[]
[]
[]
[]
[]
[]
[]
[]
[]
[]
[]
[]
[]
[]
[]
[]
[]
[]
[]
[]
[]
[]
[]
[]
[]
[]
[]
[]
[]
[]
[]
[]
[]
[]
[]
[]
[]
[]
[]
[]
[]
[]
[]
[]
[]
[]
[]
[]
[]
[]
[]
[]
[]
[]
[]
[]
[]
[]
[]
[]
[]
[]
[]
[]
[]
[]
[]
[]
[]
[]
[]
[]
[]
[]
[]
[]
[]
[]
[]
[]
[]
[]
[]
[]
[]
[]
[]
[]
[]
[]
[]
[]
[]
[]
[]
[]
[]
[]
[]
[]
[]
[]
[]
[]
[]
[]
[]
[]
[]
[]
[]
[]
[]
[]
[]
[]
[]
[]
[]
[]
[]
[]
[]
[]
[]
[]
[]
[]
[]
[]
[]
[]
[]
[]
[]
[]
[]
[]
[]
[]
[]
[]
[]
[]
[]
[]
[]
[]
[]
[]
[]
[]
[]
[]
[]
[]
[]
[]
[]
[]
[]
[]
[]
[]
[]
[]
[]
[]
[]
[]
[]
[]
[]
[]
[]
[]
[]
[]
[]
[]
[]
[]
[]
[]
[]
[]
[]
[]
[]
[]
[]
[]
[]
[]
[]
[]
[]
[]
[]
[]
[]
[]
[]
[]
[]
[]
[]
[]
[]
[]
[]
[]
[]
[]
[]
[]
[]
[]
[]
[]
[]
[]
[]
[]
[]
[]
[]
[]
[]
[]
[]
[]
[]
[]
[]
[]
[]
[]
[]
[]
[]
[]
[]
[]
[]
[]
[]
[]
[]
[]
[]
[]
[]
[]
[]
[]
[]
[]
[]
[]
[]
[]
[]
[]
[]
[]
[]
[]
[]
[]
[]
[]
[]
[]
[]
[]
[]
[]
[]
[]
[]
[]
[]
[]
[]
[]
[]
[]
[]
[]
[]
[]
[]
[]
[]
[]
[]
[]
[]
[]
[]
[]
[]
[]
[]
[]
[]
[]
[]
[]
[]
[]
[]
[]
[]
[]
[]
[]
[]
[]
[]
[]
[]
[]
[]
[]
[]
[]
[]
[]
[]
[]
[]
[]
[]
[]
[]
[]
[]
[]
[]
[]
[]
[]
[]
[]
[]
[]
[]
[]
[]
[]
[]
[]
[]
[]
[]
[]
[]
[]
[]
[]
[]
[]
[]
[]
[]
[]
[]
[]
[]
[]
[]
[]
[]
[]
[]
[]
[]
[]
[]
[]
[]
[]
[]
[]
[]
[]
[]
[]
[]
[]
[]
[]
[]
[]
[]
[]
[]
[]
[]
[]
[]
[]
[]
[]
[]
[]
[]
[]
[]
[]
[]
[]
[]
[]
[]
[]
[]
[]
[]
[]
[]
[]
[]
[]
[]
[]
[]
[]
[]
[]
[]
[]
[]
[]
[]
[]
[]
[]
[]
[]
[]
[]
[]
[]
[]
[]
[]
[]
[]
[]
[]
[]
[]
[]
[]
[]
[]
[]
[]
[]
[]
[]
[]
[]
[]
[]
[]
[]
[]
[]
[]
[]
[]
[]
[]
[]
[]
[]
[]
[]
[]
[]
[]
[]
[]
[]
[]
[]
[null,null,null,"Daniel Perez "]

{"sheet":"LMA2","index":44,"n_rows":427,"n_cols":24,"rows_kept":427,"cut":false,"hidden":true,"merged":[[30,23,30,26],[41,16,41,17],[5,23,6,26],[6,11,6,14],[7,11,7,14],[7,23,7,26],[9,11,9,14],[9,23,9,26],[40,16,40,17],[36,11,36,14],[37,11,37,14],[38,11,38,14],[39,11,39,14],[36,16,36,17],[37,16,37,17],[38,16,38,17],[12,23,13,26],[14,11,14,14],[14,23,14,26],[16,11,16,14],[16,23,16,26],[18,11,20,13],[21,11,21,14],[25,23,25,26],[27,0,28,22],[28,23,28,26],[23,11,23,14],[23,23,23,26],[42,16,42,17],[43,16,43,17],[44,16,44,17],[33,0,33,26],[40,11,40,14],[41,11,41,14],[42,11,42,14],[43,11,43,14],[44,11,44,14],[39,16,39,17]]}
[]
[]
[]
[]
[null,null,null,null,null,null,null,null,null,null,null,null,null,null,null,null,null,"Total Job Count"]
[null,null,null,null,null,null,null,null,null,null,null,null,null,null,null,null,null,null,null,null,null,null,null,"Full Time Low/Mod"]
[null,null,null,null,null,null,null,null,null,null,null,"Full Time"]
[null,null,null,null,"Actually Created:",null,null,null,null,null,null,null,null,null,null,null,null,"Actually Created:"]
[]
[null,null,null,null,"Actually Retained:",null,null,null,null,null,null,null,null,null,null,null,null,"Actually Retained:"]
[]
[null,null,null,null,null,null,null,null,null,null,null,null,null,null,null,null,null,"Total Weekly Hours"]
["Note: Enter total number of weekly hours, not number of jobs.",null,null,null,null,null,null,null,null,null,null,null,null,null,null,null,null,null,null,null,null,null,null,"Part Time Low/Mod"]
[null,null,null,null,null,null,null,null,null,null,null,"Part Time"]
[null,null,null,null,"Actually Created:",null,null,null,null,null,null,null,null,null,null,null,null,"Actually Created:"]
[]
[null,null,null,null,"Actually Retained:",null,null,null,null,null,null,null,null,null,null,null,null,"Actually Retained:"]
[]
[null,null,null,null,null,null,null,null,null,null,null,"Percent\nLow/Mod Jobs"]
[]
[]
[null,null,null,null,"Actually Created:",null,null,null,null,null,null,{"$f":"X8/L8","v":{"$error":"#DIV/0!"}}]
[]
[null,null,null,null,"Actually Retained:",null,null,null,null,null,null,{"$f":"X10/L10","v":{"$error":"#DIV/0!"}},null,null,null,null,null,null,"Actual FTE Jobs:"]
[]
[null,null,null,null,null,null,null,null,null,null,null,null,"Of Jobs Created, Number of Jobs With Employer Sponsored Health Care Benefits:"]
[]
["Of Jobs Created, Number of Persons Unemployed Prior to Taking Jobs Created Under This Activity:"]
[]
[]
[null,null,null,null,null,null,null,null,null,null,null,null,"Of Jobs Retained, Number of Jobs With Employer Sponsored Health Care Benefits:"]
[]
[]
["Accomplishment Information"]
[null,"Types of Jobs Created/Retained"]
[null,null,null,"Job Category",null,null,null,null,null,null,null,null,"Jobs Created",null,null,null,"Jobs Retained"]
[null,null,null,"Officials and Managers"]
[null,null,null,"Professional"]
[null,null,null,"Technicians"]
[null,null,null,"Sales"]
[null,null,null,"Office and Clerical"]
[null,null,null,"Craft Workers (Skilled)"]
[null,null,null,"Operatives (Semi-Skilled)"]
[null,null,null,"Laborers (Unskilled)"]
[null,null,null,"Service Workers"]
[]
[]
[]
[]
[]
[]
[]
[]
[]
[]
[]
[]
[]
[]
[]
[]
[]
[]
[]
[]
[]
[]
[]
[]
[]
[]
[]
[]
[]
[]
[]
[]
[]
[]
[]
[]
[]
[]
[]
[]
[]
[]
[]
[]
[]
[]
[]
[]
[]
[]
[]
[]
[]
[]
[]
[]
[]
[]
[]
[]
[]
[]
[]
[]
[]
[]
[]
[]
[]
[]
[]
[]
[]
[]
[]
[]
[]
[]
[]
[]
[]
[]
[]
[]
[]
[]
[]
[]
[]
[]
[]
[]
[]
[]
[]
[]
[]
[]
[]
[]
[]
[]
[]
[]
[]
[]
[]
[]
[]
[]
[]
[]
[]
[]
[]
[]
[]
[]
[]
[]
[]
[]
[]
[]
[]
[]
[]
[]
[]
[]
[]
[]
[]
[]
[]
[]
[]
[]
[]
[]
[]
[]
[]
[]
[]
[]
[]
[]
[]
[]
[]
[]
[]
[]
[]
[]
[]
[]
[]
[]
[]
[]
[]
[]
[]
[]
[]
[]
[]
[]
[]
[]
[]
[]
[]
[]
[]
[]
[]
[]
[]
[]
[]
[]
[]
[]
[]
[]
[]
[]
[]
[]
[]
[]
[]
[]
[]
[]
[]
[]
[]
[]
[]
[]
[]
[]
[]
[]
[]
[]
[]
[]
[]
[]
[]
[]
[]
[]
[]
[]
[]
[]
[]
[]
[]
[]
[]
[]
[]
[]
[]
[]
[]
[]
[]
[]
[]
[]
[]
[]
[]
[]
[]
[]
[]
[]
[]
[]
[]
[]
[]
[]
[]
[]
[]
[]
[]
[]
[]
[]
[]
[]
[]
[]
[]
[]
[]
[]
[]
[]
[]
[]
[]
[]
[]
[]
[]
[]
[]
[]
[]
[]
[]
[]
[]
[]
[]
[]
[]
[]
[]
[]
[]
[]
[]
[]
[]
[]
[]
[]
[]
[]
[]
[]
[]
[]
[]
[]
[]
[]
[]
[]
[]
[]
[]
[]
[]
[]
[]
[]
[]
[]
[]
[]
[]
[]
[]
[]
[]
[]
[]
[]
[]
[]
[]
[]
[]
[]
[]
[]
[]
[]
[]
[]
[]
[]
[]
[]
[]
[]
[]
[]
[]
[]
[]
[]
[]
[]
[]
[]
[]
[]
[]
[]
[]
[]
[]
[]
[]
[]
[]
[]
[]
[]
[]
[]
[]
[]
[]
[]
[]
[null,null,null,"Daniel Perez "]

{"sheet":"LMA3","index":45,"n_rows":710,"n_cols":20,"rows_kept":710,"cut":false,"hidden":true,"merged":[[26,3,26,14],[21,3,21,14],[22,3,22,14],[23,3,23,14],[25,3,25,14],[4,9,4,10],[10,9,10,10],[14,3,14,14],[24,3,24,14],[7,13,7,15],[13,3,13,14],[7,9,7,10],[16,3,16,14],[17,3,17,14],[18,3,18,14],[19,3,19,14],[15,3,15,14],[7,18,7,20],[20,3,20,14],[136,5,136,14],[56,0,56,26],[102,0,102,26],[126,5,126,14],[126,17,126,26],[128,5,128,26],[130,5,130,14],[132,5,132,14],[132,17,132,26],[134,5,134,26],[27,3,27,14],[29,3,29,14],[30,3,30,14],[28,3,28,14]]}
[]
[]
[]
[]
["New Businesses Assisted:"]
[]
[null,null,null,null,null,null,null,null,null,null,null,null,null,null,"Number Expanding",null,null,null,null,"Number Relocating"]
["Existing Businesses Assisted:"]
[]
[]
[null,null,null,null,null,null,"Total:",null,null,{"$f":"J5+J8","v":0}]
[]
["Specify UEI# for Each Business Assisted:"]
[null,null,"UEI#:"]
[null,null,"UEI#:"]
[null,null,"UEI#:"]
[null,null,"UEI#:"]
[null,null,"UEI#:"]
[null,null,"UEI#:"]
[null,null,"UEI#:"]
[null,null,"UEI#:"]
[null,null,"UEI#:"]
[null,null,"UEI#:"]
[null,null,"UEI#:"]
[null,null,"UEI#:"]
[null,null,"UEI#:"]
[null,null,"UEI#:"]
[null,null,"UEI#:"]
[null,null,"UEI#:"]
[null,null,"UEI#:"]
[null,null,"UEI#:"]
[]
[]
[]
[]
[]
[]
[]
[]
[]
[]
[]
[]
[]
[]
[]
[]
[]
[]
[]
[]
[]
[]
[]
[]
[]
["Accomplishment Information"]
[]
[]
[]
[]
[]
[]
[]
[]
[]
[]
[]
[]
[]
[]
[]
[]
[]
[]
[]
[]
[]
[]
[]
[]
[]
[]
[]
[]
[]
[]
[]
[]
[]
[]
[]
[]
[]
[]
[]
[]
[]
[]
[]
[]
[]
["Accomplishment Narrative"]
[]
[]
[]
[]
[]
[]
[]
[]
[]
[]
[]
[]
[]
[]
[]
[]
[]
[]
[]
[]
[]
[]
[]
[null,null,null,"Prepared By:",null,null,null,null,null,null,null,null,null,null,null,null,"Title:"]
[]
[null,null,null,"Signature:"]
[]
[null,null,null,"Date:"]
[]
[null,null,null,"Reviewed By:",null,null,null,null,null,null,null,null,null,null,null,null,"Title:"]
[]
[null,null,null,"Signature:"]
[]
[null,null,null,"Date:"]
[]
[]
[]
[]
[]
[]
[]
[]
[]
[]
[]
[]
[]
[]
[]
[]
[]
[]
[]
[]
[]
[]
[]
[]
[]
[]
[]
[]
[]
[]
[]
[]
[]
[]
[]
[]
[]
[]
[]
[]
[]
[]
[]
[]
[]
[]
[]
[]
[]
[]
[]
[]
[]
[]
[]
[]
[]
[]
[]
[]
[]
[]
[]
[]
[]
[]
[]
[]
[]
[]
[]
[]
[]
[]
[]
[]
[]
[]
[]
[]
[]
[]
[]
[]
[]
[]
[]
[]
[]
[]
[]
[]
[]
[]
[]
[]
[]
[]
[]
[]
[]
[]
[]
[]
[]
[]
[]
[]
[]
[]
[]
[]
[]
[]
[]
[]
[]
[]
[]
[]
[]
[]
[]
[]
[]
[]
[]
[]
[]
[]
[]
[]
[]
[]
[]
[]
[]
[]
[]
[]
[]
[]
[]
[]
[]
[]
[]
[]
[]
[]
[]
[]
[]
[]
[]
[]
[]
[]
[]
[]
[]
[]
[]
[]
[]
[]
[]
[]
[]
[]
[]
[]
[]
[]
[]
[]
[]
[]
[]
[]
[]
[]
[]
[]
[]
[]
[]
[]
[]
[]
[]
[]
[]
[]
[]
[]
[]
[]
[]
[]
[]
[]
[]
[]
[]
[]
[]
[]
[]
[]
[]
[]
[]
[]
[]
[]
[]
[]
[]
[]
[]
[]
[]
[]
[]
[]
[]
[]
[]
[]
[]
[]
[]
[]
[]
[]
[]
[]
[]
[]
[]
[]
[]
[]
[]
[]
[]
[]
[]
[]
[]
[]
[]
[]
[]
[]
[]
[]
[]
[]
[]
[]
[]
[]
[]
[]
[]
[]
[]
[]
[]
[]
[]
[]
[]
[]
[]
[]
[]
[]
[]
[]
[]
[]
[]
[]
[]
[]
[]
[]
[]
[]
[]
[]
[]
[]
[]
[]
[]
[]
[]
[]
[]
[]
[]
[]
[]
[]
[]
[]
[]
[]
[]
[]
[]
[]
[]
[]
[]
[]
[]
[]
[]
[]
[]
[]
[]
[]
[]
[]
[]
[]
[]
[]
[]
[]
[]
[]
[]
[]
[]
[]
[]
[]
[]
[]
[]
[]
[]
[]
[]
[]
[]
[]
[]
[]
[]
[]
[]
[]
[]
[]
[]
[]
[]
[]
[]
[]
[]
[]
[]
[]
[]
[]
[]
[]
[]
[]
[]
[]
[]
[]
[]
[]
[]
[]
[]
[]
[]
[]
[]
[]
[]
[]
[]
[]
[]
[]
[]
[]
[]
[]
[]
[]
[]
[]
[]
[]
[]
[]
[]
[]
[]
[]
[]
[]
[]
[]
[]
[]
[]
[]
[]
[]
[]
[]
[]
[]
[]
[]
[]
[]
[]
[]
[]
[]
[]
[]
[]
[]
[]
[]
[]
[]
[]
[]
[]
[]
[]
[]
[]
[]
[]
[]
[]
[]
[]
[]
[]
[]
[]
[]
[]
[]
[]
[]
[]
[]
[]
[]
[]
[]
[]
[]
[]
[]
[]
[]
[]
[]
[]
[]
[]
[]
[]
[]
[]
[]
[]
[]
[]
[]
[]
[]
[]
[]
[]
[]
[]
[]
[]
[]
[]
[]
[]
[]
[]
[]
[]
[]
[]
[]
[]
[]
[]
[]
[]
[]
[]
[]
[]
[]
[]
[]
[]
[]
[]
[]
[]
[]
[]
[]
[]
[]
[]
[]
[]
[]
[]
[]
[]
[]
[]
[]
[]
[]
[]
[]
[]
[]
[]
[]
[]
[]
[]
[]
[]
[]
[]
[]
[]
[]
[]
[]
[]
[]
[]
[]
[]
[]
[]
[]
[null,null,null,"Daniel Perez "]

{"sheet":"LMA4","index":46,"n_rows":427,"n_cols":24,"rows_kept":427,"cut":false,"hidden":true,"merged":[[59,23,59,26],[61,23,61,26],[45,11,45,14],[48,23,48,26],[50,23,50,26],[52,23,52,26],[57,23,57,26],[40,11,40,14],[40,16,40,17],[41,11,41,14],[41,16,41,17],[42,11,42,14],[42,16,42,17],[37,11,37,14],[37,16,37,17],[38,11,38,14],[38,16,38,17],[39,11,39,14],[39,16,39,17],[5,23,6,26],[6,11,6,14],[7,11,7,14],[7,23,7,26],[23,23,23,26],[12,23,13,26],[14,11,14,14],[14,23,14,26],[16,11,16,14],[16,23,16,26],[18,11,20,13],[21,11,21,14],[23,11,23,14],[66,23,66,26],[68,23,68,26],[70,23,70,26],[9,11,9,14],[9,23,9,26],[25,23,25,26],[27,0,28,22],[28,23,28,26],[36,11,36,14],[36,16,36,17],[30,23,30,26],[34,11,34,14],[34,16,34,17],[35,11,35,14],[35,16,35,17],[31,0,31,26]]}
[]
[]
[]
[]
[null,null,null,null,null,null,null,null,null,null,null,null,null,null,null,null,null,"Total Job Count"]
[null,null,null,null,null,null,null,null,null,null,null,null,null,null,null,null,null,null,null,null,null,null,null,"Full Time Low/Mod"]
[null,null,null,null,null,null,null,null,null,null,null,"Full Time"]
[null,null,null,null,"Actually Created:",null,null,null,null,null,null,null,null,null,null,null,null,"Actually Created:"]
[]
[null,null,null,null,"Actually Retained:",null,null,null,null,null,null,null,null,null,null,null,null,"Actually Retained:"]
[]
[null,null,null,null,null,null,null,null,null,null,null,null,null,null,null,null,null,"Total Weekly Hours"]
["Note: Enter total number of weekly hours, not number of jobs.",null,null,null,null,null,null,null,null,null,null,null,null,null,null,null,null,null,null,null,null,null,null,"Part Time Low/Mod"]
[null,null,null,null,null,null,null,null,null,null,null,"Part Time"]
[null,null,null,null,"Actually Created:",null,null,null,null,null,null,null,null,null,null,null,null,"Actually Created:"]
[]
[null,null,null,null,"Actually Retained:",null,null,null,null,null,null,null,null,null,null,null,null,"Actually Retained:"]
[]
[null,null,null,null,null,null,null,null,null,null,null,"Percent\nLow/Mod Jobs"]
[]
[]
[null,null,null,null,"Actually Created:",null,null,null,null,null,null,{"$f":"X8/L8","v":{"$error":"#DIV/0!"}}]
[]
[null,null,null,null,"Actually Retained:",null,null,null,null,null,null,{"$f":"X10/L10","v":{"$error":"#DIV/0!"}},null,null,null,null,null,null,"Actual FTE Jobs:"]
[]
[null,null,null,null,null,null,null,null,null,null,null,null,"Of Jobs Created, Number of Jobs With Employer Sponsored Health Care Benefits:"]
[]
["Of Jobs Created, Number of Persons Unemployed Prior to Taking Jobs Created Under This Activity:"]
[]
[]
[null,null,null,null,null,null,null,null,null,null,null,null,"Of Jobs Retained, Number of Jobs With Employer Sponsored Health Care Benefits:"]
["Accomplishment Narrative"]
[null,"Types of Jobs Created/Retained"]
[null,null,null,"Job Category",null,null,null,null,null,null,null,null,"Jobs Created",null,null,null,"Jobs Retained"]
[null,null,null,"Officials and Managers"]
[null,null,null,"Professional"]
[null,null,null,"Technicians"]
[null,null,null,"Sales"]
[null,null,null,"Office and Clerical"]
[null,null,null,"Craft Workers (Skilled)"]
[null,null,null,"Operatives (Semi-Skilled)"]
[null,null,null,"Laborers (Unskilled)"]
[null,null,null,"Service Workers"]
[]
["Public Facilities & Infrastructure"]
[null,null,null,null,null,null,null,null,"Total Persons Assisted:"]
[]
["Of the Total Persons, Number of:"]
[null,null,null,null,null,null,null,null,null,null,null,null,"With New Access to this Type of Public Facility or Infrastructure Improvement:"]
[]
[null,"With Improved Access to this Type of Public Facility or Infrastructure Improvement:"]
[]
[null,null,null,null,null,null,null,null,null,null,null,null,"With Access to Public Facility or Infrastructure that Is No Longer Substandard:"]
[]
["If the activity is intended to help the homeless:"]
[]
["Of the Total Persons, Number of:"]
[null,null,null,null,null,null,null,null,null,null,null,null,"Homeless Persons Given Overnight Shelter:"]
[]
[null,null,null,null,null,null,null,null,"Beds Created in Overnight Shelter or Other Emergency Housing:"]
[]
[null,null,null,null,null,null,null,null,null,null,null,null,null,null,null,null,null,null,null,null,"Total:",null,null,{"$f":"X58+X60","v":0}]
[]
["If the activity is intended to prevent homelessness:"]
[]
["Of the Total Persons, Number of:"]
[null,null,null,null,"Individuals receiving emergency financial assistance to prevent homelessness:"]
[]
[null,null,null,null,null,"Individuals receiving emergency legal assistance to prevent homelessness:"]
[]
[null,null,null,null,null,null,null,null,null,null,null,null,null,null,null,null,null,null,null,null,"Total:",null,null,{"$f":"X67+X69","v":0}]
[]
[]
[]
[]
[]
[]
[]
[]
[]
[]
[]
[]
[]
[]
[]
[]
[]
[]
[]
[]
[]
[]
[]
[]
[]
[]
[]
[]
[]
[]
[]
[]
[]
[]
[]
[]
[]
[]
[]
[]
[]
[]
[]
[]
[]
[]
[]
[]
[]
[]
[]
[]
[]
[]
[]
[]
[]
[]
[]
[]
[]
[]
[]
[]
[]
[]
[]
[]
[]
[]
[]
[]
[]
[]
[]
[]
[]
[]
[]
[]
[]
[]
[]
[]
[]
[]
[]
[]
[]
[]
[]
[]
[]
[]
[]
[]
[]
[]
[]
[]
[]
[]
[]
[]
[]
[]
[]
[]
[]
[]
[]
[]
[]
[]
[]
[]
[]
[]
[]
[]
[]
[]
[]
[]
[]
[]
[]
[]
[]
[]
[]
[]
[]
[]
[]
[]
[]
[]
[]
[]
[]
[]
[]
[]
[]
[]
[]
[]
[]
[]
[]
[]
[]
[]
[]
[]
[]
[]
[]
[]
[]
[]
[]
[]
[]
[]
[]
[]
[]
[]
[]
[]
[]
[]
[]
[]
[]
[]
[]
[]
[]
[]
[]
[]
[]
[]
[]
[]
[]
[]
[]
[]
[]
[]
[]
[]
[]
[]
[]
[]
[]
[]
[]
[]
[]
[]
[]
[]
[]
[]
[]
[]
[]
[]
[]
[]
[]
[]
[]
[]
[]
[]
[]
[]
[]
[]
[]
[]
[]
[]
[]
[]
[]
[]
[]
[]
[]
[]
[]
[]
[]
[]
[]
[]
[]
[]
[]
[]
[]
[]
[]
[]
[]
[]
[]
[]
[]
[]
[]
[]
[]
[]
[]
[]
[]
[]
[]
[]
[]
[]
[]
[]
[]
[]
[]
[]
[]
[]
[]
[]
[]
[]
[]
[]
[]
[]
[]
[]
[]
[]
[]
[]
[]
[]
[]
[]
[]
[]
[]
[]
[]
[]
[]
[]
[]
[]
[]
[]
[]
[]
[]
[]
[]
[]
[]
[]
[]
[]
[]
[]
[]
[]
[]
[]
[]
[]
[]
[]
[]
[]
[]
[]
[]
[]
[]
[]
[]
[]
[]
[]
[]
[]
[]
[]
[]
[]
[]
[]
[]
[]
[]
[]
[]
[]
[]
[null,null,null,"Daniel Perez "]

{"sheet":"LMA5","index":47,"n_rows":654,"n_cols":24,"rows_kept":654,"cut":false,"hidden":true,"merged":[[23,23,23,26],[25,23,25,26],[27,23,27,26],[3,11,3,14],[14,23,14,26],[16,23,16,26],[18,23,18,26],[6,23,6,26],[8,23,8,26],[10,23,10,26]]}
[]
[]
["Public Facilities & Infrastructure"]
[null,null,null,null,null,null,null,null,"Total Persons Assisted:"]
[]
["Of the Total Persons, Number of:"]
[null,null,null,null,null,null,null,null,null,null,null,null,"With New Access to this Type of Public Facility or Infrastructure Improvement:"]
[]
[null,"With Improved Access to this Type of Public Facility or Infrastructure Improvement:"]
[]
[null,null,null,null,null,null,null,null,null,null,null,null,"With Access to Public Facility or Infrastructure that Is No Longer Substandard:"]
["If the activity is intended to help the homeless:"]
[]
["Of the Total Persons, Number of:"]
[null,null,null,null,null,null,null,null,null,null,null,null,"Homeless Persons Given Overnight Shelter:"]
[]
[null,null,null,null,null,null,null,null,"Beds Created in Overnight Shelter or Other Emergency Housing:"]
[]
[null,null,null,null,null,null,null,null,null,null,null,null,null,null,null,null,null,null,null,null,"Total:",null,null,{"$f":"X15+X17","v":0}]
[]
["If the activity is intended to prevent homelessness:"]
[]
["Of the Total Persons, Number of:"]
[null,null,null,null,"Individuals receiving emergency financial assistance to prevent homelessness:"]
[]
[null,null,null,null,null,"Individuals receiving emergency legal assistance to prevent homelessness:"]
[]
[null,null,null,null,null,null,null,null,null,null,null,null,null,null,null,null,null,null,null,null,"Total:",null,null,{"$f":"X24+X26","v":0}]
[]
[]
[]
[]
[]
[]
[]
[]
[]
[]
[]
[]
[]
[]
[]
[]
[]
[]
[]
[]
[]
[]
[]
[]
[]
[]
[]
[]
[]
[]
[]
[]
[]
[]
[]
[]
[]
[]
[]
[]
[]
[]
[]
[]
[]
[]
[]
[]
[]
[]
[]
[]
[]
[]
[]
[]
[]
[]
[]
[]
[]
[]
[]
[]
[]
[]
[]
[]
[]
[]
[]
[]
[]
[]
[]
[]
[]
[]
[]
[]
[]
[]
[]
[]
[]
[]
[]
[]
[]
[]
[]
[]
[]
[]
[]
[]
[]
[]
[]
[]
[]
[]
[]
[]
[]
[]
[]
[]
[]
[]
[]
[]
[]
[]
[]
[]
[]
[]
[]
[]
[]
[]
[]
[]
[]
[]
[]
[]
[]
[]
[]
[]
[]
[]
[]
[]
[]
[]
[]
[]
[]
[]
[]
[]
[]
[]
[]
[]
[]
[]
[]
[]
[]
[]
[]
[]
[]
[]
[]
[]
[]
[]
[]
[]
[]
[]
[]
[]
[]
[]
[]
[]
[]
[]
[]
[]
[]
[]
[]
[]
[]
[]
[]
[]
[]
[]
[]
[]
[]
[]
[]
[]
[]
[]
[]
[]
[]
[]
[]
[]
[]
[]
[]
[]
[]
[]
[]
[]
[]
[]
[]
[]
[]
[]
[]
[]
[]
[]
[]
[]
[]
[]
[]
[]
[]
[]
[]
[]
[]
[]
[]
[]
[]
[]
[]
[]
[]
[]
[]
[]
[]
[]
[]
[]
[]
[]
[]
[]
[]
[]
[]
[]
[]
[]
[]
[]
[]
[]
[]
[]
[]
[]
[]
[]
[]
[]
[]
[]
[]
[]
[]
[]
[]
[]
[]
[]
[]
[]
[]
[]
[]
[]
[]
[]
[]
[]
[]
[]
[]
[]
[]
[]
[]
[]
[]
[]
[]
[]
[]
[]
[]
[]
[]
[]
[]
[]
[]
[]
[]
[]
[]
[]
[]
[]
[]
[]
[]
[]
[]
[]
[]
[]
[]
[]
[]
[]
[]
[]
[]
[]
[]
[]
[]
[]
[]
[]
[]
[]
[]
[]
[]
[]
[]
[]
[]
[]
[]
[]
[]
[]
[]
[]
[]
[]
[]
[]
[]
[]
[]
[]
[]
[]
[]
[]
[]
[]
[]
[]
[]
[]
[]
[]
[]
[]
[]
[]
[]
[]
[]
[]
[]
[]
[]
[]
[]
[]
[]
[]
[]
[]
[]
[]
[]
[]
[]
[]
[]
[]
[]
[]
[]
[]
[]
[]
[]
[]
[]
[]
[]
[]
[]
[]
[]
[]
[]
[]
[]
[]
[]
[]
[]
[]
[]
[]
[]
[]
[]
[]
[]
[]
[]
[]
[]
[]
[]
[]
[]
[]
[]
[]
[]
[]
[]
[]
[]
[]
[]
[]
[]
[]
[]
[]
[]
[]
[]
[]
[]
[]
[]
[]
[]
[]
[]
[]
[]
[]
[]
[]
[]
[]
[]
[]
[]
[]
[]
[]
[]
[]
[]
[]
[]
[]
[]
[]
[]
[]
[]
[]
[]
[]
[]
[]
[]
[]
[]
[]
[]
[]
[]
[]
[]
[]
[]
[]
[]
[]
[]
[]
[]
[]
[]
[]
[]
[]
[]
[]
[]
[]
[]
[]
[]
[]
[]
[]
[]
[]
[]
[]
[]
[]
[]
[]
[]
[]
[]
[]
[]
[]
[]
[]
[]
[]
[]
[]
[]
[]
[]
[]
[]
[]
[]
[]
[]
[]
[]
[]
[]
[]
[]
[]
[]
[]
[]
[]
[]
[]
[]
[]
[]
[]
[]
[]
[]
[]
[]
[]
[]
[]
[]
[]
[]
[]
[]
[]
[]
[]
[]
[]
[]
[]
[]
[]
[]
[]
[]
[]
[]
[]
[]
[]
[]
[]
[]
[]
[]
[]
[]
[]
[]
[]
[]
[]
[]
[]
[]
[]
[]
[]
[]
[]
[]
[]
[]
[]
[]
[null,null,null,"Daniel Perez "]

{"sheet":"LMA6","index":48,"n_rows":652,"n_cols":16,"rows_kept":652,"cut":false,"hidden":true,"merged":[[3,11,3,14],[6,23,6,26],[8,23,8,26],[10,23,10,26]]}
[]
[]
["Public Services"]
[null,null,null,null,null,null,null,"Total Persons Assisted:"]
[]
["Of the Total Persons, Number of:"]
[null,null,null,null,null,null,null,null,null,null,null,null,null,null,null,"With New or Continuing Access to a Service or Benefit:"]
[]
[null,null,null,null,null,null,null,null,null,null,"With Improved Access to a Service or Benefit:"]
[]
[null,null,null,null,null,null,null,null,null,null,null,null,null,null,"Receive a Service or Benefit that is No Longer Substandard:"]
[]
[]
[]
[]
[]
[]
[]
[]
[]
[]
[]
[]
[]
[]
[]
[]
[]
[]
[]
[]
[]
[]
[]
[]
[]
[]
[]
[]
[]
[]
[]
[]
[]
[]
[]
[]
[]
[]
[]
[]
[]
[]
[]
[]
[]
[]
[]
[]
[]
[]
[]
[]
[]
[]
[]
[]
[]
[]
[]
[]
[]
[]
[]
[]
[]
[]
[]
[]
[]
[]
[]
[]
[]
[]
[]
[]
[]
[]
[]
[]
[]
[]
[]
[]
[]
[]
[]
[]
[]
[]
[]
[]
[]
[]
[]
[]
[]
[]
[]
[]
[]
[]
[]
[]
[]
[]
[]
[]
[]
[]
[]
[]
[]
[]
[]
[]
[]
[]
[]
[]
[]
[]
[]
[]
[]
[]
[]
[]
[]
[]
[]
[]
[]
[]
[]
[]
[]
[]
[]
[]
[]
[]
[]
[]
[]
[]
[]
[]
[]
[]
[]
[]
[]
[]
[]
[]
[]
[]
[]
[]
[]
[]
[]
[]
[]
[]
[]
[]
[]
[]
[]
[]
[]
[]
[]
[]
[]
[]
[]
[]
[]
[]
[]
[]
[]
[]
[]
[]
[]
[]
[]
[]
[]
[]
[]
[]
[]
[]
[]
[]
[]
[]
[]
[]
[]
[]
[]
[]
[]
[]
[]
[]
[]
[]
[]
[]
[]
[]
[]
[]
[]
[]
[]
[]
[]
[]
[]
[]
[]
[]
[]
[]
[]
[]
[]
[]
[]
[]
[]
[]
[]
[]
[]
[]
[]
[]
[]
[]
[]
[]
[]
[]
[]
[]
[]
[]
[]
[]
[]
[]
[]
[]
[]
[]
[]
[]
[]
[]
[]
[]
[]
[]
[]
[]
[]
[]
[]
[]
[]
[]
[]
[]
[]
[]
[]
[]
[]
[]
[]
[]
[]
[]
[]
[]
[]
[]
[]
[]
[]
[]
[]
[]
[]
[]
[]
[]
[]
[]
[]
[]
[]
[]
[]
[]
[]
[]
[]
[]
[]
[]
[]
[]
[]
[]
[]
[]
[]
[]
[]
[]
[]
[]
[]
[]
[]
[]
[]
[]
[]
[]
[]
[]
[]
[]
[]
[]
[]
[]
[]
[]
[]
[]
[]
[]
[]
[]
[]
[]
[]
[]
[]
[]
[]
[]
[]
[]
[]
[]
[]
[]
[]
[]
[]
[]
[]
[]
[]
[]
[]
[]
[]
[]
[]
[]
[]
[]
[]
[]
[]
[]
[]
[]
[]
[]
[]
[]
[]
[]
[]
[]
[]
[]
[]
[]
[]
[]
[]
[]
[]
[]
[]
[]
[]
[]
[]
[]
[]
[]
[]
[]
[]
[]
[]
[]
[]
[]
[]
[]
[]
[]
[]
[]
[]
[]
[]
[]
[]
[]
[]
[]
[]
[]
[]
[]
[]
[]
[]
[]
[]
[]
[]
[]
[]
[]
[]
[]
[]
[]
[]
[]
[]
[]
[]
[]
[]
[]
[]
[]
[]
[]
[]
[]
[]
[]
[]
[]
[]
[]
[]
[]
[]
[]
[]
[]
[]
[]
[]
[]
[]
[]
[]
[]
[]
[]
[]
[]
[]
[]
[]
[]
[]
[]
[]
[]
[]
[]
[]
[]
[]
[]
[]
[]
[]
[]
[]
[]
[]
[]
[]
[]
[]
[]
[]
[]
[]
[]
[]
[]
[]
[]
[]
[]
[]
[]
[]
[]
[]
[]
[]
[]
[]
[]
[]
[]
[]
[]
[]
[]
[]
[]
[]
[]
[]
[]
[]
[]
[]
[]
[]
[]
[]
[]
[]
[]
[]
[]
[]
[]
[]
[]
[]
[]
[]
[]
[]
[]
[]
[]
[]
[]
[]
[]
[]
[]
[]
[]
[]
[]
[]
[]
[]
[]
[]
[]
[]
[]
[]
[]
[]
[]
[]
[]
[]
[]
[]
[]
[]
[]
[]
[]
[]
[]
[]
[]
[]
[]
[]
[]
[]
[]
[]
[]
[]
[]
[]
[]
[]
[]
[]
[]
[]
[]
[]
[]
[]
[]
[]
[]
[]
[]
[null,null,null,"Daniel Perez "]

{"sheet":"LMA 7","index":49,"n_rows":652,"n_cols":19,"rows_kept":652,"cut":false,"hidden":true,"merged":[]}
[]
[null,null,null,null,null,null,null,null,null,null,null,null,null,null,null,null,null,null,"Actual Units:"]
[]
[]
[]
[]
[]
[]
[]
[]
[]
[]
[]
[]
[]
[]
[]
[]
[]
[]
[]
[]
[]
[]
[]
[]
[]
[]
[]
[]
[]
[]
[]
[]
[]
[]
[]
[]
[]
[]
[]
[]
[]
[]
[]
[]
[]
[]
[]
[]
[]
[]
[]
[]
[]
[]
[]
[]
[]
[]
[]
[]
[]
[]
[]
[]
[]
[]
[]
[]
[]
[]
[]
[]
[]
[]
[]
[]
[]
[]
[]
[]
[]
[]
[]
[]
[]
[]
[]
[]
[]
[]
[]
[]
[]
[]
[]
[]
[]
[]
[]
[]
[]
[]
[]
[]
[]
[]
[]
[]
[]
[]
[]
[]
[]
[]
[]
[]
[]
[]
[]
[]
[]
[]
[]
[]
[]
[]
[]
[]
[]
[]
[]
[]
[]
[]
[]
[]
[]
[]
[]
[]
[]
[]
[]
[]
[]
[]
[]
[]
[]
[]
[]
[]
[]
[]
[]
[]
[]
[]
[]
[]
[]
[]
[]
[]
[]
[]
[]
[]
[]
[]
[]
[]
[]
[]
[]
[]
[]
[]
[]
[]
[]
[]
[]
[]
[]
[]
[]
[]
[]
[]
[]
[]
[]
[]
[]
[]
[]
[]
[]
[]
[]
[]
[]
[]
[]
[]
[]
[]
[]
[]
[]
[]
[]
[]
[]
[]
[]
[]
[]
[]
[]
[]
[]
[]
[]
[]
[]
[]
[]
[]
[]
[]
[]
[]
[]
[]
[]
[]
[]
[]
[]
[]
[]
[]
[]
[]
[]
[]
[]
[]
[]
[]
[]
[]
[]
[]
[]
[]
[]
[]
[]
[]
[]
[]
[]
[]
[]
[]
[]
[]
[]
[]
[]
[]
[]
[]
[]
[]
[]
[]
[]
[]
[]
[]
[]
[]
[]
[]
[]
[]
[]
[]
[]
[]
[]
[]
[]
[]
[]
[]
[]
[]
[]
[]
[]
[]
[]
[]
[]
[]
[]
[]
[]
[]
[]
[]
[]
[]
[]
[]
[]
[]
[]
[]
[]
[]
[]
[]
[]
[]
[]
[]
[]
[]
[]
[]
[]
[]
[]
[]
[]
[]
[]
[]
[]
[]
[]
[]
[]
[]
[]
[]
[]
[]
[]
[]
[]
[]
[]
[]
[]
[]
[]
[]
[]
[]
[]
[]
[]
[]
[]
[]
[]
[]
[]
[]
[]
[]
[]
[]
[]
[]
[]
[]
[]
[]
[]
[]
[]
[]
[]
[]
[]
[]
[]
[]
[]
[]
[]
[]
[]
[]
[]
[]
[]
[]
[]
[]
[]
[]
[]
[]
[]
[]
[]
[]
[]
[]
[]
[]
[]
[]
[]
[]
[]
[]
[]
[]
[]
[]
[]
[]
[]
[]
[]
[]
[]
[]
[]
[]
[]
[]
[]
[]
[]
[]
[]
[]
[]
[]
[]
[]
[]
[]
[]
[]
[]
[]
[]
[]
[]
[]
[]
[]
[]
[]
[]
[]
[]
[]
[]
[]
[]
[]
[]
[]
[]
[]
[]
[]
[]
[]
[]
[]
[]
[]
[]
[]
[]
[]
[]
[]
[]
[]
[]
[]
[]
[]
[]
[]
[]
[]
[]
[]
[]
[]
[]
[]
[]
[]
[]
[]
[]
[]
[]
[]
[]
[]
[]
[]
[]
[]
[]
[]
[]
[]
[]
[]
[]
[]
[]
[]
[]
[]
[]
[]
[]
[]
[]
[]
[]
[]
[]
[]
[]
[]
[]
[]
[]
[]
[]
[]
[]
[]
[]
[]
[]
[]
[]
[]
[]
[]
[]
[]
[]
[]
[]
[]
[]
[]
[]
[]
[]
[]
[]
[]
[]
[]
[]
[]
[]
[]
[]
[]
[]
[]
[]
[]
[]
[]
[]
[]
[]
[]
[]
[]
[]
[]
[]
[]
[]
[]
[]
[]
[]
[]
[]
[]
[]
[]
[]
[]
[]
[]
[]
[]
[]
[]
[]
[]
[]
[]
[]
[]
[]
[]
[]
[]
[]
[]
[]
[]
[]
[]
[]
[]
[]
[]
[]
[]
[]
[]
[]
[]
[]
[]
[]
[]
[]
[null,null,null,"Daniel Perez "]

{"sheet":"LMC 5","index":50,"n_rows":97,"n_cols":33,"rows_kept":97,"cut":false,"hidden":true,"merged":[[92,23,92,26],[94,23,94,26],[96,23,96,26],[83,23,83,26],[85,23,85,26],[87,23,87,26],[66,11,66,14],[66,15,66,16],[66,17,66,18],[78,23,78,26],[69,11,69,14],[69,15,69,16],[69,17,69,18],[71,11,71,14],[74,23,74,26],[76,23,76,26],[68,11,68,14],[68,15,68,16],[68,17,68,18],[64,11,64,14],[64,15,64,16],[64,17,64,18],[65,11,65,14],[65,15,65,16],[65,17,65,18],[61,17,61,18],[62,11,62,14],[62,15,62,16],[62,17,62,18],[63,11,63,14],[63,15,63,16],[63,17,63,18],[57,11,57,14],[57,15,57,16],[58,11,58,14],[58,15,58,16],[61,11,61,14],[61,15,61,16],[53,11,53,14],[53,15,53,16],[54,11,54,14],[54,15,54,16],[55,0,56,10],[55,11,56,14],[55,15,56,16],[49,0,50,10],[49,11,50,14],[49,15,50,16],[51,0,52,10],[51,11,52,14],[51,15,52,16],[46,11,46,14],[46,15,46,16],[47,11,47,14],[47,15,47,16],[48,11,48,14],[48,15,48,16],[39,11,39,14],[39,15,39,16],[42,10,42,15],[43,15,44,16],[44,11,44,14],[45,11,45,14],[45,15,45,16],[41,0,41,26],[34,15,34,16],[35,15,35,16],[36,0,37,10],[36,11,37,14],[36,15,37,16],[38,11,38,14],[38,15,38,16],[28,15,28,16],[29,15,29,16],[30,0,31,10],[30,11,31,14],[30,15,31,16],[32,0,33,10],[32,11,33,14],[32,15,33,16],[28,11,28,14],[29,11,29,14],[34,11,34,14],[35,11,35,14],[17,15,17,16],[23,10,23,15],[24,15,25,16],[26,11,26,14],[26,15,26,16],[27,11,27,14],[27,15,27,16],[12,0,13,10],[12,11,13,14],[12,15,13,16],[14,0,15,10],[14,11,15,14],[14,15,15,16],[25,11,25,14],[18,0,19,10],[18,11,19,14],[18,15,19,16],[20,11,20,14],[20,15,20,16],[21,11,21,14],[21,15,21,16],[16,11,16,14],[16,15,16,16],[17,11,17,14],[11,11,11,14],[11,15,11,16],[5,10,5,15],[6,15,7,16],[7,11,7,14],[8,11,8,14],[8,15,8,16],[9,11,9,14],[9,15,9,16],[10,11,10,14],[10,15,10,16]]}
[]
[]
[]
[]
[]
[null,null,null,null,null,null,null,null,null,null,"Households\n(Owners)"]
[null,null,null,null,null,null,null,null,null,null,null,null,null,null,null,"Hispanic\n/Latino"]
[null,null,null,null,null,"Race/Ethnicity",null,null,null,null,null,"Race"]
[null,null,null,null,null,"White"]
[null,null,null,null,null,"Black / African American"]
[null,null,null,null,null,"Asian"]
[null,null,null,null,null,"American Indian / Alaskan Native"]
["Native Hawaiian / Other Pacific Islander"]
[null,null,null,null,null,null,null,null,null,null,null,null,null,null,null,null,null,null,null,null,null,null,null,null,null,null,null,null,null,null,null,null," "]
["American Indian / Alaskan Native & White"]
[]
[null,null,null,null,null,"Asian & White"]
[null,null,null,null,null,"Black / African American & White"]
["American Indian / Alaskan Native & Black / African American"]
[]
[null,null,null,null,null,"Other Multi-Racial"]
[null,null,null,null,null,null,null,null,null,null,"Total:",{"$f":"SUM(L9:O21)","v":0},null,null,null,{"$f":"SUM(P9:Q21)","v":0}]
[]
[null,null,null,null,null,null,null,null,null,null,"Households\n(Renters)"]
[null,null,null,null,null,null,null,null,null,null,null,null,null,null,null,"Hispanic\n/Latino"]
[null,null,null,null,null,"Race/Ethnicity",null,null,null,null,null,"Race"]
[null,null,null,null,null,"White"]
[null,null,null,null,null,"Black / African American"]
[null,null,null,null,null,"Asian"]
[null,null,null,null,null,"American Indian / Alaskan Native"]
["Native Hawaiian / Other Pacific Islander"]
[]
["American Indian / Alaskan Native & White"]
[]
[null,null,null,null,null,"Asian & White"]
[null,null,null,null,null,"Black / African American & White"]
["American Indian / Alaskan Native & Black / African American"]
[]
[null,null,null,null,null,"Other Multi-Racial"]
[null,null,null,null,null,null,null,null,null,null,"Total:",{"$f":"SUM(L27:O39)","v":0},null,null,null,{"$f":"SUM(P27:Q39)","v":0}]
[]
["Accomplishment Information"]
[null,null,null,null,null,null,null,null,null,null,"Households\n(Total)"]
[null,null,null,null,null,null,null,null,null,null,null,null,null,null,null,"Hispanic\n/Latino"]
[null,null,null,null,null,"Race/Ethnicity",null,null,null,null,null,"Race"]
[null,null,null,null,null,"White",null,null,null,null,null,{"$f":"L9+L27","v":0},null,null,null,{"$f":"P9+P27","v":0}]
[null,null,null,null,null,"Black / African American",null,null,null,null,null,{"$f":"L10+L28","v":0},null,null,null,{"$f":"P10+P28","v":0}]
[null,null,null,null,null,"Asian",null,null,null,null,null,{"$f":"L11+L29","v":0},null,null,null,{"$f":"P11+P29","v":0}]
[null,null,null,null,null,"American Indian / Alaskan Native",null,null,null,null,null,{"$f":"L12+L30","v":0},null,null,null,{"$f":"P12+P30","v":0}]
["Native Hawaiian / Other Pacific Islander",null,null,null,null,null,null,null,null,null,null,{"$f":"L13+L31","v":0},null,null,null,{"$f":"P13+P31","v":0}]
[]
["American Indian / Alaskan Native & White",null,null,null,null,null,null,null,null,null,null,{"$f":"L15+L33","v":0},null,null,null,{"$f":"P15+P33","v":0}]
[]
[null,null,null,null,null,"Asian & White",null,null,null,null,null,{"$f":"L17+L35","v":0},null,null,null,{"$f":"P17+P35","v":0}]
[null,null,null,null,null,"Black / African American & White",null,null,null,null,null,{"$f":"L18+L36","v":0},null,null,null,{"$f":"P18+P36","v":0}]
["American Indian / Alaskan Native & Black / African American",null,null,null,null,null,null,null,null,null,null,{"$f":"L19+L37","v":0},null,null,null,{"$f":"P19+P37","v":0}]
[]
[null,null,null,null,null,"Other Multi-Racial",null,null,null,null,null,{"$f":"L21+L39","v":0},null,null,null,{"$f":"P21+P39","v":0}]
[null,null,null,null,null,null,null,null,null,null,"Total:",{"$f":"SUM(L46:O58)","v":0},null,null,null,{"$f":"SUM(P46:Q58)","v":0}]
[]
[]
[null,null,null,null,"Income Information",null,null,null,null,null,null,"Owner",null,null,null,"Renter",null,"Total"]
[null,null,null,null,"Extremely Low (0-30% AMI)",null,null,null,null,null,null,null,null,null,null,null,null,{"$f":"L63+P63","v":0}]
[null,null,null,null,"Low (31-50% AMI)",null,null,null,null,null,null,null,null,null,null,null,null,0]
[null,null,null,null,"Moderate (51-80% AMI)",null,null,null,null,null,null,null,null,null,null,null,null,0]
[null,null,null,null,"Non-Low/Moderate",null,null,null,null,null,null,null,null,null,null,null,null,{"$f":"L66+P66","v":0}]
[null,null,null,null,null,null,null,null,null,null,"Total:",{"$f":"SUM(L63:O66)","v":0},null,null,null,{"$f":"SUM(P63:Q66)","v":0},null,{"$f":"SUM(R63:S66)","v":0}]
[]
[null,null,null,null,null,null,null,null,null,null,null,"Owner",null,null,null,"Renter",null,"Total"]
[null,null,null,null,"Female-Headed Households",null,null,null,null,null,null,null,null,null,null,null,null,{"$f":"L70+P70","v":0}]
[]
[null,null,null,null,null,null,null,"Total Persons Assisted:"]
[]
["Of the Total Persons, Number of:"]
[null,null,null,null,null,null,null,null,null,null,null,null,null,null,null,"With New or Continuing Access to a Service or Benefit:"]
[]
[null,null,null,null,null,null,null,null,null,null,"With Improved Access to a Service or Benefit:"]
[]
[null,null,null,null,null,null,null,null,null,null,null,null,null,null,"Receive a Service or Benefit that is No Longer Substandard:"]
[]
["If the activity is intended to help the homeless:"]
[]
["Of the Total Persons, Number of:"]
[null,null,null,null,null,null,null,null,null,null,null,null,"Homeless Persons Given Overnight Shelter:"]
[]
[null,null,null,null,null,null,null,null,"Beds Created in Overnight Shelter or Other Emergency Housing:"]
[]
[null,null,null,null,null,null,null,null,null,null,null,null,null,null,null,null,null,null,null,null,"Total:",null,null,{"$f":"X84+X86","v":0}]
[]
["If the activity is intended to prevent homelessness:"]
[]
["Of the Total Persons, Number of:"]
[null,null,null,null,"Individuals receiving emergency financial assistance to prevent homelessness:"]
[]
[null,null,null,null,null,"Individuals receiving emergency legal assistance to prevent homelessness:"]
[]
[null,null,null,null,null,null,null,null,null,null,null,null,null,null,null,null,null,null,null,null,"Total:",null,null,{"$f":"X93+X95","v":0}]

{"sheet":"LMC 12","index":51,"n_rows":652,"n_cols":19,"rows_kept":652,"cut":false,"hidden":true,"merged":[[64,11,64,14],[64,15,64,16],[64,17,64,18],[62,11,62,14],[62,15,62,16],[62,17,62,18],[63,11,63,14],[63,15,63,16],[63,17,63,18],[59,17,59,18],[60,11,60,14],[60,15,60,16],[60,17,60,18],[61,11,61,14],[61,15,61,16],[61,17,61,18],[55,11,55,14],[55,15,55,16],[56,11,56,14],[56,15,56,16],[59,11,59,14],[59,15,59,16],[51,11,51,14],[51,15,51,16],[52,11,52,14],[52,15,52,16],[53,0,54,10],[53,11,54,14],[53,15,54,16],[47,0,48,10],[47,11,48,14],[47,15,48,16],[49,0,50,10],[49,11,50,14],[49,15,50,16],[44,11,44,14],[44,15,44,16],[45,11,45,14],[45,15,45,16],[46,11,46,14],[46,15,46,16],[39,0,39,26],[40,10,40,15],[41,15,42,16],[42,11,42,14],[43,11,43,14],[43,15,43,16],[34,0,35,10],[34,11,35,14],[34,15,35,16],[36,11,36,14],[36,15,36,16],[37,11,37,14],[37,15,37,16],[30,0,31,10],[30,11,31,14],[30,15,31,16],[32,11,32,14],[32,15,32,16],[33,11,33,14],[33,15,33,16],[26,11,26,14],[26,15,26,16],[27,11,27,14],[27,15,27,16],[28,0,29,10],[28,11,29,14],[28,15,29,16],[21,10,21,15],[22,15,23,16],[23,11,23,14],[24,11,24,14],[24,15,24,16],[25,11,25,14],[25,15,25,16],[16,0,17,10],[16,11,17,14],[16,15,17,16],[18,11,18,14],[18,15,18,16],[19,11,19,14],[19,15,19,16],[12,0,13,10],[12,11,13,14],[12,15,13,16],[14,11,14,14],[14,15,14,16],[15,11,15,14],[15,15,15,16],[8,11,8,14],[8,15,8,16],[9,11,9,14],[9,15,9,16],[10,0,11,10],[10,11,11,14],[10,15,11,16],[3,10,3,15],[4,15,5,16],[5,11,5,14],[6,11,6,14],[6,15,6,16],[7,11,7,14],[7,15,7,16]]}
[]
[null,null,null,null,null,null,null,null,null,null,null,null,null,null,null,null,null,null,"Actual Units:"]
[]
[null,null,null,null,null,null,null,null,null,null,"Households\n(Owners)"]
[null,null,null,null,null,null,null,null,null,null,null,null,null,null,null,"Hispanic\n/Latino"]
[null,null,null,null,null,"Race/Ethnicity",null,null,null,null,null,"Race"]
[null,null,null,null,null,"White"]
[null,null,null,null,null,"Black / African American"]
[null,null,null,null,null,"Asian"]
[null,null,null,null,null,"American Indian / Alaskan Native"]
["Native Hawaiian / Other Pacific Islander"]
[]
["American Indian / Alaskan Native & White"]
[]
[null,null,null,null,null,"Asian & White"]
[null,null,null,null,null,"Black / African American & White"]
["American Indian / Alaskan Native & Black / African American"]
[]
[null,null,null,null,null,"Other Multi-Racial"]
[null,null,null,null,null,null,null,null,null,null,"Total:",{"$f":"SUM(L7:O19)","v":0},null,null,null,{"$f":"SUM(P7:Q19)","v":0}]
[]
[null,null,null,null,null,null,null,null,null,null,"Households\n(Renters)"]
[null,null,null,null,null,null,null,null,null,null,null,null,null,null,null,"Hispanic\n/Latino"]
[null,null,null,null,null,"Race/Ethnicity",null,null,null,null,null,"Race"]
[null,null,null,null,null,"White"]
[null,null,null,null,null,"Black / African American"]
[null,null,null,null,null,"Asian"]
[null,null,null,null,null,"American Indian / Alaskan Native"]
["Native Hawaiian / Other Pacific Islander"]
[]
["American Indian / Alaskan Native & White"]
[]
[null,null,null,null,null,"Asian & White"]
[null,null,null,null,null,"Black / African American & White"]
["American Indian / Alaskan Native & Black / African American"]
[]
[null,null,null,null,null,"Other Multi-Racial"]
[null,null,null,null,null,null,null,null,null,null,"Total:",{"$f":"SUM(L25:O37)","v":0},null,null,null,{"$f":"SUM(P25:Q37)","v":0}]
[]
["Accomplishment Information"]
[null,null,null,null,null,null,null,null,null,null,"Households\n(Total)"]
[null,null,null,null,null,null,null,null,null,null,null,null,null,null,null,"Hispanic\n/Latino"]
[null,null,null,null,null,"Race/Ethnicity",null,null,null,null,null,"Race"]
[null,null,null,null,null,"White",null,null,null,null,null,{"$f":"L7+L25","v":0},null,null,null,{"$f":"P7+P25","v":0}]
[null,null,null,null,null,"Black / African American",null,null,null,null,null,{"$f":"L8+L26","v":0},null,null,null,{"$f":"P8+P26","v":0}]
[null,null,null,null,null,"Asian",null,null,null,null,null,{"$f":"L9+L27","v":0},null,null,null,{"$f":"P9+P27","v":0}]
[null,null,null,null,null,"American Indian / Alaskan Native",null,null,null,null,null,{"$f":"L10+L28","v":0},null,null,null,{"$f":"P10+P28","v":0}]
["Native Hawaiian / Other Pacific Islander",null,null,null,null,null,null,null,null,null,null,{"$f":"L11+L29","v":0},null,null,null,{"$f":"P11+P29","v":0}]
[]
["American Indian / Alaskan Native & White",null,null,null,null,null,null,null,null,null,null,{"$f":"L13+L31","v":0},null,null,null,{"$f":"P13+P31","v":0}]
[]
[null,null,null,null,null,"Asian & White",null,null,null,null,null,{"$f":"L15+L33","v":0},null,null,null,{"$f":"P15+P33","v":0}]
[null,null,null,null,null,"Black / African American & White",null,null,null,null,null,{"$f":"L16+L34","v":0},null,null,null,{"$f":"P16+P34","v":0}]
["American Indian / Alaskan Native & Black / African American",null,null,null,null,null,null,null,null,null,null,{"$f":"L17+L35","v":0},null,null,null,{"$f":"P17+P35","v":0}]
[]
[null,null,null,null,null,"Other Multi-Racial",null,null,null,null,null,{"$f":"L19+L37","v":0},null,null,null,{"$f":"P19+P37","v":0}]
[null,null,null,null,null,null,null,null,null,null,"Total:",{"$f":"SUM(L44:O56)","v":0},null,null,null,{"$f":"SUM(P44:Q56)","v":0}]
[]
[]
[null,null,null,null,"Income Information",null,null,null,null,null,null,"Owner",null,null,null,"Renter",null,"Total"]
[null,null,null,null,"Extremely Low (0-30% AMI)",null,null,null,null,null,null,null,null,null,null,null,null,{"$f":"L61+P61","v":0}]
[null,null,null,null,"Low (31-50% AMI)",null,null,null,null,null,null,null,null,null,null,null,null,0]
[null,null,null,null,"Moderate (51-80% AMI)",null,null,null,null,null,null,null,null,null,null,null,null,0]
[null,null,null,null,"Non-Low/Moderate",null,null,null,null,null,null,null,null,null,null,null,null,{"$f":"L64+P64","v":0}]
[null,null,null,null,null,null,null,null,null,null,"Total:",{"$f":"SUM(L61:O64)","v":0},null,null,null,{"$f":"SUM(P61:Q64)","v":0},null,{"$f":"SUM(R61:S64)","v":0}]
[]
[]
[]
[]
[]
[]
[]
[]
[]
[]
[]
[]
[]
[]
[]
[]
[]
[]
[]
[]
[]
[]
[]
[]
[]
[]
[]
[]
[]
[]
[]
[]
[]
[]
[]
[]
[]
[]
[]
[]
[]
[]
[]
[]
[]
[]
[]
[]
[]
[]
[]
[]
[]
[]
[]
[]
[]
[]
[]
[]
[]
[]
[]
[]
[]
[]
[]
[]
[]
[]
[]
[]
[]
[]
[]
[]
[]
[]
[]
[]
[]
[]
[]
[]
[]
[]
[]
[]
[]
[]
[]
[]
[]
[]
[]
[]
[]
[]
[]
[]
[]
[]
[]
[]
[]
[]
[]
[]
[]
[]
[]
[]
[]
[]
[]
[]
[]
[]
[]
[]
[]
[]
[]
[]
[]
[]
[]
[]
[]
[]
[]
[]
[]
[]
[]
[]
[]
[]
[]
[]
[]
[]
[]
[]
[]
[]
[]
[]
[]
[]
[]
[]
[]
[]
[]
[]
[]
[]
[]
[]
[]
[]
[]
[]
[]
[]
[]
[]
[]
[]
[]
[]
[]
[]
[]
[]
[]
[]
[]
[]
[]
[]
[]
[]
[]
[]
[]
[]
[]
[]
[]
[]
[]
[]
[]
[]
[]
[]
[]
[]
[]
[]
[]
[]
[]
[]
[]
[]
[]
[]
[]
[]
[]
[]
[]
[]
[]
[]
[]
[]
[]
[]
[]
[]
[]
[]
[]
[]
[]
[]
[]
[]
[]
[]
[]
[]
[]
[]
[]
[]
[]
[]
[]
[]
[]
[]
[]
[]
[]
[]
[]
[]
[]
[]
[]
[]
[]
[]
[]
[]
[]
[]
[]
[]
[]
[]
[]
[]
[]
[]
[]
[]
[]
[]
[]
[]
[]
[]
[]
[]
[]
[]
[]
[]
[]
[]
[]
[]
[]
[]
[]
[]
[]
[]
[]
[]
[]
[]
[]
[]
[]
[]
[]
[]
[]
[]
[]
[]
[]
[]
[]
[]
[]
[]
[]
[]
[]
[]
[]
[]
[]
[]
[]
[]
[]
[]
[]
[]
[]
[]
[]
[]
[]
[]
[]
[]
[]
[]
[]
[]
[]
[]
[]
[]
[]
[]
[]
[]
[]
[]
[]
[]
[]
[]
[]
[]
[]
[]
[]
[]
[]
[]
[]
[]
[]
[]
[]
[]
[]
[]
[]
[]
[]
[]
[]
[]
[]
[]
[]
[]
[]
[]
[]
[]
[]
[]
[]
[]
[]
[]
[]
[]
[]
[]
[]
[]
[]
[]
[]
[]
[]
[]
[]
[]
[]
[]
[]
[]
[]
[]
[]
[]
[]
[]
[]
[]
[]
[]
[]
[]
[]
[]
[]
[]
[]
[]
[]
[]
[]
[]
[]
[]
[]
[]
[]
[]
[]
[]
[]
[]
[]
[]
[]
[]
[]
[]
[]
[]
[]
[]
[]
[]
[]
[]
[]
[]
[]
[]
[]
[]
[]
[]
[]
[]
[]
[]
[]
[]
[]
[]
[]
[]
[]
[]
[]
[]
[]
[]
[]
[]
[]
[]
[]
[]
[]
[]
[]
[]
[]
[]
[]
[]
[]
[]
[]
[]
[]
[]
[]
[]
[]
[]
[]
[]
[]
[]
[]
[]
[]
[]
[]
[]
[]
[]
[]
[]
[]
[]
[]
[]
[]
[]
[]
[]
[]
[]
[]
[]
[]
[]
[]
[]
[]
[]
[]
[]
[]
[]
[]
[]
[]
[]
[]
[]
[]
[]
[]
[]
[]
[]
[]
[]
[]
[]
[]
[]
[]
[]
[]
[]
[]
[]
[]
[]
[]
[]
[]
[]
[]
[]
[]
[]
[]
[]
[]
[]
[]
[]
[]
[]
[]
[]
[]
[]
[]
[]
[null,null,null,"Daniel Perez "]

{"sheet":"SBURG 11","index":52,"n_rows":652,"n_cols":19,"rows_kept":652,"cut":false,"hidden":true,"merged":[]}
[]
[null,null,null,null,null,null,null,null,null,null,null,null,null,null,null,null,null,null,"Actual Units:"]
[]
[]
[]
[]
[]
[]
[]
[]
[]
[]
[]
[]
[]
[]
[]
[]
[]
[]
[]
[]
[]
[]
[]
[]
[]
[]
[]
[]
[]
[]
[]
[]
[]
[]
[]
[]
[]
[]
[]
[]
[]
[]
[]
[]
[]
[]
[]
[]
[]
[]
[]
[]
[]
[]
[]
[]
[]
[]
[]
[]
[]
[]
[]
[]
[]
[]
[]
[]
[]
[]
[]
[]
[]
[]
[]
[]
[]
[]
[]
[]
[]
[]
[]
[]
[]
[]
[]
[]
[]
[]
[]
[]
[]
[]
[]
[]
[]
[]
[]
[]
[]
[]
[]
[]
[]
[]
[]
[]
[]
[]
[]
[]
[]
[]
[]
[]
[]
[]
[]
[]
[]
[]
[]
[]
[]
[]
[]
[]
[]
[]
[]
[]
[]
[]
[]
[]
[]
[]
[]
[]
[]
[]
[]
[]
[]
[]
[]
[]
[]
[]
[]
[]
[]
[]
[]
[]
[]
[]
[]
[]
[]
[]
[]
[]
[]
[]
[]
[]
[]
[]
[]
[]
[]
[]
[]
[]
[]
[]
[]
[]
[]
[]
[]
[]
[]
[]
[]
[]
[]
[]
[]
[]
[]
[]
[]
[]
[]
[]
[]
[]
[]
[]
[]
[]
[]
[]
[]
[]
[]
[]
[]
[]
[]
[]
[]
[]
[]
[]
[]
[]
[]
[]
[]
[]
[]
[]
[]
[]
[]
[]
[]
[]
[]
[]
[]
[]
[]
[]
[]
[]
[]
[]
[]
[]
[]
[]
[]
[]
[]
[]
[]
[]
[]
[]
[]
[]
[]
[]
[]
[]
[]
[]
[]
[]
[]
[]
[]
[]
[]
[]
[]
[]
[]
[]
[]
[]
[]
[]
[]
[]
[]
[]
[]
[]
[]
[]
[]
[]
[]
[]
[]
[]
[]
[]
[]
[]
[]
[]
[]
[]
[]
[]
[]
[]
[]
[]
[]
[]
[]
[]
[]
[]
[]
[]
[]
[]
[]
[]
[]
[]
[]
[]
[]
[]
[]
[]
[]
[]
[]
[]
[]
[]
[]
[]
[]
[]
[]
[]
[]
[]
[]
[]
[]
[]
[]
[]
[]
[]
[]
[]
[]
[]
[]
[]
[]
[]
[]
[]
[]
[]
[]
[]
[]
[]
[]
[]
[]
[]
[]
[]
[]
[]
[]
[]
[]
[]
[]
[]
[]
[]
[]
[]
[]
[]
[]
[]
[]
[]
[]
[]
[]
[]
[]
[]
[]
[]
[]
[]
[]
[]
[]
[]
[]
[]
[]
[]
[]
[]
[]
[]
[]
[]
[]
[]
[]
[]
[]
[]
[]
[]
[]
[]
[]
[]
[]
[]
[]
[]
[]
[]
[]
[]
[]
[]
[]
[]
[]
[]
[]
[]
[]
[]
[]
[]
[]
[]
[]
[]
[]
[]
[]
[]
[]
[]
[]
[]
[]
[]
[]
[]
[]
[]
[]
[]
[]
[]
[]
[]
[]
[]
[]
[]
[]
[]
[]
[]
[]
[]
[]
[]
[]
[]
[]
[]
[]
[]
[]
[]
[]
[]
[]
[]
[]
[]
[]
[]
[]
[]
[]
[]
[]
[]
[]
[]
[]
[]
[]
[]
[]
[]
[]
[]
[]
[]
[]
[]
[]
[]
[]
[]
[]
[]
[]
[]
[]
[]
[]
[]
[]
[]
[]
[]
[]
[]
[]
[]
[]
[]
[]
[]
[]
[]
[]
[]
[]
[]
[]
[]
[]
[]
[]
[]
[]
[]
[]
[]
[]
[]
[]
[]
[]
[]
[]
[]
[]
[]
[]
[]
[]
[]
[]
[]
[]
[]
[]
[]
[]
[]
[]
[]
[]
[]
[]
[]
[]
[]
[]
[]
[]
[]
[]
[]
[]
[]
[]
[]
[]
[]
[]
[]
[]
[]
[]
[]
[]
[]
[]
[]
[]
[]
[]
[]
[]
[]
[]
[]
[]
[]
[]
[]
[]
[]
[]
[]
[]
[]
[]
[]
[]
[]
[]
[]
[]
[]
[]
[]
[]
[]
[]
[]
[]
[]
[]
[]
[]
[]
[]
[]
[]
[null,null,null,"Daniel Perez "]

{"sheet":"LMH 11","index":53,"n_rows":652,"n_cols":19,"rows_kept":652,"cut":false,"hidden":true,"merged":[[64,11,64,14],[64,15,64,16],[64,17,64,18],[62,11,62,14],[62,15,62,16],[62,17,62,18],[63,11,63,14],[63,15,63,16],[63,17,63,18],[59,17,59,18],[60,11,60,14],[60,15,60,16],[60,17,60,18],[61,11,61,14],[61,15,61,16],[61,17,61,18],[55,11,55,14],[55,15,55,16],[56,11,56,14],[56,15,56,16],[59,11,59,14],[59,15,59,16],[51,11,51,14],[51,15,51,16],[52,11,52,14],[52,15,52,16],[53,0,54,10],[53,11,54,14],[53,15,54,16],[47,0,48,10],[47,11,48,14],[47,15,48,16],[49,0,50,10],[49,11,50,14],[49,15,50,16],[44,11,44,14],[44,15,44,16],[45,11,45,14],[45,15,45,16],[46,11,46,14],[46,15,46,16],[39,0,39,26],[40,10,40,15],[41,15,42,16],[42,11,42,14],[43,11,43,14],[43,15,43,16],[34,0,35,10],[34,11,35,14],[34,15,35,16],[36,11,36,14],[36,15,36,16],[37,11,37,14],[37,15,37,16],[30,0,31,10],[30,11,31,14],[30,15,31,16],[32,11,32,14],[32,15,32,16],[33,11,33,14],[33,15,33,16],[26,11,26,14],[26,15,26,16],[27,11,27,14],[27,15,27,16],[28,0,29,10],[28,11,29,14],[28,15,29,16],[21,10,21,15],[22,15,23,16],[23,11,23,14],[24,11,24,14],[24,15,24,16],[25,11,25,14],[25,15,25,16],[16,0,17,10],[16,11,17,14],[16,15,17,16],[18,11,18,14],[18,15,18,16],[19,11,19,14],[19,15,19,16],[12,0,13,10],[12,11,13,14],[12,15,13,16],[14,11,14,14],[14,15,14,16],[15,11,15,14],[15,15,15,16],[8,11,8,14],[8,15,8,16],[9,11,9,14],[9,15,9,16],[10,0,11,10],[10,11,11,14],[10,15,11,16],[3,10,3,15],[4,15,5,16],[5,11,5,14],[6,11,6,14],[6,15,6,16],[7,11,7,14],[7,15,7,16]]}
[]
[null,null,null,null,null,null,null,null,null,null,null,null,null,null,null,null,null,null,"Actual Units:"]
[]
[null,null,null,null,null,null,null,null,null,null,"Households\n(Owners)"]
[null,null,null,null,null,null,null,null,null,null,null,null,null,null,null,"Hispanic\n/Latino"]
[null,null,null,null,null,"Race/Ethnicity",null,null,null,null,null,"Race"]
[null,null,null,null,null,"White"]
[null,null,null,null,null,"Black / African American"]
[null,null,null,null,null,"Asian"]
[null,null,null,null,null,"American Indian / Alaskan Native"]
["Native Hawaiian / Other Pacific Islander"]
[]
["American Indian / Alaskan Native & White"]
[]
[null,null,null,null,null,"Asian & White"]
[null,null,null,null,null,"Black / African American & White"]
["American Indian / Alaskan Native & Black / African American"]
[]
[null,null,null,null,null,"Other Multi-Racial"]
[null,null,null,null,null,null,null,null,null,null,"Total:",{"$f":"SUM(L7:O19)","v":0},null,null,null,{"$f":"SUM(P7:Q19)","v":0}]
[]
[null,null,null,null,null,null,null,null,null,null,"Households\n(Renters)"]
[null,null,null,null,null,null,null,null,null,null,null,null,null,null,null,"Hispanic\n/Latino"]
[null,null,null,null,null,"Race/Ethnicity",null,null,null,null,null,"Race"]
[null,null,null,null,null,"White"]
[null,null,null,null,null,"Black / African American"]
[null,null,null,null,null,"Asian"]
[null,null,null,null,null,"American Indian / Alaskan Native"]
["Native Hawaiian / Other Pacific Islander"]
[]
["American Indian / Alaskan Native & White"]
[]
[null,null,null,null,null,"Asian & White"]
[null,null,null,null,null,"Black / African American & White"]
["American Indian / Alaskan Native & Black / African American"]
[]
[null,null,null,null,null,"Other Multi-Racial"]
[null,null,null,null,null,null,null,null,null,null,"Total:",{"$f":"SUM(L25:O37)","v":0},null,null,null,{"$f":"SUM(P25:Q37)","v":0}]
[]
["Accomplishment Information"]
[null,null,null,null,null,null,null,null,null,null,"Households\n(Total)"]
[null,null,null,null,null,null,null,null,null,null,null,null,null,null,null,"Hispanic\n/Latino"]
[null,null,null,null,null,"Race/Ethnicity",null,null,null,null,null,"Race"]
[null,null,null,null,null,"White",null,null,null,null,null,{"$f":"L7+L25","v":0},null,null,null,{"$f":"P7+P25","v":0}]
[null,null,null,null,null,"Black / African American",null,null,null,null,null,{"$f":"L8+L26","v":0},null,null,null,{"$f":"P8+P26","v":0}]
[null,null,null,null,null,"Asian",null,null,null,null,null,{"$f":"L9+L27","v":0},null,null,null,{"$f":"P9+P27","v":0}]
[null,null,null,null,null,"American Indian / Alaskan Native",null,null,null,null,null,{"$f":"L10+L28","v":0},null,null,null,{"$f":"P10+P28","v":0}]
["Native Hawaiian / Other Pacific Islander",null,null,null,null,null,null,null,null,null,null,{"$f":"L11+L29","v":0},null,null,null,{"$f":"P11+P29","v":0}]
[]
["American Indian / Alaskan Native & White",null,null,null,null,null,null,null,null,null,null,{"$f":"L13+L31","v":0},null,null,null,{"$f":"P13+P31","v":0}]
[]
[null,null,null,null,null,"Asian & White",null,null,null,null,null,{"$f":"L15+L33","v":0},null,null,null,{"$f":"P15+P33","v":0}]
[null,null,null,null,null,"Black / African American & White",null,null,null,null,null,{"$f":"L16+L34","v":0},null,null,null,{"$f":"P16+P34","v":0}]
["American Indian / Alaskan Native & Black / African American",null,null,null,null,null,null,null,null,null,null,{"$f":"L17+L35","v":0},null,null,null,{"$f":"P17+P35","v":0}]
[]
[null,null,null,null,null,"Other Multi-Racial",null,null,null,null,null,{"$f":"L19+L37","v":0},null,null,null,{"$f":"P19+P37","v":0}]
[null,null,null,null,null,null,null,null,null,null,"Total:",{"$f":"SUM(L44:O56)","v":0},null,null,null,{"$f":"SUM(P44:Q56)","v":0}]
[]
[]
[null,null,null,null,"Income Information",null,null,null,null,null,null,"Owner",null,null,null,"Renter",null,"Total"]
[null,null,null,null,"Extremely Low (0-30% AMI)",null,null,null,null,null,null,null,null,null,null,null,null,{"$f":"L61+P61","v":0}]
[null,null,null,null,"Low (31-50% AMI)",null,null,null,null,null,null,null,null,null,null,null,null,0]
[null,null,null,null,"Moderate (51-80% AMI)",null,null,null,null,null,null,null,null,null,null,null,null,0]
[null,null,null,null,"Non-Low/Moderate",null,null,null,null,null,null,null,null,null,null,null,null,{"$f":"L64+P64","v":0}]
[null,null,null,null,null,null,null,null,null,null,"Total:",{"$f":"SUM(L61:O64)","v":0},null,null,null,{"$f":"SUM(P61:Q64)","v":0},null,{"$f":"SUM(R61:S64)","v":0}]
[]
[]
[]
[]
[]
[]
[]
[]
[]
[]
[]
[]
[]
[]
[]
[]
[]
[]
[]
[]
[]
[]
[]
[]
[]
[]
[]
[]
[]
[]
[]
[]
[]
[]
[]
[]
[]
[]
[]
[]
[]
[]
[]
[]
[]
[]
[]
[]
[]
[]
[]
[]
[]
[]
[]
[]
[]
[]
[]
[]
[]
[]
[]
[]
[]
[]
[]
[]
[]
[]
[]
[]
[]
[]
[]
[]
[]
[]
[]
[]
[]
[]
[]
[]
[]
[]
[]
[]
[]
[]
[]
[]
[]
[]
[]
[]
[]
[]
[]
[]
[]
[]
[]
[]
[]
[]
[]
[]
[]
[]
[]
[]
[]
[]
[]
[]
[]
[]
[]
[]
[]
[]
[]
[]
[]
[]
[]
[]
[]
[]
[]
[]
[]
[]
[]
[]
[]
[]
[]
[]
[]
[]
[]
[]
[]
[]
[]
[]
[]
[]
[]
[]
[]
[]
[]
[]
[]
[]
[]
[]
[]
[]
[]
[]
[]
[]
[]
[]
[]
[]
[]
[]
[]
[]
[]
[]
[]
[]
[]
[]
[]
[]
[]
[]
[]
[]
[]
[]
[]
[]
[]
[]
[]
[]
[]
[]
[]
[]
[]
[]
[]
[]
[]
[]
[]
[]
[]
[]
[]
[]
[]
[]
[]
[]
[]
[]
[]
[]
[]
[]
[]
[]
[]
[]
[]
[]
[]
[]
[]
[]
[]
[]
[]
[]
[]
[]
[]
[]
[]
[]
[]
[]
[]
[]
[]
[]
[]
[]
[]
[]
[]
[]
[]
[]
[]
[]
[]
[]
[]
[]
[]
[]
[]
[]
[]
[]
[]
[]
[]
[]
[]
[]
[]
[]
[]
[]
[]
[]
[]
[]
[]
[]
[]
[]
[]
[]
[]
[]
[]
[]
[]
[]
[]
[]
[]
[]
[]
[]
[]
[]
[]
[]
[]
[]
[]
[]
[]
[]
[]
[]
[]
[]
[]
[]
[]
[]
[]
[]
[]
[]
[]
[]
[]
[]
[]
[]
[]
[]
[]
[]
[]
[]
[]
[]
[]
[]
[]
[]
[]
[]
[]
[]
[]
[]
[]
[]
[]
[]
[]
[]
[]
[]
[]
[]
[]
[]
[]
[]
[]
[]
[]
[]
[]
[]
[]
[]
[]
[]
[]
[]
[]
[]
[]
[]
[]
[]
[]
[]
[]
[]
[]
[]
[]
[]
[]
[]
[]
[]
[]
[]
[]
[]
[]
[]
[]
[]
[]
[]
[]
[]
[]
[]
[]
[]
[]
[]
[]
[]
[]
[]
[]
[]
[]
[]
[]
[]
[]
[]
[]
[]
[]
[]
[]
[]
[]
[]
[]
[]
[]
[]
[]
[]
[]
[]
[]
[]
[]
[]
[]
[]
[]
[]
[]
[]
[]
[]
[]
[]
[]
[]
[]
[]
[]
[]
[]
[]
[]
[]
[]
[]
[]
[]
[]
[]
[]
[]
[]
[]
[]
[]
[]
[]
[]
[]
[]
[]
[]
[]
[]
[]
[]
[]
[]
[]
[]
[]
[]
[]
[]
[]
[]
[]
[]
[]
[]
[]
[]
[]
[]
[]
[]
[]
[]
[]
[]
[]
[]
[]
[]
[]
[]
[]
[]
[]
[]
[]
[]
[]
[]
[]
[]
[]
[]
[]
[]
[]
[]
[]
[]
[]
[]
[]
[]
[]
[]
[]
[]
[]
[]
[]
[]
[]
[]
[]
[]
[]
[]
[]
[]
[]
[]
[]
[]
[]
[]
[]
[]
[]
[]
[]
[]
[]
[]
[]
[]
[]
[]
[]
[]
[]
[]
[]
[]
[]
[]
[]
[]
[]
[]
[]
[]
[]
[]
[]
[]
[]
[null,null,null,"Daniel Perez "]

{"sheet":"LMJ 4","index":54,"n_rows":652,"n_cols":19,"rows_kept":652,"cut":false,"hidden":true,"merged":[[21,11,21,14],[22,11,22,14],[23,11,23,14],[24,11,24,14],[15,0,16,10],[15,11,16,14],[15,15,16,16],[17,11,17,14],[17,15,17,16],[18,11,18,14],[18,15,18,16],[11,0,12,10],[11,11,12,14],[11,15,12,16],[13,11,13,14],[13,15,13,16],[14,11,14,14],[14,15,14,16],[7,11,7,14],[7,15,7,16],[8,11,8,14],[8,15,8,16],[9,0,10,10],[9,11,10,14],[9,15,10,16],[3,15,4,16],[4,11,4,14],[5,11,5,14],[5,15,5,16],[6,11,6,14],[6,15,6,16]]}
[]
[null,null,null,null,null,null,null,null,null,null,null,null,null,null,null,null,null,null,"Actual Units:"]
[]
[null,null,null,null,null,null,null,null,null,null,null,null,null,null,null,"Hispanic\n/Latino"]
[null,null,null,null,null,"Race/Ethnicity",null,null,null,null,null,"Race"]
[null,null,null,null,null,"White"]
[null,null,null,null,null,"Black / African American"]
[null,null,null,null,null,"Asian"]
[null,null,null,null,null,"American Indian / Alaskan Native"]
["Native Hawaiian / Other Pacific Islander"]
[]
["American Indian / Alaskan Native & White"]
[]
[null,null,null,null,null,"Asian & White"]
[null,null,null,null,null,"Black / African American & White"]
["American Indian / Alaskan Native & Black / African American"]
[]
[null,null,null,null,null,"Other Multi-Racial"]
[null,null,null,null,null,null,null,null,null,null,"Total:",{"$f":"SUM(L6:O18)","v":0},null,null,null,{"$f":"SUM(P6:Q18)","v":0}]
[]
[null,null,null,null,"Income Information"]
[null,null,null,null,"Extremely Low (0-30% AMI)"]
[null,null,null,null,"Low (31-50% AMI)"]
[null,null,null,null,"Moderate (51-80% AMI)"]
[null,null,null,null,null,null,null,null,null,null,"Total:",{"$f":"SUM(L22:O24)","v":0}]
[]
[]
[]
[]
[]
[]
[]
[]
[]
[]
[]
[]
[]
[]
[]
[]
[]
[]
[]
[]
[]
[]
[]
[]
[]
[]
[]
[]
[]
[]
[]
[]
[]
[]
[]
[]
[]
[]
[]
[]
[]
[]
[]
[]
[]
[]
[]
[]
[]
[]
[]
[]
[]
[]
[]
[]
[]
[]
[]
[]
[]
[]
[]
[]
[]
[]
[]
[]
[]
[]
[]
[]
[]
[]
[]
[]
[]
[]
[]
[]
[]
[]
[]
[]
[]
[]
[]
[]
[]
[]
[]
[]
[]
[]
[]
[]
[]
[]
[]
[]
[]
[]
[]
[]
[]
[]
[]
[]
[]
[]
[]
[]
[]
[]
[]
[]
[]
[]
[]
[]
[]
[]
[]
[]
[]
[]
[]
[]
[]
[]
[]
[]
[]
[]
[]
[]
[]
[]
[]
[]
[]
[]
[]
[]
[]
[]
[]
[]
[]
[]
[]
[]
[]
[]
[]
[]
[]
[]
[]
[]
[]
[]
[]
[]
[]
[]
[]
[]
[]
[]
[]
[]
[]
[]
[]
[]
[]
[]
[]
[]
[]
[]
[]
[]
[]
[]
[]
[]
[]
[]
[]
[]
[]
[]
[]
[]
[]
[]
[]
[]
[]
[]
[]
[]
[]
[]
[]
[]
[]
[]
[]
[]
[]
[]
[]
[]
[]
[]
[]
[]
[]
[]
[]
[]
[]
[]
[]
[]
[]
[]
[]
[]
[]
[]
[]
[]
[]
[]
[]
[]
[]
[]
[]
[]
[]
[]
[]
[]
[]
[]
[]
[]
[]
[]
[]
[]
[]
[]
[]
[]
[]
[]
[]
[]
[]
[]
[]
[]
[]
[]
[]
[]
[]
[]
[]
[]
[]
[]
[]
[]
[]
[]
[]
[]
[]
[]
[]
[]
[]
[]
[]
[]
[]
[]
[]
[]
[]
[]
[]
[]
[]
[]
[]
[]
[]
[]
[]
[]
[]
[]
[]
[]
[]
[]
[]
[]
[]
[]
[]
[]
[]
[]
[]
[]
[]
[]
[]
[]
[]
[]
[]
[]
[]
[]
[]
[]
[]
[]
[]
[]
[]
[]
[]
[]
[]
[]
[]
[]
[]
[]
[]
[]
[]
[]
[]
[]
[]
[]
[]
[]
[]
[]
[]
[]
[]
[]
[]
[]
[]
[]
[]
[]
[]
[]
[]
[]
[]
[]
[]
[]
[]
[]
[]
[]
[]
[]
[]
[]
[]
[]
[]
[]
[]
[]
[]
[]
[]
[]
[]
[]
[]
[]
[]
[]
[]
[]
[]
[]
[]
[]
[]
[]
[]
[]
[]
[]
[]
[]
[]
[]
[]
[]
[]
[]
[]
[]
[]
[]
[]
[]
[]
[]
[]
[]
[]
[]
[]
[]
[]
[]
[]
[]
[]
[]
[]
[]
[]
[]
[]
[]
[]
[]
[]
[]
[]
[]
[]
[]
[]
[]
[]
[]
[]
[]
[]
[]
[]
[]
[]
[]
[]
[]
[]
[]
[]
[]
[]
[]
[]
[]
[]
[]
[]
[]
[]
[]
[]
[]
[]
[]
[]
[]
[]
[]
[]
[]
[]
[]
[]
[]
[]
[]
[]
[]
[]
[]
[]
[]
[]
[]
[]
[]
[]
[]
[]
[]
[]
[]
[]
[]
[]
[]
[]
[]
[]
[]
[]
[]
[]
[]
[]
[]
[]
[]
[]
[]
[]
[]
[]
[]
[]
[]
[]
[]
[]
[]
[]
[]
[]
[]
[]
[]
[]
[]
[]
[]
[]
[]
[]
[]
[]
[]
[]
[]
[]
[]
[]
[]
[]
[]
[]
[]
[]
[]
[]
[]
[]
[]
[]
[]
[]
[]
[]
[]
[]
[]
[]
[]
[]
[]
[]
[]
[]
[]
[]
[]
[]
[]
[]
[]
[]
[]
[]
[]
[]
[]
[]
[]
[]
[]
[]
[]
[]
[]
[]
[]
[]
[]
[]
[]
[]
[]
[]
[]
[]
[]
[null,null,null,"Daniel Perez "]